Workbook

Sheet Legende

Sheet Berechnung
A3: Zugtyp | B3: Fahrttyp | C3: Traktion | D3: Ladungsart | E3: Startbahnhof | F3: Zielbahnhof | G3: Ladungsgewicht [t] | H3: Entfernung [km] | I3: spez. Verbrauch [g Diesel/tkm bzw. Wh/tkm] | J3: Gesamtverbrauch [kg Diesel bzw. kWh] | K3: Gesamtverbrauch [l Diesel bzw. kWh] | L3: Energieverbrauch TTW [MJ] | M3: Energieverbrauch WTW [MJ] | N3: CO2 TTW [kg] | O3: CO2 WTW [kg] | P3: CO2-Äquivalente TTW [kg] | Q3: CO2-Äquivalente WTW [kg]
A4: Kurzzug | B4: Flachland | C4: Diesel | D4: Normal | E4: Dortmund | F4: Rotterdam | G4: 300 | H4: =IF(G4="","",SUM(IF(E4=Entfernung_Güterbahnhöfe!$A$2:$A$100000,1,0)*IF(F4=Entfernung_Güterbahnhöfe!$B$2:$B$100000,1,0)*Entfernung_Güterbahnhöfe!$C$2:$C$100000)) -> 284 | I4: =IF(G4="","",INDEX(Energieverbrauch!$F$2:$F$55, MATCH( INDEX(Zugtypen!$A$2:$A$4, MATCH(A4,Zugtypen!$B$2:$B$4,0)) & INDEX(FahrttypenTopologie!$A$2:$A$4, MATCH(B4,FahrttypenTopologie!$B$2:$B$4,0)) & INDEX(Traktion!$A$2:$A$3, MATCH(C4,Traktion!$B$2:$B$3,0)) & INDEX(Ladungsart!$A$2:$A$4, MATCH(D4,Ladungsart!$B$2:$B$4,0)), Energieverbrauch!$E$2:$E$55, 0))) -> 11 | J4: =IF(G4="","",(I4*H4*G4)/1000) -> 937.2 | K4: =IF(G4="","",IF(C4="Diesel",J4/CO2_Faktoren!$B$8,J4)) -> 1126.442308 | L4: =IF(G4="","",$J4*IF($C4="Diesel",CO2_Faktoren!B$3,CO2_Faktoren!B$5)) -> 40393.32 | M4: =IF(G4="","",$J4*IF($C4="Diesel",CO2_Faktoren!C$3,CO2_Faktoren!C$5)) -> 48078.36 | N4: =IF(G4="","",$J4*IF($C4="Diesel",CO2_Faktoren!D$3,CO2_Faktoren!D$5)) -> 2961.552 | O4: =IF(G4="","",$J4*IF($C4="Diesel",CO2_Faktoren!E$3,CO2_Faktoren!E$5)) -> 3598.848 | P4: =IF(G4="","",$J4*IF($C4="Diesel",CO2_Faktoren!F$3,CO2_Faktoren!F$5)) -> 3008.412 | Q4: =IF(G4="","",$J4*IF($C4="Diesel",CO2_Faktoren!G$3,CO2_Faktoren!G$5)) -> 3655.08
A5: Mittlerer Zug | B5: Flachland | C5: Diesel | D5: Normal | E5: Dortmund | F5: Rotterdam | G5: 500 | H5: =IF(G5="","",SUM(IF(E5=Entfernung_Güterbahnhöfe!$A$2:$A$100000,1,0)*IF(F5=Entfernung_Güterbahnhöfe!$B$2:$B$100000,1,0)*Entfernung_Güterbahnhöfe!$C$2:$C$100000)) -> 284 | I5: =IF(G5="","",INDEX(Energieverbrauch!$F$2:$F$55, MATCH( INDEX(Zugtypen!$A$2:$A$4, MATCH(A5,Zugtypen!$B$2:$B$4,0)) & INDEX(FahrttypenTopologie!$A$2:$A$4, MATCH(B5,FahrttypenTopologie!$B$2:$B$4,0)) & INDEX(Traktion!$A$2:$A$3, MATCH(C5,Traktion!$B$2:$B$3,0)) & INDEX(Ladungsart!$A$2:$A$4, MATCH(D5,Ladungsart!$B$2:$B$4,0)), Energieverbrauch!$E$2:$E$55, 0))) -> 7.7 | J5: =IF(G5="","",(I5*H5*G5)/1000) -> 1093.4 | K5: =IF(G5="","",IF(C5="Diesel",J5/CO2_Faktoren!$B$8,J5)) -> 1314.182692 | L5: =IF(G5="","",$J5*IF($C5="Diesel",CO2_Faktoren!B$3,CO2_Faktoren!B$5)) -> 47125.54 | M5: =IF(G5="","",$J5*IF($C5="Diesel",CO2_Faktoren!C$3,CO2_Faktoren!C$5)) -> 56091.42 | N5: =IF(G5="","",$J5*IF($C5="Diesel",CO2_Faktoren!D$3,CO2_Faktoren!D$5)) -> 3455.144 | O5: =IF(G5="","",$J5*IF($C5="Diesel",CO2_Faktoren!E$3,CO2_Faktoren!E$5)) -> 4198.656 | P5: =IF(G5="","",$J5*IF($C5="Diesel",CO2_Faktoren!F$3,CO2_Faktoren!F$5)) -> 3509.814 | Q5: =IF(G5="","",$J5*IF($C5="Diesel",CO2_Faktoren!G$3,CO2_Faktoren!G$5)) -> 4264.26
A6: Langzug | B6: Flachland | C6: Diesel | D6: Normal | E6: Dortmund | F6: Bremen | G6: 700 | H6: =IF(G6="","",SUM(IF(E6=Entfernung_Güterbahnhöfe!$A$2:$A$100000,1,0)*IF(F6=Entfernung_Güterbahnhöfe!$B$2:$B$100000,1,0)*Entfernung_Güterbahnhöfe!$C$2:$C$100000)) -> 230 | I6: =IF(G6="","",INDEX(Energieverbrauch!$F$2:$F$55, MATCH( INDEX(Zugtypen!$A$2:$A$4, MATCH(A6,Zugtypen!$B$2:$B$4,0)) & INDEX(FahrttypenTopologie!$A$2:$A$4, MATCH(B6,FahrttypenTopologie!$B$2:$B$4,0)) & INDEX(Traktion!$A$2:$A$3, MATCH(C6,Traktion!$B$2:$B$3,0)) & INDEX(Ladungsart!$A$2:$A$4, MATCH(D6,Ladungsart!$B$2:$B$4,0)), Energieverbrauch!$E$2:$E$55, 0))) -> 6.3 | J6: =IF(G6="","",(I6*H6*G6)/1000) -> 1014.3 | K6: =IF(G6="","",IF(C6="Diesel",J6/CO2_Faktoren!$B$8,J6)) -> 1219.110577 | L6: =IF(G6="","",$J6*IF($C6="Diesel",CO2_Faktoren!B$3,CO2_Faktoren!B$5)) -> 43716.33 | M6: =IF(G6="","",$J6*IF($C6="Diesel",CO2_Faktoren!C$3,CO2_Faktoren!C$5)) -> 52033.59 | N6: =IF(G6="","",$J6*IF($C6="Diesel",CO2_Faktoren!D$3,CO2_Faktoren!D$5)) -> 3205.188 | O6: =IF(G6="","",$J6*IF($C6="Diesel",CO2_Faktoren!E$3,CO2_Faktoren!E$5)) -> 3894.912 | P6: =IF(G6="","",$J6*IF($C6="Diesel",CO2_Faktoren!F$3,CO2_Faktoren!F$5)) -> 3255.903 | Q6: =IF(G6="","",$J6*IF($C6="Diesel",CO2_Faktoren!G$3,CO2_Faktoren!G$5)) -> 3955.77
H7: =IF(G7="","",SUM(IF(E7=Entfernung_Güterbahnhöfe!$A$2:$A$100000,1,0)*IF(F7=Entfernung_Güterbahnhöfe!$B$2:$B$100000,1,0)*Entfernung_Güterbahnhöfe!$C$2:$C$100000)) ->  | I7: =IF(G7="","",INDEX(Energieverbrauch!$F$2:$F$55, MATCH( INDEX(Zugtypen!$A$2:$A$4, MATCH(A7,Zugtypen!$B$2:$B$4,0)) & INDEX(FahrttypenTopologie!$A$2:$A$4, MATCH(B7,FahrttypenTopologie!$B$2:$B$4,0)) & INDEX(Traktion!$A$2:$A$3, MATCH(C7,Traktion!$B$2:$B$3,0)) & INDEX(Ladungsart!$A$2:$A$4, MATCH(D7,Ladungsart!$B$2:$B$4,0)), Energieverbrauch!$E$2:$E$55, 0))) ->  | J7: =IF(G7="","",(I7*H7*G7)/1000) ->  | K7: =IF(G7="","",IF(C7="Diesel",J7/CO2_Faktoren!$B$8,J7)) ->  | L7: =IF(G7="","",$J7*IF($C7="Diesel",CO2_Faktoren!B$3,CO2_Faktoren!B$5)) ->  | M7: =IF(G7="","",$J7*IF($C7="Diesel",CO2_Faktoren!C$3,CO2_Faktoren!C$5)) ->  | N7: =IF(G7="","",$J7*IF($C7="Diesel",CO2_Faktoren!D$3,CO2_Faktoren!D$5)) ->  | O7: =IF(G7="","",$J7*IF($C7="Diesel",CO2_Faktoren!E$3,CO2_Faktoren!E$5)) ->  | P7: =IF(G7="","",$J7*IF($C7="Diesel",CO2_Faktoren!F$3,CO2_Faktoren!F$5)) ->  | Q7: =IF(G7="","",$J7*IF($C7="Diesel",CO2_Faktoren!G$3,CO2_Faktoren!G$5)) -> 
A8: Kurzzug | B8: Hügelig | C8: Elektrotraktion | D8: Normal | E8: Dortmund | F8: München | G8: 300 | H8: =IF(G8="","",SUM(IF(E8=Entfernung_Güterbahnhöfe!$A$2:$A$100000,1,0)*IF(F8=Entfernung_Güterbahnhöfe!$B$2:$B$100000,1,0)*Entfernung_Güterbahnhöfe!$C$2:$C$100000)) -> 638 | I8: =IF(G8="","",INDEX(Energieverbrauch!$F$2:$F$55, MATCH( INDEX(Zugtypen!$A$2:$A$4, MATCH(A8,Zugtypen!$B$2:$B$4,0)) & INDEX(FahrttypenTopologie!$A$2:$A$4, MATCH(B8,FahrttypenTopologie!$B$2:$B$4,0)) & INDEX(Traktion!$A$2:$A$3, MATCH(C8,Traktion!$B$2:$B$3,0)) & INDEX(Ladungsart!$A$2:$A$4, MATCH(D8,Ladungsart!$B$2:$B$4,0)), Energieverbrauch!$E$2:$E$55, 0))) -> 60.4 | J8: 11560.56 | K8: =IF(G8="","",IF(C8="Diesel",J8/CO2_Faktoren!$B$8,J8)) -> 11560.56 | L8: =IF(G8="","",$J8*IF($C8="Diesel",CO2_Faktoren!B$3,CO2_Faktoren!B$5)) -> 41618.016 | M8: =IF(G8="","",$J8*IF($C8="Diesel",CO2_Faktoren!C$3,CO2_Faktoren!C$5)) -> 124854.048 | N8: =IF(G8="","",$J8*IF($C8="Diesel",CO2_Faktoren!D$3,CO2_Faktoren!D$5)) -> 0 | O8: =IF(G8="","",$J8*IF($C8="Diesel",CO2_Faktoren!E$3,CO2_Faktoren!E$5)) -> 6092.41512 | P8: =IF(G8="","",$J8*IF($C8="Diesel",CO2_Faktoren!F$3,CO2_Faktoren!F$5)) -> 0 | Q8: =IF(G8="","",$J8*IF($C8="Diesel",CO2_Faktoren!G$3,CO2_Faktoren!G$5)) -> 6635.76144
A9: Mittlerer Zug | B9: Hügelig | C9: Elektrotraktion | D9: Normal | E9: Dortmund | F9: München | G9: 500 | H9: =IF(G9="","",SUM(IF(E9=Entfernung_Güterbahnhöfe!$A$2:$A$100000,1,0)*IF(F9=Entfernung_Güterbahnhöfe!$B$2:$B$100000,1,0)*Entfernung_Güterbahnhöfe!$C$2:$C$100000)) -> 638 | I9: =IF(G9="","",INDEX(Energieverbrauch!$F$2:$F$55, MATCH( INDEX(Zugtypen!$A$2:$A$4, MATCH(A9,Zugtypen!$B$2:$B$4,0)) & INDEX(FahrttypenTopologie!$A$2:$A$4, MATCH(B9,FahrttypenTopologie!$B$2:$B$4,0)) & INDEX(Traktion!$A$2:$A$3, MATCH(C9,Traktion!$B$2:$B$3,0)) & INDEX(Ladungsart!$A$2:$A$4, MATCH(D9,Ladungsart!$B$2:$B$4,0)), Energieverbrauch!$E$2:$E$55, 0))) -> 42.7 | J9: 13621.3 | K9: =IF(G9="","",IF(C9="Diesel",J9/CO2_Faktoren!$B$8,J9)) -> 13621.3 | L9: =IF(G9="","",$J9*IF($C9="Diesel",CO2_Faktoren!B$3,CO2_Faktoren!B$5)) -> 49036.68 | M9: =IF(G9="","",$J9*IF($C9="Diesel",CO2_Faktoren!C$3,CO2_Faktoren!C$5)) -> 147110.04 | N9: =IF(G9="","",$J9*IF($C9="Diesel",CO2_Faktoren!D$3,CO2_Faktoren!D$5)) -> 0 | O9: =IF(G9="","",$J9*IF($C9="Diesel",CO2_Faktoren!E$3,CO2_Faktoren!E$5)) -> 7178.4251 | P9: =IF(G9="","",$J9*IF($C9="Diesel",CO2_Faktoren!F$3,CO2_Faktoren!F$5)) -> 0 | Q9: =IF(G9="","",$J9*IF($C9="Diesel",CO2_Faktoren!G$3,CO2_Faktoren!G$5)) -> 7818.6262
A10: Langzug | B10: Hügelig | C10: Elektrotraktion | D10: Normal | E10: Dortmund | F10: München | G10: 700 | H10: =IF(G10="","",SUM(IF(E10=Entfernung_Güterbahnhöfe!$A$2:$A$100000,1,0)*IF(F10=Entfernung_Güterbahnhöfe!$B$2:$B$100000,1,0)*Entfernung_Güterbahnhöfe!$C$2:$C$100000)) -> 638 | I10: =IF(G10="","",INDEX(Energieverbrauch!$F$2:$F$55, MATCH( INDEX(Zugtypen!$A$2:$A$4, MATCH(A10,Zugtypen!$B$2:$B$4,0)) & INDEX(FahrttypenTopologie!$A$2:$A$4, MATCH(B10,FahrttypenTopologie!$B$2:$B$4,0)) & INDEX(Traktion!$A$2:$A$3, MATCH(C10,Traktion!$B$2:$B$3,0)) & INDEX(Ladungsart!$A$2:$A$4, MATCH(D10,Ladungsart!$B$2:$B$4,0)), Energieverbrauch!$E$2:$E$55, 0))) -> 34.9 | J10: 15586.34 | K10: =IF(G10="","",IF(C10="Diesel",J10/CO2_Faktoren!$B$8,J10)) -> 15586.34 | L10: =IF(G10="","",$J10*IF($C10="Diesel",CO2_Faktoren!B$3,CO2_Faktoren!B$5)) -> 56110.824 | M10: =IF(G10="","",$J10*IF($C10="Diesel",CO2_Faktoren!C$3,CO2_Faktoren!C$5)) -> 168332.472 | N10: =IF(G10="","",$J10*IF($C10="Diesel",CO2_Faktoren!D$3,CO2_Faktoren!D$5)) -> 0 | O10: =IF(G10="","",$J10*IF($C10="Diesel",CO2_Faktoren!E$3,CO2_Faktoren!E$5)) -> 8214.00118 | P10: =IF(G10="","",$J10*IF($C10="Diesel",CO2_Faktoren!F$3,CO2_Faktoren!F$5)) -> 0 | Q10: =IF(G10="","",$J10*IF($C10="Diesel",CO2_Faktoren!G$3,CO2_Faktoren!G$5)) -> 8946.55916
H11: =IF(G11="","",SUM(IF(E11=Entfernung_Güterbahnhöfe!$A$2:$A$100000,1,0)*IF(F11=Entfernung_Güterbahnhöfe!$B$2:$B$100000,1,0)*Entfernung_Güterbahnhöfe!$C$2:$C$100000)) ->  | I11: =IF(G11="","",INDEX(Energieverbrauch!$F$2:$F$55, MATCH( INDEX(Zugtypen!$A$2:$A$4, MATCH(A11,Zugtypen!$B$2:$B$4,0)) & INDEX(FahrttypenTopologie!$A$2:$A$4, MATCH(B11,FahrttypenTopologie!$B$2:$B$4,0)) & INDEX(Traktion!$A$2:$A$3, MATCH(C11,Traktion!$B$2:$B$3,0)) & INDEX(Ladungsart!$A$2:$A$4, MATCH(D11,Ladungsart!$B$2:$B$4,0)), Energieverbrauch!$E$2:$E$55, 0))) ->  | K11: =IF(G11="","",IF(C11="Diesel",J11/CO2_Faktoren!$B$8,J11)) ->  | L11: =IF(G11="","",$J11*IF($C11="Diesel",CO2_Faktoren!B$3,CO2_Faktoren!B$5)) ->  | M11: =IF(G11="","",$J11*IF($C11="Diesel",CO2_Faktoren!C$3,CO2_Faktoren!C$5)) ->  | N11: =IF(G11="","",$J11*IF($C11="Diesel",CO2_Faktoren!D$3,CO2_Faktoren!D$5)) ->  | O11: =IF(G11="","",$J11*IF($C11="Diesel",CO2_Faktoren!E$3,CO2_Faktoren!E$5)) ->  | P11: =IF(G11="","",$J11*IF($C11="Diesel",CO2_Faktoren!F$3,CO2_Faktoren!F$5)) ->  | Q11: =IF(G11="","",$J11*IF($C11="Diesel",CO2_Faktoren!G$3,CO2_Faktoren!G$5)) -> 
A12: Kurzzug | B12: Bergig | C12: Diesel | D12: Normal | E12: Dortmund | F12: Wien | G12: 300 | H12: =IF(G12="","",SUM(IF(E12=Entfernung_Güterbahnhöfe!$A$2:$A$100000,1,0)*IF(F12=Entfernung_Güterbahnhöfe!$B$2:$B$100000,1,0)*Entfernung_Güterbahnhöfe!$C$2:$C$100000)) -> 994 | I12: =IF(G12="","",INDEX(Energieverbrauch!$F$2:$F$55, MATCH( INDEX(Zugtypen!$A$2:$A$4, MATCH(A12,Zugtypen!$B$2:$B$4,0)) & INDEX(FahrttypenTopologie!$A$2:$A$4, MATCH(B12,FahrttypenTopologie!$B$2:$B$4,0)) & INDEX(Traktion!$A$2:$A$3, MATCH(C12,Traktion!$B$2:$B$3,0)) & INDEX(Ladungsart!$A$2:$A$4, MATCH(D12,Ladungsart!$B$2:$B$4,0)), Energieverbrauch!$E$2:$E$55, 0))) -> 16.4 | J12: 4890.48 | K12: =IF(G12="","",IF(C12="Diesel",J12/CO2_Faktoren!$B$8,J12)) -> 5877.980769 | L12: =IF(G12="","",$J12*IF($C12="Diesel",CO2_Faktoren!B$3,CO2_Faktoren!B$5)) -> 210779.688 | M12: =IF(G12="","",$J12*IF($C12="Diesel",CO2_Faktoren!C$3,CO2_Faktoren!C$5)) -> 250881.624 | N12: =IF(G12="","",$J12*IF($C12="Diesel",CO2_Faktoren!D$3,CO2_Faktoren!D$5)) -> 15453.9168 | O12: =IF(G12="","",$J12*IF($C12="Diesel",CO2_Faktoren!E$3,CO2_Faktoren!E$5)) -> 18779.4432 | P12: =IF(G12="","",$J12*IF($C12="Diesel",CO2_Faktoren!F$3,CO2_Faktoren!F$5)) -> 15698.4408 | Q12: =IF(G12="","",$J12*IF($C12="Diesel",CO2_Faktoren!G$3,CO2_Faktoren!G$5)) -> 19072.872
A13: Mittlerer Zug | B13: Bergig | C13: Diesel | D13: Normal | E13: Dortmund | F13: Wien | G13: 500 | H13: =IF(G13="","",SUM(IF(E13=Entfernung_Güterbahnhöfe!$A$2:$A$100000,1,0)*IF(F13=Entfernung_Güterbahnhöfe!$B$2:$B$100000,1,0)*Entfernung_Güterbahnhöfe!$C$2:$C$100000)) -> 994 | I13: =IF(G13="","",INDEX(Energieverbrauch!$F$2:$F$55, MATCH( INDEX(Zugtypen!$A$2:$A$4, MATCH(A13,Zugtypen!$B$2:$B$4,0)) & INDEX(FahrttypenTopologie!$A$2:$A$4, MATCH(B13,FahrttypenTopologie!$B$2:$B$4,0)) & INDEX(Traktion!$A$2:$A$3, MATCH(C13,Traktion!$B$2:$B$3,0)) & INDEX(Ladungsart!$A$2:$A$4, MATCH(D13,Ladungsart!$B$2:$B$4,0)), Energieverbrauch!$E$2:$E$55, 0))) -> 11.6 | J13: 5765.2 | K13: =IF(G13="","",IF(C13="Diesel",J13/CO2_Faktoren!$B$8,J13)) -> 6929.326923 | L13: =IF(G13="","",$J13*IF($C13="Diesel",CO2_Faktoren!B$3,CO2_Faktoren!B$5)) -> 248480.12 | M13: =IF(G13="","",$J13*IF($C13="Diesel",CO2_Faktoren!C$3,CO2_Faktoren!C$5)) -> 295754.76 | N13: =IF(G13="","",$J13*IF($C13="Diesel",CO2_Faktoren!D$3,CO2_Faktoren!D$5)) -> 18218.032 | O13: =IF(G13="","",$J13*IF($C13="Diesel",CO2_Faktoren!E$3,CO2_Faktoren!E$5)) -> 22138.368 | P13: =IF(G13="","",$J13*IF($C13="Diesel",CO2_Faktoren!F$3,CO2_Faktoren!F$5)) -> 18506.292 | Q13: =IF(G13="","",$J13*IF($C13="Diesel",CO2_Faktoren!G$3,CO2_Faktoren!G$5)) -> 22484.28
A14: Langzug | B14: Bergig | C14: Diesel | D14: Normal | E14: Dortmund | F14: Wien | G14: 700 | H14: =IF(G14="","",SUM(IF(E14=Entfernung_Güterbahnhöfe!$A$2:$A$100000,1,0)*IF(F14=Entfernung_Güterbahnhöfe!$B$2:$B$100000,1,0)*Entfernung_Güterbahnhöfe!$C$2:$C$100000)) -> 994 | I14: =IF(G14="","",INDEX(Energieverbrauch!$F$2:$F$55, MATCH( INDEX(Zugtypen!$A$2:$A$4, MATCH(A14,Zugtypen!$B$2:$B$4,0)) & INDEX(FahrttypenTopologie!$A$2:$A$4, MATCH(B14,FahrttypenTopologie!$B$2:$B$4,0)) & INDEX(Traktion!$A$2:$A$3, MATCH(C14,Traktion!$B$2:$B$3,0)) & INDEX(Ladungsart!$A$2:$A$4, MATCH(D14,Ladungsart!$B$2:$B$4,0)), Energieverbrauch!$E$2:$E$55, 0))) -> 9.5 | J14: 6610.1 | K14: =IF(G14="","",IF(C14="Diesel",J14/CO2_Faktoren!$B$8,J14)) -> 7944.831731 | L14: =IF(G14="","",$J14*IF($C14="Diesel",CO2_Faktoren!B$3,CO2_Faktoren!B$5)) -> 284895.31 | M14: =IF(G14="","",$J14*IF($C14="Diesel",CO2_Faktoren!C$3,CO2_Faktoren!C$5)) -> 339098.13 | N14: =IF(G14="","",$J14*IF($C14="Diesel",CO2_Faktoren!D$3,CO2_Faktoren!D$5)) -> 20887.916 | O14: =IF(G14="","",$J14*IF($C14="Diesel",CO2_Faktoren!E$3,CO2_Faktoren!E$5)) -> 25382.784 | P14: =IF(G14="","",$J14*IF($C14="Diesel",CO2_Faktoren!F$3,CO2_Faktoren!F$5)) -> 21218.421 | Q14: =IF(G14="","",$J14*IF($C14="Diesel",CO2_Faktoren!G$3,CO2_Faktoren!G$5)) -> 25779.39
H15: =IF(G15="","",SUM(IF(E15=Entfernung_Güterbahnhöfe!$A$2:$A$100000,1,0)*IF(F15=Entfernung_Güterbahnhöfe!$B$2:$B$100000,1,0)*Entfernung_Güterbahnhöfe!$C$2:$C$100000)) ->  | I15: =IF(G15="","",INDEX(Energieverbrauch!$F$2:$F$55, MATCH( INDEX(Zugtypen!$A$2:$A$4, MATCH(A15,Zugtypen!$B$2:$B$4,0)) & INDEX(FahrttypenTopologie!$A$2:$A$4, MATCH(B15,FahrttypenTopologie!$B$2:$B$4,0)) & INDEX(Traktion!$A$2:$A$3, MATCH(C15,Traktion!$B$2:$B$3,0)) & INDEX(Ladungsart!$A$2:$A$4, MATCH(D15,Ladungsart!$B$2:$B$4,0)), Energieverbrauch!$E$2:$E$55, 0))) ->  | K15: =IF(G15="","",IF(C15="Diesel",J15/CO2_Faktoren!$B$8,J15)) ->  | L15: =IF(G15="","",$J15*IF($C15="Diesel",CO2_Faktoren!B$3,CO2_Faktoren!B$5)) ->  | M15: =IF(G15="","",$J15*IF($C15="Diesel",CO2_Faktoren!C$3,CO2_Faktoren!C$5)) ->  | N15: =IF(G15="","",$J15*IF($C15="Diesel",CO2_Faktoren!D$3,CO2_Faktoren!D$5)) ->  | O15: =IF(G15="","",$J15*IF($C15="Diesel",CO2_Faktoren!E$3,CO2_Faktoren!E$5)) ->  | P15: =IF(G15="","",$J15*IF($C15="Diesel",CO2_Faktoren!F$3,CO2_Faktoren!F$5)) ->  | Q15: =IF(G15="","",$J15*IF($C15="Diesel",CO2_Faktoren!G$3,CO2_Faktoren!G$5)) -> 
H16: =IF(G16="","",SUM(IF(E16=Entfernung_Güterbahnhöfe!$A$2:$A$100000,1,0)*IF(F16=Entfernung_Güterbahnhöfe!$B$2:$B$100000,1,0)*Entfernung_Güterbahnhöfe!$C$2:$C$100000)) ->  | I16: =IF(G16="","",INDEX(Energieverbrauch!$F$2:$F$55, MATCH( INDEX(Zugtypen!$A$2:$A$4, MATCH(A16,Zugtypen!$B$2:$B$4,0)) & INDEX(FahrttypenTopologie!$A$2:$A$4, MATCH(B16,FahrttypenTopologie!$B$2:$B$4,0)) & INDEX(Traktion!$A$2:$A$3, MATCH(C16,Traktion!$B$2:$B$3,0)) & INDEX(Ladungsart!$A$2:$A$4, MATCH(D16,Ladungsart!$B$2:$B$4,0)), Energieverbrauch!$E$2:$E$55, 0))) ->  | K16: =IF(G16="","",IF(C16="Diesel",J16/CO2_Faktoren!$B$8,J16)) ->  | L16: =IF(G16="","",$J16*IF($C16="Diesel",CO2_Faktoren!B$3,CO2_Faktoren!B$5)) ->  | M16: =IF(G16="","",$J16*IF($C16="Diesel",CO2_Faktoren!C$3,CO2_Faktoren!C$5)) ->  | N16: =IF(G16="","",$J16*IF($C16="Diesel",CO2_Faktoren!D$3,CO2_Faktoren!D$5)) ->  | O16: =IF(G16="","",$J16*IF($C16="Diesel",CO2_Faktoren!E$3,CO2_Faktoren!E$5)) ->  | P16: =IF(G16="","",$J16*IF($C16="Diesel",CO2_Faktoren!F$3,CO2_Faktoren!F$5)) ->  | Q16: =IF(G16="","",$J16*IF($C16="Diesel",CO2_Faktoren!G$3,CO2_Faktoren!G$5)) -> 
H17: =IF(G17="","",SUM(IF(E17=Entfernung_Güterbahnhöfe!$A$2:$A$100000,1,0)*IF(F17=Entfernung_Güterbahnhöfe!$B$2:$B$100000,1,0)*Entfernung_Güterbahnhöfe!$C$2:$C$100000)) ->  | I17: =IF(G17="","",INDEX(Energieverbrauch!$F$2:$F$55, MATCH( INDEX(Zugtypen!$A$2:$A$4, MATCH(A17,Zugtypen!$B$2:$B$4,0)) & INDEX(FahrttypenTopologie!$A$2:$A$4, MATCH(B17,FahrttypenTopologie!$B$2:$B$4,0)) & INDEX(Traktion!$A$2:$A$3, MATCH(C17,Traktion!$B$2:$B$3,0)) & INDEX(Ladungsart!$A$2:$A$4, MATCH(D17,Ladungsart!$B$2:$B$4,0)), Energieverbrauch!$E$2:$E$55, 0))) ->  | K17: =IF(G17="","",IF(C17="Diesel",J17/CO2_Faktoren!$B$8,J17)) ->  | L17: =IF(G17="","",$J17*IF($C17="Diesel",CO2_Faktoren!B$3,CO2_Faktoren!B$5)) ->  | M17: =IF(G17="","",$J17*IF($C17="Diesel",CO2_Faktoren!C$3,CO2_Faktoren!C$5)) ->  | N17: =IF(G17="","",$J17*IF($C17="Diesel",CO2_Faktoren!D$3,CO2_Faktoren!D$5)) ->  | O17: =IF(G17="","",$J17*IF($C17="Diesel",CO2_Faktoren!E$3,CO2_Faktoren!E$5)) ->  | P17: =IF(G17="","",$J17*IF($C17="Diesel",CO2_Faktoren!F$3,CO2_Faktoren!F$5)) ->  | Q17: =IF(G17="","",$J17*IF($C17="Diesel",CO2_Faktoren!G$3,CO2_Faktoren!G$5)) -> 
H18: =IF(G18="","",SUM(IF(E18=Entfernung_Güterbahnhöfe!$A$2:$A$100000,1,0)*IF(F18=Entfernung_Güterbahnhöfe!$B$2:$B$100000,1,0)*Entfernung_Güterbahnhöfe!$C$2:$C$100000)) ->  | I18: =IF(G18="","",INDEX(Energieverbrauch!$F$2:$F$55, MATCH( INDEX(Zugtypen!$A$2:$A$4, MATCH(A18,Zugtypen!$B$2:$B$4,0)) & INDEX(FahrttypenTopologie!$A$2:$A$4, MATCH(B18,FahrttypenTopologie!$B$2:$B$4,0)) & INDEX(Traktion!$A$2:$A$3, MATCH(C18,Traktion!$B$2:$B$3,0)) & INDEX(Ladungsart!$A$2:$A$4, MATCH(D18,Ladungsart!$B$2:$B$4,0)), Energieverbrauch!$E$2:$E$55, 0))) ->  | K18: =IF(G18="","",IF(C18="Diesel",J18/CO2_Faktoren!$B$8,J18)) ->  | L18: =IF(G18="","",$J18*IF($C18="Diesel",CO2_Faktoren!B$3,CO2_Faktoren!B$5)) ->  | M18: =IF(G18="","",$J18*IF($C18="Diesel",CO2_Faktoren!C$3,CO2_Faktoren!C$5)) ->  | N18: =IF(G18="","",$J18*IF($C18="Diesel",CO2_Faktoren!D$3,CO2_Faktoren!D$5)) ->  | O18: =IF(G18="","",$J18*IF($C18="Diesel",CO2_Faktoren!E$3,CO2_Faktoren!E$5)) ->  | P18: =IF(G18="","",$J18*IF($C18="Diesel",CO2_Faktoren!F$3,CO2_Faktoren!F$5)) ->  | Q18: =IF(G18="","",$J18*IF($C18="Diesel",CO2_Faktoren!G$3,CO2_Faktoren!G$5)) -> 
H19: =IF(G19="","",SUM(IF(E19=Entfernung_Güterbahnhöfe!$A$2:$A$100000,1,0)*IF(F19=Entfernung_Güterbahnhöfe!$B$2:$B$100000,1,0)*Entfernung_Güterbahnhöfe!$C$2:$C$100000)) ->  | I19: =IF(G19="","",INDEX(Energieverbrauch!$F$2:$F$55, MATCH( INDEX(Zugtypen!$A$2:$A$4, MATCH(A19,Zugtypen!$B$2:$B$4,0)) & INDEX(FahrttypenTopologie!$A$2:$A$4, MATCH(B19,FahrttypenTopologie!$B$2:$B$4,0)) & INDEX(Traktion!$A$2:$A$3, MATCH(C19,Traktion!$B$2:$B$3,0)) & INDEX(Ladungsart!$A$2:$A$4, MATCH(D19,Ladungsart!$B$2:$B$4,0)), Energieverbrauch!$E$2:$E$55, 0))) ->  | K19: =IF(G19="","",IF(C19="Diesel",J19/CO2_Faktoren!$B$8,J19)) ->  | L19: =IF(G19="","",$J19*IF($C19="Diesel",CO2_Faktoren!B$3,CO2_Faktoren!B$5)) ->  | M19: =IF(G19="","",$J19*IF($C19="Diesel",CO2_Faktoren!C$3,CO2_Faktoren!C$5)) ->  | N19: =IF(G19="","",$J19*IF($C19="Diesel",CO2_Faktoren!D$3,CO2_Faktoren!D$5)) ->  | O19: =IF(G19="","",$J19*IF($C19="Diesel",CO2_Faktoren!E$3,CO2_Faktoren!E$5)) ->  | P19: =IF(G19="","",$J19*IF($C19="Diesel",CO2_Faktoren!F$3,CO2_Faktoren!F$5)) ->  | Q19: =IF(G19="","",$J19*IF($C19="Diesel",CO2_Faktoren!G$3,CO2_Faktoren!G$5)) -> 
H20: =IF(G20="","",SUM(IF(E20=Entfernung_Güterbahnhöfe!$A$2:$A$100000,1,0)*IF(F20=Entfernung_Güterbahnhöfe!$B$2:$B$100000,1,0)*Entfernung_Güterbahnhöfe!$C$2:$C$100000)) ->  | I20: =IF(G20="","",INDEX(Energieverbrauch!$F$2:$F$55, MATCH( INDEX(Zugtypen!$A$2:$A$4, MATCH(A20,Zugtypen!$B$2:$B$4,0)) & INDEX(FahrttypenTopologie!$A$2:$A$4, MATCH(B20,FahrttypenTopologie!$B$2:$B$4,0)) & INDEX(Traktion!$A$2:$A$3, MATCH(C20,Traktion!$B$2:$B$3,0)) & INDEX(Ladungsart!$A$2:$A$4, MATCH(D20,Ladungsart!$B$2:$B$4,0)), Energieverbrauch!$E$2:$E$55, 0))) ->  | K20: =IF(G20="","",IF(C20="Diesel",J20/CO2_Faktoren!$B$8,J20)) ->  | L20: =IF(G20="","",$J20*IF($C20="Diesel",CO2_Faktoren!B$3,CO2_Faktoren!B$5)) ->  | M20: =IF(G20="","",$J20*IF($C20="Diesel",CO2_Faktoren!C$3,CO2_Faktoren!C$5)) ->  | N20: =IF(G20="","",$J20*IF($C20="Diesel",CO2_Faktoren!D$3,CO2_Faktoren!D$5)) ->  | O20: =IF(G20="","",$J20*IF($C20="Diesel",CO2_Faktoren!E$3,CO2_Faktoren!E$5)) ->  | P20: =IF(G20="","",$J20*IF($C20="Diesel",CO2_Faktoren!F$3,CO2_Faktoren!F$5)) ->  | Q20: =IF(G20="","",$J20*IF($C20="Diesel",CO2_Faktoren!G$3,CO2_Faktoren!G$5)) -> 
H21: =IF(G21="","",SUM(IF(E21=Entfernung_Güterbahnhöfe!$A$2:$A$100000,1,0)*IF(F21=Entfernung_Güterbahnhöfe!$B$2:$B$100000,1,0)*Entfernung_Güterbahnhöfe!$C$2:$C$100000)) ->  | I21: =IF(G21="","",INDEX(Energieverbrauch!$F$2:$F$55, MATCH( INDEX(Zugtypen!$A$2:$A$4, MATCH(A21,Zugtypen!$B$2:$B$4,0)) & INDEX(FahrttypenTopologie!$A$2:$A$4, MATCH(B21,FahrttypenTopologie!$B$2:$B$4,0)) & INDEX(Traktion!$A$2:$A$3, MATCH(C21,Traktion!$B$2:$B$3,0)) & INDEX(Ladungsart!$A$2:$A$4, MATCH(D21,Ladungsart!$B$2:$B$4,0)), Energieverbrauch!$E$2:$E$55, 0))) ->  | K21: =IF(G21="","",IF(C21="Diesel",J21/CO2_Faktoren!$B$8,J21)) ->  | L21: =IF(G21="","",$J21*IF($C21="Diesel",CO2_Faktoren!B$3,CO2_Faktoren!B$5)) ->  | M21: =IF(G21="","",$J21*IF($C21="Diesel",CO2_Faktoren!C$3,CO2_Faktoren!C$5)) ->  | N21: =IF(G21="","",$J21*IF($C21="Diesel",CO2_Faktoren!D$3,CO2_Faktoren!D$5)) ->  | O21: =IF(G21="","",$J21*IF($C21="Diesel",CO2_Faktoren!E$3,CO2_Faktoren!E$5)) ->  | P21: =IF(G21="","",$J21*IF($C21="Diesel",CO2_Faktoren!F$3,CO2_Faktoren!F$5)) ->  | Q21: =IF(G21="","",$J21*IF($C21="Diesel",CO2_Faktoren!G$3,CO2_Faktoren!G$5)) -> 
H22: =IF(G22="","",SUM(IF(E22=Entfernung_Güterbahnhöfe!$A$2:$A$100000,1,0)*IF(F22=Entfernung_Güterbahnhöfe!$B$2:$B$100000,1,0)*Entfernung_Güterbahnhöfe!$C$2:$C$100000)) ->  | I22: =IF(G22="","",INDEX(Energieverbrauch!$F$2:$F$55, MATCH( INDEX(Zugtypen!$A$2:$A$4, MATCH(A22,Zugtypen!$B$2:$B$4,0)) & INDEX(FahrttypenTopologie!$A$2:$A$4, MATCH(B22,FahrttypenTopologie!$B$2:$B$4,0)) & INDEX(Traktion!$A$2:$A$3, MATCH(C22,Traktion!$B$2:$B$3,0)) & INDEX(Ladungsart!$A$2:$A$4, MATCH(D22,Ladungsart!$B$2:$B$4,0)), Energieverbrauch!$E$2:$E$55, 0))) ->  | K22: =IF(G22="","",IF(C22="Diesel",J22/CO2_Faktoren!$B$8,J22)) ->  | L22: =IF(G22="","",$J22*IF($C22="Diesel",CO2_Faktoren!B$3,CO2_Faktoren!B$5)) ->  | M22: =IF(G22="","",$J22*IF($C22="Diesel",CO2_Faktoren!C$3,CO2_Faktoren!C$5)) ->  | N22: =IF(G22="","",$J22*IF($C22="Diesel",CO2_Faktoren!D$3,CO2_Faktoren!D$5)) ->  | O22: =IF(G22="","",$J22*IF($C22="Diesel",CO2_Faktoren!E$3,CO2_Faktoren!E$5)) ->  | P22: =IF(G22="","",$J22*IF($C22="Diesel",CO2_Faktoren!F$3,CO2_Faktoren!F$5)) ->  | Q22: =IF(G22="","",$J22*IF($C22="Diesel",CO2_Faktoren!G$3,CO2_Faktoren!G$5)) -> 
H23: =IF(G23="","",SUM(IF(E23=Entfernung_Güterbahnhöfe!$A$2:$A$100000,1,0)*IF(F23=Entfernung_Güterbahnhöfe!$B$2:$B$100000,1,0)*Entfernung_Güterbahnhöfe!$C$2:$C$100000)) ->  | I23: =IF(G23="","",INDEX(Energieverbrauch!$F$2:$F$55, MATCH( INDEX(Zugtypen!$A$2:$A$4, MATCH(A23,Zugtypen!$B$2:$B$4,0)) & INDEX(FahrttypenTopologie!$A$2:$A$4, MATCH(B23,FahrttypenTopologie!$B$2:$B$4,0)) & INDEX(Traktion!$A$2:$A$3, MATCH(C23,Traktion!$B$2:$B$3,0)) & INDEX(Ladungsart!$A$2:$A$4, MATCH(D23,Ladungsart!$B$2:$B$4,0)), Energieverbrauch!$E$2:$E$55, 0))) ->  | K23: =IF(G23="","",IF(C23="Diesel",J23/CO2_Faktoren!$B$8,J23)) ->  | L23: =IF(G23="","",$J23*IF($C23="Diesel",CO2_Faktoren!B$3,CO2_Faktoren!B$5)) ->  | M23: =IF(G23="","",$J23*IF($C23="Diesel",CO2_Faktoren!C$3,CO2_Faktoren!C$5)) ->  | N23: =IF(G23="","",$J23*IF($C23="Diesel",CO2_Faktoren!D$3,CO2_Faktoren!D$5)) ->  | O23: =IF(G23="","",$J23*IF($C23="Diesel",CO2_Faktoren!E$3,CO2_Faktoren!E$5)) ->  | P23: =IF(G23="","",$J23*IF($C23="Diesel",CO2_Faktoren!F$3,CO2_Faktoren!F$5)) ->  | Q23: =IF(G23="","",$J23*IF($C23="Diesel",CO2_Faktoren!G$3,CO2_Faktoren!G$5)) -> 
H24: =IF(G24="","",SUM(IF(E24=Entfernung_Güterbahnhöfe!$A$2:$A$100000,1,0)*IF(F24=Entfernung_Güterbahnhöfe!$B$2:$B$100000,1,0)*Entfernung_Güterbahnhöfe!$C$2:$C$100000)) ->  | I24: =IF(G24="","",INDEX(Energieverbrauch!$F$2:$F$55, MATCH( INDEX(Zugtypen!$A$2:$A$4, MATCH(A24,Zugtypen!$B$2:$B$4,0)) & INDEX(FahrttypenTopologie!$A$2:$A$4, MATCH(B24,FahrttypenTopologie!$B$2:$B$4,0)) & INDEX(Traktion!$A$2:$A$3, MATCH(C24,Traktion!$B$2:$B$3,0)) & INDEX(Ladungsart!$A$2:$A$4, MATCH(D24,Ladungsart!$B$2:$B$4,0)), Energieverbrauch!$E$2:$E$55, 0))) ->  | K24: =IF(G24="","",IF(C24="Diesel",J24/CO2_Faktoren!$B$8,J24)) ->  | L24: =IF(G24="","",$J24*IF($C24="Diesel",CO2_Faktoren!B$3,CO2_Faktoren!B$5)) ->  | M24: =IF(G24="","",$J24*IF($C24="Diesel",CO2_Faktoren!C$3,CO2_Faktoren!C$5)) ->  | N24: =IF(G24="","",$J24*IF($C24="Diesel",CO2_Faktoren!D$3,CO2_Faktoren!D$5)) ->  | O24: =IF(G24="","",$J24*IF($C24="Diesel",CO2_Faktoren!E$3,CO2_Faktoren!E$5)) ->  | P24: =IF(G24="","",$J24*IF($C24="Diesel",CO2_Faktoren!F$3,CO2_Faktoren!F$5)) ->  | Q24: =IF(G24="","",$J24*IF($C24="Diesel",CO2_Faktoren!G$3,CO2_Faktoren!G$5)) -> 
H25: =IF(G25="","",SUM(IF(E25=Entfernung_Güterbahnhöfe!$A$2:$A$100000,1,0)*IF(F25=Entfernung_Güterbahnhöfe!$B$2:$B$100000,1,0)*Entfernung_Güterbahnhöfe!$C$2:$C$100000)) ->  | I25: =IF(G25="","",INDEX(Energieverbrauch!$F$2:$F$55, MATCH( INDEX(Zugtypen!$A$2:$A$4, MATCH(A25,Zugtypen!$B$2:$B$4,0)) & INDEX(FahrttypenTopologie!$A$2:$A$4, MATCH(B25,FahrttypenTopologie!$B$2:$B$4,0)) & INDEX(Traktion!$A$2:$A$3, MATCH(C25,Traktion!$B$2:$B$3,0)) & INDEX(Ladungsart!$A$2:$A$4, MATCH(D25,Ladungsart!$B$2:$B$4,0)), Energieverbrauch!$E$2:$E$55, 0))) ->  | K25: =IF(G25="","",IF(C25="Diesel",J25/CO2_Faktoren!$B$8,J25)) ->  | L25: =IF(G25="","",$J25*IF($C25="Diesel",CO2_Faktoren!B$3,CO2_Faktoren!B$5)) ->  | M25: =IF(G25="","",$J25*IF($C25="Diesel",CO2_Faktoren!C$3,CO2_Faktoren!C$5)) ->  | N25: =IF(G25="","",$J25*IF($C25="Diesel",CO2_Faktoren!D$3,CO2_Faktoren!D$5)) ->  | O25: =IF(G25="","",$J25*IF($C25="Diesel",CO2_Faktoren!E$3,CO2_Faktoren!E$5)) ->  | P25: =IF(G25="","",$J25*IF($C25="Diesel",CO2_Faktoren!F$3,CO2_Faktoren!F$5)) ->  | Q25: =IF(G25="","",$J25*IF($C25="Diesel",CO2_Faktoren!G$3,CO2_Faktoren!G$5)) -> 
H26: =IF(G26="","",SUM(IF(E26=Entfernung_Güterbahnhöfe!$A$2:$A$100000,1,0)*IF(F26=Entfernung_Güterbahnhöfe!$B$2:$B$100000,1,0)*Entfernung_Güterbahnhöfe!$C$2:$C$100000)) ->  | I26: =IF(G26="","",INDEX(Energieverbrauch!$F$2:$F$55, MATCH( INDEX(Zugtypen!$A$2:$A$4, MATCH(A26,Zugtypen!$B$2:$B$4,0)) & INDEX(FahrttypenTopologie!$A$2:$A$4, MATCH(B26,FahrttypenTopologie!$B$2:$B$4,0)) & INDEX(Traktion!$A$2:$A$3, MATCH(C26,Traktion!$B$2:$B$3,0)) & INDEX(Ladungsart!$A$2:$A$4, MATCH(D26,Ladungsart!$B$2:$B$4,0)), Energieverbrauch!$E$2:$E$55, 0))) ->  | K26: =IF(G26="","",IF(C26="Diesel",J26/CO2_Faktoren!$B$8,J26)) ->  | L26: =IF(G26="","",$J26*IF($C26="Diesel",CO2_Faktoren!B$3,CO2_Faktoren!B$5)) ->  | M26: =IF(G26="","",$J26*IF($C26="Diesel",CO2_Faktoren!C$3,CO2_Faktoren!C$5)) ->  | N26: =IF(G26="","",$J26*IF($C26="Diesel",CO2_Faktoren!D$3,CO2_Faktoren!D$5)) ->  | O26: =IF(G26="","",$J26*IF($C26="Diesel",CO2_Faktoren!E$3,CO2_Faktoren!E$5)) ->  | P26: =IF(G26="","",$J26*IF($C26="Diesel",CO2_Faktoren!F$3,CO2_Faktoren!F$5)) ->  | Q26: =IF(G26="","",$J26*IF($C26="Diesel",CO2_Faktoren!G$3,CO2_Faktoren!G$5)) -> 
H27: =IF(G27="","",SUM(IF(E27=Entfernung_Güterbahnhöfe!$A$2:$A$100000,1,0)*IF(F27=Entfernung_Güterbahnhöfe!$B$2:$B$100000,1,0)*Entfernung_Güterbahnhöfe!$C$2:$C$100000)) ->  | I27: =IF(G27="","",INDEX(Energieverbrauch!$F$2:$F$55, MATCH( INDEX(Zugtypen!$A$2:$A$4, MATCH(A27,Zugtypen!$B$2:$B$4,0)) & INDEX(FahrttypenTopologie!$A$2:$A$4, MATCH(B27,FahrttypenTopologie!$B$2:$B$4,0)) & INDEX(Traktion!$A$2:$A$3, MATCH(C27,Traktion!$B$2:$B$3,0)) & INDEX(Ladungsart!$A$2:$A$4, MATCH(D27,Ladungsart!$B$2:$B$4,0)), Energieverbrauch!$E$2:$E$55, 0))) ->  | K27: =IF(G27="","",IF(C27="Diesel",J27/CO2_Faktoren!$B$8,J27)) ->  | L27: =IF(G27="","",$J27*IF($C27="Diesel",CO2_Faktoren!B$3,CO2_Faktoren!B$5)) ->  | M27: =IF(G27="","",$J27*IF($C27="Diesel",CO2_Faktoren!C$3,CO2_Faktoren!C$5)) ->  | N27: =IF(G27="","",$J27*IF($C27="Diesel",CO2_Faktoren!D$3,CO2_Faktoren!D$5)) ->  | O27: =IF(G27="","",$J27*IF($C27="Diesel",CO2_Faktoren!E$3,CO2_Faktoren!E$5)) ->  | P27: =IF(G27="","",$J27*IF($C27="Diesel",CO2_Faktoren!F$3,CO2_Faktoren!F$5)) ->  | Q27: =IF(G27="","",$J27*IF($C27="Diesel",CO2_Faktoren!G$3,CO2_Faktoren!G$5)) -> 
H28: =IF(G28="","",SUM(IF(E28=Entfernung_Güterbahnhöfe!$A$2:$A$100000,1,0)*IF(F28=Entfernung_Güterbahnhöfe!$B$2:$B$100000,1,0)*Entfernung_Güterbahnhöfe!$C$2:$C$100000)) ->  | I28: =IF(G28="","",INDEX(Energieverbrauch!$F$2:$F$55, MATCH( INDEX(Zugtypen!$A$2:$A$4, MATCH(A28,Zugtypen!$B$2:$B$4,0)) & INDEX(FahrttypenTopologie!$A$2:$A$4, MATCH(B28,FahrttypenTopologie!$B$2:$B$4,0)) & INDEX(Traktion!$A$2:$A$3, MATCH(C28,Traktion!$B$2:$B$3,0)) & INDEX(Ladungsart!$A$2:$A$4, MATCH(D28,Ladungsart!$B$2:$B$4,0)), Energieverbrauch!$E$2:$E$55, 0))) ->  | K28: =IF(G28="","",IF(C28="Diesel",J28/CO2_Faktoren!$B$8,J28)) ->  | L28: =IF(G28="","",$J28*IF($C28="Diesel",CO2_Faktoren!B$3,CO2_Faktoren!B$5)) ->  | M28: =IF(G28="","",$J28*IF($C28="Diesel",CO2_Faktoren!C$3,CO2_Faktoren!C$5)) ->  | N28: =IF(G28="","",$J28*IF($C28="Diesel",CO2_Faktoren!D$3,CO2_Faktoren!D$5)) ->  | O28: =IF(G28="","",$J28*IF($C28="Diesel",CO2_Faktoren!E$3,CO2_Faktoren!E$5)) ->  | P28: =IF(G28="","",$J28*IF($C28="Diesel",CO2_Faktoren!F$3,CO2_Faktoren!F$5)) ->  | Q28: =IF(G28="","",$J28*IF($C28="Diesel",CO2_Faktoren!G$3,CO2_Faktoren!G$5)) -> 
H29: =IF(G29="","",SUM(IF(E29=Entfernung_Güterbahnhöfe!$A$2:$A$100000,1,0)*IF(F29=Entfernung_Güterbahnhöfe!$B$2:$B$100000,1,0)*Entfernung_Güterbahnhöfe!$C$2:$C$100000)) ->  | I29: =IF(G29="","",INDEX(Energieverbrauch!$F$2:$F$55, MATCH( INDEX(Zugtypen!$A$2:$A$4, MATCH(A29,Zugtypen!$B$2:$B$4,0)) & INDEX(FahrttypenTopologie!$A$2:$A$4, MATCH(B29,FahrttypenTopologie!$B$2:$B$4,0)) & INDEX(Traktion!$A$2:$A$3, MATCH(C29,Traktion!$B$2:$B$3,0)) & INDEX(Ladungsart!$A$2:$A$4, MATCH(D29,Ladungsart!$B$2:$B$4,0)), Energieverbrauch!$E$2:$E$55, 0))) ->  | K29: =IF(G29="","",IF(C29="Diesel",J29/CO2_Faktoren!$B$8,J29)) ->  | L29: =IF(G29="","",$J29*IF($C29="Diesel",CO2_Faktoren!B$3,CO2_Faktoren!B$5)) ->  | M29: =IF(G29="","",$J29*IF($C29="Diesel",CO2_Faktoren!C$3,CO2_Faktoren!C$5)) ->  | N29: =IF(G29="","",$J29*IF($C29="Diesel",CO2_Faktoren!D$3,CO2_Faktoren!D$5)) ->  | O29: =IF(G29="","",$J29*IF($C29="Diesel",CO2_Faktoren!E$3,CO2_Faktoren!E$5)) ->  | P29: =IF(G29="","",$J29*IF($C29="Diesel",CO2_Faktoren!F$3,CO2_Faktoren!F$5)) ->  | Q29: =IF(G29="","",$J29*IF($C29="Diesel",CO2_Faktoren!G$3,CO2_Faktoren!G$5)) -> 
H30: =IF(G30="","",SUM(IF(E30=Entfernung_Güterbahnhöfe!$A$2:$A$100000,1,0)*IF(F30=Entfernung_Güterbahnhöfe!$B$2:$B$100000,1,0)*Entfernung_Güterbahnhöfe!$C$2:$C$100000)) ->  | I30: =IF(G30="","",INDEX(Energieverbrauch!$F$2:$F$55, MATCH( INDEX(Zugtypen!$A$2:$A$4, MATCH(A30,Zugtypen!$B$2:$B$4,0)) & INDEX(FahrttypenTopologie!$A$2:$A$4, MATCH(B30,FahrttypenTopologie!$B$2:$B$4,0)) & INDEX(Traktion!$A$2:$A$3, MATCH(C30,Traktion!$B$2:$B$3,0)) & INDEX(Ladungsart!$A$2:$A$4, MATCH(D30,Ladungsart!$B$2:$B$4,0)), Energieverbrauch!$E$2:$E$55, 0))) ->  | K30: =IF(G30="","",IF(C30="Diesel",J30/CO2_Faktoren!$B$8,J30)) ->  | L30: =IF(G30="","",$J30*IF($C30="Diesel",CO2_Faktoren!B$3,CO2_Faktoren!B$5)) ->  | M30: =IF(G30="","",$J30*IF($C30="Diesel",CO2_Faktoren!C$3,CO2_Faktoren!C$5)) ->  | N30: =IF(G30="","",$J30*IF($C30="Diesel",CO2_Faktoren!D$3,CO2_Faktoren!D$5)) ->  | O30: =IF(G30="","",$J30*IF($C30="Diesel",CO2_Faktoren!E$3,CO2_Faktoren!E$5)) ->  | P30: =IF(G30="","",$J30*IF($C30="Diesel",CO2_Faktoren!F$3,CO2_Faktoren!F$5)) ->  | Q30: =IF(G30="","",$J30*IF($C30="Diesel",CO2_Faktoren!G$3,CO2_Faktoren!G$5)) -> 
H31: =IF(G31="","",SUM(IF(E31=Entfernung_Güterbahnhöfe!$A$2:$A$100000,1,0)*IF(F31=Entfernung_Güterbahnhöfe!$B$2:$B$100000,1,0)*Entfernung_Güterbahnhöfe!$C$2:$C$100000)) ->  | I31: =IF(G31="","",INDEX(Energieverbrauch!$F$2:$F$55, MATCH( INDEX(Zugtypen!$A$2:$A$4, MATCH(A31,Zugtypen!$B$2:$B$4,0)) & INDEX(FahrttypenTopologie!$A$2:$A$4, MATCH(B31,FahrttypenTopologie!$B$2:$B$4,0)) & INDEX(Traktion!$A$2:$A$3, MATCH(C31,Traktion!$B$2:$B$3,0)) & INDEX(Ladungsart!$A$2:$A$4, MATCH(D31,Ladungsart!$B$2:$B$4,0)), Energieverbrauch!$E$2:$E$55, 0))) ->  | K31: =IF(G31="","",IF(C31="Diesel",J31/CO2_Faktoren!$B$8,J31)) ->  | L31: =IF(G31="","",$J31*IF($C31="Diesel",CO2_Faktoren!B$3,CO2_Faktoren!B$5)) ->  | M31: =IF(G31="","",$J31*IF($C31="Diesel",CO2_Faktoren!C$3,CO2_Faktoren!C$5)) ->  | N31: =IF(G31="","",$J31*IF($C31="Diesel",CO2_Faktoren!D$3,CO2_Faktoren!D$5)) ->  | O31: =IF(G31="","",$J31*IF($C31="Diesel",CO2_Faktoren!E$3,CO2_Faktoren!E$5)) ->  | P31: =IF(G31="","",$J31*IF($C31="Diesel",CO2_Faktoren!F$3,CO2_Faktoren!F$5)) ->  | Q31: =IF(G31="","",$J31*IF($C31="Diesel",CO2_Faktoren!G$3,CO2_Faktoren!G$5)) -> 
H32: =IF(G32="","",SUM(IF(E32=Entfernung_Güterbahnhöfe!$A$2:$A$100000,1,0)*IF(F32=Entfernung_Güterbahnhöfe!$B$2:$B$100000,1,0)*Entfernung_Güterbahnhöfe!$C$2:$C$100000)) ->  | I32: =IF(G32="","",INDEX(Energieverbrauch!$F$2:$F$55, MATCH( INDEX(Zugtypen!$A$2:$A$4, MATCH(A32,Zugtypen!$B$2:$B$4,0)) & INDEX(FahrttypenTopologie!$A$2:$A$4, MATCH(B32,FahrttypenTopologie!$B$2:$B$4,0)) & INDEX(Traktion!$A$2:$A$3, MATCH(C32,Traktion!$B$2:$B$3,0)) & INDEX(Ladungsart!$A$2:$A$4, MATCH(D32,Ladungsart!$B$2:$B$4,0)), Energieverbrauch!$E$2:$E$55, 0))) ->  | K32: =IF(G32="","",IF(C32="Diesel",J32/CO2_Faktoren!$B$8,J32)) ->  | L32: =IF(G32="","",$J32*IF($C32="Diesel",CO2_Faktoren!B$3,CO2_Faktoren!B$5)) ->  | M32: =IF(G32="","",$J32*IF($C32="Diesel",CO2_Faktoren!C$3,CO2_Faktoren!C$5)) ->  | N32: =IF(G32="","",$J32*IF($C32="Diesel",CO2_Faktoren!D$3,CO2_Faktoren!D$5)) ->  | O32: =IF(G32="","",$J32*IF($C32="Diesel",CO2_Faktoren!E$3,CO2_Faktoren!E$5)) ->  | P32: =IF(G32="","",$J32*IF($C32="Diesel",CO2_Faktoren!F$3,CO2_Faktoren!F$5)) ->  | Q32: =IF(G32="","",$J32*IF($C32="Diesel",CO2_Faktoren!G$3,CO2_Faktoren!G$5)) -> 
H33: =IF(G33="","",SUM(IF(E33=Entfernung_Güterbahnhöfe!$A$2:$A$100000,1,0)*IF(F33=Entfernung_Güterbahnhöfe!$B$2:$B$100000,1,0)*Entfernung_Güterbahnhöfe!$C$2:$C$100000)) ->  | I33: =IF(G33="","",INDEX(Energieverbrauch!$F$2:$F$55, MATCH( INDEX(Zugtypen!$A$2:$A$4, MATCH(A33,Zugtypen!$B$2:$B$4,0)) & INDEX(FahrttypenTopologie!$A$2:$A$4, MATCH(B33,FahrttypenTopologie!$B$2:$B$4,0)) & INDEX(Traktion!$A$2:$A$3, MATCH(C33,Traktion!$B$2:$B$3,0)) & INDEX(Ladungsart!$A$2:$A$4, MATCH(D33,Ladungsart!$B$2:$B$4,0)), Energieverbrauch!$E$2:$E$55, 0))) ->  | K33: =IF(G33="","",IF(C33="Diesel",J33/CO2_Faktoren!$B$8,J33)) ->  | L33: =IF(G33="","",$J33*IF($C33="Diesel",CO2_Faktoren!B$3,CO2_Faktoren!B$5)) ->  | M33: =IF(G33="","",$J33*IF($C33="Diesel",CO2_Faktoren!C$3,CO2_Faktoren!C$5)) ->  | N33: =IF(G33="","",$J33*IF($C33="Diesel",CO2_Faktoren!D$3,CO2_Faktoren!D$5)) ->  | O33: =IF(G33="","",$J33*IF($C33="Diesel",CO2_Faktoren!E$3,CO2_Faktoren!E$5)) ->  | P33: =IF(G33="","",$J33*IF($C33="Diesel",CO2_Faktoren!F$3,CO2_Faktoren!F$5)) ->  | Q33: =IF(G33="","",$J33*IF($C33="Diesel",CO2_Faktoren!G$3,CO2_Faktoren!G$5)) -> 
H34: =IF(G34="","",SUM(IF(E34=Entfernung_Güterbahnhöfe!$A$2:$A$100000,1,0)*IF(F34=Entfernung_Güterbahnhöfe!$B$2:$B$100000,1,0)*Entfernung_Güterbahnhöfe!$C$2:$C$100000)) ->  | I34: =IF(G34="","",INDEX(Energieverbrauch!$F$2:$F$55, MATCH( INDEX(Zugtypen!$A$2:$A$4, MATCH(A34,Zugtypen!$B$2:$B$4,0)) & INDEX(FahrttypenTopologie!$A$2:$A$4, MATCH(B34,FahrttypenTopologie!$B$2:$B$4,0)) & INDEX(Traktion!$A$2:$A$3, MATCH(C34,Traktion!$B$2:$B$3,0)) & INDEX(Ladungsart!$A$2:$A$4, MATCH(D34,Ladungsart!$B$2:$B$4,0)), Energieverbrauch!$E$2:$E$55, 0))) ->  | K34: =IF(G34="","",IF(C34="Diesel",J34/CO2_Faktoren!$B$8,J34)) ->  | L34: =IF(G34="","",$J34*IF($C34="Diesel",CO2_Faktoren!B$3,CO2_Faktoren!B$5)) ->  | M34: =IF(G34="","",$J34*IF($C34="Diesel",CO2_Faktoren!C$3,CO2_Faktoren!C$5)) ->  | N34: =IF(G34="","",$J34*IF($C34="Diesel",CO2_Faktoren!D$3,CO2_Faktoren!D$5)) ->  | O34: =IF(G34="","",$J34*IF($C34="Diesel",CO2_Faktoren!E$3,CO2_Faktoren!E$5)) ->  | P34: =IF(G34="","",$J34*IF($C34="Diesel",CO2_Faktoren!F$3,CO2_Faktoren!F$5)) ->  | Q34: =IF(G34="","",$J34*IF($C34="Diesel",CO2_Faktoren!G$3,CO2_Faktoren!G$5)) -> 
H35: =IF(G35="","",SUM(IF(E35=Entfernung_Güterbahnhöfe!$A$2:$A$100000,1,0)*IF(F35=Entfernung_Güterbahnhöfe!$B$2:$B$100000,1,0)*Entfernung_Güterbahnhöfe!$C$2:$C$100000)) ->  | I35: =IF(G35="","",INDEX(Energieverbrauch!$F$2:$F$55, MATCH( INDEX(Zugtypen!$A$2:$A$4, MATCH(A35,Zugtypen!$B$2:$B$4,0)) & INDEX(FahrttypenTopologie!$A$2:$A$4, MATCH(B35,FahrttypenTopologie!$B$2:$B$4,0)) & INDEX(Traktion!$A$2:$A$3, MATCH(C35,Traktion!$B$2:$B$3,0)) & INDEX(Ladungsart!$A$2:$A$4, MATCH(D35,Ladungsart!$B$2:$B$4,0)), Energieverbrauch!$E$2:$E$55, 0))) ->  | K35: =IF(G35="","",IF(C35="Diesel",J35/CO2_Faktoren!$B$8,J35)) ->  | L35: =IF(G35="","",$J35*IF($C35="Diesel",CO2_Faktoren!B$3,CO2_Faktoren!B$5)) ->  | M35: =IF(G35="","",$J35*IF($C35="Diesel",CO2_Faktoren!C$3,CO2_Faktoren!C$5)) ->  | N35: =IF(G35="","",$J35*IF($C35="Diesel",CO2_Faktoren!D$3,CO2_Faktoren!D$5)) ->  | O35: =IF(G35="","",$J35*IF($C35="Diesel",CO2_Faktoren!E$3,CO2_Faktoren!E$5)) ->  | P35: =IF(G35="","",$J35*IF($C35="Diesel",CO2_Faktoren!F$3,CO2_Faktoren!F$5)) ->  | Q35: =IF(G35="","",$J35*IF($C35="Diesel",CO2_Faktoren!G$3,CO2_Faktoren!G$5)) -> 
H36: =IF(G36="","",SUM(IF(E36=Entfernung_Güterbahnhöfe!$A$2:$A$100000,1,0)*IF(F36=Entfernung_Güterbahnhöfe!$B$2:$B$100000,1,0)*Entfernung_Güterbahnhöfe!$C$2:$C$100000)) ->  | I36: =IF(G36="","",INDEX(Energieverbrauch!$F$2:$F$55, MATCH( INDEX(Zugtypen!$A$2:$A$4, MATCH(A36,Zugtypen!$B$2:$B$4,0)) & INDEX(FahrttypenTopologie!$A$2:$A$4, MATCH(B36,FahrttypenTopologie!$B$2:$B$4,0)) & INDEX(Traktion!$A$2:$A$3, MATCH(C36,Traktion!$B$2:$B$3,0)) & INDEX(Ladungsart!$A$2:$A$4, MATCH(D36,Ladungsart!$B$2:$B$4,0)), Energieverbrauch!$E$2:$E$55, 0))) ->  | K36: =IF(G36="","",IF(C36="Diesel",J36/CO2_Faktoren!$B$8,J36)) ->  | L36: =IF(G36="","",$J36*IF($C36="Diesel",CO2_Faktoren!B$3,CO2_Faktoren!B$5)) ->  | M36: =IF(G36="","",$J36*IF($C36="Diesel",CO2_Faktoren!C$3,CO2_Faktoren!C$5)) ->  | N36: =IF(G36="","",$J36*IF($C36="Diesel",CO2_Faktoren!D$3,CO2_Faktoren!D$5)) ->  | O36: =IF(G36="","",$J36*IF($C36="Diesel",CO2_Faktoren!E$3,CO2_Faktoren!E$5)) ->  | P36: =IF(G36="","",$J36*IF($C36="Diesel",CO2_Faktoren!F$3,CO2_Faktoren!F$5)) ->  | Q36: =IF(G36="","",$J36*IF($C36="Diesel",CO2_Faktoren!G$3,CO2_Faktoren!G$5)) -> 
H37: =IF(G37="","",SUM(IF(E37=Entfernung_Güterbahnhöfe!$A$2:$A$100000,1,0)*IF(F37=Entfernung_Güterbahnhöfe!$B$2:$B$100000,1,0)*Entfernung_Güterbahnhöfe!$C$2:$C$100000)) ->  | I37: =IF(G37="","",INDEX(Energieverbrauch!$F$2:$F$55, MATCH( INDEX(Zugtypen!$A$2:$A$4, MATCH(A37,Zugtypen!$B$2:$B$4,0)) & INDEX(FahrttypenTopologie!$A$2:$A$4, MATCH(B37,FahrttypenTopologie!$B$2:$B$4,0)) & INDEX(Traktion!$A$2:$A$3, MATCH(C37,Traktion!$B$2:$B$3,0)) & INDEX(Ladungsart!$A$2:$A$4, MATCH(D37,Ladungsart!$B$2:$B$4,0)), Energieverbrauch!$E$2:$E$55, 0))) ->  | K37: =IF(G37="","",IF(C37="Diesel",J37/CO2_Faktoren!$B$8,J37)) ->  | L37: =IF(G37="","",$J37*IF($C37="Diesel",CO2_Faktoren!B$3,CO2_Faktoren!B$5)) ->  | M37: =IF(G37="","",$J37*IF($C37="Diesel",CO2_Faktoren!C$3,CO2_Faktoren!C$5)) ->  | N37: =IF(G37="","",$J37*IF($C37="Diesel",CO2_Faktoren!D$3,CO2_Faktoren!D$5)) ->  | O37: =IF(G37="","",$J37*IF($C37="Diesel",CO2_Faktoren!E$3,CO2_Faktoren!E$5)) ->  | P37: =IF(G37="","",$J37*IF($C37="Diesel",CO2_Faktoren!F$3,CO2_Faktoren!F$5)) ->  | Q37: =IF(G37="","",$J37*IF($C37="Diesel",CO2_Faktoren!G$3,CO2_Faktoren!G$5)) -> 
H38: =IF(G38="","",SUM(IF(E38=Entfernung_Güterbahnhöfe!$A$2:$A$100000,1,0)*IF(F38=Entfernung_Güterbahnhöfe!$B$2:$B$100000,1,0)*Entfernung_Güterbahnhöfe!$C$2:$C$100000)) ->  | I38: =IF(G38="","",INDEX(Energieverbrauch!$F$2:$F$55, MATCH( INDEX(Zugtypen!$A$2:$A$4, MATCH(A38,Zugtypen!$B$2:$B$4,0)) & INDEX(FahrttypenTopologie!$A$2:$A$4, MATCH(B38,FahrttypenTopologie!$B$2:$B$4,0)) & INDEX(Traktion!$A$2:$A$3, MATCH(C38,Traktion!$B$2:$B$3,0)) & INDEX(Ladungsart!$A$2:$A$4, MATCH(D38,Ladungsart!$B$2:$B$4,0)), Energieverbrauch!$E$2:$E$55, 0))) ->  | K38: =IF(G38="","",IF(C38="Diesel",J38/CO2_Faktoren!$B$8,J38)) ->  | L38: =IF(G38="","",$J38*IF($C38="Diesel",CO2_Faktoren!B$3,CO2_Faktoren!B$5)) ->  | M38: =IF(G38="","",$J38*IF($C38="Diesel",CO2_Faktoren!C$3,CO2_Faktoren!C$5)) ->  | N38: =IF(G38="","",$J38*IF($C38="Diesel",CO2_Faktoren!D$3,CO2_Faktoren!D$5)) ->  | O38: =IF(G38="","",$J38*IF($C38="Diesel",CO2_Faktoren!E$3,CO2_Faktoren!E$5)) ->  | P38: =IF(G38="","",$J38*IF($C38="Diesel",CO2_Faktoren!F$3,CO2_Faktoren!F$5)) ->  | Q38: =IF(G38="","",$J38*IF($C38="Diesel",CO2_Faktoren!G$3,CO2_Faktoren!G$5)) -> 
H39: =IF(G39="","",SUM(IF(E39=Entfernung_Güterbahnhöfe!$A$2:$A$100000,1,0)*IF(F39=Entfernung_Güterbahnhöfe!$B$2:$B$100000,1,0)*Entfernung_Güterbahnhöfe!$C$2:$C$100000)) ->  | I39: =IF(G39="","",INDEX(Energieverbrauch!$F$2:$F$55, MATCH( INDEX(Zugtypen!$A$2:$A$4, MATCH(A39,Zugtypen!$B$2:$B$4,0)) & INDEX(FahrttypenTopologie!$A$2:$A$4, MATCH(B39,FahrttypenTopologie!$B$2:$B$4,0)) & INDEX(Traktion!$A$2:$A$3, MATCH(C39,Traktion!$B$2:$B$3,0)) & INDEX(Ladungsart!$A$2:$A$4, MATCH(D39,Ladungsart!$B$2:$B$4,0)), Energieverbrauch!$E$2:$E$55, 0))) ->  | K39: =IF(G39="","",IF(C39="Diesel",J39/CO2_Faktoren!$B$8,J39)) ->  | L39: =IF(G39="","",$J39*IF($C39="Diesel",CO2_Faktoren!B$3,CO2_Faktoren!B$5)) ->  | M39: =IF(G39="","",$J39*IF($C39="Diesel",CO2_Faktoren!C$3,CO2_Faktoren!C$5)) ->  | N39: =IF(G39="","",$J39*IF($C39="Diesel",CO2_Faktoren!D$3,CO2_Faktoren!D$5)) ->  | O39: =IF(G39="","",$J39*IF($C39="Diesel",CO2_Faktoren!E$3,CO2_Faktoren!E$5)) ->  | P39: =IF(G39="","",$J39*IF($C39="Diesel",CO2_Faktoren!F$3,CO2_Faktoren!F$5)) ->  | Q39: =IF(G39="","",$J39*IF($C39="Diesel",CO2_Faktoren!G$3,CO2_Faktoren!G$5)) -> 
H40: =IF(G40="","",SUM(IF(E40=Entfernung_Güterbahnhöfe!$A$2:$A$100000,1,0)*IF(F40=Entfernung_Güterbahnhöfe!$B$2:$B$100000,1,0)*Entfernung_Güterbahnhöfe!$C$2:$C$100000)) ->  | I40: =IF(G40="","",INDEX(Energieverbrauch!$F$2:$F$55, MATCH( INDEX(Zugtypen!$A$2:$A$4, MATCH(A40,Zugtypen!$B$2:$B$4,0)) & INDEX(FahrttypenTopologie!$A$2:$A$4, MATCH(B40,FahrttypenTopologie!$B$2:$B$4,0)) & INDEX(Traktion!$A$2:$A$3, MATCH(C40,Traktion!$B$2:$B$3,0)) & INDEX(Ladungsart!$A$2:$A$4, MATCH(D40,Ladungsart!$B$2:$B$4,0)), Energieverbrauch!$E$2:$E$55, 0))) ->  | K40: =IF(G40="","",IF(C40="Diesel",J40/CO2_Faktoren!$B$8,J40)) ->  | L40: =IF(G40="","",$J40*IF($C40="Diesel",CO2_Faktoren!B$3,CO2_Faktoren!B$5)) ->  | M40: =IF(G40="","",$J40*IF($C40="Diesel",CO2_Faktoren!C$3,CO2_Faktoren!C$5)) ->  | N40: =IF(G40="","",$J40*IF($C40="Diesel",CO2_Faktoren!D$3,CO2_Faktoren!D$5)) ->  | O40: =IF(G40="","",$J40*IF($C40="Diesel",CO2_Faktoren!E$3,CO2_Faktoren!E$5)) ->  | P40: =IF(G40="","",$J40*IF($C40="Diesel",CO2_Faktoren!F$3,CO2_Faktoren!F$5)) ->  | Q40: =IF(G40="","",$J40*IF($C40="Diesel",CO2_Faktoren!G$3,CO2_Faktoren!G$5)) -> 
H41: =IF(G41="","",SUM(IF(E41=Entfernung_Güterbahnhöfe!$A$2:$A$100000,1,0)*IF(F41=Entfernung_Güterbahnhöfe!$B$2:$B$100000,1,0)*Entfernung_Güterbahnhöfe!$C$2:$C$100000)) ->  | I41: =IF(G41="","",INDEX(Energieverbrauch!$F$2:$F$55, MATCH( INDEX(Zugtypen!$A$2:$A$4, MATCH(A41,Zugtypen!$B$2:$B$4,0)) & INDEX(FahrttypenTopologie!$A$2:$A$4, MATCH(B41,FahrttypenTopologie!$B$2:$B$4,0)) & INDEX(Traktion!$A$2:$A$3, MATCH(C41,Traktion!$B$2:$B$3,0)) & INDEX(Ladungsart!$A$2:$A$4, MATCH(D41,Ladungsart!$B$2:$B$4,0)), Energieverbrauch!$E$2:$E$55, 0))) ->  | K41: =IF(G41="","",IF(C41="Diesel",J41/CO2_Faktoren!$B$8,J41)) ->  | L41: =IF(G41="","",$J41*IF($C41="Diesel",CO2_Faktoren!B$3,CO2_Faktoren!B$5)) ->  | M41: =IF(G41="","",$J41*IF($C41="Diesel",CO2_Faktoren!C$3,CO2_Faktoren!C$5)) ->  | N41: =IF(G41="","",$J41*IF($C41="Diesel",CO2_Faktoren!D$3,CO2_Faktoren!D$5)) ->  | O41: =IF(G41="","",$J41*IF($C41="Diesel",CO2_Faktoren!E$3,CO2_Faktoren!E$5)) ->  | P41: =IF(G41="","",$J41*IF($C41="Diesel",CO2_Faktoren!F$3,CO2_Faktoren!F$5)) ->  | Q41: =IF(G41="","",$J41*IF($C41="Diesel",CO2_Faktoren!G$3,CO2_Faktoren!G$5)) -> 
H42: =IF(G42="","",SUM(IF(E42=Entfernung_Güterbahnhöfe!$A$2:$A$100000,1,0)*IF(F42=Entfernung_Güterbahnhöfe!$B$2:$B$100000,1,0)*Entfernung_Güterbahnhöfe!$C$2:$C$100000)) ->  | I42: =IF(G42="","",INDEX(Energieverbrauch!$F$2:$F$55, MATCH( INDEX(Zugtypen!$A$2:$A$4, MATCH(A42,Zugtypen!$B$2:$B$4,0)) & INDEX(FahrttypenTopologie!$A$2:$A$4, MATCH(B42,FahrttypenTopologie!$B$2:$B$4,0)) & INDEX(Traktion!$A$2:$A$3, MATCH(C42,Traktion!$B$2:$B$3,0)) & INDEX(Ladungsart!$A$2:$A$4, MATCH(D42,Ladungsart!$B$2:$B$4,0)), Energieverbrauch!$E$2:$E$55, 0))) ->  | K42: =IF(G42="","",IF(C42="Diesel",J42/CO2_Faktoren!$B$8,J42)) ->  | L42: =IF(G42="","",$J42*IF($C42="Diesel",CO2_Faktoren!B$3,CO2_Faktoren!B$5)) ->  | M42: =IF(G42="","",$J42*IF($C42="Diesel",CO2_Faktoren!C$3,CO2_Faktoren!C$5)) ->  | N42: =IF(G42="","",$J42*IF($C42="Diesel",CO2_Faktoren!D$3,CO2_Faktoren!D$5)) ->  | O42: =IF(G42="","",$J42*IF($C42="Diesel",CO2_Faktoren!E$3,CO2_Faktoren!E$5)) ->  | P42: =IF(G42="","",$J42*IF($C42="Diesel",CO2_Faktoren!F$3,CO2_Faktoren!F$5)) ->  | Q42: =IF(G42="","",$J42*IF($C42="Diesel",CO2_Faktoren!G$3,CO2_Faktoren!G$5)) -> 
H43: =IF(G43="","",SUM(IF(E43=Entfernung_Güterbahnhöfe!$A$2:$A$100000,1,0)*IF(F43=Entfernung_Güterbahnhöfe!$B$2:$B$100000,1,0)*Entfernung_Güterbahnhöfe!$C$2:$C$100000)) ->  | I43: =IF(G43="","",INDEX(Energieverbrauch!$F$2:$F$55, MATCH( INDEX(Zugtypen!$A$2:$A$4, MATCH(A43,Zugtypen!$B$2:$B$4,0)) & INDEX(FahrttypenTopologie!$A$2:$A$4, MATCH(B43,FahrttypenTopologie!$B$2:$B$4,0)) & INDEX(Traktion!$A$2:$A$3, MATCH(C43,Traktion!$B$2:$B$3,0)) & INDEX(Ladungsart!$A$2:$A$4, MATCH(D43,Ladungsart!$B$2:$B$4,0)), Energieverbrauch!$E$2:$E$55, 0))) ->  | K43: =IF(G43="","",IF(C43="Diesel",J43/CO2_Faktoren!$B$8,J43)) ->  | L43: =IF(G43="","",$J43*IF($C43="Diesel",CO2_Faktoren!B$3,CO2_Faktoren!B$5)) ->  | M43: =IF(G43="","",$J43*IF($C43="Diesel",CO2_Faktoren!C$3,CO2_Faktoren!C$5)) ->  | N43: =IF(G43="","",$J43*IF($C43="Diesel",CO2_Faktoren!D$3,CO2_Faktoren!D$5)) ->  | O43: =IF(G43="","",$J43*IF($C43="Diesel",CO2_Faktoren!E$3,CO2_Faktoren!E$5)) ->  | P43: =IF(G43="","",$J43*IF($C43="Diesel",CO2_Faktoren!F$3,CO2_Faktoren!F$5)) ->  | Q43: =IF(G43="","",$J43*IF($C43="Diesel",CO2_Faktoren!G$3,CO2_Faktoren!G$5)) -> 
H44: =IF(G44="","",SUM(IF(E44=Entfernung_Güterbahnhöfe!$A$2:$A$100000,1,0)*IF(F44=Entfernung_Güterbahnhöfe!$B$2:$B$100000,1,0)*Entfernung_Güterbahnhöfe!$C$2:$C$100000)) ->  | I44: =IF(G44="","",INDEX(Energieverbrauch!$F$2:$F$55, MATCH( INDEX(Zugtypen!$A$2:$A$4, MATCH(A44,Zugtypen!$B$2:$B$4,0)) & INDEX(FahrttypenTopologie!$A$2:$A$4, MATCH(B44,FahrttypenTopologie!$B$2:$B$4,0)) & INDEX(Traktion!$A$2:$A$3, MATCH(C44,Traktion!$B$2:$B$3,0)) & INDEX(Ladungsart!$A$2:$A$4, MATCH(D44,Ladungsart!$B$2:$B$4,0)), Energieverbrauch!$E$2:$E$55, 0))) ->  | K44: =IF(G44="","",IF(C44="Diesel",J44/CO2_Faktoren!$B$8,J44)) ->  | L44: =IF(G44="","",$J44*IF($C44="Diesel",CO2_Faktoren!B$3,CO2_Faktoren!B$5)) ->  | M44: =IF(G44="","",$J44*IF($C44="Diesel",CO2_Faktoren!C$3,CO2_Faktoren!C$5)) ->  | N44: =IF(G44="","",$J44*IF($C44="Diesel",CO2_Faktoren!D$3,CO2_Faktoren!D$5)) ->  | O44: =IF(G44="","",$J44*IF($C44="Diesel",CO2_Faktoren!E$3,CO2_Faktoren!E$5)) ->  | P44: =IF(G44="","",$J44*IF($C44="Diesel",CO2_Faktoren!F$3,CO2_Faktoren!F$5)) ->  | Q44: =IF(G44="","",$J44*IF($C44="Diesel",CO2_Faktoren!G$3,CO2_Faktoren!G$5)) -> 
H45: =IF(G45="","",SUM(IF(E45=Entfernung_Güterbahnhöfe!$A$2:$A$100000,1,0)*IF(F45=Entfernung_Güterbahnhöfe!$B$2:$B$100000,1,0)*Entfernung_Güterbahnhöfe!$C$2:$C$100000)) ->  | I45: =IF(G45="","",INDEX(Energieverbrauch!$F$2:$F$55, MATCH( INDEX(Zugtypen!$A$2:$A$4, MATCH(A45,Zugtypen!$B$2:$B$4,0)) & INDEX(FahrttypenTopologie!$A$2:$A$4, MATCH(B45,FahrttypenTopologie!$B$2:$B$4,0)) & INDEX(Traktion!$A$2:$A$3, MATCH(C45,Traktion!$B$2:$B$3,0)) & INDEX(Ladungsart!$A$2:$A$4, MATCH(D45,Ladungsart!$B$2:$B$4,0)), Energieverbrauch!$E$2:$E$55, 0))) ->  | K45: =IF(G45="","",IF(C45="Diesel",J45/CO2_Faktoren!$B$8,J45)) ->  | L45: =IF(G45="","",$J45*IF($C45="Diesel",CO2_Faktoren!B$3,CO2_Faktoren!B$5)) ->  | M45: =IF(G45="","",$J45*IF($C45="Diesel",CO2_Faktoren!C$3,CO2_Faktoren!C$5)) ->  | N45: =IF(G45="","",$J45*IF($C45="Diesel",CO2_Faktoren!D$3,CO2_Faktoren!D$5)) ->  | O45: =IF(G45="","",$J45*IF($C45="Diesel",CO2_Faktoren!E$3,CO2_Faktoren!E$5)) ->  | P45: =IF(G45="","",$J45*IF($C45="Diesel",CO2_Faktoren!F$3,CO2_Faktoren!F$5)) ->  | Q45: =IF(G45="","",$J45*IF($C45="Diesel",CO2_Faktoren!G$3,CO2_Faktoren!G$5)) -> 
H46: =IF(G46="","",SUM(IF(E46=Entfernung_Güterbahnhöfe!$A$2:$A$100000,1,0)*IF(F46=Entfernung_Güterbahnhöfe!$B$2:$B$100000,1,0)*Entfernung_Güterbahnhöfe!$C$2:$C$100000)) ->  | I46: =IF(G46="","",INDEX(Energieverbrauch!$F$2:$F$55, MATCH( INDEX(Zugtypen!$A$2:$A$4, MATCH(A46,Zugtypen!$B$2:$B$4,0)) & INDEX(FahrttypenTopologie!$A$2:$A$4, MATCH(B46,FahrttypenTopologie!$B$2:$B$4,0)) & INDEX(Traktion!$A$2:$A$3, MATCH(C46,Traktion!$B$2:$B$3,0)) & INDEX(Ladungsart!$A$2:$A$4, MATCH(D46,Ladungsart!$B$2:$B$4,0)), Energieverbrauch!$E$2:$E$55, 0))) ->  | K46: =IF(G46="","",IF(C46="Diesel",J46/CO2_Faktoren!$B$8,J46)) ->  | L46: =IF(G46="","",$J46*IF($C46="Diesel",CO2_Faktoren!B$3,CO2_Faktoren!B$5)) ->  | M46: =IF(G46="","",$J46*IF($C46="Diesel",CO2_Faktoren!C$3,CO2_Faktoren!C$5)) ->  | N46: =IF(G46="","",$J46*IF($C46="Diesel",CO2_Faktoren!D$3,CO2_Faktoren!D$5)) ->  | O46: =IF(G46="","",$J46*IF($C46="Diesel",CO2_Faktoren!E$3,CO2_Faktoren!E$5)) ->  | P46: =IF(G46="","",$J46*IF($C46="Diesel",CO2_Faktoren!F$3,CO2_Faktoren!F$5)) ->  | Q46: =IF(G46="","",$J46*IF($C46="Diesel",CO2_Faktoren!G$3,CO2_Faktoren!G$5)) -> 
H47: =IF(G47="","",SUM(IF(E47=Entfernung_Güterbahnhöfe!$A$2:$A$100000,1,0)*IF(F47=Entfernung_Güterbahnhöfe!$B$2:$B$100000,1,0)*Entfernung_Güterbahnhöfe!$C$2:$C$100000)) ->  | I47: =IF(G47="","",INDEX(Energieverbrauch!$F$2:$F$55, MATCH( INDEX(Zugtypen!$A$2:$A$4, MATCH(A47,Zugtypen!$B$2:$B$4,0)) & INDEX(FahrttypenTopologie!$A$2:$A$4, MATCH(B47,FahrttypenTopologie!$B$2:$B$4,0)) & INDEX(Traktion!$A$2:$A$3, MATCH(C47,Traktion!$B$2:$B$3,0)) & INDEX(Ladungsart!$A$2:$A$4, MATCH(D47,Ladungsart!$B$2:$B$4,0)), Energieverbrauch!$E$2:$E$55, 0))) ->  | K47: =IF(G47="","",IF(C47="Diesel",J47/CO2_Faktoren!$B$8,J47)) ->  | L47: =IF(G47="","",$J47*IF($C47="Diesel",CO2_Faktoren!B$3,CO2_Faktoren!B$5)) ->  | M47: =IF(G47="","",$J47*IF($C47="Diesel",CO2_Faktoren!C$3,CO2_Faktoren!C$5)) ->  | N47: =IF(G47="","",$J47*IF($C47="Diesel",CO2_Faktoren!D$3,CO2_Faktoren!D$5)) ->  | O47: =IF(G47="","",$J47*IF($C47="Diesel",CO2_Faktoren!E$3,CO2_Faktoren!E$5)) ->  | P47: =IF(G47="","",$J47*IF($C47="Diesel",CO2_Faktoren!F$3,CO2_Faktoren!F$5)) ->  | Q47: =IF(G47="","",$J47*IF($C47="Diesel",CO2_Faktoren!G$3,CO2_Faktoren!G$5)) -> 
H48: =IF(G48="","",SUM(IF(E48=Entfernung_Güterbahnhöfe!$A$2:$A$100000,1,0)*IF(F48=Entfernung_Güterbahnhöfe!$B$2:$B$100000,1,0)*Entfernung_Güterbahnhöfe!$C$2:$C$100000)) ->  | I48: =IF(G48="","",INDEX(Energieverbrauch!$F$2:$F$55, MATCH( INDEX(Zugtypen!$A$2:$A$4, MATCH(A48,Zugtypen!$B$2:$B$4,0)) & INDEX(FahrttypenTopologie!$A$2:$A$4, MATCH(B48,FahrttypenTopologie!$B$2:$B$4,0)) & INDEX(Traktion!$A$2:$A$3, MATCH(C48,Traktion!$B$2:$B$3,0)) & INDEX(Ladungsart!$A$2:$A$4, MATCH(D48,Ladungsart!$B$2:$B$4,0)), Energieverbrauch!$E$2:$E$55, 0))) ->  | K48: =IF(G48="","",IF(C48="Diesel",J48/CO2_Faktoren!$B$8,J48)) ->  | L48: =IF(G48="","",$J48*IF($C48="Diesel",CO2_Faktoren!B$3,CO2_Faktoren!B$5)) ->  | M48: =IF(G48="","",$J48*IF($C48="Diesel",CO2_Faktoren!C$3,CO2_Faktoren!C$5)) ->  | N48: =IF(G48="","",$J48*IF($C48="Diesel",CO2_Faktoren!D$3,CO2_Faktoren!D$5)) ->  | O48: =IF(G48="","",$J48*IF($C48="Diesel",CO2_Faktoren!E$3,CO2_Faktoren!E$5)) ->  | P48: =IF(G48="","",$J48*IF($C48="Diesel",CO2_Faktoren!F$3,CO2_Faktoren!F$5)) ->  | Q48: =IF(G48="","",$J48*IF($C48="Diesel",CO2_Faktoren!G$3,CO2_Faktoren!G$5)) -> 
H49: =IF(G49="","",SUM(IF(E49=Entfernung_Güterbahnhöfe!$A$2:$A$100000,1,0)*IF(F49=Entfernung_Güterbahnhöfe!$B$2:$B$100000,1,0)*Entfernung_Güterbahnhöfe!$C$2:$C$100000)) ->  | I49: =IF(G49="","",INDEX(Energieverbrauch!$F$2:$F$55, MATCH( INDEX(Zugtypen!$A$2:$A$4, MATCH(A49,Zugtypen!$B$2:$B$4,0)) & INDEX(FahrttypenTopologie!$A$2:$A$4, MATCH(B49,FahrttypenTopologie!$B$2:$B$4,0)) & INDEX(Traktion!$A$2:$A$3, MATCH(C49,Traktion!$B$2:$B$3,0)) & INDEX(Ladungsart!$A$2:$A$4, MATCH(D49,Ladungsart!$B$2:$B$4,0)), Energieverbrauch!$E$2:$E$55, 0))) ->  | K49: =IF(G49="","",IF(C49="Diesel",J49/CO2_Faktoren!$B$8,J49)) ->  | L49: =IF(G49="","",$J49*IF($C49="Diesel",CO2_Faktoren!B$3,CO2_Faktoren!B$5)) ->  | M49: =IF(G49="","",$J49*IF($C49="Diesel",CO2_Faktoren!C$3,CO2_Faktoren!C$5)) ->  | N49: =IF(G49="","",$J49*IF($C49="Diesel",CO2_Faktoren!D$3,CO2_Faktoren!D$5)) ->  | O49: =IF(G49="","",$J49*IF($C49="Diesel",CO2_Faktoren!E$3,CO2_Faktoren!E$5)) ->  | P49: =IF(G49="","",$J49*IF($C49="Diesel",CO2_Faktoren!F$3,CO2_Faktoren!F$5)) ->  | Q49: =IF(G49="","",$J49*IF($C49="Diesel",CO2_Faktoren!G$3,CO2_Faktoren!G$5)) -> 
H50: =IF(G50="","",SUM(IF(E50=Entfernung_Güterbahnhöfe!$A$2:$A$100000,1,0)*IF(F50=Entfernung_Güterbahnhöfe!$B$2:$B$100000,1,0)*Entfernung_Güterbahnhöfe!$C$2:$C$100000)) ->  | I50: =IF(G50="","",INDEX(Energieverbrauch!$F$2:$F$55, MATCH( INDEX(Zugtypen!$A$2:$A$4, MATCH(A50,Zugtypen!$B$2:$B$4,0)) & INDEX(FahrttypenTopologie!$A$2:$A$4, MATCH(B50,FahrttypenTopologie!$B$2:$B$4,0)) & INDEX(Traktion!$A$2:$A$3, MATCH(C50,Traktion!$B$2:$B$3,0)) & INDEX(Ladungsart!$A$2:$A$4, MATCH(D50,Ladungsart!$B$2:$B$4,0)), Energieverbrauch!$E$2:$E$55, 0))) ->  | K50: =IF(G50="","",IF(C50="Diesel",J50/CO2_Faktoren!$B$8,J50)) ->  | L50: =IF(G50="","",$J50*IF($C50="Diesel",CO2_Faktoren!B$3,CO2_Faktoren!B$5)) ->  | M50: =IF(G50="","",$J50*IF($C50="Diesel",CO2_Faktoren!C$3,CO2_Faktoren!C$5)) ->  | N50: =IF(G50="","",$J50*IF($C50="Diesel",CO2_Faktoren!D$3,CO2_Faktoren!D$5)) ->  | O50: =IF(G50="","",$J50*IF($C50="Diesel",CO2_Faktoren!E$3,CO2_Faktoren!E$5)) ->  | P50: =IF(G50="","",$J50*IF($C50="Diesel",CO2_Faktoren!F$3,CO2_Faktoren!F$5)) ->  | Q50: =IF(G50="","",$J50*IF($C50="Diesel",CO2_Faktoren!G$3,CO2_Faktoren!G$5)) -> 
H51: =IF(G51="","",SUM(IF(E51=Entfernung_Güterbahnhöfe!$A$2:$A$100000,1,0)*IF(F51=Entfernung_Güterbahnhöfe!$B$2:$B$100000,1,0)*Entfernung_Güterbahnhöfe!$C$2:$C$100000)) ->  | I51: =IF(G51="","",INDEX(Energieverbrauch!$F$2:$F$55, MATCH( INDEX(Zugtypen!$A$2:$A$4, MATCH(A51,Zugtypen!$B$2:$B$4,0)) & INDEX(FahrttypenTopologie!$A$2:$A$4, MATCH(B51,FahrttypenTopologie!$B$2:$B$4,0)) & INDEX(Traktion!$A$2:$A$3, MATCH(C51,Traktion!$B$2:$B$3,0)) & INDEX(Ladungsart!$A$2:$A$4, MATCH(D51,Ladungsart!$B$2:$B$4,0)), Energieverbrauch!$E$2:$E$55, 0))) ->  | K51: =IF(G51="","",IF(C51="Diesel",J51/CO2_Faktoren!$B$8,J51)) ->  | L51: =IF(G51="","",$J51*IF($C51="Diesel",CO2_Faktoren!B$3,CO2_Faktoren!B$5)) ->  | M51: =IF(G51="","",$J51*IF($C51="Diesel",CO2_Faktoren!C$3,CO2_Faktoren!C$5)) ->  | N51: =IF(G51="","",$J51*IF($C51="Diesel",CO2_Faktoren!D$3,CO2_Faktoren!D$5)) ->  | O51: =IF(G51="","",$J51*IF($C51="Diesel",CO2_Faktoren!E$3,CO2_Faktoren!E$5)) ->  | P51: =IF(G51="","",$J51*IF($C51="Diesel",CO2_Faktoren!F$3,CO2_Faktoren!F$5)) ->  | Q51: =IF(G51="","",$J51*IF($C51="Diesel",CO2_Faktoren!G$3,CO2_Faktoren!G$5)) -> 
H52: =IF(G52="","",SUM(IF(E52=Entfernung_Güterbahnhöfe!$A$2:$A$100000,1,0)*IF(F52=Entfernung_Güterbahnhöfe!$B$2:$B$100000,1,0)*Entfernung_Güterbahnhöfe!$C$2:$C$100000)) ->  | I52: =IF(G52="","",INDEX(Energieverbrauch!$F$2:$F$55, MATCH( INDEX(Zugtypen!$A$2:$A$4, MATCH(A52,Zugtypen!$B$2:$B$4,0)) & INDEX(FahrttypenTopologie!$A$2:$A$4, MATCH(B52,FahrttypenTopologie!$B$2:$B$4,0)) & INDEX(Traktion!$A$2:$A$3, MATCH(C52,Traktion!$B$2:$B$3,0)) & INDEX(Ladungsart!$A$2:$A$4, MATCH(D52,Ladungsart!$B$2:$B$4,0)), Energieverbrauch!$E$2:$E$55, 0))) ->  | K52: =IF(G52="","",IF(C52="Diesel",J52/CO2_Faktoren!$B$8,J52)) ->  | L52: =IF(G52="","",$J52*IF($C52="Diesel",CO2_Faktoren!B$3,CO2_Faktoren!B$5)) ->  | M52: =IF(G52="","",$J52*IF($C52="Diesel",CO2_Faktoren!C$3,CO2_Faktoren!C$5)) ->  | N52: =IF(G52="","",$J52*IF($C52="Diesel",CO2_Faktoren!D$3,CO2_Faktoren!D$5)) ->  | O52: =IF(G52="","",$J52*IF($C52="Diesel",CO2_Faktoren!E$3,CO2_Faktoren!E$5)) ->  | P52: =IF(G52="","",$J52*IF($C52="Diesel",CO2_Faktoren!F$3,CO2_Faktoren!F$5)) ->  | Q52: =IF(G52="","",$J52*IF($C52="Diesel",CO2_Faktoren!G$3,CO2_Faktoren!G$5)) -> 
H53: =IF(G53="","",SUM(IF(E53=Entfernung_Güterbahnhöfe!$A$2:$A$100000,1,0)*IF(F53=Entfernung_Güterbahnhöfe!$B$2:$B$100000,1,0)*Entfernung_Güterbahnhöfe!$C$2:$C$100000)) ->  | I53: =IF(G53="","",INDEX(Energieverbrauch!$F$2:$F$55, MATCH( INDEX(Zugtypen!$A$2:$A$4, MATCH(A53,Zugtypen!$B$2:$B$4,0)) & INDEX(FahrttypenTopologie!$A$2:$A$4, MATCH(B53,FahrttypenTopologie!$B$2:$B$4,0)) & INDEX(Traktion!$A$2:$A$3, MATCH(C53,Traktion!$B$2:$B$3,0)) & INDEX(Ladungsart!$A$2:$A$4, MATCH(D53,Ladungsart!$B$2:$B$4,0)), Energieverbrauch!$E$2:$E$55, 0))) ->  | K53: =IF(G53="","",IF(C53="Diesel",J53/CO2_Faktoren!$B$8,J53)) ->  | L53: =IF(G53="","",$J53*IF($C53="Diesel",CO2_Faktoren!B$3,CO2_Faktoren!B$5)) ->  | M53: =IF(G53="","",$J53*IF($C53="Diesel",CO2_Faktoren!C$3,CO2_Faktoren!C$5)) ->  | N53: =IF(G53="","",$J53*IF($C53="Diesel",CO2_Faktoren!D$3,CO2_Faktoren!D$5)) ->  | O53: =IF(G53="","",$J53*IF($C53="Diesel",CO2_Faktoren!E$3,CO2_Faktoren!E$5)) ->  | P53: =IF(G53="","",$J53*IF($C53="Diesel",CO2_Faktoren!F$3,CO2_Faktoren!F$5)) ->  | Q53: =IF(G53="","",$J53*IF($C53="Diesel",CO2_Faktoren!G$3,CO2_Faktoren!G$5)) -> 
H54: =IF(G54="","",SUM(IF(E54=Entfernung_Güterbahnhöfe!$A$2:$A$100000,1,0)*IF(F54=Entfernung_Güterbahnhöfe!$B$2:$B$100000,1,0)*Entfernung_Güterbahnhöfe!$C$2:$C$100000)) ->  | I54: =IF(G54="","",INDEX(Energieverbrauch!$F$2:$F$55, MATCH( INDEX(Zugtypen!$A$2:$A$4, MATCH(A54,Zugtypen!$B$2:$B$4,0)) & INDEX(FahrttypenTopologie!$A$2:$A$4, MATCH(B54,FahrttypenTopologie!$B$2:$B$4,0)) & INDEX(Traktion!$A$2:$A$3, MATCH(C54,Traktion!$B$2:$B$3,0)) & INDEX(Ladungsart!$A$2:$A$4, MATCH(D54,Ladungsart!$B$2:$B$4,0)), Energieverbrauch!$E$2:$E$55, 0))) ->  | K54: =IF(G54="","",IF(C54="Diesel",J54/CO2_Faktoren!$B$8,J54)) ->  | L54: =IF(G54="","",$J54*IF($C54="Diesel",CO2_Faktoren!B$3,CO2_Faktoren!B$5)) ->  | M54: =IF(G54="","",$J54*IF($C54="Diesel",CO2_Faktoren!C$3,CO2_Faktoren!C$5)) ->  | N54: =IF(G54="","",$J54*IF($C54="Diesel",CO2_Faktoren!D$3,CO2_Faktoren!D$5)) ->  | O54: =IF(G54="","",$J54*IF($C54="Diesel",CO2_Faktoren!E$3,CO2_Faktoren!E$5)) ->  | P54: =IF(G54="","",$J54*IF($C54="Diesel",CO2_Faktoren!F$3,CO2_Faktoren!F$5)) ->  | Q54: =IF(G54="","",$J54*IF($C54="Diesel",CO2_Faktoren!G$3,CO2_Faktoren!G$5)) -> 
H55: =IF(G55="","",SUM(IF(E55=Entfernung_Güterbahnhöfe!$A$2:$A$100000,1,0)*IF(F55=Entfernung_Güterbahnhöfe!$B$2:$B$100000,1,0)*Entfernung_Güterbahnhöfe!$C$2:$C$100000)) ->  | I55: =IF(G55="","",INDEX(Energieverbrauch!$F$2:$F$55, MATCH( INDEX(Zugtypen!$A$2:$A$4, MATCH(A55,Zugtypen!$B$2:$B$4,0)) & INDEX(FahrttypenTopologie!$A$2:$A$4, MATCH(B55,FahrttypenTopologie!$B$2:$B$4,0)) & INDEX(Traktion!$A$2:$A$3, MATCH(C55,Traktion!$B$2:$B$3,0)) & INDEX(Ladungsart!$A$2:$A$4, MATCH(D55,Ladungsart!$B$2:$B$4,0)), Energieverbrauch!$E$2:$E$55, 0))) ->  | K55: =IF(G55="","",IF(C55="Diesel",J55/CO2_Faktoren!$B$8,J55)) ->  | L55: =IF(G55="","",$J55*IF($C55="Diesel",CO2_Faktoren!B$3,CO2_Faktoren!B$5)) ->  | M55: =IF(G55="","",$J55*IF($C55="Diesel",CO2_Faktoren!C$3,CO2_Faktoren!C$5)) ->  | N55: =IF(G55="","",$J55*IF($C55="Diesel",CO2_Faktoren!D$3,CO2_Faktoren!D$5)) ->  | O55: =IF(G55="","",$J55*IF($C55="Diesel",CO2_Faktoren!E$3,CO2_Faktoren!E$5)) ->  | P55: =IF(G55="","",$J55*IF($C55="Diesel",CO2_Faktoren!F$3,CO2_Faktoren!F$5)) ->  | Q55: =IF(G55="","",$J55*IF($C55="Diesel",CO2_Faktoren!G$3,CO2_Faktoren!G$5)) -> 
H56: =IF(G56="","",SUM(IF(E56=Entfernung_Güterbahnhöfe!$A$2:$A$100000,1,0)*IF(F56=Entfernung_Güterbahnhöfe!$B$2:$B$100000,1,0)*Entfernung_Güterbahnhöfe!$C$2:$C$100000)) ->  | I56: =IF(G56="","",INDEX(Energieverbrauch!$F$2:$F$55, MATCH( INDEX(Zugtypen!$A$2:$A$4, MATCH(A56,Zugtypen!$B$2:$B$4,0)) & INDEX(FahrttypenTopologie!$A$2:$A$4, MATCH(B56,FahrttypenTopologie!$B$2:$B$4,0)) & INDEX(Traktion!$A$2:$A$3, MATCH(C56,Traktion!$B$2:$B$3,0)) & INDEX(Ladungsart!$A$2:$A$4, MATCH(D56,Ladungsart!$B$2:$B$4,0)), Energieverbrauch!$E$2:$E$55, 0))) ->  | K56: =IF(G56="","",IF(C56="Diesel",J56/CO2_Faktoren!$B$8,J56)) ->  | L56: =IF(G56="","",$J56*IF($C56="Diesel",CO2_Faktoren!B$3,CO2_Faktoren!B$5)) ->  | M56: =IF(G56="","",$J56*IF($C56="Diesel",CO2_Faktoren!C$3,CO2_Faktoren!C$5)) ->  | N56: =IF(G56="","",$J56*IF($C56="Diesel",CO2_Faktoren!D$3,CO2_Faktoren!D$5)) ->  | O56: =IF(G56="","",$J56*IF($C56="Diesel",CO2_Faktoren!E$3,CO2_Faktoren!E$5)) ->  | P56: =IF(G56="","",$J56*IF($C56="Diesel",CO2_Faktoren!F$3,CO2_Faktoren!F$5)) ->  | Q56: =IF(G56="","",$J56*IF($C56="Diesel",CO2_Faktoren!G$3,CO2_Faktoren!G$5)) -> 
H57: =IF(G57="","",SUM(IF(E57=Entfernung_Güterbahnhöfe!$A$2:$A$100000,1,0)*IF(F57=Entfernung_Güterbahnhöfe!$B$2:$B$100000,1,0)*Entfernung_Güterbahnhöfe!$C$2:$C$100000)) ->  | I57: =IF(G57="","",INDEX(Energieverbrauch!$F$2:$F$55, MATCH( INDEX(Zugtypen!$A$2:$A$4, MATCH(A57,Zugtypen!$B$2:$B$4,0)) & INDEX(FahrttypenTopologie!$A$2:$A$4, MATCH(B57,FahrttypenTopologie!$B$2:$B$4,0)) & INDEX(Traktion!$A$2:$A$3, MATCH(C57,Traktion!$B$2:$B$3,0)) & INDEX(Ladungsart!$A$2:$A$4, MATCH(D57,Ladungsart!$B$2:$B$4,0)), Energieverbrauch!$E$2:$E$55, 0))) ->  | K57: =IF(G57="","",IF(C57="Diesel",J57/CO2_Faktoren!$B$8,J57)) ->  | L57: =IF(G57="","",$J57*IF($C57="Diesel",CO2_Faktoren!B$3,CO2_Faktoren!B$5)) ->  | M57: =IF(G57="","",$J57*IF($C57="Diesel",CO2_Faktoren!C$3,CO2_Faktoren!C$5)) ->  | N57: =IF(G57="","",$J57*IF($C57="Diesel",CO2_Faktoren!D$3,CO2_Faktoren!D$5)) ->  | O57: =IF(G57="","",$J57*IF($C57="Diesel",CO2_Faktoren!E$3,CO2_Faktoren!E$5)) ->  | P57: =IF(G57="","",$J57*IF($C57="Diesel",CO2_Faktoren!F$3,CO2_Faktoren!F$5)) ->  | Q57: =IF(G57="","",$J57*IF($C57="Diesel",CO2_Faktoren!G$3,CO2_Faktoren!G$5)) -> 
H58: =IF(G58="","",SUM(IF(E58=Entfernung_Güterbahnhöfe!$A$2:$A$100000,1,0)*IF(F58=Entfernung_Güterbahnhöfe!$B$2:$B$100000,1,0)*Entfernung_Güterbahnhöfe!$C$2:$C$100000)) ->  | I58: =IF(G58="","",INDEX(Energieverbrauch!$F$2:$F$55, MATCH( INDEX(Zugtypen!$A$2:$A$4, MATCH(A58,Zugtypen!$B$2:$B$4,0)) & INDEX(FahrttypenTopologie!$A$2:$A$4, MATCH(B58,FahrttypenTopologie!$B$2:$B$4,0)) & INDEX(Traktion!$A$2:$A$3, MATCH(C58,Traktion!$B$2:$B$3,0)) & INDEX(Ladungsart!$A$2:$A$4, MATCH(D58,Ladungsart!$B$2:$B$4,0)), Energieverbrauch!$E$2:$E$55, 0))) ->  | K58: =IF(G58="","",IF(C58="Diesel",J58/CO2_Faktoren!$B$8,J58)) ->  | L58: =IF(G58="","",$J58*IF($C58="Diesel",CO2_Faktoren!B$3,CO2_Faktoren!B$5)) ->  | M58: =IF(G58="","",$J58*IF($C58="Diesel",CO2_Faktoren!C$3,CO2_Faktoren!C$5)) ->  | N58: =IF(G58="","",$J58*IF($C58="Diesel",CO2_Faktoren!D$3,CO2_Faktoren!D$5)) ->  | O58: =IF(G58="","",$J58*IF($C58="Diesel",CO2_Faktoren!E$3,CO2_Faktoren!E$5)) ->  | P58: =IF(G58="","",$J58*IF($C58="Diesel",CO2_Faktoren!F$3,CO2_Faktoren!F$5)) ->  | Q58: =IF(G58="","",$J58*IF($C58="Diesel",CO2_Faktoren!G$3,CO2_Faktoren!G$5)) -> 
H59: =IF(G59="","",SUM(IF(E59=Entfernung_Güterbahnhöfe!$A$2:$A$100000,1,0)*IF(F59=Entfernung_Güterbahnhöfe!$B$2:$B$100000,1,0)*Entfernung_Güterbahnhöfe!$C$2:$C$100000)) ->  | I59: =IF(G59="","",INDEX(Energieverbrauch!$F$2:$F$55, MATCH( INDEX(Zugtypen!$A$2:$A$4, MATCH(A59,Zugtypen!$B$2:$B$4,0)) & INDEX(FahrttypenTopologie!$A$2:$A$4, MATCH(B59,FahrttypenTopologie!$B$2:$B$4,0)) & INDEX(Traktion!$A$2:$A$3, MATCH(C59,Traktion!$B$2:$B$3,0)) & INDEX(Ladungsart!$A$2:$A$4, MATCH(D59,Ladungsart!$B$2:$B$4,0)), Energieverbrauch!$E$2:$E$55, 0))) ->  | K59: =IF(G59="","",IF(C59="Diesel",J59/CO2_Faktoren!$B$8,J59)) ->  | L59: =IF(G59="","",$J59*IF($C59="Diesel",CO2_Faktoren!B$3,CO2_Faktoren!B$5)) ->  | M59: =IF(G59="","",$J59*IF($C59="Diesel",CO2_Faktoren!C$3,CO2_Faktoren!C$5)) ->  | N59: =IF(G59="","",$J59*IF($C59="Diesel",CO2_Faktoren!D$3,CO2_Faktoren!D$5)) ->  | O59: =IF(G59="","",$J59*IF($C59="Diesel",CO2_Faktoren!E$3,CO2_Faktoren!E$5)) ->  | P59: =IF(G59="","",$J59*IF($C59="Diesel",CO2_Faktoren!F$3,CO2_Faktoren!F$5)) ->  | Q59: =IF(G59="","",$J59*IF($C59="Diesel",CO2_Faktoren!G$3,CO2_Faktoren!G$5)) -> 
H60: =IF(G60="","",SUM(IF(E60=Entfernung_Güterbahnhöfe!$A$2:$A$100000,1,0)*IF(F60=Entfernung_Güterbahnhöfe!$B$2:$B$100000,1,0)*Entfernung_Güterbahnhöfe!$C$2:$C$100000)) ->  | I60: =IF(G60="","",INDEX(Energieverbrauch!$F$2:$F$55, MATCH( INDEX(Zugtypen!$A$2:$A$4, MATCH(A60,Zugtypen!$B$2:$B$4,0)) & INDEX(FahrttypenTopologie!$A$2:$A$4, MATCH(B60,FahrttypenTopologie!$B$2:$B$4,0)) & INDEX(Traktion!$A$2:$A$3, MATCH(C60,Traktion!$B$2:$B$3,0)) & INDEX(Ladungsart!$A$2:$A$4, MATCH(D60,Ladungsart!$B$2:$B$4,0)), Energieverbrauch!$E$2:$E$55, 0))) ->  | K60: =IF(G60="","",IF(C60="Diesel",J60/CO2_Faktoren!$B$8,J60)) ->  | L60: =IF(G60="","",$J60*IF($C60="Diesel",CO2_Faktoren!B$3,CO2_Faktoren!B$5)) ->  | M60: =IF(G60="","",$J60*IF($C60="Diesel",CO2_Faktoren!C$3,CO2_Faktoren!C$5)) ->  | N60: =IF(G60="","",$J60*IF($C60="Diesel",CO2_Faktoren!D$3,CO2_Faktoren!D$5)) ->  | O60: =IF(G60="","",$J60*IF($C60="Diesel",CO2_Faktoren!E$3,CO2_Faktoren!E$5)) ->  | P60: =IF(G60="","",$J60*IF($C60="Diesel",CO2_Faktoren!F$3,CO2_Faktoren!F$5)) ->  | Q60: =IF(G60="","",$J60*IF($C60="Diesel",CO2_Faktoren!G$3,CO2_Faktoren!G$5)) -> 
H61: =IF(G61="","",SUM(IF(E61=Entfernung_Güterbahnhöfe!$A$2:$A$100000,1,0)*IF(F61=Entfernung_Güterbahnhöfe!$B$2:$B$100000,1,0)*Entfernung_Güterbahnhöfe!$C$2:$C$100000)) ->  | I61: =IF(G61="","",INDEX(Energieverbrauch!$F$2:$F$55, MATCH( INDEX(Zugtypen!$A$2:$A$4, MATCH(A61,Zugtypen!$B$2:$B$4,0)) & INDEX(FahrttypenTopologie!$A$2:$A$4, MATCH(B61,FahrttypenTopologie!$B$2:$B$4,0)) & INDEX(Traktion!$A$2:$A$3, MATCH(C61,Traktion!$B$2:$B$3,0)) & INDEX(Ladungsart!$A$2:$A$4, MATCH(D61,Ladungsart!$B$2:$B$4,0)), Energieverbrauch!$E$2:$E$55, 0))) ->  | K61: =IF(G61="","",IF(C61="Diesel",J61/CO2_Faktoren!$B$8,J61)) ->  | L61: =IF(G61="","",$J61*IF($C61="Diesel",CO2_Faktoren!B$3,CO2_Faktoren!B$5)) ->  | M61: =IF(G61="","",$J61*IF($C61="Diesel",CO2_Faktoren!C$3,CO2_Faktoren!C$5)) ->  | N61: =IF(G61="","",$J61*IF($C61="Diesel",CO2_Faktoren!D$3,CO2_Faktoren!D$5)) ->  | O61: =IF(G61="","",$J61*IF($C61="Diesel",CO2_Faktoren!E$3,CO2_Faktoren!E$5)) ->  | P61: =IF(G61="","",$J61*IF($C61="Diesel",CO2_Faktoren!F$3,CO2_Faktoren!F$5)) ->  | Q61: =IF(G61="","",$J61*IF($C61="Diesel",CO2_Faktoren!G$3,CO2_Faktoren!G$5)) -> 
H62: =IF(G62="","",SUM(IF(E62=Entfernung_Güterbahnhöfe!$A$2:$A$100000,1,0)*IF(F62=Entfernung_Güterbahnhöfe!$B$2:$B$100000,1,0)*Entfernung_Güterbahnhöfe!$C$2:$C$100000)) ->  | I62: =IF(G62="","",INDEX(Energieverbrauch!$F$2:$F$55, MATCH( INDEX(Zugtypen!$A$2:$A$4, MATCH(A62,Zugtypen!$B$2:$B$4,0)) & INDEX(FahrttypenTopologie!$A$2:$A$4, MATCH(B62,FahrttypenTopologie!$B$2:$B$4,0)) & INDEX(Traktion!$A$2:$A$3, MATCH(C62,Traktion!$B$2:$B$3,0)) & INDEX(Ladungsart!$A$2:$A$4, MATCH(D62,Ladungsart!$B$2:$B$4,0)), Energieverbrauch!$E$2:$E$55, 0))) ->  | K62: =IF(G62="","",IF(C62="Diesel",J62/CO2_Faktoren!$B$8,J62)) ->  | L62: =IF(G62="","",$J62*IF($C62="Diesel",CO2_Faktoren!B$3,CO2_Faktoren!B$5)) ->  | M62: =IF(G62="","",$J62*IF($C62="Diesel",CO2_Faktoren!C$3,CO2_Faktoren!C$5)) ->  | N62: =IF(G62="","",$J62*IF($C62="Diesel",CO2_Faktoren!D$3,CO2_Faktoren!D$5)) ->  | O62: =IF(G62="","",$J62*IF($C62="Diesel",CO2_Faktoren!E$3,CO2_Faktoren!E$5)) ->  | P62: =IF(G62="","",$J62*IF($C62="Diesel",CO2_Faktoren!F$3,CO2_Faktoren!F$5)) ->  | Q62: =IF(G62="","",$J62*IF($C62="Diesel",CO2_Faktoren!G$3,CO2_Faktoren!G$5)) -> 
H63: =IF(G63="","",SUM(IF(E63=Entfernung_Güterbahnhöfe!$A$2:$A$100000,1,0)*IF(F63=Entfernung_Güterbahnhöfe!$B$2:$B$100000,1,0)*Entfernung_Güterbahnhöfe!$C$2:$C$100000)) ->  | I63: =IF(G63="","",INDEX(Energieverbrauch!$F$2:$F$55, MATCH( INDEX(Zugtypen!$A$2:$A$4, MATCH(A63,Zugtypen!$B$2:$B$4,0)) & INDEX(FahrttypenTopologie!$A$2:$A$4, MATCH(B63,FahrttypenTopologie!$B$2:$B$4,0)) & INDEX(Traktion!$A$2:$A$3, MATCH(C63,Traktion!$B$2:$B$3,0)) & INDEX(Ladungsart!$A$2:$A$4, MATCH(D63,Ladungsart!$B$2:$B$4,0)), Energieverbrauch!$E$2:$E$55, 0))) ->  | K63: =IF(G63="","",IF(C63="Diesel",J63/CO2_Faktoren!$B$8,J63)) ->  | L63: =IF(G63="","",$J63*IF($C63="Diesel",CO2_Faktoren!B$3,CO2_Faktoren!B$5)) ->  | M63: =IF(G63="","",$J63*IF($C63="Diesel",CO2_Faktoren!C$3,CO2_Faktoren!C$5)) ->  | N63: =IF(G63="","",$J63*IF($C63="Diesel",CO2_Faktoren!D$3,CO2_Faktoren!D$5)) ->  | O63: =IF(G63="","",$J63*IF($C63="Diesel",CO2_Faktoren!E$3,CO2_Faktoren!E$5)) ->  | P63: =IF(G63="","",$J63*IF($C63="Diesel",CO2_Faktoren!F$3,CO2_Faktoren!F$5)) ->  | Q63: =IF(G63="","",$J63*IF($C63="Diesel",CO2_Faktoren!G$3,CO2_Faktoren!G$5)) -> 
H64: =IF(G64="","",SUM(IF(E64=Entfernung_Güterbahnhöfe!$A$2:$A$100000,1,0)*IF(F64=Entfernung_Güterbahnhöfe!$B$2:$B$100000,1,0)*Entfernung_Güterbahnhöfe!$C$2:$C$100000)) ->  | I64: =IF(G64="","",INDEX(Energieverbrauch!$F$2:$F$55, MATCH( INDEX(Zugtypen!$A$2:$A$4, MATCH(A64,Zugtypen!$B$2:$B$4,0)) & INDEX(FahrttypenTopologie!$A$2:$A$4, MATCH(B64,FahrttypenTopologie!$B$2:$B$4,0)) & INDEX(Traktion!$A$2:$A$3, MATCH(C64,Traktion!$B$2:$B$3,0)) & INDEX(Ladungsart!$A$2:$A$4, MATCH(D64,Ladungsart!$B$2:$B$4,0)), Energieverbrauch!$E$2:$E$55, 0))) ->  | K64: =IF(G64="","",IF(C64="Diesel",J64/CO2_Faktoren!$B$8,J64)) ->  | L64: =IF(G64="","",$J64*IF($C64="Diesel",CO2_Faktoren!B$3,CO2_Faktoren!B$5)) ->  | M64: =IF(G64="","",$J64*IF($C64="Diesel",CO2_Faktoren!C$3,CO2_Faktoren!C$5)) ->  | N64: =IF(G64="","",$J64*IF($C64="Diesel",CO2_Faktoren!D$3,CO2_Faktoren!D$5)) ->  | O64: =IF(G64="","",$J64*IF($C64="Diesel",CO2_Faktoren!E$3,CO2_Faktoren!E$5)) ->  | P64: =IF(G64="","",$J64*IF($C64="Diesel",CO2_Faktoren!F$3,CO2_Faktoren!F$5)) ->  | Q64: =IF(G64="","",$J64*IF($C64="Diesel",CO2_Faktoren!G$3,CO2_Faktoren!G$5)) -> 
H65: =IF(G65="","",SUM(IF(E65=Entfernung_Güterbahnhöfe!$A$2:$A$100000,1,0)*IF(F65=Entfernung_Güterbahnhöfe!$B$2:$B$100000,1,0)*Entfernung_Güterbahnhöfe!$C$2:$C$100000)) ->  | I65: =IF(G65="","",INDEX(Energieverbrauch!$F$2:$F$55, MATCH( INDEX(Zugtypen!$A$2:$A$4, MATCH(A65,Zugtypen!$B$2:$B$4,0)) & INDEX(FahrttypenTopologie!$A$2:$A$4, MATCH(B65,FahrttypenTopologie!$B$2:$B$4,0)) & INDEX(Traktion!$A$2:$A$3, MATCH(C65,Traktion!$B$2:$B$3,0)) & INDEX(Ladungsart!$A$2:$A$4, MATCH(D65,Ladungsart!$B$2:$B$4,0)), Energieverbrauch!$E$2:$E$55, 0))) ->  | K65: =IF(G65="","",IF(C65="Diesel",J65/CO2_Faktoren!$B$8,J65)) ->  | L65: =IF(G65="","",$J65*IF($C65="Diesel",CO2_Faktoren!B$3,CO2_Faktoren!B$5)) ->  | M65: =IF(G65="","",$J65*IF($C65="Diesel",CO2_Faktoren!C$3,CO2_Faktoren!C$5)) ->  | N65: =IF(G65="","",$J65*IF($C65="Diesel",CO2_Faktoren!D$3,CO2_Faktoren!D$5)) ->  | O65: =IF(G65="","",$J65*IF($C65="Diesel",CO2_Faktoren!E$3,CO2_Faktoren!E$5)) ->  | P65: =IF(G65="","",$J65*IF($C65="Diesel",CO2_Faktoren!F$3,CO2_Faktoren!F$5)) ->  | Q65: =IF(G65="","",$J65*IF($C65="Diesel",CO2_Faktoren!G$3,CO2_Faktoren!G$5)) -> 
H66: =IF(G66="","",SUM(IF(E66=Entfernung_Güterbahnhöfe!$A$2:$A$100000,1,0)*IF(F66=Entfernung_Güterbahnhöfe!$B$2:$B$100000,1,0)*Entfernung_Güterbahnhöfe!$C$2:$C$100000)) ->  | I66: =IF(G66="","",INDEX(Energieverbrauch!$F$2:$F$55, MATCH( INDEX(Zugtypen!$A$2:$A$4, MATCH(A66,Zugtypen!$B$2:$B$4,0)) & INDEX(FahrttypenTopologie!$A$2:$A$4, MATCH(B66,FahrttypenTopologie!$B$2:$B$4,0)) & INDEX(Traktion!$A$2:$A$3, MATCH(C66,Traktion!$B$2:$B$3,0)) & INDEX(Ladungsart!$A$2:$A$4, MATCH(D66,Ladungsart!$B$2:$B$4,0)), Energieverbrauch!$E$2:$E$55, 0))) ->  | K66: =IF(G66="","",IF(C66="Diesel",J66/CO2_Faktoren!$B$8,J66)) ->  | L66: =IF(G66="","",$J66*IF($C66="Diesel",CO2_Faktoren!B$3,CO2_Faktoren!B$5)) ->  | M66: =IF(G66="","",$J66*IF($C66="Diesel",CO2_Faktoren!C$3,CO2_Faktoren!C$5)) ->  | N66: =IF(G66="","",$J66*IF($C66="Diesel",CO2_Faktoren!D$3,CO2_Faktoren!D$5)) ->  | O66: =IF(G66="","",$J66*IF($C66="Diesel",CO2_Faktoren!E$3,CO2_Faktoren!E$5)) ->  | P66: =IF(G66="","",$J66*IF($C66="Diesel",CO2_Faktoren!F$3,CO2_Faktoren!F$5)) ->  | Q66: =IF(G66="","",$J66*IF($C66="Diesel",CO2_Faktoren!G$3,CO2_Faktoren!G$5)) -> 
H67: =IF(G67="","",SUM(IF(E67=Entfernung_Güterbahnhöfe!$A$2:$A$100000,1,0)*IF(F67=Entfernung_Güterbahnhöfe!$B$2:$B$100000,1,0)*Entfernung_Güterbahnhöfe!$C$2:$C$100000)) ->  | I67: =IF(G67="","",INDEX(Energieverbrauch!$F$2:$F$55, MATCH( INDEX(Zugtypen!$A$2:$A$4, MATCH(A67,Zugtypen!$B$2:$B$4,0)) & INDEX(FahrttypenTopologie!$A$2:$A$4, MATCH(B67,FahrttypenTopologie!$B$2:$B$4,0)) & INDEX(Traktion!$A$2:$A$3, MATCH(C67,Traktion!$B$2:$B$3,0)) & INDEX(Ladungsart!$A$2:$A$4, MATCH(D67,Ladungsart!$B$2:$B$4,0)), Energieverbrauch!$E$2:$E$55, 0))) ->  | K67: =IF(G67="","",IF(C67="Diesel",J67/CO2_Faktoren!$B$8,J67)) ->  | L67: =IF(G67="","",$J67*IF($C67="Diesel",CO2_Faktoren!B$3,CO2_Faktoren!B$5)) ->  | M67: =IF(G67="","",$J67*IF($C67="Diesel",CO2_Faktoren!C$3,CO2_Faktoren!C$5)) ->  | N67: =IF(G67="","",$J67*IF($C67="Diesel",CO2_Faktoren!D$3,CO2_Faktoren!D$5)) ->  | O67: =IF(G67="","",$J67*IF($C67="Diesel",CO2_Faktoren!E$3,CO2_Faktoren!E$5)) ->  | P67: =IF(G67="","",$J67*IF($C67="Diesel",CO2_Faktoren!F$3,CO2_Faktoren!F$5)) ->  | Q67: =IF(G67="","",$J67*IF($C67="Diesel",CO2_Faktoren!G$3,CO2_Faktoren!G$5)) -> 
H68: =IF(G68="","",SUM(IF(E68=Entfernung_Güterbahnhöfe!$A$2:$A$100000,1,0)*IF(F68=Entfernung_Güterbahnhöfe!$B$2:$B$100000,1,0)*Entfernung_Güterbahnhöfe!$C$2:$C$100000)) ->  | I68: =IF(G68="","",INDEX(Energieverbrauch!$F$2:$F$55, MATCH( INDEX(Zugtypen!$A$2:$A$4, MATCH(A68,Zugtypen!$B$2:$B$4,0)) & INDEX(FahrttypenTopologie!$A$2:$A$4, MATCH(B68,FahrttypenTopologie!$B$2:$B$4,0)) & INDEX(Traktion!$A$2:$A$3, MATCH(C68,Traktion!$B$2:$B$3,0)) & INDEX(Ladungsart!$A$2:$A$4, MATCH(D68,Ladungsart!$B$2:$B$4,0)), Energieverbrauch!$E$2:$E$55, 0))) ->  | K68: =IF(G68="","",IF(C68="Diesel",J68/CO2_Faktoren!$B$8,J68)) ->  | L68: =IF(G68="","",$J68*IF($C68="Diesel",CO2_Faktoren!B$3,CO2_Faktoren!B$5)) ->  | M68: =IF(G68="","",$J68*IF($C68="Diesel",CO2_Faktoren!C$3,CO2_Faktoren!C$5)) ->  | N68: =IF(G68="","",$J68*IF($C68="Diesel",CO2_Faktoren!D$3,CO2_Faktoren!D$5)) ->  | O68: =IF(G68="","",$J68*IF($C68="Diesel",CO2_Faktoren!E$3,CO2_Faktoren!E$5)) ->  | P68: =IF(G68="","",$J68*IF($C68="Diesel",CO2_Faktoren!F$3,CO2_Faktoren!F$5)) ->  | Q68: =IF(G68="","",$J68*IF($C68="Diesel",CO2_Faktoren!G$3,CO2_Faktoren!G$5)) -> 
H69: =IF(G69="","",SUM(IF(E69=Entfernung_Güterbahnhöfe!$A$2:$A$100000,1,0)*IF(F69=Entfernung_Güterbahnhöfe!$B$2:$B$100000,1,0)*Entfernung_Güterbahnhöfe!$C$2:$C$100000)) ->  | I69: =IF(G69="","",INDEX(Energieverbrauch!$F$2:$F$55, MATCH( INDEX(Zugtypen!$A$2:$A$4, MATCH(A69,Zugtypen!$B$2:$B$4,0)) & INDEX(FahrttypenTopologie!$A$2:$A$4, MATCH(B69,FahrttypenTopologie!$B$2:$B$4,0)) & INDEX(Traktion!$A$2:$A$3, MATCH(C69,Traktion!$B$2:$B$3,0)) & INDEX(Ladungsart!$A$2:$A$4, MATCH(D69,Ladungsart!$B$2:$B$4,0)), Energieverbrauch!$E$2:$E$55, 0))) ->  | K69: =IF(G69="","",IF(C69="Diesel",J69/CO2_Faktoren!$B$8,J69)) ->  | L69: =IF(G69="","",$J69*IF($C69="Diesel",CO2_Faktoren!B$3,CO2_Faktoren!B$5)) ->  | M69: =IF(G69="","",$J69*IF($C69="Diesel",CO2_Faktoren!C$3,CO2_Faktoren!C$5)) ->  | N69: =IF(G69="","",$J69*IF($C69="Diesel",CO2_Faktoren!D$3,CO2_Faktoren!D$5)) ->  | O69: =IF(G69="","",$J69*IF($C69="Diesel",CO2_Faktoren!E$3,CO2_Faktoren!E$5)) ->  | P69: =IF(G69="","",$J69*IF($C69="Diesel",CO2_Faktoren!F$3,CO2_Faktoren!F$5)) ->  | Q69: =IF(G69="","",$J69*IF($C69="Diesel",CO2_Faktoren!G$3,CO2_Faktoren!G$5)) -> 
H70: =IF(G70="","",SUM(IF(E70=Entfernung_Güterbahnhöfe!$A$2:$A$100000,1,0)*IF(F70=Entfernung_Güterbahnhöfe!$B$2:$B$100000,1,0)*Entfernung_Güterbahnhöfe!$C$2:$C$100000)) ->  | I70: =IF(G70="","",INDEX(Energieverbrauch!$F$2:$F$55, MATCH( INDEX(Zugtypen!$A$2:$A$4, MATCH(A70,Zugtypen!$B$2:$B$4,0)) & INDEX(FahrttypenTopologie!$A$2:$A$4, MATCH(B70,FahrttypenTopologie!$B$2:$B$4,0)) & INDEX(Traktion!$A$2:$A$3, MATCH(C70,Traktion!$B$2:$B$3,0)) & INDEX(Ladungsart!$A$2:$A$4, MATCH(D70,Ladungsart!$B$2:$B$4,0)), Energieverbrauch!$E$2:$E$55, 0))) ->  | J70: =IF(G70="","",(I70*H70*G70)/1000) ->  | K70: =IF(G70="","",IF(C70="Diesel",J70/CO2_Faktoren!$B$8,J70)) ->  | L70: =IF(G70="","",$J70*IF($C70="Diesel",CO2_Faktoren!B$3,CO2_Faktoren!B$5)) ->  | M70: =IF(G70="","",$J70*IF($C70="Diesel",CO2_Faktoren!C$3,CO2_Faktoren!C$5)) ->  | N70: =IF(G70="","",$J70*IF($C70="Diesel",CO2_Faktoren!D$3,CO2_Faktoren!D$5)) ->  | O70: =IF(G70="","",$J70*IF($C70="Diesel",CO2_Faktoren!E$3,CO2_Faktoren!E$5)) ->  | P70: =IF(G70="","",$J70*IF($C70="Diesel",CO2_Faktoren!F$3,CO2_Faktoren!F$5)) ->  | Q70: =IF(G70="","",$J70*IF($C70="Diesel",CO2_Faktoren!G$3,CO2_Faktoren!G$5)) -> 
H71: =IF(G71="","",SUM(IF(E71=Entfernung_Güterbahnhöfe!$A$2:$A$100000,1,0)*IF(F71=Entfernung_Güterbahnhöfe!$B$2:$B$100000,1,0)*Entfernung_Güterbahnhöfe!$C$2:$C$100000)) ->  | I71: =IF(G71="","",INDEX(Energieverbrauch!$F$2:$F$55, MATCH( INDEX(Zugtypen!$A$2:$A$4, MATCH(A71,Zugtypen!$B$2:$B$4,0)) & INDEX(FahrttypenTopologie!$A$2:$A$4, MATCH(B71,FahrttypenTopologie!$B$2:$B$4,0)) & INDEX(Traktion!$A$2:$A$3, MATCH(C71,Traktion!$B$2:$B$3,0)) & INDEX(Ladungsart!$A$2:$A$4, MATCH(D71,Ladungsart!$B$2:$B$4,0)), Energieverbrauch!$E$2:$E$55, 0))) ->  | K71: =IF(G71="","",IF(C71="Diesel",J71/CO2_Faktoren!$B$8,J71)) ->  | L71: =IF(G71="","",$J71*IF($C71="Diesel",CO2_Faktoren!B$3,CO2_Faktoren!B$5)) ->  | M71: =IF(G71="","",$J71*IF($C71="Diesel",CO2_Faktoren!C$3,CO2_Faktoren!C$5)) ->  | N71: =IF(G71="","",$J71*IF($C71="Diesel",CO2_Faktoren!D$3,CO2_Faktoren!D$5)) ->  | O71: =IF(G71="","",$J71*IF($C71="Diesel",CO2_Faktoren!E$3,CO2_Faktoren!E$5)) ->  | P71: =IF(G71="","",$J71*IF($C71="Diesel",CO2_Faktoren!F$3,CO2_Faktoren!F$5)) ->  | Q71: =IF(G71="","",$J71*IF($C71="Diesel",CO2_Faktoren!G$3,CO2_Faktoren!G$5)) -> 
H72: =IF(G72="","",SUM(IF(E72=Entfernung_Güterbahnhöfe!$A$2:$A$100000,1,0)*IF(F72=Entfernung_Güterbahnhöfe!$B$2:$B$100000,1,0)*Entfernung_Güterbahnhöfe!$C$2:$C$100000)) ->  | I72: =IF(G72="","",INDEX(Energieverbrauch!$F$2:$F$55, MATCH( INDEX(Zugtypen!$A$2:$A$4, MATCH(A72,Zugtypen!$B$2:$B$4,0)) & INDEX(FahrttypenTopologie!$A$2:$A$4, MATCH(B72,FahrttypenTopologie!$B$2:$B$4,0)) & INDEX(Traktion!$A$2:$A$3, MATCH(C72,Traktion!$B$2:$B$3,0)) & INDEX(Ladungsart!$A$2:$A$4, MATCH(D72,Ladungsart!$B$2:$B$4,0)), Energieverbrauch!$E$2:$E$55, 0))) ->  | K72: =IF(G72="","",IF(C72="Diesel",J72/CO2_Faktoren!$B$8,J72)) ->  | L72: =IF(G72="","",$J72*IF($C72="Diesel",CO2_Faktoren!B$3,CO2_Faktoren!B$5)) ->  | M72: =IF(G72="","",$J72*IF($C72="Diesel",CO2_Faktoren!C$3,CO2_Faktoren!C$5)) ->  | N72: =IF(G72="","",$J72*IF($C72="Diesel",CO2_Faktoren!D$3,CO2_Faktoren!D$5)) ->  | O72: =IF(G72="","",$J72*IF($C72="Diesel",CO2_Faktoren!E$3,CO2_Faktoren!E$5)) ->  | P72: =IF(G72="","",$J72*IF($C72="Diesel",CO2_Faktoren!F$3,CO2_Faktoren!F$5)) ->  | Q72: =IF(G72="","",$J72*IF($C72="Diesel",CO2_Faktoren!G$3,CO2_Faktoren!G$5)) -> 
H73: =IF(G73="","",SUM(IF(E73=Entfernung_Güterbahnhöfe!$A$2:$A$100000,1,0)*IF(F73=Entfernung_Güterbahnhöfe!$B$2:$B$100000,1,0)*Entfernung_Güterbahnhöfe!$C$2:$C$100000)) ->  | I73: =IF(G73="","",INDEX(Energieverbrauch!$F$2:$F$55, MATCH( INDEX(Zugtypen!$A$2:$A$4, MATCH(A73,Zugtypen!$B$2:$B$4,0)) & INDEX(FahrttypenTopologie!$A$2:$A$4, MATCH(B73,FahrttypenTopologie!$B$2:$B$4,0)) & INDEX(Traktion!$A$2:$A$3, MATCH(C73,Traktion!$B$2:$B$3,0)) & INDEX(Ladungsart!$A$2:$A$4, MATCH(D73,Ladungsart!$B$2:$B$4,0)), Energieverbrauch!$E$2:$E$55, 0))) ->  | K73: =IF(G73="","",IF(C73="Diesel",J73/CO2_Faktoren!$B$8,J73)) ->  | L73: =IF(G73="","",$J73*IF($C73="Diesel",CO2_Faktoren!B$3,CO2_Faktoren!B$5)) ->  | M73: =IF(G73="","",$J73*IF($C73="Diesel",CO2_Faktoren!C$3,CO2_Faktoren!C$5)) ->  | N73: =IF(G73="","",$J73*IF($C73="Diesel",CO2_Faktoren!D$3,CO2_Faktoren!D$5)) ->  | O73: =IF(G73="","",$J73*IF($C73="Diesel",CO2_Faktoren!E$3,CO2_Faktoren!E$5)) ->  | P73: =IF(G73="","",$J73*IF($C73="Diesel",CO2_Faktoren!F$3,CO2_Faktoren!F$5)) ->  | Q73: =IF(G73="","",$J73*IF($C73="Diesel",CO2_Faktoren!G$3,CO2_Faktoren!G$5)) -> 
H74: =IF(G74="","",SUM(IF(E74=Entfernung_Güterbahnhöfe!$A$2:$A$100000,1,0)*IF(F74=Entfernung_Güterbahnhöfe!$B$2:$B$100000,1,0)*Entfernung_Güterbahnhöfe!$C$2:$C$100000)) ->  | I74: =IF(G74="","",INDEX(Energieverbrauch!$F$2:$F$55, MATCH( INDEX(Zugtypen!$A$2:$A$4, MATCH(A74,Zugtypen!$B$2:$B$4,0)) & INDEX(FahrttypenTopologie!$A$2:$A$4, MATCH(B74,FahrttypenTopologie!$B$2:$B$4,0)) & INDEX(Traktion!$A$2:$A$3, MATCH(C74,Traktion!$B$2:$B$3,0)) & INDEX(Ladungsart!$A$2:$A$4, MATCH(D74,Ladungsart!$B$2:$B$4,0)), Energieverbrauch!$E$2:$E$55, 0))) ->  | K74: =IF(G74="","",IF(C74="Diesel",J74/CO2_Faktoren!$B$8,J74)) ->  | L74: =IF(G74="","",$J74*IF($C74="Diesel",CO2_Faktoren!B$3,CO2_Faktoren!B$5)) ->  | M74: =IF(G74="","",$J74*IF($C74="Diesel",CO2_Faktoren!C$3,CO2_Faktoren!C$5)) ->  | N74: =IF(G74="","",$J74*IF($C74="Diesel",CO2_Faktoren!D$3,CO2_Faktoren!D$5)) ->  | O74: =IF(G74="","",$J74*IF($C74="Diesel",CO2_Faktoren!E$3,CO2_Faktoren!E$5)) ->  | P74: =IF(G74="","",$J74*IF($C74="Diesel",CO2_Faktoren!F$3,CO2_Faktoren!F$5)) ->  | Q74: =IF(G74="","",$J74*IF($C74="Diesel",CO2_Faktoren!G$3,CO2_Faktoren!G$5)) -> 
H75: =IF(G75="","",SUM(IF(E75=Entfernung_Güterbahnhöfe!$A$2:$A$100000,1,0)*IF(F75=Entfernung_Güterbahnhöfe!$B$2:$B$100000,1,0)*Entfernung_Güterbahnhöfe!$C$2:$C$100000)) ->  | I75: =IF(G75="","",INDEX(Energieverbrauch!$F$2:$F$55, MATCH( INDEX(Zugtypen!$A$2:$A$4, MATCH(A75,Zugtypen!$B$2:$B$4,0)) & INDEX(FahrttypenTopologie!$A$2:$A$4, MATCH(B75,FahrttypenTopologie!$B$2:$B$4,0)) & INDEX(Traktion!$A$2:$A$3, MATCH(C75,Traktion!$B$2:$B$3,0)) & INDEX(Ladungsart!$A$2:$A$4, MATCH(D75,Ladungsart!$B$2:$B$4,0)), Energieverbrauch!$E$2:$E$55, 0))) ->  | K75: =IF(G75="","",IF(C75="Diesel",J75/CO2_Faktoren!$B$8,J75)) ->  | L75: =IF(G75="","",$J75*IF($C75="Diesel",CO2_Faktoren!B$3,CO2_Faktoren!B$5)) ->  | M75: =IF(G75="","",$J75*IF($C75="Diesel",CO2_Faktoren!C$3,CO2_Faktoren!C$5)) ->  | N75: =IF(G75="","",$J75*IF($C75="Diesel",CO2_Faktoren!D$3,CO2_Faktoren!D$5)) ->  | O75: =IF(G75="","",$J75*IF($C75="Diesel",CO2_Faktoren!E$3,CO2_Faktoren!E$5)) ->  | P75: =IF(G75="","",$J75*IF($C75="Diesel",CO2_Faktoren!F$3,CO2_Faktoren!F$5)) ->  | Q75: =IF(G75="","",$J75*IF($C75="Diesel",CO2_Faktoren!G$3,CO2_Faktoren!G$5)) -> 
H76: =IF(G76="","",SUM(IF(E76=Entfernung_Güterbahnhöfe!$A$2:$A$100000,1,0)*IF(F76=Entfernung_Güterbahnhöfe!$B$2:$B$100000,1,0)*Entfernung_Güterbahnhöfe!$C$2:$C$100000)) ->  | I76: =IF(G76="","",INDEX(Energieverbrauch!$F$2:$F$55, MATCH( INDEX(Zugtypen!$A$2:$A$4, MATCH(A76,Zugtypen!$B$2:$B$4,0)) & INDEX(FahrttypenTopologie!$A$2:$A$4, MATCH(B76,FahrttypenTopologie!$B$2:$B$4,0)) & INDEX(Traktion!$A$2:$A$3, MATCH(C76,Traktion!$B$2:$B$3,0)) & INDEX(Ladungsart!$A$2:$A$4, MATCH(D76,Ladungsart!$B$2:$B$4,0)), Energieverbrauch!$E$2:$E$55, 0))) ->  | K76: =IF(G76="","",IF(C76="Diesel",J76/CO2_Faktoren!$B$8,J76)) ->  | L76: =IF(G76="","",$J76*IF($C76="Diesel",CO2_Faktoren!B$3,CO2_Faktoren!B$5)) ->  | M76: =IF(G76="","",$J76*IF($C76="Diesel",CO2_Faktoren!C$3,CO2_Faktoren!C$5)) ->  | N76: =IF(G76="","",$J76*IF($C76="Diesel",CO2_Faktoren!D$3,CO2_Faktoren!D$5)) ->  | O76: =IF(G76="","",$J76*IF($C76="Diesel",CO2_Faktoren!E$3,CO2_Faktoren!E$5)) ->  | P76: =IF(G76="","",$J76*IF($C76="Diesel",CO2_Faktoren!F$3,CO2_Faktoren!F$5)) ->  | Q76: =IF(G76="","",$J76*IF($C76="Diesel",CO2_Faktoren!G$3,CO2_Faktoren!G$5)) -> 
H77: =IF(G77="","",SUM(IF(E77=Entfernung_Güterbahnhöfe!$A$2:$A$100000,1,0)*IF(F77=Entfernung_Güterbahnhöfe!$B$2:$B$100000,1,0)*Entfernung_Güterbahnhöfe!$C$2:$C$100000)) ->  | I77: =IF(G77="","",INDEX(Energieverbrauch!$F$2:$F$55, MATCH( INDEX(Zugtypen!$A$2:$A$4, MATCH(A77,Zugtypen!$B$2:$B$4,0)) & INDEX(FahrttypenTopologie!$A$2:$A$4, MATCH(B77,FahrttypenTopologie!$B$2:$B$4,0)) & INDEX(Traktion!$A$2:$A$3, MATCH(C77,Traktion!$B$2:$B$3,0)) & INDEX(Ladungsart!$A$2:$A$4, MATCH(D77,Ladungsart!$B$2:$B$4,0)), Energieverbrauch!$E$2:$E$55, 0))) ->  | K77: =IF(G77="","",IF(C77="Diesel",J77/CO2_Faktoren!$B$8,J77)) ->  | L77: =IF(G77="","",$J77*IF($C77="Diesel",CO2_Faktoren!B$3,CO2_Faktoren!B$5)) ->  | M77: =IF(G77="","",$J77*IF($C77="Diesel",CO2_Faktoren!C$3,CO2_Faktoren!C$5)) ->  | N77: =IF(G77="","",$J77*IF($C77="Diesel",CO2_Faktoren!D$3,CO2_Faktoren!D$5)) ->  | O77: =IF(G77="","",$J77*IF($C77="Diesel",CO2_Faktoren!E$3,CO2_Faktoren!E$5)) ->  | P77: =IF(G77="","",$J77*IF($C77="Diesel",CO2_Faktoren!F$3,CO2_Faktoren!F$5)) ->  | Q77: =IF(G77="","",$J77*IF($C77="Diesel",CO2_Faktoren!G$3,CO2_Faktoren!G$5)) -> 
H78: =IF(G78="","",SUM(IF(E78=Entfernung_Güterbahnhöfe!$A$2:$A$100000,1,0)*IF(F78=Entfernung_Güterbahnhöfe!$B$2:$B$100000,1,0)*Entfernung_Güterbahnhöfe!$C$2:$C$100000)) ->  | I78: =IF(G78="","",INDEX(Energieverbrauch!$F$2:$F$55, MATCH( INDEX(Zugtypen!$A$2:$A$4, MATCH(A78,Zugtypen!$B$2:$B$4,0)) & INDEX(FahrttypenTopologie!$A$2:$A$4, MATCH(B78,FahrttypenTopologie!$B$2:$B$4,0)) & INDEX(Traktion!$A$2:$A$3, MATCH(C78,Traktion!$B$2:$B$3,0)) & INDEX(Ladungsart!$A$2:$A$4, MATCH(D78,Ladungsart!$B$2:$B$4,0)), Energieverbrauch!$E$2:$E$55, 0))) ->  | K78: =IF(G78="","",IF(C78="Diesel",J78/CO2_Faktoren!$B$8,J78)) ->  | L78: =IF(G78="","",$J78*IF($C78="Diesel",CO2_Faktoren!B$3,CO2_Faktoren!B$5)) ->  | M78: =IF(G78="","",$J78*IF($C78="Diesel",CO2_Faktoren!C$3,CO2_Faktoren!C$5)) ->  | N78: =IF(G78="","",$J78*IF($C78="Diesel",CO2_Faktoren!D$3,CO2_Faktoren!D$5)) ->  | O78: =IF(G78="","",$J78*IF($C78="Diesel",CO2_Faktoren!E$3,CO2_Faktoren!E$5)) ->  | P78: =IF(G78="","",$J78*IF($C78="Diesel",CO2_Faktoren!F$3,CO2_Faktoren!F$5)) ->  | Q78: =IF(G78="","",$J78*IF($C78="Diesel",CO2_Faktoren!G$3,CO2_Faktoren!G$5)) -> 
H79: =IF(G79="","",SUM(IF(E79=Entfernung_Güterbahnhöfe!$A$2:$A$100000,1,0)*IF(F79=Entfernung_Güterbahnhöfe!$B$2:$B$100000,1,0)*Entfernung_Güterbahnhöfe!$C$2:$C$100000)) ->  | I79: =IF(G79="","",INDEX(Energieverbrauch!$F$2:$F$55, MATCH( INDEX(Zugtypen!$A$2:$A$4, MATCH(A79,Zugtypen!$B$2:$B$4,0)) & INDEX(FahrttypenTopologie!$A$2:$A$4, MATCH(B79,FahrttypenTopologie!$B$2:$B$4,0)) & INDEX(Traktion!$A$2:$A$3, MATCH(C79,Traktion!$B$2:$B$3,0)) & INDEX(Ladungsart!$A$2:$A$4, MATCH(D79,Ladungsart!$B$2:$B$4,0)), Energieverbrauch!$E$2:$E$55, 0))) ->  | K79: =IF(G79="","",IF(C79="Diesel",J79/CO2_Faktoren!$B$8,J79)) ->  | L79: =IF(G79="","",$J79*IF($C79="Diesel",CO2_Faktoren!B$3,CO2_Faktoren!B$5)) ->  | M79: =IF(G79="","",$J79*IF($C79="Diesel",CO2_Faktoren!C$3,CO2_Faktoren!C$5)) ->  | N79: =IF(G79="","",$J79*IF($C79="Diesel",CO2_Faktoren!D$3,CO2_Faktoren!D$5)) ->  | O79: =IF(G79="","",$J79*IF($C79="Diesel",CO2_Faktoren!E$3,CO2_Faktoren!E$5)) ->  | P79: =IF(G79="","",$J79*IF($C79="Diesel",CO2_Faktoren!F$3,CO2_Faktoren!F$5)) ->  | Q79: =IF(G79="","",$J79*IF($C79="Diesel",CO2_Faktoren!G$3,CO2_Faktoren!G$5)) -> 
H80: =IF(G80="","",SUM(IF(E80=Entfernung_Güterbahnhöfe!$A$2:$A$100000,1,0)*IF(F80=Entfernung_Güterbahnhöfe!$B$2:$B$100000,1,0)*Entfernung_Güterbahnhöfe!$C$2:$C$100000)) ->  | I80: =IF(G80="","",INDEX(Energieverbrauch!$F$2:$F$55, MATCH( INDEX(Zugtypen!$A$2:$A$4, MATCH(A80,Zugtypen!$B$2:$B$4,0)) & INDEX(FahrttypenTopologie!$A$2:$A$4, MATCH(B80,FahrttypenTopologie!$B$2:$B$4,0)) & INDEX(Traktion!$A$2:$A$3, MATCH(C80,Traktion!$B$2:$B$3,0)) & INDEX(Ladungsart!$A$2:$A$4, MATCH(D80,Ladungsart!$B$2:$B$4,0)), Energieverbrauch!$E$2:$E$55, 0))) ->  | K80: =IF(G80="","",IF(C80="Diesel",J80/CO2_Faktoren!$B$8,J80)) ->  | L80: =IF(G80="","",$J80*IF($C80="Diesel",CO2_Faktoren!B$3,CO2_Faktoren!B$5)) ->  | M80: =IF(G80="","",$J80*IF($C80="Diesel",CO2_Faktoren!C$3,CO2_Faktoren!C$5)) ->  | N80: =IF(G80="","",$J80*IF($C80="Diesel",CO2_Faktoren!D$3,CO2_Faktoren!D$5)) ->  | O80: =IF(G80="","",$J80*IF($C80="Diesel",CO2_Faktoren!E$3,CO2_Faktoren!E$5)) ->  | P80: =IF(G80="","",$J80*IF($C80="Diesel",CO2_Faktoren!F$3,CO2_Faktoren!F$5)) ->  | Q80: =IF(G80="","",$J80*IF($C80="Diesel",CO2_Faktoren!G$3,CO2_Faktoren!G$5)) -> 
H81: =IF(G81="","",SUM(IF(E81=Entfernung_Güterbahnhöfe!$A$2:$A$100000,1,0)*IF(F81=Entfernung_Güterbahnhöfe!$B$2:$B$100000,1,0)*Entfernung_Güterbahnhöfe!$C$2:$C$100000)) ->  | I81: =IF(G81="","",INDEX(Energieverbrauch!$F$2:$F$55, MATCH( INDEX(Zugtypen!$A$2:$A$4, MATCH(A81,Zugtypen!$B$2:$B$4,0)) & INDEX(FahrttypenTopologie!$A$2:$A$4, MATCH(B81,FahrttypenTopologie!$B$2:$B$4,0)) & INDEX(Traktion!$A$2:$A$3, MATCH(C81,Traktion!$B$2:$B$3,0)) & INDEX(Ladungsart!$A$2:$A$4, MATCH(D81,Ladungsart!$B$2:$B$4,0)), Energieverbrauch!$E$2:$E$55, 0))) ->  | K81: =IF(G81="","",IF(C81="Diesel",J81/CO2_Faktoren!$B$8,J81)) ->  | L81: =IF(G81="","",$J81*IF($C81="Diesel",CO2_Faktoren!B$3,CO2_Faktoren!B$5)) ->  | M81: =IF(G81="","",$J81*IF($C81="Diesel",CO2_Faktoren!C$3,CO2_Faktoren!C$5)) ->  | N81: =IF(G81="","",$J81*IF($C81="Diesel",CO2_Faktoren!D$3,CO2_Faktoren!D$5)) ->  | O81: =IF(G81="","",$J81*IF($C81="Diesel",CO2_Faktoren!E$3,CO2_Faktoren!E$5)) ->  | P81: =IF(G81="","",$J81*IF($C81="Diesel",CO2_Faktoren!F$3,CO2_Faktoren!F$5)) ->  | Q81: =IF(G81="","",$J81*IF($C81="Diesel",CO2_Faktoren!G$3,CO2_Faktoren!G$5)) -> 
H82: =IF(G82="","",SUM(IF(E82=Entfernung_Güterbahnhöfe!$A$2:$A$100000,1,0)*IF(F82=Entfernung_Güterbahnhöfe!$B$2:$B$100000,1,0)*Entfernung_Güterbahnhöfe!$C$2:$C$100000)) ->  | I82: =IF(G82="","",INDEX(Energieverbrauch!$F$2:$F$55, MATCH( INDEX(Zugtypen!$A$2:$A$4, MATCH(A82,Zugtypen!$B$2:$B$4,0)) & INDEX(FahrttypenTopologie!$A$2:$A$4, MATCH(B82,FahrttypenTopologie!$B$2:$B$4,0)) & INDEX(Traktion!$A$2:$A$3, MATCH(C82,Traktion!$B$2:$B$3,0)) & INDEX(Ladungsart!$A$2:$A$4, MATCH(D82,Ladungsart!$B$2:$B$4,0)), Energieverbrauch!$E$2:$E$55, 0))) ->  | K82: =IF(G82="","",IF(C82="Diesel",J82/CO2_Faktoren!$B$8,J82)) ->  | L82: =IF(G82="","",$J82*IF($C82="Diesel",CO2_Faktoren!B$3,CO2_Faktoren!B$5)) ->  | M82: =IF(G82="","",$J82*IF($C82="Diesel",CO2_Faktoren!C$3,CO2_Faktoren!C$5)) ->  | N82: =IF(G82="","",$J82*IF($C82="Diesel",CO2_Faktoren!D$3,CO2_Faktoren!D$5)) ->  | O82: =IF(G82="","",$J82*IF($C82="Diesel",CO2_Faktoren!E$3,CO2_Faktoren!E$5)) ->  | P82: =IF(G82="","",$J82*IF($C82="Diesel",CO2_Faktoren!F$3,CO2_Faktoren!F$5)) ->  | Q82: =IF(G82="","",$J82*IF($C82="Diesel",CO2_Faktoren!G$3,CO2_Faktoren!G$5)) -> 
H83: =IF(G83="","",SUM(IF(E83=Entfernung_Güterbahnhöfe!$A$2:$A$100000,1,0)*IF(F83=Entfernung_Güterbahnhöfe!$B$2:$B$100000,1,0)*Entfernung_Güterbahnhöfe!$C$2:$C$100000)) ->  | I83: =IF(G83="","",INDEX(Energieverbrauch!$F$2:$F$55, MATCH( INDEX(Zugtypen!$A$2:$A$4, MATCH(A83,Zugtypen!$B$2:$B$4,0)) & INDEX(FahrttypenTopologie!$A$2:$A$4, MATCH(B83,FahrttypenTopologie!$B$2:$B$4,0)) & INDEX(Traktion!$A$2:$A$3, MATCH(C83,Traktion!$B$2:$B$3,0)) & INDEX(Ladungsart!$A$2:$A$4, MATCH(D83,Ladungsart!$B$2:$B$4,0)), Energieverbrauch!$E$2:$E$55, 0))) ->  | K83: =IF(G83="","",IF(C83="Diesel",J83/CO2_Faktoren!$B$8,J83)) ->  | L83: =IF(G83="","",$J83*IF($C83="Diesel",CO2_Faktoren!B$3,CO2_Faktoren!B$5)) ->  | M83: =IF(G83="","",$J83*IF($C83="Diesel",CO2_Faktoren!C$3,CO2_Faktoren!C$5)) ->  | N83: =IF(G83="","",$J83*IF($C83="Diesel",CO2_Faktoren!D$3,CO2_Faktoren!D$5)) ->  | O83: =IF(G83="","",$J83*IF($C83="Diesel",CO2_Faktoren!E$3,CO2_Faktoren!E$5)) ->  | P83: =IF(G83="","",$J83*IF($C83="Diesel",CO2_Faktoren!F$3,CO2_Faktoren!F$5)) ->  | Q83: =IF(G83="","",$J83*IF($C83="Diesel",CO2_Faktoren!G$3,CO2_Faktoren!G$5)) -> 
H84: =IF(G84="","",SUM(IF(E84=Entfernung_Güterbahnhöfe!$A$2:$A$100000,1,0)*IF(F84=Entfernung_Güterbahnhöfe!$B$2:$B$100000,1,0)*Entfernung_Güterbahnhöfe!$C$2:$C$100000)) ->  | I84: =IF(G84="","",INDEX(Energieverbrauch!$F$2:$F$55, MATCH( INDEX(Zugtypen!$A$2:$A$4, MATCH(A84,Zugtypen!$B$2:$B$4,0)) & INDEX(FahrttypenTopologie!$A$2:$A$4, MATCH(B84,FahrttypenTopologie!$B$2:$B$4,0)) & INDEX(Traktion!$A$2:$A$3, MATCH(C84,Traktion!$B$2:$B$3,0)) & INDEX(Ladungsart!$A$2:$A$4, MATCH(D84,Ladungsart!$B$2:$B$4,0)), Energieverbrauch!$E$2:$E$55, 0))) ->  | K84: =IF(G84="","",IF(C84="Diesel",J84/CO2_Faktoren!$B$8,J84)) ->  | L84: =IF(G84="","",$J84*IF($C84="Diesel",CO2_Faktoren!B$3,CO2_Faktoren!B$5)) ->  | M84: =IF(G84="","",$J84*IF($C84="Diesel",CO2_Faktoren!C$3,CO2_Faktoren!C$5)) ->  | N84: =IF(G84="","",$J84*IF($C84="Diesel",CO2_Faktoren!D$3,CO2_Faktoren!D$5)) ->  | O84: =IF(G84="","",$J84*IF($C84="Diesel",CO2_Faktoren!E$3,CO2_Faktoren!E$5)) ->  | P84: =IF(G84="","",$J84*IF($C84="Diesel",CO2_Faktoren!F$3,CO2_Faktoren!F$5)) ->  | Q84: =IF(G84="","",$J84*IF($C84="Diesel",CO2_Faktoren!G$3,CO2_Faktoren!G$5)) -> 
H85: =IF(G85="","",SUM(IF(E85=Entfernung_Güterbahnhöfe!$A$2:$A$100000,1,0)*IF(F85=Entfernung_Güterbahnhöfe!$B$2:$B$100000,1,0)*Entfernung_Güterbahnhöfe!$C$2:$C$100000)) ->  | I85: =IF(G85="","",INDEX(Energieverbrauch!$F$2:$F$55, MATCH( INDEX(Zugtypen!$A$2:$A$4, MATCH(A85,Zugtypen!$B$2:$B$4,0)) & INDEX(FahrttypenTopologie!$A$2:$A$4, MATCH(B85,FahrttypenTopologie!$B$2:$B$4,0)) & INDEX(Traktion!$A$2:$A$3, MATCH(C85,Traktion!$B$2:$B$3,0)) & INDEX(Ladungsart!$A$2:$A$4, MATCH(D85,Ladungsart!$B$2:$B$4,0)), Energieverbrauch!$E$2:$E$55, 0))) ->  | K85: =IF(G85="","",IF(C85="Diesel",J85/CO2_Faktoren!$B$8,J85)) ->  | L85: =IF(G85="","",$J85*IF($C85="Diesel",CO2_Faktoren!B$3,CO2_Faktoren!B$5)) ->  | M85: =IF(G85="","",$J85*IF($C85="Diesel",CO2_Faktoren!C$3,CO2_Faktoren!C$5)) ->  | N85: =IF(G85="","",$J85*IF($C85="Diesel",CO2_Faktoren!D$3,CO2_Faktoren!D$5)) ->  | O85: =IF(G85="","",$J85*IF($C85="Diesel",CO2_Faktoren!E$3,CO2_Faktoren!E$5)) ->  | P85: =IF(G85="","",$J85*IF($C85="Diesel",CO2_Faktoren!F$3,CO2_Faktoren!F$5)) ->  | Q85: =IF(G85="","",$J85*IF($C85="Diesel",CO2_Faktoren!G$3,CO2_Faktoren!G$5)) -> 
H86: =IF(G86="","",SUM(IF(E86=Entfernung_Güterbahnhöfe!$A$2:$A$100000,1,0)*IF(F86=Entfernung_Güterbahnhöfe!$B$2:$B$100000,1,0)*Entfernung_Güterbahnhöfe!$C$2:$C$100000)) ->  | I86: =IF(G86="","",INDEX(Energieverbrauch!$F$2:$F$55, MATCH( INDEX(Zugtypen!$A$2:$A$4, MATCH(A86,Zugtypen!$B$2:$B$4,0)) & INDEX(FahrttypenTopologie!$A$2:$A$4, MATCH(B86,FahrttypenTopologie!$B$2:$B$4,0)) & INDEX(Traktion!$A$2:$A$3, MATCH(C86,Traktion!$B$2:$B$3,0)) & INDEX(Ladungsart!$A$2:$A$4, MATCH(D86,Ladungsart!$B$2:$B$4,0)), Energieverbrauch!$E$2:$E$55, 0))) ->  | K86: =IF(G86="","",IF(C86="Diesel",J86/CO2_Faktoren!$B$8,J86)) ->  | L86: =IF(G86="","",$J86*IF($C86="Diesel",CO2_Faktoren!B$3,CO2_Faktoren!B$5)) ->  | M86: =IF(G86="","",$J86*IF($C86="Diesel",CO2_Faktoren!C$3,CO2_Faktoren!C$5)) ->  | N86: =IF(G86="","",$J86*IF($C86="Diesel",CO2_Faktoren!D$3,CO2_Faktoren!D$5)) ->  | O86: =IF(G86="","",$J86*IF($C86="Diesel",CO2_Faktoren!E$3,CO2_Faktoren!E$5)) ->  | P86: =IF(G86="","",$J86*IF($C86="Diesel",CO2_Faktoren!F$3,CO2_Faktoren!F$5)) ->  | Q86: =IF(G86="","",$J86*IF($C86="Diesel",CO2_Faktoren!G$3,CO2_Faktoren!G$5)) -> 
H87: =IF(G87="","",SUM(IF(E87=Entfernung_Güterbahnhöfe!$A$2:$A$100000,1,0)*IF(F87=Entfernung_Güterbahnhöfe!$B$2:$B$100000,1,0)*Entfernung_Güterbahnhöfe!$C$2:$C$100000)) ->  | I87: =IF(G87="","",INDEX(Energieverbrauch!$F$2:$F$55, MATCH( INDEX(Zugtypen!$A$2:$A$4, MATCH(A87,Zugtypen!$B$2:$B$4,0)) & INDEX(FahrttypenTopologie!$A$2:$A$4, MATCH(B87,FahrttypenTopologie!$B$2:$B$4,0)) & INDEX(Traktion!$A$2:$A$3, MATCH(C87,Traktion!$B$2:$B$3,0)) & INDEX(Ladungsart!$A$2:$A$4, MATCH(D87,Ladungsart!$B$2:$B$4,0)), Energieverbrauch!$E$2:$E$55, 0))) ->  | K87: =IF(G87="","",IF(C87="Diesel",J87/CO2_Faktoren!$B$8,J87)) ->  | L87: =IF(G87="","",$J87*IF($C87="Diesel",CO2_Faktoren!B$3,CO2_Faktoren!B$5)) ->  | M87: =IF(G87="","",$J87*IF($C87="Diesel",CO2_Faktoren!C$3,CO2_Faktoren!C$5)) ->  | N87: =IF(G87="","",$J87*IF($C87="Diesel",CO2_Faktoren!D$3,CO2_Faktoren!D$5)) ->  | O87: =IF(G87="","",$J87*IF($C87="Diesel",CO2_Faktoren!E$3,CO2_Faktoren!E$5)) ->  | P87: =IF(G87="","",$J87*IF($C87="Diesel",CO2_Faktoren!F$3,CO2_Faktoren!F$5)) ->  | Q87: =IF(G87="","",$J87*IF($C87="Diesel",CO2_Faktoren!G$3,CO2_Faktoren!G$5)) -> 
H88: =IF(G88="","",SUM(IF(E88=Entfernung_Güterbahnhöfe!$A$2:$A$100000,1,0)*IF(F88=Entfernung_Güterbahnhöfe!$B$2:$B$100000,1,0)*Entfernung_Güterbahnhöfe!$C$2:$C$100000)) ->  | I88: =IF(G88="","",INDEX(Energieverbrauch!$F$2:$F$55, MATCH( INDEX(Zugtypen!$A$2:$A$4, MATCH(A88,Zugtypen!$B$2:$B$4,0)) & INDEX(FahrttypenTopologie!$A$2:$A$4, MATCH(B88,FahrttypenTopologie!$B$2:$B$4,0)) & INDEX(Traktion!$A$2:$A$3, MATCH(C88,Traktion!$B$2:$B$3,0)) & INDEX(Ladungsart!$A$2:$A$4, MATCH(D88,Ladungsart!$B$2:$B$4,0)), Energieverbrauch!$E$2:$E$55, 0))) ->  | K88: =IF(G88="","",IF(C88="Diesel",J88/CO2_Faktoren!$B$8,J88)) ->  | L88: =IF(G88="","",$J88*IF($C88="Diesel",CO2_Faktoren!B$3,CO2_Faktoren!B$5)) ->  | M88: =IF(G88="","",$J88*IF($C88="Diesel",CO2_Faktoren!C$3,CO2_Faktoren!C$5)) ->  | N88: =IF(G88="","",$J88*IF($C88="Diesel",CO2_Faktoren!D$3,CO2_Faktoren!D$5)) ->  | O88: =IF(G88="","",$J88*IF($C88="Diesel",CO2_Faktoren!E$3,CO2_Faktoren!E$5)) ->  | P88: =IF(G88="","",$J88*IF($C88="Diesel",CO2_Faktoren!F$3,CO2_Faktoren!F$5)) ->  | Q88: =IF(G88="","",$J88*IF($C88="Diesel",CO2_Faktoren!G$3,CO2_Faktoren!G$5)) -> 
H89: =IF(G89="","",SUM(IF(E89=Entfernung_Güterbahnhöfe!$A$2:$A$100000,1,0)*IF(F89=Entfernung_Güterbahnhöfe!$B$2:$B$100000,1,0)*Entfernung_Güterbahnhöfe!$C$2:$C$100000)) ->  | I89: =IF(G89="","",INDEX(Energieverbrauch!$F$2:$F$55, MATCH( INDEX(Zugtypen!$A$2:$A$4, MATCH(A89,Zugtypen!$B$2:$B$4,0)) & INDEX(FahrttypenTopologie!$A$2:$A$4, MATCH(B89,FahrttypenTopologie!$B$2:$B$4,0)) & INDEX(Traktion!$A$2:$A$3, MATCH(C89,Traktion!$B$2:$B$3,0)) & INDEX(Ladungsart!$A$2:$A$4, MATCH(D89,Ladungsart!$B$2:$B$4,0)), Energieverbrauch!$E$2:$E$55, 0))) ->  | K89: =IF(G89="","",IF(C89="Diesel",J89/CO2_Faktoren!$B$8,J89)) ->  | L89: =IF(G89="","",$J89*IF($C89="Diesel",CO2_Faktoren!B$3,CO2_Faktoren!B$5)) ->  | M89: =IF(G89="","",$J89*IF($C89="Diesel",CO2_Faktoren!C$3,CO2_Faktoren!C$5)) ->  | N89: =IF(G89="","",$J89*IF($C89="Diesel",CO2_Faktoren!D$3,CO2_Faktoren!D$5)) ->  | O89: =IF(G89="","",$J89*IF($C89="Diesel",CO2_Faktoren!E$3,CO2_Faktoren!E$5)) ->  | P89: =IF(G89="","",$J89*IF($C89="Diesel",CO2_Faktoren!F$3,CO2_Faktoren!F$5)) ->  | Q89: =IF(G89="","",$J89*IF($C89="Diesel",CO2_Faktoren!G$3,CO2_Faktoren!G$5)) -> 
H90: =IF(G90="","",SUM(IF(E90=Entfernung_Güterbahnhöfe!$A$2:$A$100000,1,0)*IF(F90=Entfernung_Güterbahnhöfe!$B$2:$B$100000,1,0)*Entfernung_Güterbahnhöfe!$C$2:$C$100000)) ->  | I90: =IF(G90="","",INDEX(Energieverbrauch!$F$2:$F$55, MATCH( INDEX(Zugtypen!$A$2:$A$4, MATCH(A90,Zugtypen!$B$2:$B$4,0)) & INDEX(FahrttypenTopologie!$A$2:$A$4, MATCH(B90,FahrttypenTopologie!$B$2:$B$4,0)) & INDEX(Traktion!$A$2:$A$3, MATCH(C90,Traktion!$B$2:$B$3,0)) & INDEX(Ladungsart!$A$2:$A$4, MATCH(D90,Ladungsart!$B$2:$B$4,0)), Energieverbrauch!$E$2:$E$55, 0))) ->  | K90: =IF(G90="","",IF(C90="Diesel",J90/CO2_Faktoren!$B$8,J90)) ->  | L90: =IF(G90="","",$J90*IF($C90="Diesel",CO2_Faktoren!B$3,CO2_Faktoren!B$5)) ->  | M90: =IF(G90="","",$J90*IF($C90="Diesel",CO2_Faktoren!C$3,CO2_Faktoren!C$5)) ->  | N90: =IF(G90="","",$J90*IF($C90="Diesel",CO2_Faktoren!D$3,CO2_Faktoren!D$5)) ->  | O90: =IF(G90="","",$J90*IF($C90="Diesel",CO2_Faktoren!E$3,CO2_Faktoren!E$5)) ->  | P90: =IF(G90="","",$J90*IF($C90="Diesel",CO2_Faktoren!F$3,CO2_Faktoren!F$5)) ->  | Q90: =IF(G90="","",$J90*IF($C90="Diesel",CO2_Faktoren!G$3,CO2_Faktoren!G$5)) -> 
H91: =IF(G91="","",SUM(IF(E91=Entfernung_Güterbahnhöfe!$A$2:$A$100000,1,0)*IF(F91=Entfernung_Güterbahnhöfe!$B$2:$B$100000,1,0)*Entfernung_Güterbahnhöfe!$C$2:$C$100000)) ->  | I91: =IF(G91="","",INDEX(Energieverbrauch!$F$2:$F$55, MATCH( INDEX(Zugtypen!$A$2:$A$4, MATCH(A91,Zugtypen!$B$2:$B$4,0)) & INDEX(FahrttypenTopologie!$A$2:$A$4, MATCH(B91,FahrttypenTopologie!$B$2:$B$4,0)) & INDEX(Traktion!$A$2:$A$3, MATCH(C91,Traktion!$B$2:$B$3,0)) & INDEX(Ladungsart!$A$2:$A$4, MATCH(D91,Ladungsart!$B$2:$B$4,0)), Energieverbrauch!$E$2:$E$55, 0))) ->  | K91: =IF(G91="","",IF(C91="Diesel",J91/CO2_Faktoren!$B$8,J91)) ->  | L91: =IF(G91="","",$J91*IF($C91="Diesel",CO2_Faktoren!B$3,CO2_Faktoren!B$5)) ->  | M91: =IF(G91="","",$J91*IF($C91="Diesel",CO2_Faktoren!C$3,CO2_Faktoren!C$5)) ->  | N91: =IF(G91="","",$J91*IF($C91="Diesel",CO2_Faktoren!D$3,CO2_Faktoren!D$5)) ->  | O91: =IF(G91="","",$J91*IF($C91="Diesel",CO2_Faktoren!E$3,CO2_Faktoren!E$5)) ->  | P91: =IF(G91="","",$J91*IF($C91="Diesel",CO2_Faktoren!F$3,CO2_Faktoren!F$5)) ->  | Q91: =IF(G91="","",$J91*IF($C91="Diesel",CO2_Faktoren!G$3,CO2_Faktoren!G$5)) -> 
H92: =IF(G92="","",SUM(IF(E92=Entfernung_Güterbahnhöfe!$A$2:$A$100000,1,0)*IF(F92=Entfernung_Güterbahnhöfe!$B$2:$B$100000,1,0)*Entfernung_Güterbahnhöfe!$C$2:$C$100000)) ->  | I92: =IF(G92="","",INDEX(Energieverbrauch!$F$2:$F$55, MATCH( INDEX(Zugtypen!$A$2:$A$4, MATCH(A92,Zugtypen!$B$2:$B$4,0)) & INDEX(FahrttypenTopologie!$A$2:$A$4, MATCH(B92,FahrttypenTopologie!$B$2:$B$4,0)) & INDEX(Traktion!$A$2:$A$3, MATCH(C92,Traktion!$B$2:$B$3,0)) & INDEX(Ladungsart!$A$2:$A$4, MATCH(D92,Ladungsart!$B$2:$B$4,0)), Energieverbrauch!$E$2:$E$55, 0))) ->  | K92: =IF(G92="","",IF(C92="Diesel",J92/CO2_Faktoren!$B$8,J92)) ->  | L92: =IF(G92="","",$J92*IF($C92="Diesel",CO2_Faktoren!B$3,CO2_Faktoren!B$5)) ->  | M92: =IF(G92="","",$J92*IF($C92="Diesel",CO2_Faktoren!C$3,CO2_Faktoren!C$5)) ->  | N92: =IF(G92="","",$J92*IF($C92="Diesel",CO2_Faktoren!D$3,CO2_Faktoren!D$5)) ->  | O92: =IF(G92="","",$J92*IF($C92="Diesel",CO2_Faktoren!E$3,CO2_Faktoren!E$5)) ->  | P92: =IF(G92="","",$J92*IF($C92="Diesel",CO2_Faktoren!F$3,CO2_Faktoren!F$5)) ->  | Q92: =IF(G92="","",$J92*IF($C92="Diesel",CO2_Faktoren!G$3,CO2_Faktoren!G$5)) -> 
H93: =IF(G93="","",SUM(IF(E93=Entfernung_Güterbahnhöfe!$A$2:$A$100000,1,0)*IF(F93=Entfernung_Güterbahnhöfe!$B$2:$B$100000,1,0)*Entfernung_Güterbahnhöfe!$C$2:$C$100000)) ->  | I93: =IF(G93="","",INDEX(Energieverbrauch!$F$2:$F$55, MATCH( INDEX(Zugtypen!$A$2:$A$4, MATCH(A93,Zugtypen!$B$2:$B$4,0)) & INDEX(FahrttypenTopologie!$A$2:$A$4, MATCH(B93,FahrttypenTopologie!$B$2:$B$4,0)) & INDEX(Traktion!$A$2:$A$3, MATCH(C93,Traktion!$B$2:$B$3,0)) & INDEX(Ladungsart!$A$2:$A$4, MATCH(D93,Ladungsart!$B$2:$B$4,0)), Energieverbrauch!$E$2:$E$55, 0))) ->  | K93: =IF(G93="","",IF(C93="Diesel",J93/CO2_Faktoren!$B$8,J93)) ->  | L93: =IF(G93="","",$J93*IF($C93="Diesel",CO2_Faktoren!B$3,CO2_Faktoren!B$5)) ->  | M93: =IF(G93="","",$J93*IF($C93="Diesel",CO2_Faktoren!C$3,CO2_Faktoren!C$5)) ->  | N93: =IF(G93="","",$J93*IF($C93="Diesel",CO2_Faktoren!D$3,CO2_Faktoren!D$5)) ->  | O93: =IF(G93="","",$J93*IF($C93="Diesel",CO2_Faktoren!E$3,CO2_Faktoren!E$5)) ->  | P93: =IF(G93="","",$J93*IF($C93="Diesel",CO2_Faktoren!F$3,CO2_Faktoren!F$5)) ->  | Q93: =IF(G93="","",$J93*IF($C93="Diesel",CO2_Faktoren!G$3,CO2_Faktoren!G$5)) -> 
H94: =IF(G94="","",SUM(IF(E94=Entfernung_Güterbahnhöfe!$A$2:$A$100000,1,0)*IF(F94=Entfernung_Güterbahnhöfe!$B$2:$B$100000,1,0)*Entfernung_Güterbahnhöfe!$C$2:$C$100000)) ->  | I94: =IF(G94="","",INDEX(Energieverbrauch!$F$2:$F$55, MATCH( INDEX(Zugtypen!$A$2:$A$4, MATCH(A94,Zugtypen!$B$2:$B$4,0)) & INDEX(FahrttypenTopologie!$A$2:$A$4, MATCH(B94,FahrttypenTopologie!$B$2:$B$4,0)) & INDEX(Traktion!$A$2:$A$3, MATCH(C94,Traktion!$B$2:$B$3,0)) & INDEX(Ladungsart!$A$2:$A$4, MATCH(D94,Ladungsart!$B$2:$B$4,0)), Energieverbrauch!$E$2:$E$55, 0))) ->  | K94: =IF(G94="","",IF(C94="Diesel",J94/CO2_Faktoren!$B$8,J94)) ->  | L94: =IF(G94="","",$J94*IF($C94="Diesel",CO2_Faktoren!B$3,CO2_Faktoren!B$5)) ->  | M94: =IF(G94="","",$J94*IF($C94="Diesel",CO2_Faktoren!C$3,CO2_Faktoren!C$5)) ->  | N94: =IF(G94="","",$J94*IF($C94="Diesel",CO2_Faktoren!D$3,CO2_Faktoren!D$5)) ->  | O94: =IF(G94="","",$J94*IF($C94="Diesel",CO2_Faktoren!E$3,CO2_Faktoren!E$5)) ->  | P94: =IF(G94="","",$J94*IF($C94="Diesel",CO2_Faktoren!F$3,CO2_Faktoren!F$5)) ->  | Q94: =IF(G94="","",$J94*IF($C94="Diesel",CO2_Faktoren!G$3,CO2_Faktoren!G$5)) -> 
H95: =IF(G95="","",SUM(IF(E95=Entfernung_Güterbahnhöfe!$A$2:$A$100000,1,0)*IF(F95=Entfernung_Güterbahnhöfe!$B$2:$B$100000,1,0)*Entfernung_Güterbahnhöfe!$C$2:$C$100000)) ->  | I95: =IF(G95="","",INDEX(Energieverbrauch!$F$2:$F$55, MATCH( INDEX(Zugtypen!$A$2:$A$4, MATCH(A95,Zugtypen!$B$2:$B$4,0)) & INDEX(FahrttypenTopologie!$A$2:$A$4, MATCH(B95,FahrttypenTopologie!$B$2:$B$4,0)) & INDEX(Traktion!$A$2:$A$3, MATCH(C95,Traktion!$B$2:$B$3,0)) & INDEX(Ladungsart!$A$2:$A$4, MATCH(D95,Ladungsart!$B$2:$B$4,0)), Energieverbrauch!$E$2:$E$55, 0))) ->  | K95: =IF(G95="","",IF(C95="Diesel",J95/CO2_Faktoren!$B$8,J95)) ->  | L95: =IF(G95="","",$J95*IF($C95="Diesel",CO2_Faktoren!B$3,CO2_Faktoren!B$5)) ->  | M95: =IF(G95="","",$J95*IF($C95="Diesel",CO2_Faktoren!C$3,CO2_Faktoren!C$5)) ->  | N95: =IF(G95="","",$J95*IF($C95="Diesel",CO2_Faktoren!D$3,CO2_Faktoren!D$5)) ->  | O95: =IF(G95="","",$J95*IF($C95="Diesel",CO2_Faktoren!E$3,CO2_Faktoren!E$5)) ->  | P95: =IF(G95="","",$J95*IF($C95="Diesel",CO2_Faktoren!F$3,CO2_Faktoren!F$5)) ->  | Q95: =IF(G95="","",$J95*IF($C95="Diesel",CO2_Faktoren!G$3,CO2_Faktoren!G$5)) -> 
H96: =IF(G96="","",SUM(IF(E96=Entfernung_Güterbahnhöfe!$A$2:$A$100000,1,0)*IF(F96=Entfernung_Güterbahnhöfe!$B$2:$B$100000,1,0)*Entfernung_Güterbahnhöfe!$C$2:$C$100000)) ->  | I96: =IF(G96="","",INDEX(Energieverbrauch!$F$2:$F$55, MATCH( INDEX(Zugtypen!$A$2:$A$4, MATCH(A96,Zugtypen!$B$2:$B$4,0)) & INDEX(FahrttypenTopologie!$A$2:$A$4, MATCH(B96,FahrttypenTopologie!$B$2:$B$4,0)) & INDEX(Traktion!$A$2:$A$3, MATCH(C96,Traktion!$B$2:$B$3,0)) & INDEX(Ladungsart!$A$2:$A$4, MATCH(D96,Ladungsart!$B$2:$B$4,0)), Energieverbrauch!$E$2:$E$55, 0))) ->  | K96: =IF(G96="","",IF(C96="Diesel",J96/CO2_Faktoren!$B$8,J96)) ->  | L96: =IF(G96="","",$J96*IF($C96="Diesel",CO2_Faktoren!B$3,CO2_Faktoren!B$5)) ->  | M96: =IF(G96="","",$J96*IF($C96="Diesel",CO2_Faktoren!C$3,CO2_Faktoren!C$5)) ->  | N96: =IF(G96="","",$J96*IF($C96="Diesel",CO2_Faktoren!D$3,CO2_Faktoren!D$5)) ->  | O96: =IF(G96="","",$J96*IF($C96="Diesel",CO2_Faktoren!E$3,CO2_Faktoren!E$5)) ->  | P96: =IF(G96="","",$J96*IF($C96="Diesel",CO2_Faktoren!F$3,CO2_Faktoren!F$5)) ->  | Q96: =IF(G96="","",$J96*IF($C96="Diesel",CO2_Faktoren!G$3,CO2_Faktoren!G$5)) -> 
H97: =IF(G97="","",SUM(IF(E97=Entfernung_Güterbahnhöfe!$A$2:$A$100000,1,0)*IF(F97=Entfernung_Güterbahnhöfe!$B$2:$B$100000,1,0)*Entfernung_Güterbahnhöfe!$C$2:$C$100000)) ->  | I97: =IF(G97="","",INDEX(Energieverbrauch!$F$2:$F$55, MATCH( INDEX(Zugtypen!$A$2:$A$4, MATCH(A97,Zugtypen!$B$2:$B$4,0)) & INDEX(FahrttypenTopologie!$A$2:$A$4, MATCH(B97,FahrttypenTopologie!$B$2:$B$4,0)) & INDEX(Traktion!$A$2:$A$3, MATCH(C97,Traktion!$B$2:$B$3,0)) & INDEX(Ladungsart!$A$2:$A$4, MATCH(D97,Ladungsart!$B$2:$B$4,0)), Energieverbrauch!$E$2:$E$55, 0))) ->  | K97: =IF(G97="","",IF(C97="Diesel",J97/CO2_Faktoren!$B$8,J97)) ->  | L97: =IF(G97="","",$J97*IF($C97="Diesel",CO2_Faktoren!B$3,CO2_Faktoren!B$5)) ->  | M97: =IF(G97="","",$J97*IF($C97="Diesel",CO2_Faktoren!C$3,CO2_Faktoren!C$5)) ->  | N97: =IF(G97="","",$J97*IF($C97="Diesel",CO2_Faktoren!D$3,CO2_Faktoren!D$5)) ->  | O97: =IF(G97="","",$J97*IF($C97="Diesel",CO2_Faktoren!E$3,CO2_Faktoren!E$5)) ->  | P97: =IF(G97="","",$J97*IF($C97="Diesel",CO2_Faktoren!F$3,CO2_Faktoren!F$5)) ->  | Q97: =IF(G97="","",$J97*IF($C97="Diesel",CO2_Faktoren!G$3,CO2_Faktoren!G$5)) -> 
H98: =IF(G98="","",SUM(IF(E98=Entfernung_Güterbahnhöfe!$A$2:$A$100000,1,0)*IF(F98=Entfernung_Güterbahnhöfe!$B$2:$B$100000,1,0)*Entfernung_Güterbahnhöfe!$C$2:$C$100000)) ->  | I98: =IF(G98="","",INDEX(Energieverbrauch!$F$2:$F$55, MATCH( INDEX(Zugtypen!$A$2:$A$4, MATCH(A98,Zugtypen!$B$2:$B$4,0)) & INDEX(FahrttypenTopologie!$A$2:$A$4, MATCH(B98,FahrttypenTopologie!$B$2:$B$4,0)) & INDEX(Traktion!$A$2:$A$3, MATCH(C98,Traktion!$B$2:$B$3,0)) & INDEX(Ladungsart!$A$2:$A$4, MATCH(D98,Ladungsart!$B$2:$B$4,0)), Energieverbrauch!$E$2:$E$55, 0))) ->  | K98: =IF(G98="","",IF(C98="Diesel",J98/CO2_Faktoren!$B$8,J98)) ->  | L98: =IF(G98="","",$J98*IF($C98="Diesel",CO2_Faktoren!B$3,CO2_Faktoren!B$5)) ->  | M98: =IF(G98="","",$J98*IF($C98="Diesel",CO2_Faktoren!C$3,CO2_Faktoren!C$5)) ->  | N98: =IF(G98="","",$J98*IF($C98="Diesel",CO2_Faktoren!D$3,CO2_Faktoren!D$5)) ->  | O98: =IF(G98="","",$J98*IF($C98="Diesel",CO2_Faktoren!E$3,CO2_Faktoren!E$5)) ->  | P98: =IF(G98="","",$J98*IF($C98="Diesel",CO2_Faktoren!F$3,CO2_Faktoren!F$5)) ->  | Q98: =IF(G98="","",$J98*IF($C98="Diesel",CO2_Faktoren!G$3,CO2_Faktoren!G$5)) -> 
H99: =IF(G99="","",SUM(IF(E99=Entfernung_Güterbahnhöfe!$A$2:$A$100000,1,0)*IF(F99=Entfernung_Güterbahnhöfe!$B$2:$B$100000,1,0)*Entfernung_Güterbahnhöfe!$C$2:$C$100000)) ->  | I99: =IF(G99="","",INDEX(Energieverbrauch!$F$2:$F$55, MATCH( INDEX(Zugtypen!$A$2:$A$4, MATCH(A99,Zugtypen!$B$2:$B$4,0)) & INDEX(FahrttypenTopologie!$A$2:$A$4, MATCH(B99,FahrttypenTopologie!$B$2:$B$4,0)) & INDEX(Traktion!$A$2:$A$3, MATCH(C99,Traktion!$B$2:$B$3,0)) & INDEX(Ladungsart!$A$2:$A$4, MATCH(D99,Ladungsart!$B$2:$B$4,0)), Energieverbrauch!$E$2:$E$55, 0))) ->  | K99: =IF(G99="","",IF(C99="Diesel",J99/CO2_Faktoren!$B$8,J99)) ->  | L99: =IF(G99="","",$J99*IF($C99="Diesel",CO2_Faktoren!B$3,CO2_Faktoren!B$5)) ->  | M99: =IF(G99="","",$J99*IF($C99="Diesel",CO2_Faktoren!C$3,CO2_Faktoren!C$5)) ->  | N99: =IF(G99="","",$J99*IF($C99="Diesel",CO2_Faktoren!D$3,CO2_Faktoren!D$5)) ->  | O99: =IF(G99="","",$J99*IF($C99="Diesel",CO2_Faktoren!E$3,CO2_Faktoren!E$5)) ->  | P99: =IF(G99="","",$J99*IF($C99="Diesel",CO2_Faktoren!F$3,CO2_Faktoren!F$5)) ->  | Q99: =IF(G99="","",$J99*IF($C99="Diesel",CO2_Faktoren!G$3,CO2_Faktoren!G$5)) -> 
H100: =IF(G100="","",SUM(IF(E100=Entfernung_Güterbahnhöfe!$A$2:$A$100000,1,0)*IF(F100=Entfernung_Güterbahnhöfe!$B$2:$B$100000,1,0)*Entfernung_Güterbahnhöfe!$C$2:$C$100000)) ->  | I100: =IF(G100="","",INDEX(Energieverbrauch!$F$2:$F$55, MATCH( INDEX(Zugtypen!$A$2:$A$4, MATCH(A100,Zugtypen!$B$2:$B$4,0)) & INDEX(FahrttypenTopologie!$A$2:$A$4, MATCH(B100,FahrttypenTopologie!$B$2:$B$4,0)) & INDEX(Traktion!$A$2:$A$3, MATCH(C100,Traktion!$B$2:$B$3,0)) & INDEX(Ladungsart!$A$2:$A$4, MATCH(D100,Ladungsart!$B$2:$B$4,0)), Energieverbrauch!$E$2:$E$55, 0))) ->  | K100: =IF(G100="","",IF(C100="Diesel",J100/CO2_Faktoren!$B$8,J100)) ->  | L100: =IF(G100="","",$J100*IF($C100="Diesel",CO2_Faktoren!B$3,CO2_Faktoren!B$5)) ->  | M100: =IF(G100="","",$J100*IF($C100="Diesel",CO2_Faktoren!C$3,CO2_Faktoren!C$5)) ->  | N100: =IF(G100="","",$J100*IF($C100="Diesel",CO2_Faktoren!D$3,CO2_Faktoren!D$5)) ->  | O100: =IF(G100="","",$J100*IF($C100="Diesel",CO2_Faktoren!E$3,CO2_Faktoren!E$5)) ->  | P100: =IF(G100="","",$J100*IF($C100="Diesel",CO2_Faktoren!F$3,CO2_Faktoren!F$5)) ->  | Q100: =IF(G100="","",$J100*IF($C100="Diesel",CO2_Faktoren!G$3,CO2_Faktoren!G$5)) -> 
H101: =IF(G101="","",SUM(IF(E101=Entfernung_Güterbahnhöfe!$A$2:$A$100000,1,0)*IF(F101=Entfernung_Güterbahnhöfe!$B$2:$B$100000,1,0)*Entfernung_Güterbahnhöfe!$C$2:$C$100000)) ->  | I101: =IF(G101="","",INDEX(Energieverbrauch!$F$2:$F$55, MATCH( INDEX(Zugtypen!$A$2:$A$4, MATCH(A101,Zugtypen!$B$2:$B$4,0)) & INDEX(FahrttypenTopologie!$A$2:$A$4, MATCH(B101,FahrttypenTopologie!$B$2:$B$4,0)) & INDEX(Traktion!$A$2:$A$3, MATCH(C101,Traktion!$B$2:$B$3,0)) & INDEX(Ladungsart!$A$2:$A$4, MATCH(D101,Ladungsart!$B$2:$B$4,0)), Energieverbrauch!$E$2:$E$55, 0))) ->  | K101: =IF(G101="","",IF(C101="Diesel",J101/CO2_Faktoren!$B$8,J101)) ->  | L101: =IF(G101="","",$J101*IF($C101="Diesel",CO2_Faktoren!B$3,CO2_Faktoren!B$5)) ->  | M101: =IF(G101="","",$J101*IF($C101="Diesel",CO2_Faktoren!C$3,CO2_Faktoren!C$5)) ->  | N101: =IF(G101="","",$J101*IF($C101="Diesel",CO2_Faktoren!D$3,CO2_Faktoren!D$5)) ->  | O101: =IF(G101="","",$J101*IF($C101="Diesel",CO2_Faktoren!E$3,CO2_Faktoren!E$5)) ->  | P101: =IF(G101="","",$J101*IF($C101="Diesel",CO2_Faktoren!F$3,CO2_Faktoren!F$5)) ->  | Q101: =IF(G101="","",$J101*IF($C101="Diesel",CO2_Faktoren!G$3,CO2_Faktoren!G$5)) -> 
H102: =IF(G102="","",SUM(IF(E102=Entfernung_Güterbahnhöfe!$A$2:$A$100000,1,0)*IF(F102=Entfernung_Güterbahnhöfe!$B$2:$B$100000,1,0)*Entfernung_Güterbahnhöfe!$C$2:$C$100000)) ->  | I102: =IF(G102="","",INDEX(Energieverbrauch!$F$2:$F$55, MATCH( INDEX(Zugtypen!$A$2:$A$4, MATCH(A102,Zugtypen!$B$2:$B$4,0)) & INDEX(FahrttypenTopologie!$A$2:$A$4, MATCH(B102,FahrttypenTopologie!$B$2:$B$4,0)) & INDEX(Traktion!$A$2:$A$3, MATCH(C102,Traktion!$B$2:$B$3,0)) & INDEX(Ladungsart!$A$2:$A$4, MATCH(D102,Ladungsart!$B$2:$B$4,0)), Energieverbrauch!$E$2:$E$55, 0))) ->  | K102: =IF(G102="","",IF(C102="Diesel",J102/CO2_Faktoren!$B$8,J102)) ->  | L102: =IF(G102="","",$J102*IF($C102="Diesel",CO2_Faktoren!B$3,CO2_Faktoren!B$5)) ->  | M102: =IF(G102="","",$J102*IF($C102="Diesel",CO2_Faktoren!C$3,CO2_Faktoren!C$5)) ->  | N102: =IF(G102="","",$J102*IF($C102="Diesel",CO2_Faktoren!D$3,CO2_Faktoren!D$5)) ->  | O102: =IF(G102="","",$J102*IF($C102="Diesel",CO2_Faktoren!E$3,CO2_Faktoren!E$5)) ->  | P102: =IF(G102="","",$J102*IF($C102="Diesel",CO2_Faktoren!F$3,CO2_Faktoren!F$5)) ->  | Q102: =IF(G102="","",$J102*IF($C102="Diesel",CO2_Faktoren!G$3,CO2_Faktoren!G$5)) -> 
H103: =IF(G103="","",SUM(IF(E103=Entfernung_Güterbahnhöfe!$A$2:$A$100000,1,0)*IF(F103=Entfernung_Güterbahnhöfe!$B$2:$B$100000,1,0)*Entfernung_Güterbahnhöfe!$C$2:$C$100000)) ->  | I103: =IF(G103="","",INDEX(Energieverbrauch!$F$2:$F$55, MATCH( INDEX(Zugtypen!$A$2:$A$4, MATCH(A103,Zugtypen!$B$2:$B$4,0)) & INDEX(FahrttypenTopologie!$A$2:$A$4, MATCH(B103,FahrttypenTopologie!$B$2:$B$4,0)) & INDEX(Traktion!$A$2:$A$3, MATCH(C103,Traktion!$B$2:$B$3,0)) & INDEX(Ladungsart!$A$2:$A$4, MATCH(D103,Ladungsart!$B$2:$B$4,0)), Energieverbrauch!$E$2:$E$55, 0))) ->  | K103: =IF(G103="","",IF(C103="Diesel",J103/CO2_Faktoren!$B$8,J103)) ->  | L103: =IF(G103="","",$J103*IF($C103="Diesel",CO2_Faktoren!B$3,CO2_Faktoren!B$5)) ->  | M103: =IF(G103="","",$J103*IF($C103="Diesel",CO2_Faktoren!C$3,CO2_Faktoren!C$5)) ->  | N103: =IF(G103="","",$J103*IF($C103="Diesel",CO2_Faktoren!D$3,CO2_Faktoren!D$5)) ->  | O103: =IF(G103="","",$J103*IF($C103="Diesel",CO2_Faktoren!E$3,CO2_Faktoren!E$5)) ->  | P103: =IF(G103="","",$J103*IF($C103="Diesel",CO2_Faktoren!F$3,CO2_Faktoren!F$5)) ->  | Q103: =IF(G103="","",$J103*IF($C103="Diesel",CO2_Faktoren!G$3,CO2_Faktoren!G$5)) -> 
H104: =IF(G104="","",SUM(IF(E104=Entfernung_Güterbahnhöfe!$A$2:$A$100000,1,0)*IF(F104=Entfernung_Güterbahnhöfe!$B$2:$B$100000,1,0)*Entfernung_Güterbahnhöfe!$C$2:$C$100000)) ->  | I104: =IF(G104="","",INDEX(Energieverbrauch!$F$2:$F$55, MATCH( INDEX(Zugtypen!$A$2:$A$4, MATCH(A104,Zugtypen!$B$2:$B$4,0)) & INDEX(FahrttypenTopologie!$A$2:$A$4, MATCH(B104,FahrttypenTopologie!$B$2:$B$4,0)) & INDEX(Traktion!$A$2:$A$3, MATCH(C104,Traktion!$B$2:$B$3,0)) & INDEX(Ladungsart!$A$2:$A$4, MATCH(D104,Ladungsart!$B$2:$B$4,0)), Energieverbrauch!$E$2:$E$55, 0))) ->  | K104: =IF(G104="","",IF(C104="Diesel",J104/CO2_Faktoren!$B$8,J104)) ->  | L104: =IF(G104="","",$J104*IF($C104="Diesel",CO2_Faktoren!B$3,CO2_Faktoren!B$5)) ->  | M104: =IF(G104="","",$J104*IF($C104="Diesel",CO2_Faktoren!C$3,CO2_Faktoren!C$5)) ->  | N104: =IF(G104="","",$J104*IF($C104="Diesel",CO2_Faktoren!D$3,CO2_Faktoren!D$5)) ->  | O104: =IF(G104="","",$J104*IF($C104="Diesel",CO2_Faktoren!E$3,CO2_Faktoren!E$5)) ->  | P104: =IF(G104="","",$J104*IF($C104="Diesel",CO2_Faktoren!F$3,CO2_Faktoren!F$5)) ->  | Q104: =IF(G104="","",$J104*IF($C104="Diesel",CO2_Faktoren!G$3,CO2_Faktoren!G$5)) -> 
H105: =IF(G105="","",SUM(IF(E105=Entfernung_Güterbahnhöfe!$A$2:$A$100000,1,0)*IF(F105=Entfernung_Güterbahnhöfe!$B$2:$B$100000,1,0)*Entfernung_Güterbahnhöfe!$C$2:$C$100000)) ->  | I105: =IF(G105="","",INDEX(Energieverbrauch!$F$2:$F$55, MATCH( INDEX(Zugtypen!$A$2:$A$4, MATCH(A105,Zugtypen!$B$2:$B$4,0)) & INDEX(FahrttypenTopologie!$A$2:$A$4, MATCH(B105,FahrttypenTopologie!$B$2:$B$4,0)) & INDEX(Traktion!$A$2:$A$3, MATCH(C105,Traktion!$B$2:$B$3,0)) & INDEX(Ladungsart!$A$2:$A$4, MATCH(D105,Ladungsart!$B$2:$B$4,0)), Energieverbrauch!$E$2:$E$55, 0))) ->  | K105: =IF(G105="","",IF(C105="Diesel",J105/CO2_Faktoren!$B$8,J105)) ->  | L105: =IF(G105="","",$J105*IF($C105="Diesel",CO2_Faktoren!B$3,CO2_Faktoren!B$5)) ->  | M105: =IF(G105="","",$J105*IF($C105="Diesel",CO2_Faktoren!C$3,CO2_Faktoren!C$5)) ->  | N105: =IF(G105="","",$J105*IF($C105="Diesel",CO2_Faktoren!D$3,CO2_Faktoren!D$5)) ->  | O105: =IF(G105="","",$J105*IF($C105="Diesel",CO2_Faktoren!E$3,CO2_Faktoren!E$5)) ->  | P105: =IF(G105="","",$J105*IF($C105="Diesel",CO2_Faktoren!F$3,CO2_Faktoren!F$5)) ->  | Q105: =IF(G105="","",$J105*IF($C105="Diesel",CO2_Faktoren!G$3,CO2_Faktoren!G$5)) -> 
H106: =IF(G106="","",SUM(IF(E106=Entfernung_Güterbahnhöfe!$A$2:$A$100000,1,0)*IF(F106=Entfernung_Güterbahnhöfe!$B$2:$B$100000,1,0)*Entfernung_Güterbahnhöfe!$C$2:$C$100000)) ->  | I106: =IF(G106="","",INDEX(Energieverbrauch!$F$2:$F$55, MATCH( INDEX(Zugtypen!$A$2:$A$4, MATCH(A106,Zugtypen!$B$2:$B$4,0)) & INDEX(FahrttypenTopologie!$A$2:$A$4, MATCH(B106,FahrttypenTopologie!$B$2:$B$4,0)) & INDEX(Traktion!$A$2:$A$3, MATCH(C106,Traktion!$B$2:$B$3,0)) & INDEX(Ladungsart!$A$2:$A$4, MATCH(D106,Ladungsart!$B$2:$B$4,0)), Energieverbrauch!$E$2:$E$55, 0))) ->  | K106: =IF(G106="","",IF(C106="Diesel",J106/CO2_Faktoren!$B$8,J106)) ->  | L106: =IF(G106="","",$J106*IF($C106="Diesel",CO2_Faktoren!B$3,CO2_Faktoren!B$5)) ->  | M106: =IF(G106="","",$J106*IF($C106="Diesel",CO2_Faktoren!C$3,CO2_Faktoren!C$5)) ->  | N106: =IF(G106="","",$J106*IF($C106="Diesel",CO2_Faktoren!D$3,CO2_Faktoren!D$5)) ->  | O106: =IF(G106="","",$J106*IF($C106="Diesel",CO2_Faktoren!E$3,CO2_Faktoren!E$5)) ->  | P106: =IF(G106="","",$J106*IF($C106="Diesel",CO2_Faktoren!F$3,CO2_Faktoren!F$5)) ->  | Q106: =IF(G106="","",$J106*IF($C106="Diesel",CO2_Faktoren!G$3,CO2_Faktoren!G$5)) -> 
H107: =IF(G107="","",SUM(IF(E107=Entfernung_Güterbahnhöfe!$A$2:$A$100000,1,0)*IF(F107=Entfernung_Güterbahnhöfe!$B$2:$B$100000,1,0)*Entfernung_Güterbahnhöfe!$C$2:$C$100000)) ->  | I107: =IF(G107="","",INDEX(Energieverbrauch!$F$2:$F$55, MATCH( INDEX(Zugtypen!$A$2:$A$4, MATCH(A107,Zugtypen!$B$2:$B$4,0)) & INDEX(FahrttypenTopologie!$A$2:$A$4, MATCH(B107,FahrttypenTopologie!$B$2:$B$4,0)) & INDEX(Traktion!$A$2:$A$3, MATCH(C107,Traktion!$B$2:$B$3,0)) & INDEX(Ladungsart!$A$2:$A$4, MATCH(D107,Ladungsart!$B$2:$B$4,0)), Energieverbrauch!$E$2:$E$55, 0))) ->  | K107: =IF(G107="","",IF(C107="Diesel",J107/CO2_Faktoren!$B$8,J107)) ->  | L107: =IF(G107="","",$J107*IF($C107="Diesel",CO2_Faktoren!B$3,CO2_Faktoren!B$5)) ->  | M107: =IF(G107="","",$J107*IF($C107="Diesel",CO2_Faktoren!C$3,CO2_Faktoren!C$5)) ->  | N107: =IF(G107="","",$J107*IF($C107="Diesel",CO2_Faktoren!D$3,CO2_Faktoren!D$5)) ->  | O107: =IF(G107="","",$J107*IF($C107="Diesel",CO2_Faktoren!E$3,CO2_Faktoren!E$5)) ->  | P107: =IF(G107="","",$J107*IF($C107="Diesel",CO2_Faktoren!F$3,CO2_Faktoren!F$5)) ->  | Q107: =IF(G107="","",$J107*IF($C107="Diesel",CO2_Faktoren!G$3,CO2_Faktoren!G$5)) -> 
H108: =IF(G108="","",SUM(IF(E108=Entfernung_Güterbahnhöfe!$A$2:$A$100000,1,0)*IF(F108=Entfernung_Güterbahnhöfe!$B$2:$B$100000,1,0)*Entfernung_Güterbahnhöfe!$C$2:$C$100000)) ->  | I108: =IF(G108="","",INDEX(Energieverbrauch!$F$2:$F$55, MATCH( INDEX(Zugtypen!$A$2:$A$4, MATCH(A108,Zugtypen!$B$2:$B$4,0)) & INDEX(FahrttypenTopologie!$A$2:$A$4, MATCH(B108,FahrttypenTopologie!$B$2:$B$4,0)) & INDEX(Traktion!$A$2:$A$3, MATCH(C108,Traktion!$B$2:$B$3,0)) & INDEX(Ladungsart!$A$2:$A$4, MATCH(D108,Ladungsart!$B$2:$B$4,0)), Energieverbrauch!$E$2:$E$55, 0))) ->  | K108: =IF(G108="","",IF(C108="Diesel",J108/CO2_Faktoren!$B$8,J108)) ->  | L108: =IF(G108="","",$J108*IF($C108="Diesel",CO2_Faktoren!B$3,CO2_Faktoren!B$5)) ->  | M108: =IF(G108="","",$J108*IF($C108="Diesel",CO2_Faktoren!C$3,CO2_Faktoren!C$5)) ->  | N108: =IF(G108="","",$J108*IF($C108="Diesel",CO2_Faktoren!D$3,CO2_Faktoren!D$5)) ->  | O108: =IF(G108="","",$J108*IF($C108="Diesel",CO2_Faktoren!E$3,CO2_Faktoren!E$5)) ->  | P108: =IF(G108="","",$J108*IF($C108="Diesel",CO2_Faktoren!F$3,CO2_Faktoren!F$5)) ->  | Q108: =IF(G108="","",$J108*IF($C108="Diesel",CO2_Faktoren!G$3,CO2_Faktoren!G$5)) -> 
H109: =IF(G109="","",SUM(IF(E109=Entfernung_Güterbahnhöfe!$A$2:$A$100000,1,0)*IF(F109=Entfernung_Güterbahnhöfe!$B$2:$B$100000,1,0)*Entfernung_Güterbahnhöfe!$C$2:$C$100000)) ->  | I109: =IF(G109="","",INDEX(Energieverbrauch!$F$2:$F$55, MATCH( INDEX(Zugtypen!$A$2:$A$4, MATCH(A109,Zugtypen!$B$2:$B$4,0)) & INDEX(FahrttypenTopologie!$A$2:$A$4, MATCH(B109,FahrttypenTopologie!$B$2:$B$4,0)) & INDEX(Traktion!$A$2:$A$3, MATCH(C109,Traktion!$B$2:$B$3,0)) & INDEX(Ladungsart!$A$2:$A$4, MATCH(D109,Ladungsart!$B$2:$B$4,0)), Energieverbrauch!$E$2:$E$55, 0))) ->  | K109: =IF(G109="","",IF(C109="Diesel",J109/CO2_Faktoren!$B$8,J109)) ->  | L109: =IF(G109="","",$J109*IF($C109="Diesel",CO2_Faktoren!B$3,CO2_Faktoren!B$5)) ->  | M109: =IF(G109="","",$J109*IF($C109="Diesel",CO2_Faktoren!C$3,CO2_Faktoren!C$5)) ->  | N109: =IF(G109="","",$J109*IF($C109="Diesel",CO2_Faktoren!D$3,CO2_Faktoren!D$5)) ->  | O109: =IF(G109="","",$J109*IF($C109="Diesel",CO2_Faktoren!E$3,CO2_Faktoren!E$5)) ->  | P109: =IF(G109="","",$J109*IF($C109="Diesel",CO2_Faktoren!F$3,CO2_Faktoren!F$5)) ->  | Q109: =IF(G109="","",$J109*IF($C109="Diesel",CO2_Faktoren!G$3,CO2_Faktoren!G$5)) -> 
H110: =IF(G110="","",SUM(IF(E110=Entfernung_Güterbahnhöfe!$A$2:$A$100000,1,0)*IF(F110=Entfernung_Güterbahnhöfe!$B$2:$B$100000,1,0)*Entfernung_Güterbahnhöfe!$C$2:$C$100000)) ->  | I110: =IF(G110="","",INDEX(Energieverbrauch!$F$2:$F$55, MATCH( INDEX(Zugtypen!$A$2:$A$4, MATCH(A110,Zugtypen!$B$2:$B$4,0)) & INDEX(FahrttypenTopologie!$A$2:$A$4, MATCH(B110,FahrttypenTopologie!$B$2:$B$4,0)) & INDEX(Traktion!$A$2:$A$3, MATCH(C110,Traktion!$B$2:$B$3,0)) & INDEX(Ladungsart!$A$2:$A$4, MATCH(D110,Ladungsart!$B$2:$B$4,0)), Energieverbrauch!$E$2:$E$55, 0))) ->  | K110: =IF(G110="","",IF(C110="Diesel",J110/CO2_Faktoren!$B$8,J110)) ->  | L110: =IF(G110="","",$J110*IF($C110="Diesel",CO2_Faktoren!B$3,CO2_Faktoren!B$5)) ->  | M110: =IF(G110="","",$J110*IF($C110="Diesel",CO2_Faktoren!C$3,CO2_Faktoren!C$5)) ->  | N110: =IF(G110="","",$J110*IF($C110="Diesel",CO2_Faktoren!D$3,CO2_Faktoren!D$5)) ->  | O110: =IF(G110="","",$J110*IF($C110="Diesel",CO2_Faktoren!E$3,CO2_Faktoren!E$5)) ->  | P110: =IF(G110="","",$J110*IF($C110="Diesel",CO2_Faktoren!F$3,CO2_Faktoren!F$5)) ->  | Q110: =IF(G110="","",$J110*IF($C110="Diesel",CO2_Faktoren!G$3,CO2_Faktoren!G$5)) -> 
H111: =IF(G111="","",SUM(IF(E111=Entfernung_Güterbahnhöfe!$A$2:$A$100000,1,0)*IF(F111=Entfernung_Güterbahnhöfe!$B$2:$B$100000,1,0)*Entfernung_Güterbahnhöfe!$C$2:$C$100000)) ->  | I111: =IF(G111="","",INDEX(Energieverbrauch!$F$2:$F$55, MATCH( INDEX(Zugtypen!$A$2:$A$4, MATCH(A111,Zugtypen!$B$2:$B$4,0)) & INDEX(FahrttypenTopologie!$A$2:$A$4, MATCH(B111,FahrttypenTopologie!$B$2:$B$4,0)) & INDEX(Traktion!$A$2:$A$3, MATCH(C111,Traktion!$B$2:$B$3,0)) & INDEX(Ladungsart!$A$2:$A$4, MATCH(D111,Ladungsart!$B$2:$B$4,0)), Energieverbrauch!$E$2:$E$55, 0))) ->  | K111: =IF(G111="","",IF(C111="Diesel",J111/CO2_Faktoren!$B$8,J111)) ->  | L111: =IF(G111="","",$J111*IF($C111="Diesel",CO2_Faktoren!B$3,CO2_Faktoren!B$5)) ->  | M111: =IF(G111="","",$J111*IF($C111="Diesel",CO2_Faktoren!C$3,CO2_Faktoren!C$5)) ->  | N111: =IF(G111="","",$J111*IF($C111="Diesel",CO2_Faktoren!D$3,CO2_Faktoren!D$5)) ->  | O111: =IF(G111="","",$J111*IF($C111="Diesel",CO2_Faktoren!E$3,CO2_Faktoren!E$5)) ->  | P111: =IF(G111="","",$J111*IF($C111="Diesel",CO2_Faktoren!F$3,CO2_Faktoren!F$5)) ->  | Q111: =IF(G111="","",$J111*IF($C111="Diesel",CO2_Faktoren!G$3,CO2_Faktoren!G$5)) -> 
H112: =IF(G112="","",SUM(IF(E112=Entfernung_Güterbahnhöfe!$A$2:$A$100000,1,0)*IF(F112=Entfernung_Güterbahnhöfe!$B$2:$B$100000,1,0)*Entfernung_Güterbahnhöfe!$C$2:$C$100000)) ->  | I112: =IF(G112="","",INDEX(Energieverbrauch!$F$2:$F$55, MATCH( INDEX(Zugtypen!$A$2:$A$4, MATCH(A112,Zugtypen!$B$2:$B$4,0)) & INDEX(FahrttypenTopologie!$A$2:$A$4, MATCH(B112,FahrttypenTopologie!$B$2:$B$4,0)) & INDEX(Traktion!$A$2:$A$3, MATCH(C112,Traktion!$B$2:$B$3,0)) & INDEX(Ladungsart!$A$2:$A$4, MATCH(D112,Ladungsart!$B$2:$B$4,0)), Energieverbrauch!$E$2:$E$55, 0))) ->  | K112: =IF(G112="","",IF(C112="Diesel",J112/CO2_Faktoren!$B$8,J112)) ->  | L112: =IF(G112="","",$J112*IF($C112="Diesel",CO2_Faktoren!B$3,CO2_Faktoren!B$5)) ->  | M112: =IF(G112="","",$J112*IF($C112="Diesel",CO2_Faktoren!C$3,CO2_Faktoren!C$5)) ->  | N112: =IF(G112="","",$J112*IF($C112="Diesel",CO2_Faktoren!D$3,CO2_Faktoren!D$5)) ->  | O112: =IF(G112="","",$J112*IF($C112="Diesel",CO2_Faktoren!E$3,CO2_Faktoren!E$5)) ->  | P112: =IF(G112="","",$J112*IF($C112="Diesel",CO2_Faktoren!F$3,CO2_Faktoren!F$5)) ->  | Q112: =IF(G112="","",$J112*IF($C112="Diesel",CO2_Faktoren!G$3,CO2_Faktoren!G$5)) -> 
H113: =IF(G113="","",SUM(IF(E113=Entfernung_Güterbahnhöfe!$A$2:$A$100000,1,0)*IF(F113=Entfernung_Güterbahnhöfe!$B$2:$B$100000,1,0)*Entfernung_Güterbahnhöfe!$C$2:$C$100000)) ->  | I113: =IF(G113="","",INDEX(Energieverbrauch!$F$2:$F$55, MATCH( INDEX(Zugtypen!$A$2:$A$4, MATCH(A113,Zugtypen!$B$2:$B$4,0)) & INDEX(FahrttypenTopologie!$A$2:$A$4, MATCH(B113,FahrttypenTopologie!$B$2:$B$4,0)) & INDEX(Traktion!$A$2:$A$3, MATCH(C113,Traktion!$B$2:$B$3,0)) & INDEX(Ladungsart!$A$2:$A$4, MATCH(D113,Ladungsart!$B$2:$B$4,0)), Energieverbrauch!$E$2:$E$55, 0))) ->  | K113: =IF(G113="","",IF(C113="Diesel",J113/CO2_Faktoren!$B$8,J113)) ->  | L113: =IF(G113="","",$J113*IF($C113="Diesel",CO2_Faktoren!B$3,CO2_Faktoren!B$5)) ->  | M113: =IF(G113="","",$J113*IF($C113="Diesel",CO2_Faktoren!C$3,CO2_Faktoren!C$5)) ->  | N113: =IF(G113="","",$J113*IF($C113="Diesel",CO2_Faktoren!D$3,CO2_Faktoren!D$5)) ->  | O113: =IF(G113="","",$J113*IF($C113="Diesel",CO2_Faktoren!E$3,CO2_Faktoren!E$5)) ->  | P113: =IF(G113="","",$J113*IF($C113="Diesel",CO2_Faktoren!F$3,CO2_Faktoren!F$5)) ->  | Q113: =IF(G113="","",$J113*IF($C113="Diesel",CO2_Faktoren!G$3,CO2_Faktoren!G$5)) -> 
H114: =IF(G114="","",SUM(IF(E114=Entfernung_Güterbahnhöfe!$A$2:$A$100000,1,0)*IF(F114=Entfernung_Güterbahnhöfe!$B$2:$B$100000,1,0)*Entfernung_Güterbahnhöfe!$C$2:$C$100000)) ->  | I114: =IF(G114="","",INDEX(Energieverbrauch!$F$2:$F$55, MATCH( INDEX(Zugtypen!$A$2:$A$4, MATCH(A114,Zugtypen!$B$2:$B$4,0)) & INDEX(FahrttypenTopologie!$A$2:$A$4, MATCH(B114,FahrttypenTopologie!$B$2:$B$4,0)) & INDEX(Traktion!$A$2:$A$3, MATCH(C114,Traktion!$B$2:$B$3,0)) & INDEX(Ladungsart!$A$2:$A$4, MATCH(D114,Ladungsart!$B$2:$B$4,0)), Energieverbrauch!$E$2:$E$55, 0))) ->  | K114: =IF(G114="","",IF(C114="Diesel",J114/CO2_Faktoren!$B$8,J114)) ->  | L114: =IF(G114="","",$J114*IF($C114="Diesel",CO2_Faktoren!B$3,CO2_Faktoren!B$5)) ->  | M114: =IF(G114="","",$J114*IF($C114="Diesel",CO2_Faktoren!C$3,CO2_Faktoren!C$5)) ->  | N114: =IF(G114="","",$J114*IF($C114="Diesel",CO2_Faktoren!D$3,CO2_Faktoren!D$5)) ->  | O114: =IF(G114="","",$J114*IF($C114="Diesel",CO2_Faktoren!E$3,CO2_Faktoren!E$5)) ->  | P114: =IF(G114="","",$J114*IF($C114="Diesel",CO2_Faktoren!F$3,CO2_Faktoren!F$5)) ->  | Q114: =IF(G114="","",$J114*IF($C114="Diesel",CO2_Faktoren!G$3,CO2_Faktoren!G$5)) -> 
H115: =IF(G115="","",SUM(IF(E115=Entfernung_Güterbahnhöfe!$A$2:$A$100000,1,0)*IF(F115=Entfernung_Güterbahnhöfe!$B$2:$B$100000,1,0)*Entfernung_Güterbahnhöfe!$C$2:$C$100000)) ->  | I115: =IF(G115="","",INDEX(Energieverbrauch!$F$2:$F$55, MATCH( INDEX(Zugtypen!$A$2:$A$4, MATCH(A115,Zugtypen!$B$2:$B$4,0)) & INDEX(FahrttypenTopologie!$A$2:$A$4, MATCH(B115,FahrttypenTopologie!$B$2:$B$4,0)) & INDEX(Traktion!$A$2:$A$3, MATCH(C115,Traktion!$B$2:$B$3,0)) & INDEX(Ladungsart!$A$2:$A$4, MATCH(D115,Ladungsart!$B$2:$B$4,0)), Energieverbrauch!$E$2:$E$55, 0))) ->  | K115: =IF(G115="","",IF(C115="Diesel",J115/CO2_Faktoren!$B$8,J115)) ->  | L115: =IF(G115="","",$J115*IF($C115="Diesel",CO2_Faktoren!B$3,CO2_Faktoren!B$5)) ->  | M115: =IF(G115="","",$J115*IF($C115="Diesel",CO2_Faktoren!C$3,CO2_Faktoren!C$5)) ->  | N115: =IF(G115="","",$J115*IF($C115="Diesel",CO2_Faktoren!D$3,CO2_Faktoren!D$5)) ->  | O115: =IF(G115="","",$J115*IF($C115="Diesel",CO2_Faktoren!E$3,CO2_Faktoren!E$5)) ->  | P115: =IF(G115="","",$J115*IF($C115="Diesel",CO2_Faktoren!F$3,CO2_Faktoren!F$5)) ->  | Q115: =IF(G115="","",$J115*IF($C115="Diesel",CO2_Faktoren!G$3,CO2_Faktoren!G$5)) -> 
H116: =IF(G116="","",SUM(IF(E116=Entfernung_Güterbahnhöfe!$A$2:$A$100000,1,0)*IF(F116=Entfernung_Güterbahnhöfe!$B$2:$B$100000,1,0)*Entfernung_Güterbahnhöfe!$C$2:$C$100000)) ->  | I116: =IF(G116="","",INDEX(Energieverbrauch!$F$2:$F$55, MATCH( INDEX(Zugtypen!$A$2:$A$4, MATCH(A116,Zugtypen!$B$2:$B$4,0)) & INDEX(FahrttypenTopologie!$A$2:$A$4, MATCH(B116,FahrttypenTopologie!$B$2:$B$4,0)) & INDEX(Traktion!$A$2:$A$3, MATCH(C116,Traktion!$B$2:$B$3,0)) & INDEX(Ladungsart!$A$2:$A$4, MATCH(D116,Ladungsart!$B$2:$B$4,0)), Energieverbrauch!$E$2:$E$55, 0))) ->  | K116: =IF(G116="","",IF(C116="Diesel",J116/CO2_Faktoren!$B$8,J116)) ->  | L116: =IF(G116="","",$J116*IF($C116="Diesel",CO2_Faktoren!B$3,CO2_Faktoren!B$5)) ->  | M116: =IF(G116="","",$J116*IF($C116="Diesel",CO2_Faktoren!C$3,CO2_Faktoren!C$5)) ->  | N116: =IF(G116="","",$J116*IF($C116="Diesel",CO2_Faktoren!D$3,CO2_Faktoren!D$5)) ->  | O116: =IF(G116="","",$J116*IF($C116="Diesel",CO2_Faktoren!E$3,CO2_Faktoren!E$5)) ->  | P116: =IF(G116="","",$J116*IF($C116="Diesel",CO2_Faktoren!F$3,CO2_Faktoren!F$5)) ->  | Q116: =IF(G116="","",$J116*IF($C116="Diesel",CO2_Faktoren!G$3,CO2_Faktoren!G$5)) -> 
H117: =IF(G117="","",SUM(IF(E117=Entfernung_Güterbahnhöfe!$A$2:$A$100000,1,0)*IF(F117=Entfernung_Güterbahnhöfe!$B$2:$B$100000,1,0)*Entfernung_Güterbahnhöfe!$C$2:$C$100000)) ->  | I117: =IF(G117="","",INDEX(Energieverbrauch!$F$2:$F$55, MATCH( INDEX(Zugtypen!$A$2:$A$4, MATCH(A117,Zugtypen!$B$2:$B$4,0)) & INDEX(FahrttypenTopologie!$A$2:$A$4, MATCH(B117,FahrttypenTopologie!$B$2:$B$4,0)) & INDEX(Traktion!$A$2:$A$3, MATCH(C117,Traktion!$B$2:$B$3,0)) & INDEX(Ladungsart!$A$2:$A$4, MATCH(D117,Ladungsart!$B$2:$B$4,0)), Energieverbrauch!$E$2:$E$55, 0))) ->  | K117: =IF(G117="","",IF(C117="Diesel",J117/CO2_Faktoren!$B$8,J117)) ->  | L117: =IF(G117="","",$J117*IF($C117="Diesel",CO2_Faktoren!B$3,CO2_Faktoren!B$5)) ->  | M117: =IF(G117="","",$J117*IF($C117="Diesel",CO2_Faktoren!C$3,CO2_Faktoren!C$5)) ->  | N117: =IF(G117="","",$J117*IF($C117="Diesel",CO2_Faktoren!D$3,CO2_Faktoren!D$5)) ->  | O117: =IF(G117="","",$J117*IF($C117="Diesel",CO2_Faktoren!E$3,CO2_Faktoren!E$5)) ->  | P117: =IF(G117="","",$J117*IF($C117="Diesel",CO2_Faktoren!F$3,CO2_Faktoren!F$5)) ->  | Q117: =IF(G117="","",$J117*IF($C117="Diesel",CO2_Faktoren!G$3,CO2_Faktoren!G$5)) -> 
H118: =IF(G118="","",SUM(IF(E118=Entfernung_Güterbahnhöfe!$A$2:$A$100000,1,0)*IF(F118=Entfernung_Güterbahnhöfe!$B$2:$B$100000,1,0)*Entfernung_Güterbahnhöfe!$C$2:$C$100000)) ->  | I118: =IF(G118="","",INDEX(Energieverbrauch!$F$2:$F$55, MATCH( INDEX(Zugtypen!$A$2:$A$4, MATCH(A118,Zugtypen!$B$2:$B$4,0)) & INDEX(FahrttypenTopologie!$A$2:$A$4, MATCH(B118,FahrttypenTopologie!$B$2:$B$4,0)) & INDEX(Traktion!$A$2:$A$3, MATCH(C118,Traktion!$B$2:$B$3,0)) & INDEX(Ladungsart!$A$2:$A$4, MATCH(D118,Ladungsart!$B$2:$B$4,0)), Energieverbrauch!$E$2:$E$55, 0))) ->  | K118: =IF(G118="","",IF(C118="Diesel",J118/CO2_Faktoren!$B$8,J118)) ->  | L118: =IF(G118="","",$J118*IF($C118="Diesel",CO2_Faktoren!B$3,CO2_Faktoren!B$5)) ->  | M118: =IF(G118="","",$J118*IF($C118="Diesel",CO2_Faktoren!C$3,CO2_Faktoren!C$5)) ->  | N118: =IF(G118="","",$J118*IF($C118="Diesel",CO2_Faktoren!D$3,CO2_Faktoren!D$5)) ->  | O118: =IF(G118="","",$J118*IF($C118="Diesel",CO2_Faktoren!E$3,CO2_Faktoren!E$5)) ->  | P118: =IF(G118="","",$J118*IF($C118="Diesel",CO2_Faktoren!F$3,CO2_Faktoren!F$5)) ->  | Q118: =IF(G118="","",$J118*IF($C118="Diesel",CO2_Faktoren!G$3,CO2_Faktoren!G$5)) -> 
H119: =IF(G119="","",SUM(IF(E119=Entfernung_Güterbahnhöfe!$A$2:$A$100000,1,0)*IF(F119=Entfernung_Güterbahnhöfe!$B$2:$B$100000,1,0)*Entfernung_Güterbahnhöfe!$C$2:$C$100000)) ->  | I119: =IF(G119="","",INDEX(Energieverbrauch!$F$2:$F$55, MATCH( INDEX(Zugtypen!$A$2:$A$4, MATCH(A119,Zugtypen!$B$2:$B$4,0)) & INDEX(FahrttypenTopologie!$A$2:$A$4, MATCH(B119,FahrttypenTopologie!$B$2:$B$4,0)) & INDEX(Traktion!$A$2:$A$3, MATCH(C119,Traktion!$B$2:$B$3,0)) & INDEX(Ladungsart!$A$2:$A$4, MATCH(D119,Ladungsart!$B$2:$B$4,0)), Energieverbrauch!$E$2:$E$55, 0))) ->  | K119: =IF(G119="","",IF(C119="Diesel",J119/CO2_Faktoren!$B$8,J119)) ->  | L119: =IF(G119="","",$J119*IF($C119="Diesel",CO2_Faktoren!B$3,CO2_Faktoren!B$5)) ->  | M119: =IF(G119="","",$J119*IF($C119="Diesel",CO2_Faktoren!C$3,CO2_Faktoren!C$5)) ->  | N119: =IF(G119="","",$J119*IF($C119="Diesel",CO2_Faktoren!D$3,CO2_Faktoren!D$5)) ->  | O119: =IF(G119="","",$J119*IF($C119="Diesel",CO2_Faktoren!E$3,CO2_Faktoren!E$5)) ->  | P119: =IF(G119="","",$J119*IF($C119="Diesel",CO2_Faktoren!F$3,CO2_Faktoren!F$5)) ->  | Q119: =IF(G119="","",$J119*IF($C119="Diesel",CO2_Faktoren!G$3,CO2_Faktoren!G$5)) -> 
H120: =IF(G120="","",SUM(IF(E120=Entfernung_Güterbahnhöfe!$A$2:$A$100000,1,0)*IF(F120=Entfernung_Güterbahnhöfe!$B$2:$B$100000,1,0)*Entfernung_Güterbahnhöfe!$C$2:$C$100000)) ->  | I120: =IF(G120="","",INDEX(Energieverbrauch!$F$2:$F$55, MATCH( INDEX(Zugtypen!$A$2:$A$4, MATCH(A120,Zugtypen!$B$2:$B$4,0)) & INDEX(FahrttypenTopologie!$A$2:$A$4, MATCH(B120,FahrttypenTopologie!$B$2:$B$4,0)) & INDEX(Traktion!$A$2:$A$3, MATCH(C120,Traktion!$B$2:$B$3,0)) & INDEX(Ladungsart!$A$2:$A$4, MATCH(D120,Ladungsart!$B$2:$B$4,0)), Energieverbrauch!$E$2:$E$55, 0))) ->  | K120: =IF(G120="","",IF(C120="Diesel",J120/CO2_Faktoren!$B$8,J120)) ->  | L120: =IF(G120="","",$J120*IF($C120="Diesel",CO2_Faktoren!B$3,CO2_Faktoren!B$5)) ->  | M120: =IF(G120="","",$J120*IF($C120="Diesel",CO2_Faktoren!C$3,CO2_Faktoren!C$5)) ->  | N120: =IF(G120="","",$J120*IF($C120="Diesel",CO2_Faktoren!D$3,CO2_Faktoren!D$5)) ->  | O120: =IF(G120="","",$J120*IF($C120="Diesel",CO2_Faktoren!E$3,CO2_Faktoren!E$5)) ->  | P120: =IF(G120="","",$J120*IF($C120="Diesel",CO2_Faktoren!F$3,CO2_Faktoren!F$5)) ->  | Q120: =IF(G120="","",$J120*IF($C120="Diesel",CO2_Faktoren!G$3,CO2_Faktoren!G$5)) -> 
H121: =IF(G121="","",SUM(IF(E121=Entfernung_Güterbahnhöfe!$A$2:$A$100000,1,0)*IF(F121=Entfernung_Güterbahnhöfe!$B$2:$B$100000,1,0)*Entfernung_Güterbahnhöfe!$C$2:$C$100000)) ->  | I121: =IF(G121="","",INDEX(Energieverbrauch!$F$2:$F$55, MATCH( INDEX(Zugtypen!$A$2:$A$4, MATCH(A121,Zugtypen!$B$2:$B$4,0)) & INDEX(FahrttypenTopologie!$A$2:$A$4, MATCH(B121,FahrttypenTopologie!$B$2:$B$4,0)) & INDEX(Traktion!$A$2:$A$3, MATCH(C121,Traktion!$B$2:$B$3,0)) & INDEX(Ladungsart!$A$2:$A$4, MATCH(D121,Ladungsart!$B$2:$B$4,0)), Energieverbrauch!$E$2:$E$55, 0))) ->  | K121: =IF(G121="","",IF(C121="Diesel",J121/CO2_Faktoren!$B$8,J121)) ->  | L121: =IF(G121="","",$J121*IF($C121="Diesel",CO2_Faktoren!B$3,CO2_Faktoren!B$5)) ->  | M121: =IF(G121="","",$J121*IF($C121="Diesel",CO2_Faktoren!C$3,CO2_Faktoren!C$5)) ->  | N121: =IF(G121="","",$J121*IF($C121="Diesel",CO2_Faktoren!D$3,CO2_Faktoren!D$5)) ->  | O121: =IF(G121="","",$J121*IF($C121="Diesel",CO2_Faktoren!E$3,CO2_Faktoren!E$5)) ->  | P121: =IF(G121="","",$J121*IF($C121="Diesel",CO2_Faktoren!F$3,CO2_Faktoren!F$5)) ->  | Q121: =IF(G121="","",$J121*IF($C121="Diesel",CO2_Faktoren!G$3,CO2_Faktoren!G$5)) -> 
H122: =IF(G122="","",SUM(IF(E122=Entfernung_Güterbahnhöfe!$A$2:$A$100000,1,0)*IF(F122=Entfernung_Güterbahnhöfe!$B$2:$B$100000,1,0)*Entfernung_Güterbahnhöfe!$C$2:$C$100000)) ->  | I122: =IF(G122="","",INDEX(Energieverbrauch!$F$2:$F$55, MATCH( INDEX(Zugtypen!$A$2:$A$4, MATCH(A122,Zugtypen!$B$2:$B$4,0)) & INDEX(FahrttypenTopologie!$A$2:$A$4, MATCH(B122,FahrttypenTopologie!$B$2:$B$4,0)) & INDEX(Traktion!$A$2:$A$3, MATCH(C122,Traktion!$B$2:$B$3,0)) & INDEX(Ladungsart!$A$2:$A$4, MATCH(D122,Ladungsart!$B$2:$B$4,0)), Energieverbrauch!$E$2:$E$55, 0))) ->  | K122: =IF(G122="","",IF(C122="Diesel",J122/CO2_Faktoren!$B$8,J122)) ->  | L122: =IF(G122="","",$J122*IF($C122="Diesel",CO2_Faktoren!B$3,CO2_Faktoren!B$5)) ->  | M122: =IF(G122="","",$J122*IF($C122="Diesel",CO2_Faktoren!C$3,CO2_Faktoren!C$5)) ->  | N122: =IF(G122="","",$J122*IF($C122="Diesel",CO2_Faktoren!D$3,CO2_Faktoren!D$5)) ->  | O122: =IF(G122="","",$J122*IF($C122="Diesel",CO2_Faktoren!E$3,CO2_Faktoren!E$5)) ->  | P122: =IF(G122="","",$J122*IF($C122="Diesel",CO2_Faktoren!F$3,CO2_Faktoren!F$5)) ->  | Q122: =IF(G122="","",$J122*IF($C122="Diesel",CO2_Faktoren!G$3,CO2_Faktoren!G$5)) -> 
H123: =IF(G123="","",SUM(IF(E123=Entfernung_Güterbahnhöfe!$A$2:$A$100000,1,0)*IF(F123=Entfernung_Güterbahnhöfe!$B$2:$B$100000,1,0)*Entfernung_Güterbahnhöfe!$C$2:$C$100000)) ->  | I123: =IF(G123="","",INDEX(Energieverbrauch!$F$2:$F$55, MATCH( INDEX(Zugtypen!$A$2:$A$4, MATCH(A123,Zugtypen!$B$2:$B$4,0)) & INDEX(FahrttypenTopologie!$A$2:$A$4, MATCH(B123,FahrttypenTopologie!$B$2:$B$4,0)) & INDEX(Traktion!$A$2:$A$3, MATCH(C123,Traktion!$B$2:$B$3,0)) & INDEX(Ladungsart!$A$2:$A$4, MATCH(D123,Ladungsart!$B$2:$B$4,0)), Energieverbrauch!$E$2:$E$55, 0))) ->  | K123: =IF(G123="","",IF(C123="Diesel",J123/CO2_Faktoren!$B$8,J123)) ->  | L123: =IF(G123="","",$J123*IF($C123="Diesel",CO2_Faktoren!B$3,CO2_Faktoren!B$5)) ->  | M123: =IF(G123="","",$J123*IF($C123="Diesel",CO2_Faktoren!C$3,CO2_Faktoren!C$5)) ->  | N123: =IF(G123="","",$J123*IF($C123="Diesel",CO2_Faktoren!D$3,CO2_Faktoren!D$5)) ->  | O123: =IF(G123="","",$J123*IF($C123="Diesel",CO2_Faktoren!E$3,CO2_Faktoren!E$5)) ->  | P123: =IF(G123="","",$J123*IF($C123="Diesel",CO2_Faktoren!F$3,CO2_Faktoren!F$5)) ->  | Q123: =IF(G123="","",$J123*IF($C123="Diesel",CO2_Faktoren!G$3,CO2_Faktoren!G$5)) -> 
H124: =IF(G124="","",SUM(IF(E124=Entfernung_Güterbahnhöfe!$A$2:$A$100000,1,0)*IF(F124=Entfernung_Güterbahnhöfe!$B$2:$B$100000,1,0)*Entfernung_Güterbahnhöfe!$C$2:$C$100000)) ->  | I124: =IF(G124="","",INDEX(Energieverbrauch!$F$2:$F$55, MATCH( INDEX(Zugtypen!$A$2:$A$4, MATCH(A124,Zugtypen!$B$2:$B$4,0)) & INDEX(FahrttypenTopologie!$A$2:$A$4, MATCH(B124,FahrttypenTopologie!$B$2:$B$4,0)) & INDEX(Traktion!$A$2:$A$3, MATCH(C124,Traktion!$B$2:$B$3,0)) & INDEX(Ladungsart!$A$2:$A$4, MATCH(D124,Ladungsart!$B$2:$B$4,0)), Energieverbrauch!$E$2:$E$55, 0))) ->  | K124: =IF(G124="","",IF(C124="Diesel",J124/CO2_Faktoren!$B$8,J124)) ->  | L124: =IF(G124="","",$J124*IF($C124="Diesel",CO2_Faktoren!B$3,CO2_Faktoren!B$5)) ->  | M124: =IF(G124="","",$J124*IF($C124="Diesel",CO2_Faktoren!C$3,CO2_Faktoren!C$5)) ->  | N124: =IF(G124="","",$J124*IF($C124="Diesel",CO2_Faktoren!D$3,CO2_Faktoren!D$5)) ->  | O124: =IF(G124="","",$J124*IF($C124="Diesel",CO2_Faktoren!E$3,CO2_Faktoren!E$5)) ->  | P124: =IF(G124="","",$J124*IF($C124="Diesel",CO2_Faktoren!F$3,CO2_Faktoren!F$5)) ->  | Q124: =IF(G124="","",$J124*IF($C124="Diesel",CO2_Faktoren!G$3,CO2_Faktoren!G$5)) -> 
H125: =IF(G125="","",SUM(IF(E125=Entfernung_Güterbahnhöfe!$A$2:$A$100000,1,0)*IF(F125=Entfernung_Güterbahnhöfe!$B$2:$B$100000,1,0)*Entfernung_Güterbahnhöfe!$C$2:$C$100000)) ->  | I125: =IF(G125="","",INDEX(Energieverbrauch!$F$2:$F$55, MATCH( INDEX(Zugtypen!$A$2:$A$4, MATCH(A125,Zugtypen!$B$2:$B$4,0)) & INDEX(FahrttypenTopologie!$A$2:$A$4, MATCH(B125,FahrttypenTopologie!$B$2:$B$4,0)) & INDEX(Traktion!$A$2:$A$3, MATCH(C125,Traktion!$B$2:$B$3,0)) & INDEX(Ladungsart!$A$2:$A$4, MATCH(D125,Ladungsart!$B$2:$B$4,0)), Energieverbrauch!$E$2:$E$55, 0))) ->  | K125: =IF(G125="","",IF(C125="Diesel",J125/CO2_Faktoren!$B$8,J125)) ->  | L125: =IF(G125="","",$J125*IF($C125="Diesel",CO2_Faktoren!B$3,CO2_Faktoren!B$5)) ->  | M125: =IF(G125="","",$J125*IF($C125="Diesel",CO2_Faktoren!C$3,CO2_Faktoren!C$5)) ->  | N125: =IF(G125="","",$J125*IF($C125="Diesel",CO2_Faktoren!D$3,CO2_Faktoren!D$5)) ->  | O125: =IF(G125="","",$J125*IF($C125="Diesel",CO2_Faktoren!E$3,CO2_Faktoren!E$5)) ->  | P125: =IF(G125="","",$J125*IF($C125="Diesel",CO2_Faktoren!F$3,CO2_Faktoren!F$5)) ->  | Q125: =IF(G125="","",$J125*IF($C125="Diesel",CO2_Faktoren!G$3,CO2_Faktoren!G$5)) -> 
H126: =IF(G126="","",SUM(IF(E126=Entfernung_Güterbahnhöfe!$A$2:$A$100000,1,0)*IF(F126=Entfernung_Güterbahnhöfe!$B$2:$B$100000,1,0)*Entfernung_Güterbahnhöfe!$C$2:$C$100000)) ->  | I126: =IF(G126="","",INDEX(Energieverbrauch!$F$2:$F$55, MATCH( INDEX(Zugtypen!$A$2:$A$4, MATCH(A126,Zugtypen!$B$2:$B$4,0)) & INDEX(FahrttypenTopologie!$A$2:$A$4, MATCH(B126,FahrttypenTopologie!$B$2:$B$4,0)) & INDEX(Traktion!$A$2:$A$3, MATCH(C126,Traktion!$B$2:$B$3,0)) & INDEX(Ladungsart!$A$2:$A$4, MATCH(D126,Ladungsart!$B$2:$B$4,0)), Energieverbrauch!$E$2:$E$55, 0))) ->  | K126: =IF(G126="","",IF(C126="Diesel",J126/CO2_Faktoren!$B$8,J126)) ->  | L126: =IF(G126="","",$J126*IF($C126="Diesel",CO2_Faktoren!B$3,CO2_Faktoren!B$5)) ->  | M126: =IF(G126="","",$J126*IF($C126="Diesel",CO2_Faktoren!C$3,CO2_Faktoren!C$5)) ->  | N126: =IF(G126="","",$J126*IF($C126="Diesel",CO2_Faktoren!D$3,CO2_Faktoren!D$5)) ->  | O126: =IF(G126="","",$J126*IF($C126="Diesel",CO2_Faktoren!E$3,CO2_Faktoren!E$5)) ->  | P126: =IF(G126="","",$J126*IF($C126="Diesel",CO2_Faktoren!F$3,CO2_Faktoren!F$5)) ->  | Q126: =IF(G126="","",$J126*IF($C126="Diesel",CO2_Faktoren!G$3,CO2_Faktoren!G$5)) -> 
H127: =IF(G127="","",SUM(IF(E127=Entfernung_Güterbahnhöfe!$A$2:$A$100000,1,0)*IF(F127=Entfernung_Güterbahnhöfe!$B$2:$B$100000,1,0)*Entfernung_Güterbahnhöfe!$C$2:$C$100000)) ->  | I127: =IF(G127="","",INDEX(Energieverbrauch!$F$2:$F$55, MATCH( INDEX(Zugtypen!$A$2:$A$4, MATCH(A127,Zugtypen!$B$2:$B$4,0)) & INDEX(FahrttypenTopologie!$A$2:$A$4, MATCH(B127,FahrttypenTopologie!$B$2:$B$4,0)) & INDEX(Traktion!$A$2:$A$3, MATCH(C127,Traktion!$B$2:$B$3,0)) & INDEX(Ladungsart!$A$2:$A$4, MATCH(D127,Ladungsart!$B$2:$B$4,0)), Energieverbrauch!$E$2:$E$55, 0))) ->  | K127: =IF(G127="","",IF(C127="Diesel",J127/CO2_Faktoren!$B$8,J127)) ->  | L127: =IF(G127="","",$J127*IF($C127="Diesel",CO2_Faktoren!B$3,CO2_Faktoren!B$5)) ->  | M127: =IF(G127="","",$J127*IF($C127="Diesel",CO2_Faktoren!C$3,CO2_Faktoren!C$5)) ->  | N127: =IF(G127="","",$J127*IF($C127="Diesel",CO2_Faktoren!D$3,CO2_Faktoren!D$5)) ->  | O127: =IF(G127="","",$J127*IF($C127="Diesel",CO2_Faktoren!E$3,CO2_Faktoren!E$5)) ->  | P127: =IF(G127="","",$J127*IF($C127="Diesel",CO2_Faktoren!F$3,CO2_Faktoren!F$5)) ->  | Q127: =IF(G127="","",$J127*IF($C127="Diesel",CO2_Faktoren!G$3,CO2_Faktoren!G$5)) -> 
H128: =IF(G128="","",SUM(IF(E128=Entfernung_Güterbahnhöfe!$A$2:$A$100000,1,0)*IF(F128=Entfernung_Güterbahnhöfe!$B$2:$B$100000,1,0)*Entfernung_Güterbahnhöfe!$C$2:$C$100000)) ->  | I128: =IF(G128="","",INDEX(Energieverbrauch!$F$2:$F$55, MATCH( INDEX(Zugtypen!$A$2:$A$4, MATCH(A128,Zugtypen!$B$2:$B$4,0)) & INDEX(FahrttypenTopologie!$A$2:$A$4, MATCH(B128,FahrttypenTopologie!$B$2:$B$4,0)) & INDEX(Traktion!$A$2:$A$3, MATCH(C128,Traktion!$B$2:$B$3,0)) & INDEX(Ladungsart!$A$2:$A$4, MATCH(D128,Ladungsart!$B$2:$B$4,0)), Energieverbrauch!$E$2:$E$55, 0))) ->  | K128: =IF(G128="","",IF(C128="Diesel",J128/CO2_Faktoren!$B$8,J128)) ->  | L128: =IF(G128="","",$J128*IF($C128="Diesel",CO2_Faktoren!B$3,CO2_Faktoren!B$5)) ->  | M128: =IF(G128="","",$J128*IF($C128="Diesel",CO2_Faktoren!C$3,CO2_Faktoren!C$5)) ->  | N128: =IF(G128="","",$J128*IF($C128="Diesel",CO2_Faktoren!D$3,CO2_Faktoren!D$5)) ->  | O128: =IF(G128="","",$J128*IF($C128="Diesel",CO2_Faktoren!E$3,CO2_Faktoren!E$5)) ->  | P128: =IF(G128="","",$J128*IF($C128="Diesel",CO2_Faktoren!F$3,CO2_Faktoren!F$5)) ->  | Q128: =IF(G128="","",$J128*IF($C128="Diesel",CO2_Faktoren!G$3,CO2_Faktoren!G$5)) -> 
H129: =IF(G129="","",SUM(IF(E129=Entfernung_Güterbahnhöfe!$A$2:$A$100000,1,0)*IF(F129=Entfernung_Güterbahnhöfe!$B$2:$B$100000,1,0)*Entfernung_Güterbahnhöfe!$C$2:$C$100000)) ->  | I129: =IF(G129="","",INDEX(Energieverbrauch!$F$2:$F$55, MATCH( INDEX(Zugtypen!$A$2:$A$4, MATCH(A129,Zugtypen!$B$2:$B$4,0)) & INDEX(FahrttypenTopologie!$A$2:$A$4, MATCH(B129,FahrttypenTopologie!$B$2:$B$4,0)) & INDEX(Traktion!$A$2:$A$3, MATCH(C129,Traktion!$B$2:$B$3,0)) & INDEX(Ladungsart!$A$2:$A$4, MATCH(D129,Ladungsart!$B$2:$B$4,0)), Energieverbrauch!$E$2:$E$55, 0))) ->  | K129: =IF(G129="","",IF(C129="Diesel",J129/CO2_Faktoren!$B$8,J129)) ->  | L129: =IF(G129="","",$J129*IF($C129="Diesel",CO2_Faktoren!B$3,CO2_Faktoren!B$5)) ->  | M129: =IF(G129="","",$J129*IF($C129="Diesel",CO2_Faktoren!C$3,CO2_Faktoren!C$5)) ->  | N129: =IF(G129="","",$J129*IF($C129="Diesel",CO2_Faktoren!D$3,CO2_Faktoren!D$5)) ->  | O129: =IF(G129="","",$J129*IF($C129="Diesel",CO2_Faktoren!E$3,CO2_Faktoren!E$5)) ->  | P129: =IF(G129="","",$J129*IF($C129="Diesel",CO2_Faktoren!F$3,CO2_Faktoren!F$5)) ->  | Q129: =IF(G129="","",$J129*IF($C129="Diesel",CO2_Faktoren!G$3,CO2_Faktoren!G$5)) -> 
H130: =IF(G130="","",SUM(IF(E130=Entfernung_Güterbahnhöfe!$A$2:$A$100000,1,0)*IF(F130=Entfernung_Güterbahnhöfe!$B$2:$B$100000,1,0)*Entfernung_Güterbahnhöfe!$C$2:$C$100000)) ->  | I130: =IF(G130="","",INDEX(Energieverbrauch!$F$2:$F$55, MATCH( INDEX(Zugtypen!$A$2:$A$4, MATCH(A130,Zugtypen!$B$2:$B$4,0)) & INDEX(FahrttypenTopologie!$A$2:$A$4, MATCH(B130,FahrttypenTopologie!$B$2:$B$4,0)) & INDEX(Traktion!$A$2:$A$3, MATCH(C130,Traktion!$B$2:$B$3,0)) & INDEX(Ladungsart!$A$2:$A$4, MATCH(D130,Ladungsart!$B$2:$B$4,0)), Energieverbrauch!$E$2:$E$55, 0))) ->  | K130: =IF(G130="","",IF(C130="Diesel",J130/CO2_Faktoren!$B$8,J130)) ->  | L130: =IF(G130="","",$J130*IF($C130="Diesel",CO2_Faktoren!B$3,CO2_Faktoren!B$5)) ->  | M130: =IF(G130="","",$J130*IF($C130="Diesel",CO2_Faktoren!C$3,CO2_Faktoren!C$5)) ->  | N130: =IF(G130="","",$J130*IF($C130="Diesel",CO2_Faktoren!D$3,CO2_Faktoren!D$5)) ->  | O130: =IF(G130="","",$J130*IF($C130="Diesel",CO2_Faktoren!E$3,CO2_Faktoren!E$5)) ->  | P130: =IF(G130="","",$J130*IF($C130="Diesel",CO2_Faktoren!F$3,CO2_Faktoren!F$5)) ->  | Q130: =IF(G130="","",$J130*IF($C130="Diesel",CO2_Faktoren!G$3,CO2_Faktoren!G$5)) -> 
H131: =IF(G131="","",SUM(IF(E131=Entfernung_Güterbahnhöfe!$A$2:$A$100000,1,0)*IF(F131=Entfernung_Güterbahnhöfe!$B$2:$B$100000,1,0)*Entfernung_Güterbahnhöfe!$C$2:$C$100000)) ->  | I131: =IF(G131="","",INDEX(Energieverbrauch!$F$2:$F$55, MATCH( INDEX(Zugtypen!$A$2:$A$4, MATCH(A131,Zugtypen!$B$2:$B$4,0)) & INDEX(FahrttypenTopologie!$A$2:$A$4, MATCH(B131,FahrttypenTopologie!$B$2:$B$4,0)) & INDEX(Traktion!$A$2:$A$3, MATCH(C131,Traktion!$B$2:$B$3,0)) & INDEX(Ladungsart!$A$2:$A$4, MATCH(D131,Ladungsart!$B$2:$B$4,0)), Energieverbrauch!$E$2:$E$55, 0))) ->  | K131: =IF(G131="","",IF(C131="Diesel",J131/CO2_Faktoren!$B$8,J131)) ->  | L131: =IF(G131="","",$J131*IF($C131="Diesel",CO2_Faktoren!B$3,CO2_Faktoren!B$5)) ->  | M131: =IF(G131="","",$J131*IF($C131="Diesel",CO2_Faktoren!C$3,CO2_Faktoren!C$5)) ->  | N131: =IF(G131="","",$J131*IF($C131="Diesel",CO2_Faktoren!D$3,CO2_Faktoren!D$5)) ->  | O131: =IF(G131="","",$J131*IF($C131="Diesel",CO2_Faktoren!E$3,CO2_Faktoren!E$5)) ->  | P131: =IF(G131="","",$J131*IF($C131="Diesel",CO2_Faktoren!F$3,CO2_Faktoren!F$5)) ->  | Q131: =IF(G131="","",$J131*IF($C131="Diesel",CO2_Faktoren!G$3,CO2_Faktoren!G$5)) -> 
H132: =IF(G132="","",SUM(IF(E132=Entfernung_Güterbahnhöfe!$A$2:$A$100000,1,0)*IF(F132=Entfernung_Güterbahnhöfe!$B$2:$B$100000,1,0)*Entfernung_Güterbahnhöfe!$C$2:$C$100000)) ->  | I132: =IF(G132="","",INDEX(Energieverbrauch!$F$2:$F$55, MATCH( INDEX(Zugtypen!$A$2:$A$4, MATCH(A132,Zugtypen!$B$2:$B$4,0)) & INDEX(FahrttypenTopologie!$A$2:$A$4, MATCH(B132,FahrttypenTopologie!$B$2:$B$4,0)) & INDEX(Traktion!$A$2:$A$3, MATCH(C132,Traktion!$B$2:$B$3,0)) & INDEX(Ladungsart!$A$2:$A$4, MATCH(D132,Ladungsart!$B$2:$B$4,0)), Energieverbrauch!$E$2:$E$55, 0))) ->  | K132: =IF(G132="","",IF(C132="Diesel",J132/CO2_Faktoren!$B$8,J132)) ->  | L132: =IF(G132="","",$J132*IF($C132="Diesel",CO2_Faktoren!B$3,CO2_Faktoren!B$5)) ->  | M132: =IF(G132="","",$J132*IF($C132="Diesel",CO2_Faktoren!C$3,CO2_Faktoren!C$5)) ->  | N132: =IF(G132="","",$J132*IF($C132="Diesel",CO2_Faktoren!D$3,CO2_Faktoren!D$5)) ->  | O132: =IF(G132="","",$J132*IF($C132="Diesel",CO2_Faktoren!E$3,CO2_Faktoren!E$5)) ->  | P132: =IF(G132="","",$J132*IF($C132="Diesel",CO2_Faktoren!F$3,CO2_Faktoren!F$5)) ->  | Q132: =IF(G132="","",$J132*IF($C132="Diesel",CO2_Faktoren!G$3,CO2_Faktoren!G$5)) -> 
H133: =IF(G133="","",SUM(IF(E133=Entfernung_Güterbahnhöfe!$A$2:$A$100000,1,0)*IF(F133=Entfernung_Güterbahnhöfe!$B$2:$B$100000,1,0)*Entfernung_Güterbahnhöfe!$C$2:$C$100000)) ->  | I133: =IF(G133="","",INDEX(Energieverbrauch!$F$2:$F$55, MATCH( INDEX(Zugtypen!$A$2:$A$4, MATCH(A133,Zugtypen!$B$2:$B$4,0)) & INDEX(FahrttypenTopologie!$A$2:$A$4, MATCH(B133,FahrttypenTopologie!$B$2:$B$4,0)) & INDEX(Traktion!$A$2:$A$3, MATCH(C133,Traktion!$B$2:$B$3,0)) & INDEX(Ladungsart!$A$2:$A$4, MATCH(D133,Ladungsart!$B$2:$B$4,0)), Energieverbrauch!$E$2:$E$55, 0))) ->  | K133: =IF(G133="","",IF(C133="Diesel",J133/CO2_Faktoren!$B$8,J133)) ->  | L133: =IF(G133="","",$J133*IF($C133="Diesel",CO2_Faktoren!B$3,CO2_Faktoren!B$5)) ->  | M133: =IF(G133="","",$J133*IF($C133="Diesel",CO2_Faktoren!C$3,CO2_Faktoren!C$5)) ->  | N133: =IF(G133="","",$J133*IF($C133="Diesel",CO2_Faktoren!D$3,CO2_Faktoren!D$5)) ->  | O133: =IF(G133="","",$J133*IF($C133="Diesel",CO2_Faktoren!E$3,CO2_Faktoren!E$5)) ->  | P133: =IF(G133="","",$J133*IF($C133="Diesel",CO2_Faktoren!F$3,CO2_Faktoren!F$5)) ->  | Q133: =IF(G133="","",$J133*IF($C133="Diesel",CO2_Faktoren!G$3,CO2_Faktoren!G$5)) -> 
H134: =IF(G134="","",SUM(IF(E134=Entfernung_Güterbahnhöfe!$A$2:$A$100000,1,0)*IF(F134=Entfernung_Güterbahnhöfe!$B$2:$B$100000,1,0)*Entfernung_Güterbahnhöfe!$C$2:$C$100000)) ->  | I134: =IF(G134="","",INDEX(Energieverbrauch!$F$2:$F$55, MATCH( INDEX(Zugtypen!$A$2:$A$4, MATCH(A134,Zugtypen!$B$2:$B$4,0)) & INDEX(FahrttypenTopologie!$A$2:$A$4, MATCH(B134,FahrttypenTopologie!$B$2:$B$4,0)) & INDEX(Traktion!$A$2:$A$3, MATCH(C134,Traktion!$B$2:$B$3,0)) & INDEX(Ladungsart!$A$2:$A$4, MATCH(D134,Ladungsart!$B$2:$B$4,0)), Energieverbrauch!$E$2:$E$55, 0))) ->  | J134: =IF(G134="","",(I134*H134*G134)/1000) ->  | K134: =IF(G134="","",IF(C134="Diesel",J134/CO2_Faktoren!$B$8,J134)) ->  | L134: =IF(G134="","",$J134*IF($C134="Diesel",CO2_Faktoren!B$3,CO2_Faktoren!B$5)) ->  | M134: =IF(G134="","",$J134*IF($C134="Diesel",CO2_Faktoren!C$3,CO2_Faktoren!C$5)) ->  | N134: =IF(G134="","",$J134*IF($C134="Diesel",CO2_Faktoren!D$3,CO2_Faktoren!D$5)) ->  | O134: =IF(G134="","",$J134*IF($C134="Diesel",CO2_Faktoren!E$3,CO2_Faktoren!E$5)) ->  | P134: =IF(G134="","",$J134*IF($C134="Diesel",CO2_Faktoren!F$3,CO2_Faktoren!F$5)) ->  | Q134: =IF(G134="","",$J134*IF($C134="Diesel",CO2_Faktoren!G$3,CO2_Faktoren!G$5)) -> 
H135: =IF(G135="","",SUM(IF(E135=Entfernung_Güterbahnhöfe!$A$2:$A$100000,1,0)*IF(F135=Entfernung_Güterbahnhöfe!$B$2:$B$100000,1,0)*Entfernung_Güterbahnhöfe!$C$2:$C$100000)) ->  | I135: =IF(G135="","",INDEX(Energieverbrauch!$F$2:$F$55, MATCH( INDEX(Zugtypen!$A$2:$A$4, MATCH(A135,Zugtypen!$B$2:$B$4,0)) & INDEX(FahrttypenTopologie!$A$2:$A$4, MATCH(B135,FahrttypenTopologie!$B$2:$B$4,0)) & INDEX(Traktion!$A$2:$A$3, MATCH(C135,Traktion!$B$2:$B$3,0)) & INDEX(Ladungsart!$A$2:$A$4, MATCH(D135,Ladungsart!$B$2:$B$4,0)), Energieverbrauch!$E$2:$E$55, 0))) ->  | K135: =IF(G135="","",IF(C135="Diesel",J135/CO2_Faktoren!$B$8,J135)) ->  | L135: =IF(G135="","",$J135*IF($C135="Diesel",CO2_Faktoren!B$3,CO2_Faktoren!B$5)) ->  | M135: =IF(G135="","",$J135*IF($C135="Diesel",CO2_Faktoren!C$3,CO2_Faktoren!C$5)) ->  | N135: =IF(G135="","",$J135*IF($C135="Diesel",CO2_Faktoren!D$3,CO2_Faktoren!D$5)) ->  | O135: =IF(G135="","",$J135*IF($C135="Diesel",CO2_Faktoren!E$3,CO2_Faktoren!E$5)) ->  | P135: =IF(G135="","",$J135*IF($C135="Diesel",CO2_Faktoren!F$3,CO2_Faktoren!F$5)) ->  | Q135: =IF(G135="","",$J135*IF($C135="Diesel",CO2_Faktoren!G$3,CO2_Faktoren!G$5)) -> 
H136: =IF(G136="","",SUM(IF(E136=Entfernung_Güterbahnhöfe!$A$2:$A$100000,1,0)*IF(F136=Entfernung_Güterbahnhöfe!$B$2:$B$100000,1,0)*Entfernung_Güterbahnhöfe!$C$2:$C$100000)) ->  | I136: =IF(G136="","",INDEX(Energieverbrauch!$F$2:$F$55, MATCH( INDEX(Zugtypen!$A$2:$A$4, MATCH(A136,Zugtypen!$B$2:$B$4,0)) & INDEX(FahrttypenTopologie!$A$2:$A$4, MATCH(B136,FahrttypenTopologie!$B$2:$B$4,0)) & INDEX(Traktion!$A$2:$A$3, MATCH(C136,Traktion!$B$2:$B$3,0)) & INDEX(Ladungsart!$A$2:$A$4, MATCH(D136,Ladungsart!$B$2:$B$4,0)), Energieverbrauch!$E$2:$E$55, 0))) ->  | K136: =IF(G136="","",IF(C136="Diesel",J136/CO2_Faktoren!$B$8,J136)) ->  | L136: =IF(G136="","",$J136*IF($C136="Diesel",CO2_Faktoren!B$3,CO2_Faktoren!B$5)) ->  | M136: =IF(G136="","",$J136*IF($C136="Diesel",CO2_Faktoren!C$3,CO2_Faktoren!C$5)) ->  | N136: =IF(G136="","",$J136*IF($C136="Diesel",CO2_Faktoren!D$3,CO2_Faktoren!D$5)) ->  | O136: =IF(G136="","",$J136*IF($C136="Diesel",CO2_Faktoren!E$3,CO2_Faktoren!E$5)) ->  | P136: =IF(G136="","",$J136*IF($C136="Diesel",CO2_Faktoren!F$3,CO2_Faktoren!F$5)) ->  | Q136: =IF(G136="","",$J136*IF($C136="Diesel",CO2_Faktoren!G$3,CO2_Faktoren!G$5)) -> 
H137: =IF(G137="","",SUM(IF(E137=Entfernung_Güterbahnhöfe!$A$2:$A$100000,1,0)*IF(F137=Entfernung_Güterbahnhöfe!$B$2:$B$100000,1,0)*Entfernung_Güterbahnhöfe!$C$2:$C$100000)) ->  | I137: =IF(G137="","",INDEX(Energieverbrauch!$F$2:$F$55, MATCH( INDEX(Zugtypen!$A$2:$A$4, MATCH(A137,Zugtypen!$B$2:$B$4,0)) & INDEX(FahrttypenTopologie!$A$2:$A$4, MATCH(B137,FahrttypenTopologie!$B$2:$B$4,0)) & INDEX(Traktion!$A$2:$A$3, MATCH(C137,Traktion!$B$2:$B$3,0)) & INDEX(Ladungsart!$A$2:$A$4, MATCH(D137,Ladungsart!$B$2:$B$4,0)), Energieverbrauch!$E$2:$E$55, 0))) ->  | K137: =IF(G137="","",IF(C137="Diesel",J137/CO2_Faktoren!$B$8,J137)) ->  | L137: =IF(G137="","",$J137*IF($C137="Diesel",CO2_Faktoren!B$3,CO2_Faktoren!B$5)) ->  | M137: =IF(G137="","",$J137*IF($C137="Diesel",CO2_Faktoren!C$3,CO2_Faktoren!C$5)) ->  | N137: =IF(G137="","",$J137*IF($C137="Diesel",CO2_Faktoren!D$3,CO2_Faktoren!D$5)) ->  | O137: =IF(G137="","",$J137*IF($C137="Diesel",CO2_Faktoren!E$3,CO2_Faktoren!E$5)) ->  | P137: =IF(G137="","",$J137*IF($C137="Diesel",CO2_Faktoren!F$3,CO2_Faktoren!F$5)) ->  | Q137: =IF(G137="","",$J137*IF($C137="Diesel",CO2_Faktoren!G$3,CO2_Faktoren!G$5)) -> 
H138: =IF(G138="","",SUM(IF(E138=Entfernung_Güterbahnhöfe!$A$2:$A$100000,1,0)*IF(F138=Entfernung_Güterbahnhöfe!$B$2:$B$100000,1,0)*Entfernung_Güterbahnhöfe!$C$2:$C$100000)) ->  | I138: =IF(G138="","",INDEX(Energieverbrauch!$F$2:$F$55, MATCH( INDEX(Zugtypen!$A$2:$A$4, MATCH(A138,Zugtypen!$B$2:$B$4,0)) & INDEX(FahrttypenTopologie!$A$2:$A$4, MATCH(B138,FahrttypenTopologie!$B$2:$B$4,0)) & INDEX(Traktion!$A$2:$A$3, MATCH(C138,Traktion!$B$2:$B$3,0)) & INDEX(Ladungsart!$A$2:$A$4, MATCH(D138,Ladungsart!$B$2:$B$4,0)), Energieverbrauch!$E$2:$E$55, 0))) ->  | K138: =IF(G138="","",IF(C138="Diesel",J138/CO2_Faktoren!$B$8,J138)) ->  | L138: =IF(G138="","",$J138*IF($C138="Diesel",CO2_Faktoren!B$3,CO2_Faktoren!B$5)) ->  | M138: =IF(G138="","",$J138*IF($C138="Diesel",CO2_Faktoren!C$3,CO2_Faktoren!C$5)) ->  | N138: =IF(G138="","",$J138*IF($C138="Diesel",CO2_Faktoren!D$3,CO2_Faktoren!D$5)) ->  | O138: =IF(G138="","",$J138*IF($C138="Diesel",CO2_Faktoren!E$3,CO2_Faktoren!E$5)) ->  | P138: =IF(G138="","",$J138*IF($C138="Diesel",CO2_Faktoren!F$3,CO2_Faktoren!F$5)) ->  | Q138: =IF(G138="","",$J138*IF($C138="Diesel",CO2_Faktoren!G$3,CO2_Faktoren!G$5)) -> 
H139: =IF(G139="","",SUM(IF(E139=Entfernung_Güterbahnhöfe!$A$2:$A$100000,1,0)*IF(F139=Entfernung_Güterbahnhöfe!$B$2:$B$100000,1,0)*Entfernung_Güterbahnhöfe!$C$2:$C$100000)) ->  | I139: =IF(G139="","",INDEX(Energieverbrauch!$F$2:$F$55, MATCH( INDEX(Zugtypen!$A$2:$A$4, MATCH(A139,Zugtypen!$B$2:$B$4,0)) & INDEX(FahrttypenTopologie!$A$2:$A$4, MATCH(B139,FahrttypenTopologie!$B$2:$B$4,0)) & INDEX(Traktion!$A$2:$A$3, MATCH(C139,Traktion!$B$2:$B$3,0)) & INDEX(Ladungsart!$A$2:$A$4, MATCH(D139,Ladungsart!$B$2:$B$4,0)), Energieverbrauch!$E$2:$E$55, 0))) ->  | K139: =IF(G139="","",IF(C139="Diesel",J139/CO2_Faktoren!$B$8,J139)) ->  | L139: =IF(G139="","",$J139*IF($C139="Diesel",CO2_Faktoren!B$3,CO2_Faktoren!B$5)) ->  | M139: =IF(G139="","",$J139*IF($C139="Diesel",CO2_Faktoren!C$3,CO2_Faktoren!C$5)) ->  | N139: =IF(G139="","",$J139*IF($C139="Diesel",CO2_Faktoren!D$3,CO2_Faktoren!D$5)) ->  | O139: =IF(G139="","",$J139*IF($C139="Diesel",CO2_Faktoren!E$3,CO2_Faktoren!E$5)) ->  | P139: =IF(G139="","",$J139*IF($C139="Diesel",CO2_Faktoren!F$3,CO2_Faktoren!F$5)) ->  | Q139: =IF(G139="","",$J139*IF($C139="Diesel",CO2_Faktoren!G$3,CO2_Faktoren!G$5)) -> 
H140: =IF(G140="","",SUM(IF(E140=Entfernung_Güterbahnhöfe!$A$2:$A$100000,1,0)*IF(F140=Entfernung_Güterbahnhöfe!$B$2:$B$100000,1,0)*Entfernung_Güterbahnhöfe!$C$2:$C$100000)) ->  | I140: =IF(G140="","",INDEX(Energieverbrauch!$F$2:$F$55, MATCH( INDEX(Zugtypen!$A$2:$A$4, MATCH(A140,Zugtypen!$B$2:$B$4,0)) & INDEX(FahrttypenTopologie!$A$2:$A$4, MATCH(B140,FahrttypenTopologie!$B$2:$B$4,0)) & INDEX(Traktion!$A$2:$A$3, MATCH(C140,Traktion!$B$2:$B$3,0)) & INDEX(Ladungsart!$A$2:$A$4, MATCH(D140,Ladungsart!$B$2:$B$4,0)), Energieverbrauch!$E$2:$E$55, 0))) ->  | K140: =IF(G140="","",IF(C140="Diesel",J140/CO2_Faktoren!$B$8,J140)) ->  | L140: =IF(G140="","",$J140*IF($C140="Diesel",CO2_Faktoren!B$3,CO2_Faktoren!B$5)) ->  | M140: =IF(G140="","",$J140*IF($C140="Diesel",CO2_Faktoren!C$3,CO2_Faktoren!C$5)) ->  | N140: =IF(G140="","",$J140*IF($C140="Diesel",CO2_Faktoren!D$3,CO2_Faktoren!D$5)) ->  | O140: =IF(G140="","",$J140*IF($C140="Diesel",CO2_Faktoren!E$3,CO2_Faktoren!E$5)) ->  | P140: =IF(G140="","",$J140*IF($C140="Diesel",CO2_Faktoren!F$3,CO2_Faktoren!F$5)) ->  | Q140: =IF(G140="","",$J140*IF($C140="Diesel",CO2_Faktoren!G$3,CO2_Faktoren!G$5)) -> 
H141: =IF(G141="","",SUM(IF(E141=Entfernung_Güterbahnhöfe!$A$2:$A$100000,1,0)*IF(F141=Entfernung_Güterbahnhöfe!$B$2:$B$100000,1,0)*Entfernung_Güterbahnhöfe!$C$2:$C$100000)) ->  | I141: =IF(G141="","",INDEX(Energieverbrauch!$F$2:$F$55, MATCH( INDEX(Zugtypen!$A$2:$A$4, MATCH(A141,Zugtypen!$B$2:$B$4,0)) & INDEX(FahrttypenTopologie!$A$2:$A$4, MATCH(B141,FahrttypenTopologie!$B$2:$B$4,0)) & INDEX(Traktion!$A$2:$A$3, MATCH(C141,Traktion!$B$2:$B$3,0)) & INDEX(Ladungsart!$A$2:$A$4, MATCH(D141,Ladungsart!$B$2:$B$4,0)), Energieverbrauch!$E$2:$E$55, 0))) ->  | K141: =IF(G141="","",IF(C141="Diesel",J141/CO2_Faktoren!$B$8,J141)) ->  | L141: =IF(G141="","",$J141*IF($C141="Diesel",CO2_Faktoren!B$3,CO2_Faktoren!B$5)) ->  | M141: =IF(G141="","",$J141*IF($C141="Diesel",CO2_Faktoren!C$3,CO2_Faktoren!C$5)) ->  | N141: =IF(G141="","",$J141*IF($C141="Diesel",CO2_Faktoren!D$3,CO2_Faktoren!D$5)) ->  | O141: =IF(G141="","",$J141*IF($C141="Diesel",CO2_Faktoren!E$3,CO2_Faktoren!E$5)) ->  | P141: =IF(G141="","",$J141*IF($C141="Diesel",CO2_Faktoren!F$3,CO2_Faktoren!F$5)) ->  | Q141: =IF(G141="","",$J141*IF($C141="Diesel",CO2_Faktoren!G$3,CO2_Faktoren!G$5)) -> 
H142: =IF(G142="","",SUM(IF(E142=Entfernung_Güterbahnhöfe!$A$2:$A$100000,1,0)*IF(F142=Entfernung_Güterbahnhöfe!$B$2:$B$100000,1,0)*Entfernung_Güterbahnhöfe!$C$2:$C$100000)) ->  | I142: =IF(G142="","",INDEX(Energieverbrauch!$F$2:$F$55, MATCH( INDEX(Zugtypen!$A$2:$A$4, MATCH(A142,Zugtypen!$B$2:$B$4,0)) & INDEX(FahrttypenTopologie!$A$2:$A$4, MATCH(B142,FahrttypenTopologie!$B$2:$B$4,0)) & INDEX(Traktion!$A$2:$A$3, MATCH(C142,Traktion!$B$2:$B$3,0)) & INDEX(Ladungsart!$A$2:$A$4, MATCH(D142,Ladungsart!$B$2:$B$4,0)), Energieverbrauch!$E$2:$E$55, 0))) ->  | K142: =IF(G142="","",IF(C142="Diesel",J142/CO2_Faktoren!$B$8,J142)) ->  | L142: =IF(G142="","",$J142*IF($C142="Diesel",CO2_Faktoren!B$3,CO2_Faktoren!B$5)) ->  | M142: =IF(G142="","",$J142*IF($C142="Diesel",CO2_Faktoren!C$3,CO2_Faktoren!C$5)) ->  | N142: =IF(G142="","",$J142*IF($C142="Diesel",CO2_Faktoren!D$3,CO2_Faktoren!D$5)) ->  | O142: =IF(G142="","",$J142*IF($C142="Diesel",CO2_Faktoren!E$3,CO2_Faktoren!E$5)) ->  | P142: =IF(G142="","",$J142*IF($C142="Diesel",CO2_Faktoren!F$3,CO2_Faktoren!F$5)) ->  | Q142: =IF(G142="","",$J142*IF($C142="Diesel",CO2_Faktoren!G$3,CO2_Faktoren!G$5)) -> 
H143: =IF(G143="","",SUM(IF(E143=Entfernung_Güterbahnhöfe!$A$2:$A$100000,1,0)*IF(F143=Entfernung_Güterbahnhöfe!$B$2:$B$100000,1,0)*Entfernung_Güterbahnhöfe!$C$2:$C$100000)) ->  | I143: =IF(G143="","",INDEX(Energieverbrauch!$F$2:$F$55, MATCH( INDEX(Zugtypen!$A$2:$A$4, MATCH(A143,Zugtypen!$B$2:$B$4,0)) & INDEX(FahrttypenTopologie!$A$2:$A$4, MATCH(B143,FahrttypenTopologie!$B$2:$B$4,0)) & INDEX(Traktion!$A$2:$A$3, MATCH(C143,Traktion!$B$2:$B$3,0)) & INDEX(Ladungsart!$A$2:$A$4, MATCH(D143,Ladungsart!$B$2:$B$4,0)), Energieverbrauch!$E$2:$E$55, 0))) ->  | K143: =IF(G143="","",IF(C143="Diesel",J143/CO2_Faktoren!$B$8,J143)) ->  | L143: =IF(G143="","",$J143*IF($C143="Diesel",CO2_Faktoren!B$3,CO2_Faktoren!B$5)) ->  | M143: =IF(G143="","",$J143*IF($C143="Diesel",CO2_Faktoren!C$3,CO2_Faktoren!C$5)) ->  | N143: =IF(G143="","",$J143*IF($C143="Diesel",CO2_Faktoren!D$3,CO2_Faktoren!D$5)) ->  | O143: =IF(G143="","",$J143*IF($C143="Diesel",CO2_Faktoren!E$3,CO2_Faktoren!E$5)) ->  | P143: =IF(G143="","",$J143*IF($C143="Diesel",CO2_Faktoren!F$3,CO2_Faktoren!F$5)) ->  | Q143: =IF(G143="","",$J143*IF($C143="Diesel",CO2_Faktoren!G$3,CO2_Faktoren!G$5)) -> 
H144: =IF(G144="","",SUM(IF(E144=Entfernung_Güterbahnhöfe!$A$2:$A$100000,1,0)*IF(F144=Entfernung_Güterbahnhöfe!$B$2:$B$100000,1,0)*Entfernung_Güterbahnhöfe!$C$2:$C$100000)) ->  | I144: =IF(G144="","",INDEX(Energieverbrauch!$F$2:$F$55, MATCH( INDEX(Zugtypen!$A$2:$A$4, MATCH(A144,Zugtypen!$B$2:$B$4,0)) & INDEX(FahrttypenTopologie!$A$2:$A$4, MATCH(B144,FahrttypenTopologie!$B$2:$B$4,0)) & INDEX(Traktion!$A$2:$A$3, MATCH(C144,Traktion!$B$2:$B$3,0)) & INDEX(Ladungsart!$A$2:$A$4, MATCH(D144,Ladungsart!$B$2:$B$4,0)), Energieverbrauch!$E$2:$E$55, 0))) ->  | K144: =IF(G144="","",IF(C144="Diesel",J144/CO2_Faktoren!$B$8,J144)) ->  | L144: =IF(G144="","",$J144*IF($C144="Diesel",CO2_Faktoren!B$3,CO2_Faktoren!B$5)) ->  | M144: =IF(G144="","",$J144*IF($C144="Diesel",CO2_Faktoren!C$3,CO2_Faktoren!C$5)) ->  | N144: =IF(G144="","",$J144*IF($C144="Diesel",CO2_Faktoren!D$3,CO2_Faktoren!D$5)) ->  | O144: =IF(G144="","",$J144*IF($C144="Diesel",CO2_Faktoren!E$3,CO2_Faktoren!E$5)) ->  | P144: =IF(G144="","",$J144*IF($C144="Diesel",CO2_Faktoren!F$3,CO2_Faktoren!F$5)) ->  | Q144: =IF(G144="","",$J144*IF($C144="Diesel",CO2_Faktoren!G$3,CO2_Faktoren!G$5)) -> 
H145: =IF(G145="","",SUM(IF(E145=Entfernung_Güterbahnhöfe!$A$2:$A$100000,1,0)*IF(F145=Entfernung_Güterbahnhöfe!$B$2:$B$100000,1,0)*Entfernung_Güterbahnhöfe!$C$2:$C$100000)) ->  | I145: =IF(G145="","",INDEX(Energieverbrauch!$F$2:$F$55, MATCH( INDEX(Zugtypen!$A$2:$A$4, MATCH(A145,Zugtypen!$B$2:$B$4,0)) & INDEX(FahrttypenTopologie!$A$2:$A$4, MATCH(B145,FahrttypenTopologie!$B$2:$B$4,0)) & INDEX(Traktion!$A$2:$A$3, MATCH(C145,Traktion!$B$2:$B$3,0)) & INDEX(Ladungsart!$A$2:$A$4, MATCH(D145,Ladungsart!$B$2:$B$4,0)), Energieverbrauch!$E$2:$E$55, 0))) ->  | K145: =IF(G145="","",IF(C145="Diesel",J145/CO2_Faktoren!$B$8,J145)) ->  | L145: =IF(G145="","",$J145*IF($C145="Diesel",CO2_Faktoren!B$3,CO2_Faktoren!B$5)) ->  | M145: =IF(G145="","",$J145*IF($C145="Diesel",CO2_Faktoren!C$3,CO2_Faktoren!C$5)) ->  | N145: =IF(G145="","",$J145*IF($C145="Diesel",CO2_Faktoren!D$3,CO2_Faktoren!D$5)) ->  | O145: =IF(G145="","",$J145*IF($C145="Diesel",CO2_Faktoren!E$3,CO2_Faktoren!E$5)) ->  | P145: =IF(G145="","",$J145*IF($C145="Diesel",CO2_Faktoren!F$3,CO2_Faktoren!F$5)) ->  | Q145: =IF(G145="","",$J145*IF($C145="Diesel",CO2_Faktoren!G$3,CO2_Faktoren!G$5)) -> 
H146: =IF(G146="","",SUM(IF(E146=Entfernung_Güterbahnhöfe!$A$2:$A$100000,1,0)*IF(F146=Entfernung_Güterbahnhöfe!$B$2:$B$100000,1,0)*Entfernung_Güterbahnhöfe!$C$2:$C$100000)) ->  | I146: =IF(G146="","",INDEX(Energieverbrauch!$F$2:$F$55, MATCH( INDEX(Zugtypen!$A$2:$A$4, MATCH(A146,Zugtypen!$B$2:$B$4,0)) & INDEX(FahrttypenTopologie!$A$2:$A$4, MATCH(B146,FahrttypenTopologie!$B$2:$B$4,0)) & INDEX(Traktion!$A$2:$A$3, MATCH(C146,Traktion!$B$2:$B$3,0)) & INDEX(Ladungsart!$A$2:$A$4, MATCH(D146,Ladungsart!$B$2:$B$4,0)), Energieverbrauch!$E$2:$E$55, 0))) ->  | K146: =IF(G146="","",IF(C146="Diesel",J146/CO2_Faktoren!$B$8,J146)) ->  | L146: =IF(G146="","",$J146*IF($C146="Diesel",CO2_Faktoren!B$3,CO2_Faktoren!B$5)) ->  | M146: =IF(G146="","",$J146*IF($C146="Diesel",CO2_Faktoren!C$3,CO2_Faktoren!C$5)) ->  | N146: =IF(G146="","",$J146*IF($C146="Diesel",CO2_Faktoren!D$3,CO2_Faktoren!D$5)) ->  | O146: =IF(G146="","",$J146*IF($C146="Diesel",CO2_Faktoren!E$3,CO2_Faktoren!E$5)) ->  | P146: =IF(G146="","",$J146*IF($C146="Diesel",CO2_Faktoren!F$3,CO2_Faktoren!F$5)) ->  | Q146: =IF(G146="","",$J146*IF($C146="Diesel",CO2_Faktoren!G$3,CO2_Faktoren!G$5)) -> 
H147: =IF(G147="","",SUM(IF(E147=Entfernung_Güterbahnhöfe!$A$2:$A$100000,1,0)*IF(F147=Entfernung_Güterbahnhöfe!$B$2:$B$100000,1,0)*Entfernung_Güterbahnhöfe!$C$2:$C$100000)) ->  | I147: =IF(G147="","",INDEX(Energieverbrauch!$F$2:$F$55, MATCH( INDEX(Zugtypen!$A$2:$A$4, MATCH(A147,Zugtypen!$B$2:$B$4,0)) & INDEX(FahrttypenTopologie!$A$2:$A$4, MATCH(B147,FahrttypenTopologie!$B$2:$B$4,0)) & INDEX(Traktion!$A$2:$A$3, MATCH(C147,Traktion!$B$2:$B$3,0)) & INDEX(Ladungsart!$A$2:$A$4, MATCH(D147,Ladungsart!$B$2:$B$4,0)), Energieverbrauch!$E$2:$E$55, 0))) ->  | K147: =IF(G147="","",IF(C147="Diesel",J147/CO2_Faktoren!$B$8,J147)) ->  | L147: =IF(G147="","",$J147*IF($C147="Diesel",CO2_Faktoren!B$3,CO2_Faktoren!B$5)) ->  | M147: =IF(G147="","",$J147*IF($C147="Diesel",CO2_Faktoren!C$3,CO2_Faktoren!C$5)) ->  | N147: =IF(G147="","",$J147*IF($C147="Diesel",CO2_Faktoren!D$3,CO2_Faktoren!D$5)) ->  | O147: =IF(G147="","",$J147*IF($C147="Diesel",CO2_Faktoren!E$3,CO2_Faktoren!E$5)) ->  | P147: =IF(G147="","",$J147*IF($C147="Diesel",CO2_Faktoren!F$3,CO2_Faktoren!F$5)) ->  | Q147: =IF(G147="","",$J147*IF($C147="Diesel",CO2_Faktoren!G$3,CO2_Faktoren!G$5)) -> 
H148: =IF(G148="","",SUM(IF(E148=Entfernung_Güterbahnhöfe!$A$2:$A$100000,1,0)*IF(F148=Entfernung_Güterbahnhöfe!$B$2:$B$100000,1,0)*Entfernung_Güterbahnhöfe!$C$2:$C$100000)) ->  | I148: =IF(G148="","",INDEX(Energieverbrauch!$F$2:$F$55, MATCH( INDEX(Zugtypen!$A$2:$A$4, MATCH(A148,Zugtypen!$B$2:$B$4,0)) & INDEX(FahrttypenTopologie!$A$2:$A$4, MATCH(B148,FahrttypenTopologie!$B$2:$B$4,0)) & INDEX(Traktion!$A$2:$A$3, MATCH(C148,Traktion!$B$2:$B$3,0)) & INDEX(Ladungsart!$A$2:$A$4, MATCH(D148,Ladungsart!$B$2:$B$4,0)), Energieverbrauch!$E$2:$E$55, 0))) ->  | K148: =IF(G148="","",IF(C148="Diesel",J148/CO2_Faktoren!$B$8,J148)) ->  | L148: =IF(G148="","",$J148*IF($C148="Diesel",CO2_Faktoren!B$3,CO2_Faktoren!B$5)) ->  | M148: =IF(G148="","",$J148*IF($C148="Diesel",CO2_Faktoren!C$3,CO2_Faktoren!C$5)) ->  | N148: =IF(G148="","",$J148*IF($C148="Diesel",CO2_Faktoren!D$3,CO2_Faktoren!D$5)) ->  | O148: =IF(G148="","",$J148*IF($C148="Diesel",CO2_Faktoren!E$3,CO2_Faktoren!E$5)) ->  | P148: =IF(G148="","",$J148*IF($C148="Diesel",CO2_Faktoren!F$3,CO2_Faktoren!F$5)) ->  | Q148: =IF(G148="","",$J148*IF($C148="Diesel",CO2_Faktoren!G$3,CO2_Faktoren!G$5)) -> 
H149: =IF(G149="","",SUM(IF(E149=Entfernung_Güterbahnhöfe!$A$2:$A$100000,1,0)*IF(F149=Entfernung_Güterbahnhöfe!$B$2:$B$100000,1,0)*Entfernung_Güterbahnhöfe!$C$2:$C$100000)) ->  | I149: =IF(G149="","",INDEX(Energieverbrauch!$F$2:$F$55, MATCH( INDEX(Zugtypen!$A$2:$A$4, MATCH(A149,Zugtypen!$B$2:$B$4,0)) & INDEX(FahrttypenTopologie!$A$2:$A$4, MATCH(B149,FahrttypenTopologie!$B$2:$B$4,0)) & INDEX(Traktion!$A$2:$A$3, MATCH(C149,Traktion!$B$2:$B$3,0)) & INDEX(Ladungsart!$A$2:$A$4, MATCH(D149,Ladungsart!$B$2:$B$4,0)), Energieverbrauch!$E$2:$E$55, 0))) ->  | K149: =IF(G149="","",IF(C149="Diesel",J149/CO2_Faktoren!$B$8,J149)) ->  | L149: =IF(G149="","",$J149*IF($C149="Diesel",CO2_Faktoren!B$3,CO2_Faktoren!B$5)) ->  | M149: =IF(G149="","",$J149*IF($C149="Diesel",CO2_Faktoren!C$3,CO2_Faktoren!C$5)) ->  | N149: =IF(G149="","",$J149*IF($C149="Diesel",CO2_Faktoren!D$3,CO2_Faktoren!D$5)) ->  | O149: =IF(G149="","",$J149*IF($C149="Diesel",CO2_Faktoren!E$3,CO2_Faktoren!E$5)) ->  | P149: =IF(G149="","",$J149*IF($C149="Diesel",CO2_Faktoren!F$3,CO2_Faktoren!F$5)) ->  | Q149: =IF(G149="","",$J149*IF($C149="Diesel",CO2_Faktoren!G$3,CO2_Faktoren!G$5)) -> 
H150: =IF(G150="","",SUM(IF(E150=Entfernung_Güterbahnhöfe!$A$2:$A$100000,1,0)*IF(F150=Entfernung_Güterbahnhöfe!$B$2:$B$100000,1,0)*Entfernung_Güterbahnhöfe!$C$2:$C$100000)) ->  | I150: =IF(G150="","",INDEX(Energieverbrauch!$F$2:$F$55, MATCH( INDEX(Zugtypen!$A$2:$A$4, MATCH(A150,Zugtypen!$B$2:$B$4,0)) & INDEX(FahrttypenTopologie!$A$2:$A$4, MATCH(B150,FahrttypenTopologie!$B$2:$B$4,0)) & INDEX(Traktion!$A$2:$A$3, MATCH(C150,Traktion!$B$2:$B$3,0)) & INDEX(Ladungsart!$A$2:$A$4, MATCH(D150,Ladungsart!$B$2:$B$4,0)), Energieverbrauch!$E$2:$E$55, 0))) ->  | K150: =IF(G150="","",IF(C150="Diesel",J150/CO2_Faktoren!$B$8,J150)) ->  | L150: =IF(G150="","",$J150*IF($C150="Diesel",CO2_Faktoren!B$3,CO2_Faktoren!B$5)) ->  | M150: =IF(G150="","",$J150*IF($C150="Diesel",CO2_Faktoren!C$3,CO2_Faktoren!C$5)) ->  | N150: =IF(G150="","",$J150*IF($C150="Diesel",CO2_Faktoren!D$3,CO2_Faktoren!D$5)) ->  | O150: =IF(G150="","",$J150*IF($C150="Diesel",CO2_Faktoren!E$3,CO2_Faktoren!E$5)) ->  | P150: =IF(G150="","",$J150*IF($C150="Diesel",CO2_Faktoren!F$3,CO2_Faktoren!F$5)) ->  | Q150: =IF(G150="","",$J150*IF($C150="Diesel",CO2_Faktoren!G$3,CO2_Faktoren!G$5)) -> 
H151: =IF(G151="","",SUM(IF(E151=Entfernung_Güterbahnhöfe!$A$2:$A$100000,1,0)*IF(F151=Entfernung_Güterbahnhöfe!$B$2:$B$100000,1,0)*Entfernung_Güterbahnhöfe!$C$2:$C$100000)) ->  | I151: =IF(G151="","",INDEX(Energieverbrauch!$F$2:$F$55, MATCH( INDEX(Zugtypen!$A$2:$A$4, MATCH(A151,Zugtypen!$B$2:$B$4,0)) & INDEX(FahrttypenTopologie!$A$2:$A$4, MATCH(B151,FahrttypenTopologie!$B$2:$B$4,0)) & INDEX(Traktion!$A$2:$A$3, MATCH(C151,Traktion!$B$2:$B$3,0)) & INDEX(Ladungsart!$A$2:$A$4, MATCH(D151,Ladungsart!$B$2:$B$4,0)), Energieverbrauch!$E$2:$E$55, 0))) ->  | K151: =IF(G151="","",IF(C151="Diesel",J151/CO2_Faktoren!$B$8,J151)) ->  | L151: =IF(G151="","",$J151*IF($C151="Diesel",CO2_Faktoren!B$3,CO2_Faktoren!B$5)) ->  | M151: =IF(G151="","",$J151*IF($C151="Diesel",CO2_Faktoren!C$3,CO2_Faktoren!C$5)) ->  | N151: =IF(G151="","",$J151*IF($C151="Diesel",CO2_Faktoren!D$3,CO2_Faktoren!D$5)) ->  | O151: =IF(G151="","",$J151*IF($C151="Diesel",CO2_Faktoren!E$3,CO2_Faktoren!E$5)) ->  | P151: =IF(G151="","",$J151*IF($C151="Diesel",CO2_Faktoren!F$3,CO2_Faktoren!F$5)) ->  | Q151: =IF(G151="","",$J151*IF($C151="Diesel",CO2_Faktoren!G$3,CO2_Faktoren!G$5)) -> 
H152: =IF(G152="","",SUM(IF(E152=Entfernung_Güterbahnhöfe!$A$2:$A$100000,1,0)*IF(F152=Entfernung_Güterbahnhöfe!$B$2:$B$100000,1,0)*Entfernung_Güterbahnhöfe!$C$2:$C$100000)) ->  | I152: =IF(G152="","",INDEX(Energieverbrauch!$F$2:$F$55, MATCH( INDEX(Zugtypen!$A$2:$A$4, MATCH(A152,Zugtypen!$B$2:$B$4,0)) & INDEX(FahrttypenTopologie!$A$2:$A$4, MATCH(B152,FahrttypenTopologie!$B$2:$B$4,0)) & INDEX(Traktion!$A$2:$A$3, MATCH(C152,Traktion!$B$2:$B$3,0)) & INDEX(Ladungsart!$A$2:$A$4, MATCH(D152,Ladungsart!$B$2:$B$4,0)), Energieverbrauch!$E$2:$E$55, 0))) ->  | K152: =IF(G152="","",IF(C152="Diesel",J152/CO2_Faktoren!$B$8,J152)) ->  | L152: =IF(G152="","",$J152*IF($C152="Diesel",CO2_Faktoren!B$3,CO2_Faktoren!B$5)) ->  | M152: =IF(G152="","",$J152*IF($C152="Diesel",CO2_Faktoren!C$3,CO2_Faktoren!C$5)) ->  | N152: =IF(G152="","",$J152*IF($C152="Diesel",CO2_Faktoren!D$3,CO2_Faktoren!D$5)) ->  | O152: =IF(G152="","",$J152*IF($C152="Diesel",CO2_Faktoren!E$3,CO2_Faktoren!E$5)) ->  | P152: =IF(G152="","",$J152*IF($C152="Diesel",CO2_Faktoren!F$3,CO2_Faktoren!F$5)) ->  | Q152: =IF(G152="","",$J152*IF($C152="Diesel",CO2_Faktoren!G$3,CO2_Faktoren!G$5)) -> 
H153: =IF(G153="","",SUM(IF(E153=Entfernung_Güterbahnhöfe!$A$2:$A$100000,1,0)*IF(F153=Entfernung_Güterbahnhöfe!$B$2:$B$100000,1,0)*Entfernung_Güterbahnhöfe!$C$2:$C$100000)) ->  | I153: =IF(G153="","",INDEX(Energieverbrauch!$F$2:$F$55, MATCH( INDEX(Zugtypen!$A$2:$A$4, MATCH(A153,Zugtypen!$B$2:$B$4,0)) & INDEX(FahrttypenTopologie!$A$2:$A$4, MATCH(B153,FahrttypenTopologie!$B$2:$B$4,0)) & INDEX(Traktion!$A$2:$A$3, MATCH(C153,Traktion!$B$2:$B$3,0)) & INDEX(Ladungsart!$A$2:$A$4, MATCH(D153,Ladungsart!$B$2:$B$4,0)), Energieverbrauch!$E$2:$E$55, 0))) ->  | K153: =IF(G153="","",IF(C153="Diesel",J153/CO2_Faktoren!$B$8,J153)) ->  | L153: =IF(G153="","",$J153*IF($C153="Diesel",CO2_Faktoren!B$3,CO2_Faktoren!B$5)) ->  | M153: =IF(G153="","",$J153*IF($C153="Diesel",CO2_Faktoren!C$3,CO2_Faktoren!C$5)) ->  | N153: =IF(G153="","",$J153*IF($C153="Diesel",CO2_Faktoren!D$3,CO2_Faktoren!D$5)) ->  | O153: =IF(G153="","",$J153*IF($C153="Diesel",CO2_Faktoren!E$3,CO2_Faktoren!E$5)) ->  | P153: =IF(G153="","",$J153*IF($C153="Diesel",CO2_Faktoren!F$3,CO2_Faktoren!F$5)) ->  | Q153: =IF(G153="","",$J153*IF($C153="Diesel",CO2_Faktoren!G$3,CO2_Faktoren!G$5)) -> 
H154: =IF(G154="","",SUM(IF(E154=Entfernung_Güterbahnhöfe!$A$2:$A$100000,1,0)*IF(F154=Entfernung_Güterbahnhöfe!$B$2:$B$100000,1,0)*Entfernung_Güterbahnhöfe!$C$2:$C$100000)) ->  | I154: =IF(G154="","",INDEX(Energieverbrauch!$F$2:$F$55, MATCH( INDEX(Zugtypen!$A$2:$A$4, MATCH(A154,Zugtypen!$B$2:$B$4,0)) & INDEX(FahrttypenTopologie!$A$2:$A$4, MATCH(B154,FahrttypenTopologie!$B$2:$B$4,0)) & INDEX(Traktion!$A$2:$A$3, MATCH(C154,Traktion!$B$2:$B$3,0)) & INDEX(Ladungsart!$A$2:$A$4, MATCH(D154,Ladungsart!$B$2:$B$4,0)), Energieverbrauch!$E$2:$E$55, 0))) ->  | K154: =IF(G154="","",IF(C154="Diesel",J154/CO2_Faktoren!$B$8,J154)) ->  | L154: =IF(G154="","",$J154*IF($C154="Diesel",CO2_Faktoren!B$3,CO2_Faktoren!B$5)) ->  | M154: =IF(G154="","",$J154*IF($C154="Diesel",CO2_Faktoren!C$3,CO2_Faktoren!C$5)) ->  | N154: =IF(G154="","",$J154*IF($C154="Diesel",CO2_Faktoren!D$3,CO2_Faktoren!D$5)) ->  | O154: =IF(G154="","",$J154*IF($C154="Diesel",CO2_Faktoren!E$3,CO2_Faktoren!E$5)) ->  | P154: =IF(G154="","",$J154*IF($C154="Diesel",CO2_Faktoren!F$3,CO2_Faktoren!F$5)) ->  | Q154: =IF(G154="","",$J154*IF($C154="Diesel",CO2_Faktoren!G$3,CO2_Faktoren!G$5)) -> 
H155: =IF(G155="","",SUM(IF(E155=Entfernung_Güterbahnhöfe!$A$2:$A$100000,1,0)*IF(F155=Entfernung_Güterbahnhöfe!$B$2:$B$100000,1,0)*Entfernung_Güterbahnhöfe!$C$2:$C$100000)) ->  | I155: =IF(G155="","",INDEX(Energieverbrauch!$F$2:$F$55, MATCH( INDEX(Zugtypen!$A$2:$A$4, MATCH(A155,Zugtypen!$B$2:$B$4,0)) & INDEX(FahrttypenTopologie!$A$2:$A$4, MATCH(B155,FahrttypenTopologie!$B$2:$B$4,0)) & INDEX(Traktion!$A$2:$A$3, MATCH(C155,Traktion!$B$2:$B$3,0)) & INDEX(Ladungsart!$A$2:$A$4, MATCH(D155,Ladungsart!$B$2:$B$4,0)), Energieverbrauch!$E$2:$E$55, 0))) ->  | K155: =IF(G155="","",IF(C155="Diesel",J155/CO2_Faktoren!$B$8,J155)) ->  | L155: =IF(G155="","",$J155*IF($C155="Diesel",CO2_Faktoren!B$3,CO2_Faktoren!B$5)) ->  | M155: =IF(G155="","",$J155*IF($C155="Diesel",CO2_Faktoren!C$3,CO2_Faktoren!C$5)) ->  | N155: =IF(G155="","",$J155*IF($C155="Diesel",CO2_Faktoren!D$3,CO2_Faktoren!D$5)) ->  | O155: =IF(G155="","",$J155*IF($C155="Diesel",CO2_Faktoren!E$3,CO2_Faktoren!E$5)) ->  | P155: =IF(G155="","",$J155*IF($C155="Diesel",CO2_Faktoren!F$3,CO2_Faktoren!F$5)) ->  | Q155: =IF(G155="","",$J155*IF($C155="Diesel",CO2_Faktoren!G$3,CO2_Faktoren!G$5)) -> 
H156: =IF(G156="","",SUM(IF(E156=Entfernung_Güterbahnhöfe!$A$2:$A$100000,1,0)*IF(F156=Entfernung_Güterbahnhöfe!$B$2:$B$100000,1,0)*Entfernung_Güterbahnhöfe!$C$2:$C$100000)) ->  | I156: =IF(G156="","",INDEX(Energieverbrauch!$F$2:$F$55, MATCH( INDEX(Zugtypen!$A$2:$A$4, MATCH(A156,Zugtypen!$B$2:$B$4,0)) & INDEX(FahrttypenTopologie!$A$2:$A$4, MATCH(B156,FahrttypenTopologie!$B$2:$B$4,0)) & INDEX(Traktion!$A$2:$A$3, MATCH(C156,Traktion!$B$2:$B$3,0)) & INDEX(Ladungsart!$A$2:$A$4, MATCH(D156,Ladungsart!$B$2:$B$4,0)), Energieverbrauch!$E$2:$E$55, 0))) ->  | K156: =IF(G156="","",IF(C156="Diesel",J156/CO2_Faktoren!$B$8,J156)) ->  | L156: =IF(G156="","",$J156*IF($C156="Diesel",CO2_Faktoren!B$3,CO2_Faktoren!B$5)) ->  | M156: =IF(G156="","",$J156*IF($C156="Diesel",CO2_Faktoren!C$3,CO2_Faktoren!C$5)) ->  | N156: =IF(G156="","",$J156*IF($C156="Diesel",CO2_Faktoren!D$3,CO2_Faktoren!D$5)) ->  | O156: =IF(G156="","",$J156*IF($C156="Diesel",CO2_Faktoren!E$3,CO2_Faktoren!E$5)) ->  | P156: =IF(G156="","",$J156*IF($C156="Diesel",CO2_Faktoren!F$3,CO2_Faktoren!F$5)) ->  | Q156: =IF(G156="","",$J156*IF($C156="Diesel",CO2_Faktoren!G$3,CO2_Faktoren!G$5)) -> 
H157: =IF(G157="","",SUM(IF(E157=Entfernung_Güterbahnhöfe!$A$2:$A$100000,1,0)*IF(F157=Entfernung_Güterbahnhöfe!$B$2:$B$100000,1,0)*Entfernung_Güterbahnhöfe!$C$2:$C$100000)) ->  | I157: =IF(G157="","",INDEX(Energieverbrauch!$F$2:$F$55, MATCH( INDEX(Zugtypen!$A$2:$A$4, MATCH(A157,Zugtypen!$B$2:$B$4,0)) & INDEX(FahrttypenTopologie!$A$2:$A$4, MATCH(B157,FahrttypenTopologie!$B$2:$B$4,0)) & INDEX(Traktion!$A$2:$A$3, MATCH(C157,Traktion!$B$2:$B$3,0)) & INDEX(Ladungsart!$A$2:$A$4, MATCH(D157,Ladungsart!$B$2:$B$4,0)), Energieverbrauch!$E$2:$E$55, 0))) ->  | K157: =IF(G157="","",IF(C157="Diesel",J157/CO2_Faktoren!$B$8,J157)) ->  | L157: =IF(G157="","",$J157*IF($C157="Diesel",CO2_Faktoren!B$3,CO2_Faktoren!B$5)) ->  | M157: =IF(G157="","",$J157*IF($C157="Diesel",CO2_Faktoren!C$3,CO2_Faktoren!C$5)) ->  | N157: =IF(G157="","",$J157*IF($C157="Diesel",CO2_Faktoren!D$3,CO2_Faktoren!D$5)) ->  | O157: =IF(G157="","",$J157*IF($C157="Diesel",CO2_Faktoren!E$3,CO2_Faktoren!E$5)) ->  | P157: =IF(G157="","",$J157*IF($C157="Diesel",CO2_Faktoren!F$3,CO2_Faktoren!F$5)) ->  | Q157: =IF(G157="","",$J157*IF($C157="Diesel",CO2_Faktoren!G$3,CO2_Faktoren!G$5)) -> 
H158: =IF(G158="","",SUM(IF(E158=Entfernung_Güterbahnhöfe!$A$2:$A$100000,1,0)*IF(F158=Entfernung_Güterbahnhöfe!$B$2:$B$100000,1,0)*Entfernung_Güterbahnhöfe!$C$2:$C$100000)) ->  | I158: =IF(G158="","",INDEX(Energieverbrauch!$F$2:$F$55, MATCH( INDEX(Zugtypen!$A$2:$A$4, MATCH(A158,Zugtypen!$B$2:$B$4,0)) & INDEX(FahrttypenTopologie!$A$2:$A$4, MATCH(B158,FahrttypenTopologie!$B$2:$B$4,0)) & INDEX(Traktion!$A$2:$A$3, MATCH(C158,Traktion!$B$2:$B$3,0)) & INDEX(Ladungsart!$A$2:$A$4, MATCH(D158,Ladungsart!$B$2:$B$4,0)), Energieverbrauch!$E$2:$E$55, 0))) ->  | K158: =IF(G158="","",IF(C158="Diesel",J158/CO2_Faktoren!$B$8,J158)) ->  | L158: =IF(G158="","",$J158*IF($C158="Diesel",CO2_Faktoren!B$3,CO2_Faktoren!B$5)) ->  | M158: =IF(G158="","",$J158*IF($C158="Diesel",CO2_Faktoren!C$3,CO2_Faktoren!C$5)) ->  | N158: =IF(G158="","",$J158*IF($C158="Diesel",CO2_Faktoren!D$3,CO2_Faktoren!D$5)) ->  | O158: =IF(G158="","",$J158*IF($C158="Diesel",CO2_Faktoren!E$3,CO2_Faktoren!E$5)) ->  | P158: =IF(G158="","",$J158*IF($C158="Diesel",CO2_Faktoren!F$3,CO2_Faktoren!F$5)) ->  | Q158: =IF(G158="","",$J158*IF($C158="Diesel",CO2_Faktoren!G$3,CO2_Faktoren!G$5)) -> 
H159: =IF(G159="","",SUM(IF(E159=Entfernung_Güterbahnhöfe!$A$2:$A$100000,1,0)*IF(F159=Entfernung_Güterbahnhöfe!$B$2:$B$100000,1,0)*Entfernung_Güterbahnhöfe!$C$2:$C$100000)) ->  | I159: =IF(G159="","",INDEX(Energieverbrauch!$F$2:$F$55, MATCH( INDEX(Zugtypen!$A$2:$A$4, MATCH(A159,Zugtypen!$B$2:$B$4,0)) & INDEX(FahrttypenTopologie!$A$2:$A$4, MATCH(B159,FahrttypenTopologie!$B$2:$B$4,0)) & INDEX(Traktion!$A$2:$A$3, MATCH(C159,Traktion!$B$2:$B$3,0)) & INDEX(Ladungsart!$A$2:$A$4, MATCH(D159,Ladungsart!$B$2:$B$4,0)), Energieverbrauch!$E$2:$E$55, 0))) ->  | K159: =IF(G159="","",IF(C159="Diesel",J159/CO2_Faktoren!$B$8,J159)) ->  | L159: =IF(G159="","",$J159*IF($C159="Diesel",CO2_Faktoren!B$3,CO2_Faktoren!B$5)) ->  | M159: =IF(G159="","",$J159*IF($C159="Diesel",CO2_Faktoren!C$3,CO2_Faktoren!C$5)) ->  | N159: =IF(G159="","",$J159*IF($C159="Diesel",CO2_Faktoren!D$3,CO2_Faktoren!D$5)) ->  | O159: =IF(G159="","",$J159*IF($C159="Diesel",CO2_Faktoren!E$3,CO2_Faktoren!E$5)) ->  | P159: =IF(G159="","",$J159*IF($C159="Diesel",CO2_Faktoren!F$3,CO2_Faktoren!F$5)) ->  | Q159: =IF(G159="","",$J159*IF($C159="Diesel",CO2_Faktoren!G$3,CO2_Faktoren!G$5)) -> 
H160: =IF(G160="","",SUM(IF(E160=Entfernung_Güterbahnhöfe!$A$2:$A$100000,1,0)*IF(F160=Entfernung_Güterbahnhöfe!$B$2:$B$100000,1,0)*Entfernung_Güterbahnhöfe!$C$2:$C$100000)) ->  | I160: =IF(G160="","",INDEX(Energieverbrauch!$F$2:$F$55, MATCH( INDEX(Zugtypen!$A$2:$A$4, MATCH(A160,Zugtypen!$B$2:$B$4,0)) & INDEX(FahrttypenTopologie!$A$2:$A$4, MATCH(B160,FahrttypenTopologie!$B$2:$B$4,0)) & INDEX(Traktion!$A$2:$A$3, MATCH(C160,Traktion!$B$2:$B$3,0)) & INDEX(Ladungsart!$A$2:$A$4, MATCH(D160,Ladungsart!$B$2:$B$4,0)), Energieverbrauch!$E$2:$E$55, 0))) ->  | K160: =IF(G160="","",IF(C160="Diesel",J160/CO2_Faktoren!$B$8,J160)) ->  | L160: =IF(G160="","",$J160*IF($C160="Diesel",CO2_Faktoren!B$3,CO2_Faktoren!B$5)) ->  | M160: =IF(G160="","",$J160*IF($C160="Diesel",CO2_Faktoren!C$3,CO2_Faktoren!C$5)) ->  | N160: =IF(G160="","",$J160*IF($C160="Diesel",CO2_Faktoren!D$3,CO2_Faktoren!D$5)) ->  | O160: =IF(G160="","",$J160*IF($C160="Diesel",CO2_Faktoren!E$3,CO2_Faktoren!E$5)) ->  | P160: =IF(G160="","",$J160*IF($C160="Diesel",CO2_Faktoren!F$3,CO2_Faktoren!F$5)) ->  | Q160: =IF(G160="","",$J160*IF($C160="Diesel",CO2_Faktoren!G$3,CO2_Faktoren!G$5)) -> 
H161: =IF(G161="","",SUM(IF(E161=Entfernung_Güterbahnhöfe!$A$2:$A$100000,1,0)*IF(F161=Entfernung_Güterbahnhöfe!$B$2:$B$100000,1,0)*Entfernung_Güterbahnhöfe!$C$2:$C$100000)) ->  | I161: =IF(G161="","",INDEX(Energieverbrauch!$F$2:$F$55, MATCH( INDEX(Zugtypen!$A$2:$A$4, MATCH(A161,Zugtypen!$B$2:$B$4,0)) & INDEX(FahrttypenTopologie!$A$2:$A$4, MATCH(B161,FahrttypenTopologie!$B$2:$B$4,0)) & INDEX(Traktion!$A$2:$A$3, MATCH(C161,Traktion!$B$2:$B$3,0)) & INDEX(Ladungsart!$A$2:$A$4, MATCH(D161,Ladungsart!$B$2:$B$4,0)), Energieverbrauch!$E$2:$E$55, 0))) ->  | K161: =IF(G161="","",IF(C161="Diesel",J161/CO2_Faktoren!$B$8,J161)) ->  | L161: =IF(G161="","",$J161*IF($C161="Diesel",CO2_Faktoren!B$3,CO2_Faktoren!B$5)) ->  | M161: =IF(G161="","",$J161*IF($C161="Diesel",CO2_Faktoren!C$3,CO2_Faktoren!C$5)) ->  | N161: =IF(G161="","",$J161*IF($C161="Diesel",CO2_Faktoren!D$3,CO2_Faktoren!D$5)) ->  | O161: =IF(G161="","",$J161*IF($C161="Diesel",CO2_Faktoren!E$3,CO2_Faktoren!E$5)) ->  | P161: =IF(G161="","",$J161*IF($C161="Diesel",CO2_Faktoren!F$3,CO2_Faktoren!F$5)) ->  | Q161: =IF(G161="","",$J161*IF($C161="Diesel",CO2_Faktoren!G$3,CO2_Faktoren!G$5)) -> 
H162: =IF(G162="","",SUM(IF(E162=Entfernung_Güterbahnhöfe!$A$2:$A$100000,1,0)*IF(F162=Entfernung_Güterbahnhöfe!$B$2:$B$100000,1,0)*Entfernung_Güterbahnhöfe!$C$2:$C$100000)) ->  | I162: =IF(G162="","",INDEX(Energieverbrauch!$F$2:$F$55, MATCH( INDEX(Zugtypen!$A$2:$A$4, MATCH(A162,Zugtypen!$B$2:$B$4,0)) & INDEX(FahrttypenTopologie!$A$2:$A$4, MATCH(B162,FahrttypenTopologie!$B$2:$B$4,0)) & INDEX(Traktion!$A$2:$A$3, MATCH(C162,Traktion!$B$2:$B$3,0)) & INDEX(Ladungsart!$A$2:$A$4, MATCH(D162,Ladungsart!$B$2:$B$4,0)), Energieverbrauch!$E$2:$E$55, 0))) ->  | K162: =IF(G162="","",IF(C162="Diesel",J162/CO2_Faktoren!$B$8,J162)) ->  | L162: =IF(G162="","",$J162*IF($C162="Diesel",CO2_Faktoren!B$3,CO2_Faktoren!B$5)) ->  | M162: =IF(G162="","",$J162*IF($C162="Diesel",CO2_Faktoren!C$3,CO2_Faktoren!C$5)) ->  | N162: =IF(G162="","",$J162*IF($C162="Diesel",CO2_Faktoren!D$3,CO2_Faktoren!D$5)) ->  | O162: =IF(G162="","",$J162*IF($C162="Diesel",CO2_Faktoren!E$3,CO2_Faktoren!E$5)) ->  | P162: =IF(G162="","",$J162*IF($C162="Diesel",CO2_Faktoren!F$3,CO2_Faktoren!F$5)) ->  | Q162: =IF(G162="","",$J162*IF($C162="Diesel",CO2_Faktoren!G$3,CO2_Faktoren!G$5)) -> 
H163: =IF(G163="","",SUM(IF(E163=Entfernung_Güterbahnhöfe!$A$2:$A$100000,1,0)*IF(F163=Entfernung_Güterbahnhöfe!$B$2:$B$100000,1,0)*Entfernung_Güterbahnhöfe!$C$2:$C$100000)) ->  | I163: =IF(G163="","",INDEX(Energieverbrauch!$F$2:$F$55, MATCH( INDEX(Zugtypen!$A$2:$A$4, MATCH(A163,Zugtypen!$B$2:$B$4,0)) & INDEX(FahrttypenTopologie!$A$2:$A$4, MATCH(B163,FahrttypenTopologie!$B$2:$B$4,0)) & INDEX(Traktion!$A$2:$A$3, MATCH(C163,Traktion!$B$2:$B$3,0)) & INDEX(Ladungsart!$A$2:$A$4, MATCH(D163,Ladungsart!$B$2:$B$4,0)), Energieverbrauch!$E$2:$E$55, 0))) ->  | K163: =IF(G163="","",IF(C163="Diesel",J163/CO2_Faktoren!$B$8,J163)) ->  | L163: =IF(G163="","",$J163*IF($C163="Diesel",CO2_Faktoren!B$3,CO2_Faktoren!B$5)) ->  | M163: =IF(G163="","",$J163*IF($C163="Diesel",CO2_Faktoren!C$3,CO2_Faktoren!C$5)) ->  | N163: =IF(G163="","",$J163*IF($C163="Diesel",CO2_Faktoren!D$3,CO2_Faktoren!D$5)) ->  | O163: =IF(G163="","",$J163*IF($C163="Diesel",CO2_Faktoren!E$3,CO2_Faktoren!E$5)) ->  | P163: =IF(G163="","",$J163*IF($C163="Diesel",CO2_Faktoren!F$3,CO2_Faktoren!F$5)) ->  | Q163: =IF(G163="","",$J163*IF($C163="Diesel",CO2_Faktoren!G$3,CO2_Faktoren!G$5)) -> 
H164: =IF(G164="","",SUM(IF(E164=Entfernung_Güterbahnhöfe!$A$2:$A$100000,1,0)*IF(F164=Entfernung_Güterbahnhöfe!$B$2:$B$100000,1,0)*Entfernung_Güterbahnhöfe!$C$2:$C$100000)) ->  | I164: =IF(G164="","",INDEX(Energieverbrauch!$F$2:$F$55, MATCH( INDEX(Zugtypen!$A$2:$A$4, MATCH(A164,Zugtypen!$B$2:$B$4,0)) & INDEX(FahrttypenTopologie!$A$2:$A$4, MATCH(B164,FahrttypenTopologie!$B$2:$B$4,0)) & INDEX(Traktion!$A$2:$A$3, MATCH(C164,Traktion!$B$2:$B$3,0)) & INDEX(Ladungsart!$A$2:$A$4, MATCH(D164,Ladungsart!$B$2:$B$4,0)), Energieverbrauch!$E$2:$E$55, 0))) ->  | K164: =IF(G164="","",IF(C164="Diesel",J164/CO2_Faktoren!$B$8,J164)) ->  | L164: =IF(G164="","",$J164*IF($C164="Diesel",CO2_Faktoren!B$3,CO2_Faktoren!B$5)) ->  | M164: =IF(G164="","",$J164*IF($C164="Diesel",CO2_Faktoren!C$3,CO2_Faktoren!C$5)) ->  | N164: =IF(G164="","",$J164*IF($C164="Diesel",CO2_Faktoren!D$3,CO2_Faktoren!D$5)) ->  | O164: =IF(G164="","",$J164*IF($C164="Diesel",CO2_Faktoren!E$3,CO2_Faktoren!E$5)) ->  | P164: =IF(G164="","",$J164*IF($C164="Diesel",CO2_Faktoren!F$3,CO2_Faktoren!F$5)) ->  | Q164: =IF(G164="","",$J164*IF($C164="Diesel",CO2_Faktoren!G$3,CO2_Faktoren!G$5)) -> 
H165: =IF(G165="","",SUM(IF(E165=Entfernung_Güterbahnhöfe!$A$2:$A$100000,1,0)*IF(F165=Entfernung_Güterbahnhöfe!$B$2:$B$100000,1,0)*Entfernung_Güterbahnhöfe!$C$2:$C$100000)) ->  | I165: =IF(G165="","",INDEX(Energieverbrauch!$F$2:$F$55, MATCH( INDEX(Zugtypen!$A$2:$A$4, MATCH(A165,Zugtypen!$B$2:$B$4,0)) & INDEX(FahrttypenTopologie!$A$2:$A$4, MATCH(B165,FahrttypenTopologie!$B$2:$B$4,0)) & INDEX(Traktion!$A$2:$A$3, MATCH(C165,Traktion!$B$2:$B$3,0)) & INDEX(Ladungsart!$A$2:$A$4, MATCH(D165,Ladungsart!$B$2:$B$4,0)), Energieverbrauch!$E$2:$E$55, 0))) ->  | K165: =IF(G165="","",IF(C165="Diesel",J165/CO2_Faktoren!$B$8,J165)) ->  | L165: =IF(G165="","",$J165*IF($C165="Diesel",CO2_Faktoren!B$3,CO2_Faktoren!B$5)) ->  | M165: =IF(G165="","",$J165*IF($C165="Diesel",CO2_Faktoren!C$3,CO2_Faktoren!C$5)) ->  | N165: =IF(G165="","",$J165*IF($C165="Diesel",CO2_Faktoren!D$3,CO2_Faktoren!D$5)) ->  | O165: =IF(G165="","",$J165*IF($C165="Diesel",CO2_Faktoren!E$3,CO2_Faktoren!E$5)) ->  | P165: =IF(G165="","",$J165*IF($C165="Diesel",CO2_Faktoren!F$3,CO2_Faktoren!F$5)) ->  | Q165: =IF(G165="","",$J165*IF($C165="Diesel",CO2_Faktoren!G$3,CO2_Faktoren!G$5)) -> 
H166: =IF(G166="","",SUM(IF(E166=Entfernung_Güterbahnhöfe!$A$2:$A$100000,1,0)*IF(F166=Entfernung_Güterbahnhöfe!$B$2:$B$100000,1,0)*Entfernung_Güterbahnhöfe!$C$2:$C$100000)) ->  | I166: =IF(G166="","",INDEX(Energieverbrauch!$F$2:$F$55, MATCH( INDEX(Zugtypen!$A$2:$A$4, MATCH(A166,Zugtypen!$B$2:$B$4,0)) & INDEX(FahrttypenTopologie!$A$2:$A$4, MATCH(B166,FahrttypenTopologie!$B$2:$B$4,0)) & INDEX(Traktion!$A$2:$A$3, MATCH(C166,Traktion!$B$2:$B$3,0)) & INDEX(Ladungsart!$A$2:$A$4, MATCH(D166,Ladungsart!$B$2:$B$4,0)), Energieverbrauch!$E$2:$E$55, 0))) ->  | K166: =IF(G166="","",IF(C166="Diesel",J166/CO2_Faktoren!$B$8,J166)) ->  | L166: =IF(G166="","",$J166*IF($C166="Diesel",CO2_Faktoren!B$3,CO2_Faktoren!B$5)) ->  | M166: =IF(G166="","",$J166*IF($C166="Diesel",CO2_Faktoren!C$3,CO2_Faktoren!C$5)) ->  | N166: =IF(G166="","",$J166*IF($C166="Diesel",CO2_Faktoren!D$3,CO2_Faktoren!D$5)) ->  | O166: =IF(G166="","",$J166*IF($C166="Diesel",CO2_Faktoren!E$3,CO2_Faktoren!E$5)) ->  | P166: =IF(G166="","",$J166*IF($C166="Diesel",CO2_Faktoren!F$3,CO2_Faktoren!F$5)) ->  | Q166: =IF(G166="","",$J166*IF($C166="Diesel",CO2_Faktoren!G$3,CO2_Faktoren!G$5)) -> 
H167: =IF(G167="","",SUM(IF(E167=Entfernung_Güterbahnhöfe!$A$2:$A$100000,1,0)*IF(F167=Entfernung_Güterbahnhöfe!$B$2:$B$100000,1,0)*Entfernung_Güterbahnhöfe!$C$2:$C$100000)) ->  | I167: =IF(G167="","",INDEX(Energieverbrauch!$F$2:$F$55, MATCH( INDEX(Zugtypen!$A$2:$A$4, MATCH(A167,Zugtypen!$B$2:$B$4,0)) & INDEX(FahrttypenTopologie!$A$2:$A$4, MATCH(B167,FahrttypenTopologie!$B$2:$B$4,0)) & INDEX(Traktion!$A$2:$A$3, MATCH(C167,Traktion!$B$2:$B$3,0)) & INDEX(Ladungsart!$A$2:$A$4, MATCH(D167,Ladungsart!$B$2:$B$4,0)), Energieverbrauch!$E$2:$E$55, 0))) ->  | K167: =IF(G167="","",IF(C167="Diesel",J167/CO2_Faktoren!$B$8,J167)) ->  | L167: =IF(G167="","",$J167*IF($C167="Diesel",CO2_Faktoren!B$3,CO2_Faktoren!B$5)) ->  | M167: =IF(G167="","",$J167*IF($C167="Diesel",CO2_Faktoren!C$3,CO2_Faktoren!C$5)) ->  | N167: =IF(G167="","",$J167*IF($C167="Diesel",CO2_Faktoren!D$3,CO2_Faktoren!D$5)) ->  | O167: =IF(G167="","",$J167*IF($C167="Diesel",CO2_Faktoren!E$3,CO2_Faktoren!E$5)) ->  | P167: =IF(G167="","",$J167*IF($C167="Diesel",CO2_Faktoren!F$3,CO2_Faktoren!F$5)) ->  | Q167: =IF(G167="","",$J167*IF($C167="Diesel",CO2_Faktoren!G$3,CO2_Faktoren!G$5)) -> 
H168: =IF(G168="","",SUM(IF(E168=Entfernung_Güterbahnhöfe!$A$2:$A$100000,1,0)*IF(F168=Entfernung_Güterbahnhöfe!$B$2:$B$100000,1,0)*Entfernung_Güterbahnhöfe!$C$2:$C$100000)) ->  | I168: =IF(G168="","",INDEX(Energieverbrauch!$F$2:$F$55, MATCH( INDEX(Zugtypen!$A$2:$A$4, MATCH(A168,Zugtypen!$B$2:$B$4,0)) & INDEX(FahrttypenTopologie!$A$2:$A$4, MATCH(B168,FahrttypenTopologie!$B$2:$B$4,0)) & INDEX(Traktion!$A$2:$A$3, MATCH(C168,Traktion!$B$2:$B$3,0)) & INDEX(Ladungsart!$A$2:$A$4, MATCH(D168,Ladungsart!$B$2:$B$4,0)), Energieverbrauch!$E$2:$E$55, 0))) ->  | K168: =IF(G168="","",IF(C168="Diesel",J168/CO2_Faktoren!$B$8,J168)) ->  | L168: =IF(G168="","",$J168*IF($C168="Diesel",CO2_Faktoren!B$3,CO2_Faktoren!B$5)) ->  | M168: =IF(G168="","",$J168*IF($C168="Diesel",CO2_Faktoren!C$3,CO2_Faktoren!C$5)) ->  | N168: =IF(G168="","",$J168*IF($C168="Diesel",CO2_Faktoren!D$3,CO2_Faktoren!D$5)) ->  | O168: =IF(G168="","",$J168*IF($C168="Diesel",CO2_Faktoren!E$3,CO2_Faktoren!E$5)) ->  | P168: =IF(G168="","",$J168*IF($C168="Diesel",CO2_Faktoren!F$3,CO2_Faktoren!F$5)) ->  | Q168: =IF(G168="","",$J168*IF($C168="Diesel",CO2_Faktoren!G$3,CO2_Faktoren!G$5)) -> 
H169: =IF(G169="","",SUM(IF(E169=Entfernung_Güterbahnhöfe!$A$2:$A$100000,1,0)*IF(F169=Entfernung_Güterbahnhöfe!$B$2:$B$100000,1,0)*Entfernung_Güterbahnhöfe!$C$2:$C$100000)) ->  | I169: =IF(G169="","",INDEX(Energieverbrauch!$F$2:$F$55, MATCH( INDEX(Zugtypen!$A$2:$A$4, MATCH(A169,Zugtypen!$B$2:$B$4,0)) & INDEX(FahrttypenTopologie!$A$2:$A$4, MATCH(B169,FahrttypenTopologie!$B$2:$B$4,0)) & INDEX(Traktion!$A$2:$A$3, MATCH(C169,Traktion!$B$2:$B$3,0)) & INDEX(Ladungsart!$A$2:$A$4, MATCH(D169,Ladungsart!$B$2:$B$4,0)), Energieverbrauch!$E$2:$E$55, 0))) ->  | K169: =IF(G169="","",IF(C169="Diesel",J169/CO2_Faktoren!$B$8,J169)) ->  | L169: =IF(G169="","",$J169*IF($C169="Diesel",CO2_Faktoren!B$3,CO2_Faktoren!B$5)) ->  | M169: =IF(G169="","",$J169*IF($C169="Diesel",CO2_Faktoren!C$3,CO2_Faktoren!C$5)) ->  | N169: =IF(G169="","",$J169*IF($C169="Diesel",CO2_Faktoren!D$3,CO2_Faktoren!D$5)) ->  | O169: =IF(G169="","",$J169*IF($C169="Diesel",CO2_Faktoren!E$3,CO2_Faktoren!E$5)) ->  | P169: =IF(G169="","",$J169*IF($C169="Diesel",CO2_Faktoren!F$3,CO2_Faktoren!F$5)) ->  | Q169: =IF(G169="","",$J169*IF($C169="Diesel",CO2_Faktoren!G$3,CO2_Faktoren!G$5)) -> 
H170: =IF(G170="","",SUM(IF(E170=Entfernung_Güterbahnhöfe!$A$2:$A$100000,1,0)*IF(F170=Entfernung_Güterbahnhöfe!$B$2:$B$100000,1,0)*Entfernung_Güterbahnhöfe!$C$2:$C$100000)) ->  | I170: =IF(G170="","",INDEX(Energieverbrauch!$F$2:$F$55, MATCH( INDEX(Zugtypen!$A$2:$A$4, MATCH(A170,Zugtypen!$B$2:$B$4,0)) & INDEX(FahrttypenTopologie!$A$2:$A$4, MATCH(B170,FahrttypenTopologie!$B$2:$B$4,0)) & INDEX(Traktion!$A$2:$A$3, MATCH(C170,Traktion!$B$2:$B$3,0)) & INDEX(Ladungsart!$A$2:$A$4, MATCH(D170,Ladungsart!$B$2:$B$4,0)), Energieverbrauch!$E$2:$E$55, 0))) ->  | K170: =IF(G170="","",IF(C170="Diesel",J170/CO2_Faktoren!$B$8,J170)) ->  | L170: =IF(G170="","",$J170*IF($C170="Diesel",CO2_Faktoren!B$3,CO2_Faktoren!B$5)) ->  | M170: =IF(G170="","",$J170*IF($C170="Diesel",CO2_Faktoren!C$3,CO2_Faktoren!C$5)) ->  | N170: =IF(G170="","",$J170*IF($C170="Diesel",CO2_Faktoren!D$3,CO2_Faktoren!D$5)) ->  | O170: =IF(G170="","",$J170*IF($C170="Diesel",CO2_Faktoren!E$3,CO2_Faktoren!E$5)) ->  | P170: =IF(G170="","",$J170*IF($C170="Diesel",CO2_Faktoren!F$3,CO2_Faktoren!F$5)) ->  | Q170: =IF(G170="","",$J170*IF($C170="Diesel",CO2_Faktoren!G$3,CO2_Faktoren!G$5)) -> 
H171: =IF(G171="","",SUM(IF(E171=Entfernung_Güterbahnhöfe!$A$2:$A$100000,1,0)*IF(F171=Entfernung_Güterbahnhöfe!$B$2:$B$100000,1,0)*Entfernung_Güterbahnhöfe!$C$2:$C$100000)) ->  | I171: =IF(G171="","",INDEX(Energieverbrauch!$F$2:$F$55, MATCH( INDEX(Zugtypen!$A$2:$A$4, MATCH(A171,Zugtypen!$B$2:$B$4,0)) & INDEX(FahrttypenTopologie!$A$2:$A$4, MATCH(B171,FahrttypenTopologie!$B$2:$B$4,0)) & INDEX(Traktion!$A$2:$A$3, MATCH(C171,Traktion!$B$2:$B$3,0)) & INDEX(Ladungsart!$A$2:$A$4, MATCH(D171,Ladungsart!$B$2:$B$4,0)), Energieverbrauch!$E$2:$E$55, 0))) ->  | K171: =IF(G171="","",IF(C171="Diesel",J171/CO2_Faktoren!$B$8,J171)) ->  | L171: =IF(G171="","",$J171*IF($C171="Diesel",CO2_Faktoren!B$3,CO2_Faktoren!B$5)) ->  | M171: =IF(G171="","",$J171*IF($C171="Diesel",CO2_Faktoren!C$3,CO2_Faktoren!C$5)) ->  | N171: =IF(G171="","",$J171*IF($C171="Diesel",CO2_Faktoren!D$3,CO2_Faktoren!D$5)) ->  | O171: =IF(G171="","",$J171*IF($C171="Diesel",CO2_Faktoren!E$3,CO2_Faktoren!E$5)) ->  | P171: =IF(G171="","",$J171*IF($C171="Diesel",CO2_Faktoren!F$3,CO2_Faktoren!F$5)) ->  | Q171: =IF(G171="","",$J171*IF($C171="Diesel",CO2_Faktoren!G$3,CO2_Faktoren!G$5)) -> 
H172: =IF(G172="","",SUM(IF(E172=Entfernung_Güterbahnhöfe!$A$2:$A$100000,1,0)*IF(F172=Entfernung_Güterbahnhöfe!$B$2:$B$100000,1,0)*Entfernung_Güterbahnhöfe!$C$2:$C$100000)) ->  | I172: =IF(G172="","",INDEX(Energieverbrauch!$F$2:$F$55, MATCH( INDEX(Zugtypen!$A$2:$A$4, MATCH(A172,Zugtypen!$B$2:$B$4,0)) & INDEX(FahrttypenTopologie!$A$2:$A$4, MATCH(B172,FahrttypenTopologie!$B$2:$B$4,0)) & INDEX(Traktion!$A$2:$A$3, MATCH(C172,Traktion!$B$2:$B$3,0)) & INDEX(Ladungsart!$A$2:$A$4, MATCH(D172,Ladungsart!$B$2:$B$4,0)), Energieverbrauch!$E$2:$E$55, 0))) ->  | K172: =IF(G172="","",IF(C172="Diesel",J172/CO2_Faktoren!$B$8,J172)) ->  | L172: =IF(G172="","",$J172*IF($C172="Diesel",CO2_Faktoren!B$3,CO2_Faktoren!B$5)) ->  | M172: =IF(G172="","",$J172*IF($C172="Diesel",CO2_Faktoren!C$3,CO2_Faktoren!C$5)) ->  | N172: =IF(G172="","",$J172*IF($C172="Diesel",CO2_Faktoren!D$3,CO2_Faktoren!D$5)) ->  | O172: =IF(G172="","",$J172*IF($C172="Diesel",CO2_Faktoren!E$3,CO2_Faktoren!E$5)) ->  | P172: =IF(G172="","",$J172*IF($C172="Diesel",CO2_Faktoren!F$3,CO2_Faktoren!F$5)) ->  | Q172: =IF(G172="","",$J172*IF($C172="Diesel",CO2_Faktoren!G$3,CO2_Faktoren!G$5)) -> 
H173: =IF(G173="","",SUM(IF(E173=Entfernung_Güterbahnhöfe!$A$2:$A$100000,1,0)*IF(F173=Entfernung_Güterbahnhöfe!$B$2:$B$100000,1,0)*Entfernung_Güterbahnhöfe!$C$2:$C$100000)) ->  | I173: =IF(G173="","",INDEX(Energieverbrauch!$F$2:$F$55, MATCH( INDEX(Zugtypen!$A$2:$A$4, MATCH(A173,Zugtypen!$B$2:$B$4,0)) & INDEX(FahrttypenTopologie!$A$2:$A$4, MATCH(B173,FahrttypenTopologie!$B$2:$B$4,0)) & INDEX(Traktion!$A$2:$A$3, MATCH(C173,Traktion!$B$2:$B$3,0)) & INDEX(Ladungsart!$A$2:$A$4, MATCH(D173,Ladungsart!$B$2:$B$4,0)), Energieverbrauch!$E$2:$E$55, 0))) ->  | K173: =IF(G173="","",IF(C173="Diesel",J173/CO2_Faktoren!$B$8,J173)) ->  | L173: =IF(G173="","",$J173*IF($C173="Diesel",CO2_Faktoren!B$3,CO2_Faktoren!B$5)) ->  | M173: =IF(G173="","",$J173*IF($C173="Diesel",CO2_Faktoren!C$3,CO2_Faktoren!C$5)) ->  | N173: =IF(G173="","",$J173*IF($C173="Diesel",CO2_Faktoren!D$3,CO2_Faktoren!D$5)) ->  | O173: =IF(G173="","",$J173*IF($C173="Diesel",CO2_Faktoren!E$3,CO2_Faktoren!E$5)) ->  | P173: =IF(G173="","",$J173*IF($C173="Diesel",CO2_Faktoren!F$3,CO2_Faktoren!F$5)) ->  | Q173: =IF(G173="","",$J173*IF($C173="Diesel",CO2_Faktoren!G$3,CO2_Faktoren!G$5)) -> 
H174: =IF(G174="","",SUM(IF(E174=Entfernung_Güterbahnhöfe!$A$2:$A$100000,1,0)*IF(F174=Entfernung_Güterbahnhöfe!$B$2:$B$100000,1,0)*Entfernung_Güterbahnhöfe!$C$2:$C$100000)) ->  | I174: =IF(G174="","",INDEX(Energieverbrauch!$F$2:$F$55, MATCH( INDEX(Zugtypen!$A$2:$A$4, MATCH(A174,Zugtypen!$B$2:$B$4,0)) & INDEX(FahrttypenTopologie!$A$2:$A$4, MATCH(B174,FahrttypenTopologie!$B$2:$B$4,0)) & INDEX(Traktion!$A$2:$A$3, MATCH(C174,Traktion!$B$2:$B$3,0)) & INDEX(Ladungsart!$A$2:$A$4, MATCH(D174,Ladungsart!$B$2:$B$4,0)), Energieverbrauch!$E$2:$E$55, 0))) ->  | K174: =IF(G174="","",IF(C174="Diesel",J174/CO2_Faktoren!$B$8,J174)) ->  | L174: =IF(G174="","",$J174*IF($C174="Diesel",CO2_Faktoren!B$3,CO2_Faktoren!B$5)) ->  | M174: =IF(G174="","",$J174*IF($C174="Diesel",CO2_Faktoren!C$3,CO2_Faktoren!C$5)) ->  | N174: =IF(G174="","",$J174*IF($C174="Diesel",CO2_Faktoren!D$3,CO2_Faktoren!D$5)) ->  | O174: =IF(G174="","",$J174*IF($C174="Diesel",CO2_Faktoren!E$3,CO2_Faktoren!E$5)) ->  | P174: =IF(G174="","",$J174*IF($C174="Diesel",CO2_Faktoren!F$3,CO2_Faktoren!F$5)) ->  | Q174: =IF(G174="","",$J174*IF($C174="Diesel",CO2_Faktoren!G$3,CO2_Faktoren!G$5)) -> 
H175: =IF(G175="","",SUM(IF(E175=Entfernung_Güterbahnhöfe!$A$2:$A$100000,1,0)*IF(F175=Entfernung_Güterbahnhöfe!$B$2:$B$100000,1,0)*Entfernung_Güterbahnhöfe!$C$2:$C$100000)) ->  | I175: =IF(G175="","",INDEX(Energieverbrauch!$F$2:$F$55, MATCH( INDEX(Zugtypen!$A$2:$A$4, MATCH(A175,Zugtypen!$B$2:$B$4,0)) & INDEX(FahrttypenTopologie!$A$2:$A$4, MATCH(B175,FahrttypenTopologie!$B$2:$B$4,0)) & INDEX(Traktion!$A$2:$A$3, MATCH(C175,Traktion!$B$2:$B$3,0)) & INDEX(Ladungsart!$A$2:$A$4, MATCH(D175,Ladungsart!$B$2:$B$4,0)), Energieverbrauch!$E$2:$E$55, 0))) ->  | K175: =IF(G175="","",IF(C175="Diesel",J175/CO2_Faktoren!$B$8,J175)) ->  | L175: =IF(G175="","",$J175*IF($C175="Diesel",CO2_Faktoren!B$3,CO2_Faktoren!B$5)) ->  | M175: =IF(G175="","",$J175*IF($C175="Diesel",CO2_Faktoren!C$3,CO2_Faktoren!C$5)) ->  | N175: =IF(G175="","",$J175*IF($C175="Diesel",CO2_Faktoren!D$3,CO2_Faktoren!D$5)) ->  | O175: =IF(G175="","",$J175*IF($C175="Diesel",CO2_Faktoren!E$3,CO2_Faktoren!E$5)) ->  | P175: =IF(G175="","",$J175*IF($C175="Diesel",CO2_Faktoren!F$3,CO2_Faktoren!F$5)) ->  | Q175: =IF(G175="","",$J175*IF($C175="Diesel",CO2_Faktoren!G$3,CO2_Faktoren!G$5)) -> 
H176: =IF(G176="","",SUM(IF(E176=Entfernung_Güterbahnhöfe!$A$2:$A$100000,1,0)*IF(F176=Entfernung_Güterbahnhöfe!$B$2:$B$100000,1,0)*Entfernung_Güterbahnhöfe!$C$2:$C$100000)) ->  | I176: =IF(G176="","",INDEX(Energieverbrauch!$F$2:$F$55, MATCH( INDEX(Zugtypen!$A$2:$A$4, MATCH(A176,Zugtypen!$B$2:$B$4,0)) & INDEX(FahrttypenTopologie!$A$2:$A$4, MATCH(B176,FahrttypenTopologie!$B$2:$B$4,0)) & INDEX(Traktion!$A$2:$A$3, MATCH(C176,Traktion!$B$2:$B$3,0)) & INDEX(Ladungsart!$A$2:$A$4, MATCH(D176,Ladungsart!$B$2:$B$4,0)), Energieverbrauch!$E$2:$E$55, 0))) ->  | K176: =IF(G176="","",IF(C176="Diesel",J176/CO2_Faktoren!$B$8,J176)) ->  | L176: =IF(G176="","",$J176*IF($C176="Diesel",CO2_Faktoren!B$3,CO2_Faktoren!B$5)) ->  | M176: =IF(G176="","",$J176*IF($C176="Diesel",CO2_Faktoren!C$3,CO2_Faktoren!C$5)) ->  | N176: =IF(G176="","",$J176*IF($C176="Diesel",CO2_Faktoren!D$3,CO2_Faktoren!D$5)) ->  | O176: =IF(G176="","",$J176*IF($C176="Diesel",CO2_Faktoren!E$3,CO2_Faktoren!E$5)) ->  | P176: =IF(G176="","",$J176*IF($C176="Diesel",CO2_Faktoren!F$3,CO2_Faktoren!F$5)) ->  | Q176: =IF(G176="","",$J176*IF($C176="Diesel",CO2_Faktoren!G$3,CO2_Faktoren!G$5)) -> 
H177: =IF(G177="","",SUM(IF(E177=Entfernung_Güterbahnhöfe!$A$2:$A$100000,1,0)*IF(F177=Entfernung_Güterbahnhöfe!$B$2:$B$100000,1,0)*Entfernung_Güterbahnhöfe!$C$2:$C$100000)) ->  | I177: =IF(G177="","",INDEX(Energieverbrauch!$F$2:$F$55, MATCH( INDEX(Zugtypen!$A$2:$A$4, MATCH(A177,Zugtypen!$B$2:$B$4,0)) & INDEX(FahrttypenTopologie!$A$2:$A$4, MATCH(B177,FahrttypenTopologie!$B$2:$B$4,0)) & INDEX(Traktion!$A$2:$A$3, MATCH(C177,Traktion!$B$2:$B$3,0)) & INDEX(Ladungsart!$A$2:$A$4, MATCH(D177,Ladungsart!$B$2:$B$4,0)), Energieverbrauch!$E$2:$E$55, 0))) ->  | K177: =IF(G177="","",IF(C177="Diesel",J177/CO2_Faktoren!$B$8,J177)) ->  | L177: =IF(G177="","",$J177*IF($C177="Diesel",CO2_Faktoren!B$3,CO2_Faktoren!B$5)) ->  | M177: =IF(G177="","",$J177*IF($C177="Diesel",CO2_Faktoren!C$3,CO2_Faktoren!C$5)) ->  | N177: =IF(G177="","",$J177*IF($C177="Diesel",CO2_Faktoren!D$3,CO2_Faktoren!D$5)) ->  | O177: =IF(G177="","",$J177*IF($C177="Diesel",CO2_Faktoren!E$3,CO2_Faktoren!E$5)) ->  | P177: =IF(G177="","",$J177*IF($C177="Diesel",CO2_Faktoren!F$3,CO2_Faktoren!F$5)) ->  | Q177: =IF(G177="","",$J177*IF($C177="Diesel",CO2_Faktoren!G$3,CO2_Faktoren!G$5)) -> 
H178: =IF(G178="","",SUM(IF(E178=Entfernung_Güterbahnhöfe!$A$2:$A$100000,1,0)*IF(F178=Entfernung_Güterbahnhöfe!$B$2:$B$100000,1,0)*Entfernung_Güterbahnhöfe!$C$2:$C$100000)) ->  | I178: =IF(G178="","",INDEX(Energieverbrauch!$F$2:$F$55, MATCH( INDEX(Zugtypen!$A$2:$A$4, MATCH(A178,Zugtypen!$B$2:$B$4,0)) & INDEX(FahrttypenTopologie!$A$2:$A$4, MATCH(B178,FahrttypenTopologie!$B$2:$B$4,0)) & INDEX(Traktion!$A$2:$A$3, MATCH(C178,Traktion!$B$2:$B$3,0)) & INDEX(Ladungsart!$A$2:$A$4, MATCH(D178,Ladungsart!$B$2:$B$4,0)), Energieverbrauch!$E$2:$E$55, 0))) ->  | K178: =IF(G178="","",IF(C178="Diesel",J178/CO2_Faktoren!$B$8,J178)) ->  | L178: =IF(G178="","",$J178*IF($C178="Diesel",CO2_Faktoren!B$3,CO2_Faktoren!B$5)) ->  | M178: =IF(G178="","",$J178*IF($C178="Diesel",CO2_Faktoren!C$3,CO2_Faktoren!C$5)) ->  | N178: =IF(G178="","",$J178*IF($C178="Diesel",CO2_Faktoren!D$3,CO2_Faktoren!D$5)) ->  | O178: =IF(G178="","",$J178*IF($C178="Diesel",CO2_Faktoren!E$3,CO2_Faktoren!E$5)) ->  | P178: =IF(G178="","",$J178*IF($C178="Diesel",CO2_Faktoren!F$3,CO2_Faktoren!F$5)) ->  | Q178: =IF(G178="","",$J178*IF($C178="Diesel",CO2_Faktoren!G$3,CO2_Faktoren!G$5)) -> 
H179: =IF(G179="","",SUM(IF(E179=Entfernung_Güterbahnhöfe!$A$2:$A$100000,1,0)*IF(F179=Entfernung_Güterbahnhöfe!$B$2:$B$100000,1,0)*Entfernung_Güterbahnhöfe!$C$2:$C$100000)) ->  | I179: =IF(G179="","",INDEX(Energieverbrauch!$F$2:$F$55, MATCH( INDEX(Zugtypen!$A$2:$A$4, MATCH(A179,Zugtypen!$B$2:$B$4,0)) & INDEX(FahrttypenTopologie!$A$2:$A$4, MATCH(B179,FahrttypenTopologie!$B$2:$B$4,0)) & INDEX(Traktion!$A$2:$A$3, MATCH(C179,Traktion!$B$2:$B$3,0)) & INDEX(Ladungsart!$A$2:$A$4, MATCH(D179,Ladungsart!$B$2:$B$4,0)), Energieverbrauch!$E$2:$E$55, 0))) ->  | K179: =IF(G179="","",IF(C179="Diesel",J179/CO2_Faktoren!$B$8,J179)) ->  | L179: =IF(G179="","",$J179*IF($C179="Diesel",CO2_Faktoren!B$3,CO2_Faktoren!B$5)) ->  | M179: =IF(G179="","",$J179*IF($C179="Diesel",CO2_Faktoren!C$3,CO2_Faktoren!C$5)) ->  | N179: =IF(G179="","",$J179*IF($C179="Diesel",CO2_Faktoren!D$3,CO2_Faktoren!D$5)) ->  | O179: =IF(G179="","",$J179*IF($C179="Diesel",CO2_Faktoren!E$3,CO2_Faktoren!E$5)) ->  | P179: =IF(G179="","",$J179*IF($C179="Diesel",CO2_Faktoren!F$3,CO2_Faktoren!F$5)) ->  | Q179: =IF(G179="","",$J179*IF($C179="Diesel",CO2_Faktoren!G$3,CO2_Faktoren!G$5)) -> 
H180: =IF(G180="","",SUM(IF(E180=Entfernung_Güterbahnhöfe!$A$2:$A$100000,1,0)*IF(F180=Entfernung_Güterbahnhöfe!$B$2:$B$100000,1,0)*Entfernung_Güterbahnhöfe!$C$2:$C$100000)) ->  | I180: =IF(G180="","",INDEX(Energieverbrauch!$F$2:$F$55, MATCH( INDEX(Zugtypen!$A$2:$A$4, MATCH(A180,Zugtypen!$B$2:$B$4,0)) & INDEX(FahrttypenTopologie!$A$2:$A$4, MATCH(B180,FahrttypenTopologie!$B$2:$B$4,0)) & INDEX(Traktion!$A$2:$A$3, MATCH(C180,Traktion!$B$2:$B$3,0)) & INDEX(Ladungsart!$A$2:$A$4, MATCH(D180,Ladungsart!$B$2:$B$4,0)), Energieverbrauch!$E$2:$E$55, 0))) ->  | K180: =IF(G180="","",IF(C180="Diesel",J180/CO2_Faktoren!$B$8,J180)) ->  | L180: =IF(G180="","",$J180*IF($C180="Diesel",CO2_Faktoren!B$3,CO2_Faktoren!B$5)) ->  | M180: =IF(G180="","",$J180*IF($C180="Diesel",CO2_Faktoren!C$3,CO2_Faktoren!C$5)) ->  | N180: =IF(G180="","",$J180*IF($C180="Diesel",CO2_Faktoren!D$3,CO2_Faktoren!D$5)) ->  | O180: =IF(G180="","",$J180*IF($C180="Diesel",CO2_Faktoren!E$3,CO2_Faktoren!E$5)) ->  | P180: =IF(G180="","",$J180*IF($C180="Diesel",CO2_Faktoren!F$3,CO2_Faktoren!F$5)) ->  | Q180: =IF(G180="","",$J180*IF($C180="Diesel",CO2_Faktoren!G$3,CO2_Faktoren!G$5)) -> 
H181: =IF(G181="","",SUM(IF(E181=Entfernung_Güterbahnhöfe!$A$2:$A$100000,1,0)*IF(F181=Entfernung_Güterbahnhöfe!$B$2:$B$100000,1,0)*Entfernung_Güterbahnhöfe!$C$2:$C$100000)) ->  | I181: =IF(G181="","",INDEX(Energieverbrauch!$F$2:$F$55, MATCH( INDEX(Zugtypen!$A$2:$A$4, MATCH(A181,Zugtypen!$B$2:$B$4,0)) & INDEX(FahrttypenTopologie!$A$2:$A$4, MATCH(B181,FahrttypenTopologie!$B$2:$B$4,0)) & INDEX(Traktion!$A$2:$A$3, MATCH(C181,Traktion!$B$2:$B$3,0)) & INDEX(Ladungsart!$A$2:$A$4, MATCH(D181,Ladungsart!$B$2:$B$4,0)), Energieverbrauch!$E$2:$E$55, 0))) ->  | K181: =IF(G181="","",IF(C181="Diesel",J181/CO2_Faktoren!$B$8,J181)) ->  | L181: =IF(G181="","",$J181*IF($C181="Diesel",CO2_Faktoren!B$3,CO2_Faktoren!B$5)) ->  | M181: =IF(G181="","",$J181*IF($C181="Diesel",CO2_Faktoren!C$3,CO2_Faktoren!C$5)) ->  | N181: =IF(G181="","",$J181*IF($C181="Diesel",CO2_Faktoren!D$3,CO2_Faktoren!D$5)) ->  | O181: =IF(G181="","",$J181*IF($C181="Diesel",CO2_Faktoren!E$3,CO2_Faktoren!E$5)) ->  | P181: =IF(G181="","",$J181*IF($C181="Diesel",CO2_Faktoren!F$3,CO2_Faktoren!F$5)) ->  | Q181: =IF(G181="","",$J181*IF($C181="Diesel",CO2_Faktoren!G$3,CO2_Faktoren!G$5)) -> 
H182: =IF(G182="","",SUM(IF(E182=Entfernung_Güterbahnhöfe!$A$2:$A$100000,1,0)*IF(F182=Entfernung_Güterbahnhöfe!$B$2:$B$100000,1,0)*Entfernung_Güterbahnhöfe!$C$2:$C$100000)) ->  | I182: =IF(G182="","",INDEX(Energieverbrauch!$F$2:$F$55, MATCH( INDEX(Zugtypen!$A$2:$A$4, MATCH(A182,Zugtypen!$B$2:$B$4,0)) & INDEX(FahrttypenTopologie!$A$2:$A$4, MATCH(B182,FahrttypenTopologie!$B$2:$B$4,0)) & INDEX(Traktion!$A$2:$A$3, MATCH(C182,Traktion!$B$2:$B$3,0)) & INDEX(Ladungsart!$A$2:$A$4, MATCH(D182,Ladungsart!$B$2:$B$4,0)), Energieverbrauch!$E$2:$E$55, 0))) ->  | K182: =IF(G182="","",IF(C182="Diesel",J182/CO2_Faktoren!$B$8,J182)) ->  | L182: =IF(G182="","",$J182*IF($C182="Diesel",CO2_Faktoren!B$3,CO2_Faktoren!B$5)) ->  | M182: =IF(G182="","",$J182*IF($C182="Diesel",CO2_Faktoren!C$3,CO2_Faktoren!C$5)) ->  | N182: =IF(G182="","",$J182*IF($C182="Diesel",CO2_Faktoren!D$3,CO2_Faktoren!D$5)) ->  | O182: =IF(G182="","",$J182*IF($C182="Diesel",CO2_Faktoren!E$3,CO2_Faktoren!E$5)) ->  | P182: =IF(G182="","",$J182*IF($C182="Diesel",CO2_Faktoren!F$3,CO2_Faktoren!F$5)) ->  | Q182: =IF(G182="","",$J182*IF($C182="Diesel",CO2_Faktoren!G$3,CO2_Faktoren!G$5)) -> 
H183: =IF(G183="","",SUM(IF(E183=Entfernung_Güterbahnhöfe!$A$2:$A$100000,1,0)*IF(F183=Entfernung_Güterbahnhöfe!$B$2:$B$100000,1,0)*Entfernung_Güterbahnhöfe!$C$2:$C$100000)) ->  | I183: =IF(G183="","",INDEX(Energieverbrauch!$F$2:$F$55, MATCH( INDEX(Zugtypen!$A$2:$A$4, MATCH(A183,Zugtypen!$B$2:$B$4,0)) & INDEX(FahrttypenTopologie!$A$2:$A$4, MATCH(B183,FahrttypenTopologie!$B$2:$B$4,0)) & INDEX(Traktion!$A$2:$A$3, MATCH(C183,Traktion!$B$2:$B$3,0)) & INDEX(Ladungsart!$A$2:$A$4, MATCH(D183,Ladungsart!$B$2:$B$4,0)), Energieverbrauch!$E$2:$E$55, 0))) ->  | K183: =IF(G183="","",IF(C183="Diesel",J183/CO2_Faktoren!$B$8,J183)) ->  | L183: =IF(G183="","",$J183*IF($C183="Diesel",CO2_Faktoren!B$3,CO2_Faktoren!B$5)) ->  | M183: =IF(G183="","",$J183*IF($C183="Diesel",CO2_Faktoren!C$3,CO2_Faktoren!C$5)) ->  | N183: =IF(G183="","",$J183*IF($C183="Diesel",CO2_Faktoren!D$3,CO2_Faktoren!D$5)) ->  | O183: =IF(G183="","",$J183*IF($C183="Diesel",CO2_Faktoren!E$3,CO2_Faktoren!E$5)) ->  | P183: =IF(G183="","",$J183*IF($C183="Diesel",CO2_Faktoren!F$3,CO2_Faktoren!F$5)) ->  | Q183: =IF(G183="","",$J183*IF($C183="Diesel",CO2_Faktoren!G$3,CO2_Faktoren!G$5)) -> 
H184: =IF(G184="","",SUM(IF(E184=Entfernung_Güterbahnhöfe!$A$2:$A$100000,1,0)*IF(F184=Entfernung_Güterbahnhöfe!$B$2:$B$100000,1,0)*Entfernung_Güterbahnhöfe!$C$2:$C$100000)) ->  | I184: =IF(G184="","",INDEX(Energieverbrauch!$F$2:$F$55, MATCH( INDEX(Zugtypen!$A$2:$A$4, MATCH(A184,Zugtypen!$B$2:$B$4,0)) & INDEX(FahrttypenTopologie!$A$2:$A$4, MATCH(B184,FahrttypenTopologie!$B$2:$B$4,0)) & INDEX(Traktion!$A$2:$A$3, MATCH(C184,Traktion!$B$2:$B$3,0)) & INDEX(Ladungsart!$A$2:$A$4, MATCH(D184,Ladungsart!$B$2:$B$4,0)), Energieverbrauch!$E$2:$E$55, 0))) ->  | K184: =IF(G184="","",IF(C184="Diesel",J184/CO2_Faktoren!$B$8,J184)) ->  | L184: =IF(G184="","",$J184*IF($C184="Diesel",CO2_Faktoren!B$3,CO2_Faktoren!B$5)) ->  | M184: =IF(G184="","",$J184*IF($C184="Diesel",CO2_Faktoren!C$3,CO2_Faktoren!C$5)) ->  | N184: =IF(G184="","",$J184*IF($C184="Diesel",CO2_Faktoren!D$3,CO2_Faktoren!D$5)) ->  | O184: =IF(G184="","",$J184*IF($C184="Diesel",CO2_Faktoren!E$3,CO2_Faktoren!E$5)) ->  | P184: =IF(G184="","",$J184*IF($C184="Diesel",CO2_Faktoren!F$3,CO2_Faktoren!F$5)) ->  | Q184: =IF(G184="","",$J184*IF($C184="Diesel",CO2_Faktoren!G$3,CO2_Faktoren!G$5)) -> 
H185: =IF(G185="","",SUM(IF(E185=Entfernung_Güterbahnhöfe!$A$2:$A$100000,1,0)*IF(F185=Entfernung_Güterbahnhöfe!$B$2:$B$100000,1,0)*Entfernung_Güterbahnhöfe!$C$2:$C$100000)) ->  | I185: =IF(G185="","",INDEX(Energieverbrauch!$F$2:$F$55, MATCH( INDEX(Zugtypen!$A$2:$A$4, MATCH(A185,Zugtypen!$B$2:$B$4,0)) & INDEX(FahrttypenTopologie!$A$2:$A$4, MATCH(B185,FahrttypenTopologie!$B$2:$B$4,0)) & INDEX(Traktion!$A$2:$A$3, MATCH(C185,Traktion!$B$2:$B$3,0)) & INDEX(Ladungsart!$A$2:$A$4, MATCH(D185,Ladungsart!$B$2:$B$4,0)), Energieverbrauch!$E$2:$E$55, 0))) ->  | K185: =IF(G185="","",IF(C185="Diesel",J185/CO2_Faktoren!$B$8,J185)) ->  | L185: =IF(G185="","",$J185*IF($C185="Diesel",CO2_Faktoren!B$3,CO2_Faktoren!B$5)) ->  | M185: =IF(G185="","",$J185*IF($C185="Diesel",CO2_Faktoren!C$3,CO2_Faktoren!C$5)) ->  | N185: =IF(G185="","",$J185*IF($C185="Diesel",CO2_Faktoren!D$3,CO2_Faktoren!D$5)) ->  | O185: =IF(G185="","",$J185*IF($C185="Diesel",CO2_Faktoren!E$3,CO2_Faktoren!E$5)) ->  | P185: =IF(G185="","",$J185*IF($C185="Diesel",CO2_Faktoren!F$3,CO2_Faktoren!F$5)) ->  | Q185: =IF(G185="","",$J185*IF($C185="Diesel",CO2_Faktoren!G$3,CO2_Faktoren!G$5)) -> 
H186: =IF(G186="","",SUM(IF(E186=Entfernung_Güterbahnhöfe!$A$2:$A$100000,1,0)*IF(F186=Entfernung_Güterbahnhöfe!$B$2:$B$100000,1,0)*Entfernung_Güterbahnhöfe!$C$2:$C$100000)) ->  | I186: =IF(G186="","",INDEX(Energieverbrauch!$F$2:$F$55, MATCH( INDEX(Zugtypen!$A$2:$A$4, MATCH(A186,Zugtypen!$B$2:$B$4,0)) & INDEX(FahrttypenTopologie!$A$2:$A$4, MATCH(B186,FahrttypenTopologie!$B$2:$B$4,0)) & INDEX(Traktion!$A$2:$A$3, MATCH(C186,Traktion!$B$2:$B$3,0)) & INDEX(Ladungsart!$A$2:$A$4, MATCH(D186,Ladungsart!$B$2:$B$4,0)), Energieverbrauch!$E$2:$E$55, 0))) ->  | K186: =IF(G186="","",IF(C186="Diesel",J186/CO2_Faktoren!$B$8,J186)) ->  | L186: =IF(G186="","",$J186*IF($C186="Diesel",CO2_Faktoren!B$3,CO2_Faktoren!B$5)) ->  | M186: =IF(G186="","",$J186*IF($C186="Diesel",CO2_Faktoren!C$3,CO2_Faktoren!C$5)) ->  | N186: =IF(G186="","",$J186*IF($C186="Diesel",CO2_Faktoren!D$3,CO2_Faktoren!D$5)) ->  | O186: =IF(G186="","",$J186*IF($C186="Diesel",CO2_Faktoren!E$3,CO2_Faktoren!E$5)) ->  | P186: =IF(G186="","",$J186*IF($C186="Diesel",CO2_Faktoren!F$3,CO2_Faktoren!F$5)) ->  | Q186: =IF(G186="","",$J186*IF($C186="Diesel",CO2_Faktoren!G$3,CO2_Faktoren!G$5)) -> 
H187: =IF(G187="","",SUM(IF(E187=Entfernung_Güterbahnhöfe!$A$2:$A$100000,1,0)*IF(F187=Entfernung_Güterbahnhöfe!$B$2:$B$100000,1,0)*Entfernung_Güterbahnhöfe!$C$2:$C$100000)) ->  | I187: =IF(G187="","",INDEX(Energieverbrauch!$F$2:$F$55, MATCH( INDEX(Zugtypen!$A$2:$A$4, MATCH(A187,Zugtypen!$B$2:$B$4,0)) & INDEX(FahrttypenTopologie!$A$2:$A$4, MATCH(B187,FahrttypenTopologie!$B$2:$B$4,0)) & INDEX(Traktion!$A$2:$A$3, MATCH(C187,Traktion!$B$2:$B$3,0)) & INDEX(Ladungsart!$A$2:$A$4, MATCH(D187,Ladungsart!$B$2:$B$4,0)), Energieverbrauch!$E$2:$E$55, 0))) ->  | K187: =IF(G187="","",IF(C187="Diesel",J187/CO2_Faktoren!$B$8,J187)) ->  | L187: =IF(G187="","",$J187*IF($C187="Diesel",CO2_Faktoren!B$3,CO2_Faktoren!B$5)) ->  | M187: =IF(G187="","",$J187*IF($C187="Diesel",CO2_Faktoren!C$3,CO2_Faktoren!C$5)) ->  | N187: =IF(G187="","",$J187*IF($C187="Diesel",CO2_Faktoren!D$3,CO2_Faktoren!D$5)) ->  | O187: =IF(G187="","",$J187*IF($C187="Diesel",CO2_Faktoren!E$3,CO2_Faktoren!E$5)) ->  | P187: =IF(G187="","",$J187*IF($C187="Diesel",CO2_Faktoren!F$3,CO2_Faktoren!F$5)) ->  | Q187: =IF(G187="","",$J187*IF($C187="Diesel",CO2_Faktoren!G$3,CO2_Faktoren!G$5)) -> 
H188: =IF(G188="","",SUM(IF(E188=Entfernung_Güterbahnhöfe!$A$2:$A$100000,1,0)*IF(F188=Entfernung_Güterbahnhöfe!$B$2:$B$100000,1,0)*Entfernung_Güterbahnhöfe!$C$2:$C$100000)) ->  | I188: =IF(G188="","",INDEX(Energieverbrauch!$F$2:$F$55, MATCH( INDEX(Zugtypen!$A$2:$A$4, MATCH(A188,Zugtypen!$B$2:$B$4,0)) & INDEX(FahrttypenTopologie!$A$2:$A$4, MATCH(B188,FahrttypenTopologie!$B$2:$B$4,0)) & INDEX(Traktion!$A$2:$A$3, MATCH(C188,Traktion!$B$2:$B$3,0)) & INDEX(Ladungsart!$A$2:$A$4, MATCH(D188,Ladungsart!$B$2:$B$4,0)), Energieverbrauch!$E$2:$E$55, 0))) ->  | K188: =IF(G188="","",IF(C188="Diesel",J188/CO2_Faktoren!$B$8,J188)) ->  | L188: =IF(G188="","",$J188*IF($C188="Diesel",CO2_Faktoren!B$3,CO2_Faktoren!B$5)) ->  | M188: =IF(G188="","",$J188*IF($C188="Diesel",CO2_Faktoren!C$3,CO2_Faktoren!C$5)) ->  | N188: =IF(G188="","",$J188*IF($C188="Diesel",CO2_Faktoren!D$3,CO2_Faktoren!D$5)) ->  | O188: =IF(G188="","",$J188*IF($C188="Diesel",CO2_Faktoren!E$3,CO2_Faktoren!E$5)) ->  | P188: =IF(G188="","",$J188*IF($C188="Diesel",CO2_Faktoren!F$3,CO2_Faktoren!F$5)) ->  | Q188: =IF(G188="","",$J188*IF($C188="Diesel",CO2_Faktoren!G$3,CO2_Faktoren!G$5)) -> 
H189: =IF(G189="","",SUM(IF(E189=Entfernung_Güterbahnhöfe!$A$2:$A$100000,1,0)*IF(F189=Entfernung_Güterbahnhöfe!$B$2:$B$100000,1,0)*Entfernung_Güterbahnhöfe!$C$2:$C$100000)) ->  | I189: =IF(G189="","",INDEX(Energieverbrauch!$F$2:$F$55, MATCH( INDEX(Zugtypen!$A$2:$A$4, MATCH(A189,Zugtypen!$B$2:$B$4,0)) & INDEX(FahrttypenTopologie!$A$2:$A$4, MATCH(B189,FahrttypenTopologie!$B$2:$B$4,0)) & INDEX(Traktion!$A$2:$A$3, MATCH(C189,Traktion!$B$2:$B$3,0)) & INDEX(Ladungsart!$A$2:$A$4, MATCH(D189,Ladungsart!$B$2:$B$4,0)), Energieverbrauch!$E$2:$E$55, 0))) ->  | K189: =IF(G189="","",IF(C189="Diesel",J189/CO2_Faktoren!$B$8,J189)) ->  | L189: =IF(G189="","",$J189*IF($C189="Diesel",CO2_Faktoren!B$3,CO2_Faktoren!B$5)) ->  | M189: =IF(G189="","",$J189*IF($C189="Diesel",CO2_Faktoren!C$3,CO2_Faktoren!C$5)) ->  | N189: =IF(G189="","",$J189*IF($C189="Diesel",CO2_Faktoren!D$3,CO2_Faktoren!D$5)) ->  | O189: =IF(G189="","",$J189*IF($C189="Diesel",CO2_Faktoren!E$3,CO2_Faktoren!E$5)) ->  | P189: =IF(G189="","",$J189*IF($C189="Diesel",CO2_Faktoren!F$3,CO2_Faktoren!F$5)) ->  | Q189: =IF(G189="","",$J189*IF($C189="Diesel",CO2_Faktoren!G$3,CO2_Faktoren!G$5)) -> 
H190: =IF(G190="","",SUM(IF(E190=Entfernung_Güterbahnhöfe!$A$2:$A$100000,1,0)*IF(F190=Entfernung_Güterbahnhöfe!$B$2:$B$100000,1,0)*Entfernung_Güterbahnhöfe!$C$2:$C$100000)) ->  | I190: =IF(G190="","",INDEX(Energieverbrauch!$F$2:$F$55, MATCH( INDEX(Zugtypen!$A$2:$A$4, MATCH(A190,Zugtypen!$B$2:$B$4,0)) & INDEX(FahrttypenTopologie!$A$2:$A$4, MATCH(B190,FahrttypenTopologie!$B$2:$B$4,0)) & INDEX(Traktion!$A$2:$A$3, MATCH(C190,Traktion!$B$2:$B$3,0)) & INDEX(Ladungsart!$A$2:$A$4, MATCH(D190,Ladungsart!$B$2:$B$4,0)), Energieverbrauch!$E$2:$E$55, 0))) ->  | K190: =IF(G190="","",IF(C190="Diesel",J190/CO2_Faktoren!$B$8,J190)) ->  | L190: =IF(G190="","",$J190*IF($C190="Diesel",CO2_Faktoren!B$3,CO2_Faktoren!B$5)) ->  | M190: =IF(G190="","",$J190*IF($C190="Diesel",CO2_Faktoren!C$3,CO2_Faktoren!C$5)) ->  | N190: =IF(G190="","",$J190*IF($C190="Diesel",CO2_Faktoren!D$3,CO2_Faktoren!D$5)) ->  | O190: =IF(G190="","",$J190*IF($C190="Diesel",CO2_Faktoren!E$3,CO2_Faktoren!E$5)) ->  | P190: =IF(G190="","",$J190*IF($C190="Diesel",CO2_Faktoren!F$3,CO2_Faktoren!F$5)) ->  | Q190: =IF(G190="","",$J190*IF($C190="Diesel",CO2_Faktoren!G$3,CO2_Faktoren!G$5)) -> 
H191: =IF(G191="","",SUM(IF(E191=Entfernung_Güterbahnhöfe!$A$2:$A$100000,1,0)*IF(F191=Entfernung_Güterbahnhöfe!$B$2:$B$100000,1,0)*Entfernung_Güterbahnhöfe!$C$2:$C$100000)) ->  | I191: =IF(G191="","",INDEX(Energieverbrauch!$F$2:$F$55, MATCH( INDEX(Zugtypen!$A$2:$A$4, MATCH(A191,Zugtypen!$B$2:$B$4,0)) & INDEX(FahrttypenTopologie!$A$2:$A$4, MATCH(B191,FahrttypenTopologie!$B$2:$B$4,0)) & INDEX(Traktion!$A$2:$A$3, MATCH(C191,Traktion!$B$2:$B$3,0)) & INDEX(Ladungsart!$A$2:$A$4, MATCH(D191,Ladungsart!$B$2:$B$4,0)), Energieverbrauch!$E$2:$E$55, 0))) ->  | K191: =IF(G191="","",IF(C191="Diesel",J191/CO2_Faktoren!$B$8,J191)) ->  | L191: =IF(G191="","",$J191*IF($C191="Diesel",CO2_Faktoren!B$3,CO2_Faktoren!B$5)) ->  | M191: =IF(G191="","",$J191*IF($C191="Diesel",CO2_Faktoren!C$3,CO2_Faktoren!C$5)) ->  | N191: =IF(G191="","",$J191*IF($C191="Diesel",CO2_Faktoren!D$3,CO2_Faktoren!D$5)) ->  | O191: =IF(G191="","",$J191*IF($C191="Diesel",CO2_Faktoren!E$3,CO2_Faktoren!E$5)) ->  | P191: =IF(G191="","",$J191*IF($C191="Diesel",CO2_Faktoren!F$3,CO2_Faktoren!F$5)) ->  | Q191: =IF(G191="","",$J191*IF($C191="Diesel",CO2_Faktoren!G$3,CO2_Faktoren!G$5)) -> 
H192: =IF(G192="","",SUM(IF(E192=Entfernung_Güterbahnhöfe!$A$2:$A$100000,1,0)*IF(F192=Entfernung_Güterbahnhöfe!$B$2:$B$100000,1,0)*Entfernung_Güterbahnhöfe!$C$2:$C$100000)) ->  | I192: =IF(G192="","",INDEX(Energieverbrauch!$F$2:$F$55, MATCH( INDEX(Zugtypen!$A$2:$A$4, MATCH(A192,Zugtypen!$B$2:$B$4,0)) & INDEX(FahrttypenTopologie!$A$2:$A$4, MATCH(B192,FahrttypenTopologie!$B$2:$B$4,0)) & INDEX(Traktion!$A$2:$A$3, MATCH(C192,Traktion!$B$2:$B$3,0)) & INDEX(Ladungsart!$A$2:$A$4, MATCH(D192,Ladungsart!$B$2:$B$4,0)), Energieverbrauch!$E$2:$E$55, 0))) ->  | K192: =IF(G192="","",IF(C192="Diesel",J192/CO2_Faktoren!$B$8,J192)) ->  | L192: =IF(G192="","",$J192*IF($C192="Diesel",CO2_Faktoren!B$3,CO2_Faktoren!B$5)) ->  | M192: =IF(G192="","",$J192*IF($C192="Diesel",CO2_Faktoren!C$3,CO2_Faktoren!C$5)) ->  | N192: =IF(G192="","",$J192*IF($C192="Diesel",CO2_Faktoren!D$3,CO2_Faktoren!D$5)) ->  | O192: =IF(G192="","",$J192*IF($C192="Diesel",CO2_Faktoren!E$3,CO2_Faktoren!E$5)) ->  | P192: =IF(G192="","",$J192*IF($C192="Diesel",CO2_Faktoren!F$3,CO2_Faktoren!F$5)) ->  | Q192: =IF(G192="","",$J192*IF($C192="Diesel",CO2_Faktoren!G$3,CO2_Faktoren!G$5)) -> 
H193: =IF(G193="","",SUM(IF(E193=Entfernung_Güterbahnhöfe!$A$2:$A$100000,1,0)*IF(F193=Entfernung_Güterbahnhöfe!$B$2:$B$100000,1,0)*Entfernung_Güterbahnhöfe!$C$2:$C$100000)) ->  | I193: =IF(G193="","",INDEX(Energieverbrauch!$F$2:$F$55, MATCH( INDEX(Zugtypen!$A$2:$A$4, MATCH(A193,Zugtypen!$B$2:$B$4,0)) & INDEX(FahrttypenTopologie!$A$2:$A$4, MATCH(B193,FahrttypenTopologie!$B$2:$B$4,0)) & INDEX(Traktion!$A$2:$A$3, MATCH(C193,Traktion!$B$2:$B$3,0)) & INDEX(Ladungsart!$A$2:$A$4, MATCH(D193,Ladungsart!$B$2:$B$4,0)), Energieverbrauch!$E$2:$E$55, 0))) ->  | K193: =IF(G193="","",IF(C193="Diesel",J193/CO2_Faktoren!$B$8,J193)) ->  | L193: =IF(G193="","",$J193*IF($C193="Diesel",CO2_Faktoren!B$3,CO2_Faktoren!B$5)) ->  | M193: =IF(G193="","",$J193*IF($C193="Diesel",CO2_Faktoren!C$3,CO2_Faktoren!C$5)) ->  | N193: =IF(G193="","",$J193*IF($C193="Diesel",CO2_Faktoren!D$3,CO2_Faktoren!D$5)) ->  | O193: =IF(G193="","",$J193*IF($C193="Diesel",CO2_Faktoren!E$3,CO2_Faktoren!E$5)) ->  | P193: =IF(G193="","",$J193*IF($C193="Diesel",CO2_Faktoren!F$3,CO2_Faktoren!F$5)) ->  | Q193: =IF(G193="","",$J193*IF($C193="Diesel",CO2_Faktoren!G$3,CO2_Faktoren!G$5)) -> 
H194: =IF(G194="","",SUM(IF(E194=Entfernung_Güterbahnhöfe!$A$2:$A$100000,1,0)*IF(F194=Entfernung_Güterbahnhöfe!$B$2:$B$100000,1,0)*Entfernung_Güterbahnhöfe!$C$2:$C$100000)) ->  | I194: =IF(G194="","",INDEX(Energieverbrauch!$F$2:$F$55, MATCH( INDEX(Zugtypen!$A$2:$A$4, MATCH(A194,Zugtypen!$B$2:$B$4,0)) & INDEX(FahrttypenTopologie!$A$2:$A$4, MATCH(B194,FahrttypenTopologie!$B$2:$B$4,0)) & INDEX(Traktion!$A$2:$A$3, MATCH(C194,Traktion!$B$2:$B$3,0)) & INDEX(Ladungsart!$A$2:$A$4, MATCH(D194,Ladungsart!$B$2:$B$4,0)), Energieverbrauch!$E$2:$E$55, 0))) ->  | K194: =IF(G194="","",IF(C194="Diesel",J194/CO2_Faktoren!$B$8,J194)) ->  | L194: =IF(G194="","",$J194*IF($C194="Diesel",CO2_Faktoren!B$3,CO2_Faktoren!B$5)) ->  | M194: =IF(G194="","",$J194*IF($C194="Diesel",CO2_Faktoren!C$3,CO2_Faktoren!C$5)) ->  | N194: =IF(G194="","",$J194*IF($C194="Diesel",CO2_Faktoren!D$3,CO2_Faktoren!D$5)) ->  | O194: =IF(G194="","",$J194*IF($C194="Diesel",CO2_Faktoren!E$3,CO2_Faktoren!E$5)) ->  | P194: =IF(G194="","",$J194*IF($C194="Diesel",CO2_Faktoren!F$3,CO2_Faktoren!F$5)) ->  | Q194: =IF(G194="","",$J194*IF($C194="Diesel",CO2_Faktoren!G$3,CO2_Faktoren!G$5)) -> 
H195: =IF(G195="","",SUM(IF(E195=Entfernung_Güterbahnhöfe!$A$2:$A$100000,1,0)*IF(F195=Entfernung_Güterbahnhöfe!$B$2:$B$100000,1,0)*Entfernung_Güterbahnhöfe!$C$2:$C$100000)) ->  | I195: =IF(G195="","",INDEX(Energieverbrauch!$F$2:$F$55, MATCH( INDEX(Zugtypen!$A$2:$A$4, MATCH(A195,Zugtypen!$B$2:$B$4,0)) & INDEX(FahrttypenTopologie!$A$2:$A$4, MATCH(B195,FahrttypenTopologie!$B$2:$B$4,0)) & INDEX(Traktion!$A$2:$A$3, MATCH(C195,Traktion!$B$2:$B$3,0)) & INDEX(Ladungsart!$A$2:$A$4, MATCH(D195,Ladungsart!$B$2:$B$4,0)), Energieverbrauch!$E$2:$E$55, 0))) ->  | K195: =IF(G195="","",IF(C195="Diesel",J195/CO2_Faktoren!$B$8,J195)) ->  | L195: =IF(G195="","",$J195*IF($C195="Diesel",CO2_Faktoren!B$3,CO2_Faktoren!B$5)) ->  | M195: =IF(G195="","",$J195*IF($C195="Diesel",CO2_Faktoren!C$3,CO2_Faktoren!C$5)) ->  | N195: =IF(G195="","",$J195*IF($C195="Diesel",CO2_Faktoren!D$3,CO2_Faktoren!D$5)) ->  | O195: =IF(G195="","",$J195*IF($C195="Diesel",CO2_Faktoren!E$3,CO2_Faktoren!E$5)) ->  | P195: =IF(G195="","",$J195*IF($C195="Diesel",CO2_Faktoren!F$3,CO2_Faktoren!F$5)) ->  | Q195: =IF(G195="","",$J195*IF($C195="Diesel",CO2_Faktoren!G$3,CO2_Faktoren!G$5)) -> 
H196: =IF(G196="","",SUM(IF(E196=Entfernung_Güterbahnhöfe!$A$2:$A$100000,1,0)*IF(F196=Entfernung_Güterbahnhöfe!$B$2:$B$100000,1,0)*Entfernung_Güterbahnhöfe!$C$2:$C$100000)) ->  | I196: =IF(G196="","",INDEX(Energieverbrauch!$F$2:$F$55, MATCH( INDEX(Zugtypen!$A$2:$A$4, MATCH(A196,Zugtypen!$B$2:$B$4,0)) & INDEX(FahrttypenTopologie!$A$2:$A$4, MATCH(B196,FahrttypenTopologie!$B$2:$B$4,0)) & INDEX(Traktion!$A$2:$A$3, MATCH(C196,Traktion!$B$2:$B$3,0)) & INDEX(Ladungsart!$A$2:$A$4, MATCH(D196,Ladungsart!$B$2:$B$4,0)), Energieverbrauch!$E$2:$E$55, 0))) ->  | K196: =IF(G196="","",IF(C196="Diesel",J196/CO2_Faktoren!$B$8,J196)) ->  | L196: =IF(G196="","",$J196*IF($C196="Diesel",CO2_Faktoren!B$3,CO2_Faktoren!B$5)) ->  | M196: =IF(G196="","",$J196*IF($C196="Diesel",CO2_Faktoren!C$3,CO2_Faktoren!C$5)) ->  | N196: =IF(G196="","",$J196*IF($C196="Diesel",CO2_Faktoren!D$3,CO2_Faktoren!D$5)) ->  | O196: =IF(G196="","",$J196*IF($C196="Diesel",CO2_Faktoren!E$3,CO2_Faktoren!E$5)) ->  | P196: =IF(G196="","",$J196*IF($C196="Diesel",CO2_Faktoren!F$3,CO2_Faktoren!F$5)) ->  | Q196: =IF(G196="","",$J196*IF($C196="Diesel",CO2_Faktoren!G$3,CO2_Faktoren!G$5)) -> 
H197: =IF(G197="","",SUM(IF(E197=Entfernung_Güterbahnhöfe!$A$2:$A$100000,1,0)*IF(F197=Entfernung_Güterbahnhöfe!$B$2:$B$100000,1,0)*Entfernung_Güterbahnhöfe!$C$2:$C$100000)) ->  | I197: =IF(G197="","",INDEX(Energieverbrauch!$F$2:$F$55, MATCH( INDEX(Zugtypen!$A$2:$A$4, MATCH(A197,Zugtypen!$B$2:$B$4,0)) & INDEX(FahrttypenTopologie!$A$2:$A$4, MATCH(B197,FahrttypenTopologie!$B$2:$B$4,0)) & INDEX(Traktion!$A$2:$A$3, MATCH(C197,Traktion!$B$2:$B$3,0)) & INDEX(Ladungsart!$A$2:$A$4, MATCH(D197,Ladungsart!$B$2:$B$4,0)), Energieverbrauch!$E$2:$E$55, 0))) ->  | K197: =IF(G197="","",IF(C197="Diesel",J197/CO2_Faktoren!$B$8,J197)) ->  | L197: =IF(G197="","",$J197*IF($C197="Diesel",CO2_Faktoren!B$3,CO2_Faktoren!B$5)) ->  | M197: =IF(G197="","",$J197*IF($C197="Diesel",CO2_Faktoren!C$3,CO2_Faktoren!C$5)) ->  | N197: =IF(G197="","",$J197*IF($C197="Diesel",CO2_Faktoren!D$3,CO2_Faktoren!D$5)) ->  | O197: =IF(G197="","",$J197*IF($C197="Diesel",CO2_Faktoren!E$3,CO2_Faktoren!E$5)) ->  | P197: =IF(G197="","",$J197*IF($C197="Diesel",CO2_Faktoren!F$3,CO2_Faktoren!F$5)) ->  | Q197: =IF(G197="","",$J197*IF($C197="Diesel",CO2_Faktoren!G$3,CO2_Faktoren!G$5)) -> 
H198: =IF(G198="","",SUM(IF(E198=Entfernung_Güterbahnhöfe!$A$2:$A$100000,1,0)*IF(F198=Entfernung_Güterbahnhöfe!$B$2:$B$100000,1,0)*Entfernung_Güterbahnhöfe!$C$2:$C$100000)) ->  | I198: =IF(G198="","",INDEX(Energieverbrauch!$F$2:$F$55, MATCH( INDEX(Zugtypen!$A$2:$A$4, MATCH(A198,Zugtypen!$B$2:$B$4,0)) & INDEX(FahrttypenTopologie!$A$2:$A$4, MATCH(B198,FahrttypenTopologie!$B$2:$B$4,0)) & INDEX(Traktion!$A$2:$A$3, MATCH(C198,Traktion!$B$2:$B$3,0)) & INDEX(Ladungsart!$A$2:$A$4, MATCH(D198,Ladungsart!$B$2:$B$4,0)), Energieverbrauch!$E$2:$E$55, 0))) ->  | J198: =IF(G198="","",(I198*H198*G198)/1000) ->  | K198: =IF(G198="","",IF(C198="Diesel",J198/CO2_Faktoren!$B$8,J198)) ->  | L198: =IF(G198="","",$J198*IF($C198="Diesel",CO2_Faktoren!B$3,CO2_Faktoren!B$5)) ->  | M198: =IF(G198="","",$J198*IF($C198="Diesel",CO2_Faktoren!C$3,CO2_Faktoren!C$5)) ->  | N198: =IF(G198="","",$J198*IF($C198="Diesel",CO2_Faktoren!D$3,CO2_Faktoren!D$5)) ->  | O198: =IF(G198="","",$J198*IF($C198="Diesel",CO2_Faktoren!E$3,CO2_Faktoren!E$5)) ->  | P198: =IF(G198="","",$J198*IF($C198="Diesel",CO2_Faktoren!F$3,CO2_Faktoren!F$5)) ->  | Q198: =IF(G198="","",$J198*IF($C198="Diesel",CO2_Faktoren!G$3,CO2_Faktoren!G$5)) -> 
H199: =IF(G199="","",SUM(IF(E199=Entfernung_Güterbahnhöfe!$A$2:$A$100000,1,0)*IF(F199=Entfernung_Güterbahnhöfe!$B$2:$B$100000,1,0)*Entfernung_Güterbahnhöfe!$C$2:$C$100000)) ->  | I199: =IF(G199="","",INDEX(Energieverbrauch!$F$2:$F$55, MATCH( INDEX(Zugtypen!$A$2:$A$4, MATCH(A199,Zugtypen!$B$2:$B$4,0)) & INDEX(FahrttypenTopologie!$A$2:$A$4, MATCH(B199,FahrttypenTopologie!$B$2:$B$4,0)) & INDEX(Traktion!$A$2:$A$3, MATCH(C199,Traktion!$B$2:$B$3,0)) & INDEX(Ladungsart!$A$2:$A$4, MATCH(D199,Ladungsart!$B$2:$B$4,0)), Energieverbrauch!$E$2:$E$55, 0))) ->  | K199: =IF(G199="","",IF(C199="Diesel",J199/CO2_Faktoren!$B$8,J199)) ->  | L199: =IF(G199="","",$J199*IF($C199="Diesel",CO2_Faktoren!B$3,CO2_Faktoren!B$5)) ->  | M199: =IF(G199="","",$J199*IF($C199="Diesel",CO2_Faktoren!C$3,CO2_Faktoren!C$5)) ->  | N199: =IF(G199="","",$J199*IF($C199="Diesel",CO2_Faktoren!D$3,CO2_Faktoren!D$5)) ->  | O199: =IF(G199="","",$J199*IF($C199="Diesel",CO2_Faktoren!E$3,CO2_Faktoren!E$5)) ->  | P199: =IF(G199="","",$J199*IF($C199="Diesel",CO2_Faktoren!F$3,CO2_Faktoren!F$5)) ->  | Q199: =IF(G199="","",$J199*IF($C199="Diesel",CO2_Faktoren!G$3,CO2_Faktoren!G$5)) -> 
H200: =IF(G200="","",SUM(IF(E200=Entfernung_Güterbahnhöfe!$A$2:$A$100000,1,0)*IF(F200=Entfernung_Güterbahnhöfe!$B$2:$B$100000,1,0)*Entfernung_Güterbahnhöfe!$C$2:$C$100000)) ->  | I200: =IF(G200="","",INDEX(Energieverbrauch!$F$2:$F$55, MATCH( INDEX(Zugtypen!$A$2:$A$4, MATCH(A200,Zugtypen!$B$2:$B$4,0)) & INDEX(FahrttypenTopologie!$A$2:$A$4, MATCH(B200,FahrttypenTopologie!$B$2:$B$4,0)) & INDEX(Traktion!$A$2:$A$3, MATCH(C200,Traktion!$B$2:$B$3,0)) & INDEX(Ladungsart!$A$2:$A$4, MATCH(D200,Ladungsart!$B$2:$B$4,0)), Energieverbrauch!$E$2:$E$55, 0))) ->  | K200: =IF(G200="","",IF(C200="Diesel",J200/CO2_Faktoren!$B$8,J200)) ->  | L200: =IF(G200="","",$J200*IF($C200="Diesel",CO2_Faktoren!B$3,CO2_Faktoren!B$5)) ->  | M200: =IF(G200="","",$J200*IF($C200="Diesel",CO2_Faktoren!C$3,CO2_Faktoren!C$5)) ->  | N200: =IF(G200="","",$J200*IF($C200="Diesel",CO2_Faktoren!D$3,CO2_Faktoren!D$5)) ->  | O200: =IF(G200="","",$J200*IF($C200="Diesel",CO2_Faktoren!E$3,CO2_Faktoren!E$5)) ->  | P200: =IF(G200="","",$J200*IF($C200="Diesel",CO2_Faktoren!F$3,CO2_Faktoren!F$5)) ->  | Q200: =IF(G200="","",$J200*IF($C200="Diesel",CO2_Faktoren!G$3,CO2_Faktoren!G$5)) -> 
H201: =IF(G201="","",SUM(IF(E201=Entfernung_Güterbahnhöfe!$A$2:$A$100000,1,0)*IF(F201=Entfernung_Güterbahnhöfe!$B$2:$B$100000,1,0)*Entfernung_Güterbahnhöfe!$C$2:$C$100000)) ->  | I201: =IF(G201="","",INDEX(Energieverbrauch!$F$2:$F$55, MATCH( INDEX(Zugtypen!$A$2:$A$4, MATCH(A201,Zugtypen!$B$2:$B$4,0)) & INDEX(FahrttypenTopologie!$A$2:$A$4, MATCH(B201,FahrttypenTopologie!$B$2:$B$4,0)) & INDEX(Traktion!$A$2:$A$3, MATCH(C201,Traktion!$B$2:$B$3,0)) & INDEX(Ladungsart!$A$2:$A$4, MATCH(D201,Ladungsart!$B$2:$B$4,0)), Energieverbrauch!$E$2:$E$55, 0))) ->  | K201: =IF(G201="","",IF(C201="Diesel",J201/CO2_Faktoren!$B$8,J201)) ->  | L201: =IF(G201="","",$J201*IF($C201="Diesel",CO2_Faktoren!B$3,CO2_Faktoren!B$5)) ->  | M201: =IF(G201="","",$J201*IF($C201="Diesel",CO2_Faktoren!C$3,CO2_Faktoren!C$5)) ->  | N201: =IF(G201="","",$J201*IF($C201="Diesel",CO2_Faktoren!D$3,CO2_Faktoren!D$5)) ->  | O201: =IF(G201="","",$J201*IF($C201="Diesel",CO2_Faktoren!E$3,CO2_Faktoren!E$5)) ->  | P201: =IF(G201="","",$J201*IF($C201="Diesel",CO2_Faktoren!F$3,CO2_Faktoren!F$5)) ->  | Q201: =IF(G201="","",$J201*IF($C201="Diesel",CO2_Faktoren!G$3,CO2_Faktoren!G$5)) -> 
H202: =IF(G202="","",SUM(IF(E202=Entfernung_Güterbahnhöfe!$A$2:$A$100000,1,0)*IF(F202=Entfernung_Güterbahnhöfe!$B$2:$B$100000,1,0)*Entfernung_Güterbahnhöfe!$C$2:$C$100000)) ->  | I202: =IF(G202="","",INDEX(Energieverbrauch!$F$2:$F$55, MATCH( INDEX(Zugtypen!$A$2:$A$4, MATCH(A202,Zugtypen!$B$2:$B$4,0)) & INDEX(FahrttypenTopologie!$A$2:$A$4, MATCH(B202,FahrttypenTopologie!$B$2:$B$4,0)) & INDEX(Traktion!$A$2:$A$3, MATCH(C202,Traktion!$B$2:$B$3,0)) & INDEX(Ladungsart!$A$2:$A$4, MATCH(D202,Ladungsart!$B$2:$B$4,0)), Energieverbrauch!$E$2:$E$55, 0))) ->  | K202: =IF(G202="","",IF(C202="Diesel",J202/CO2_Faktoren!$B$8,J202)) ->  | L202: =IF(G202="","",$J202*IF($C202="Diesel",CO2_Faktoren!B$3,CO2_Faktoren!B$5)) ->  | M202: =IF(G202="","",$J202*IF($C202="Diesel",CO2_Faktoren!C$3,CO2_Faktoren!C$5)) ->  | N202: =IF(G202="","",$J202*IF($C202="Diesel",CO2_Faktoren!D$3,CO2_Faktoren!D$5)) ->  | O202: =IF(G202="","",$J202*IF($C202="Diesel",CO2_Faktoren!E$3,CO2_Faktoren!E$5)) ->  | P202: =IF(G202="","",$J202*IF($C202="Diesel",CO2_Faktoren!F$3,CO2_Faktoren!F$5)) ->  | Q202: =IF(G202="","",$J202*IF($C202="Diesel",CO2_Faktoren!G$3,CO2_Faktoren!G$5)) -> 
... 1800 more rows

Sheet Energieverbrauch
A1: Zugtyp_ID | B1: Fahrttyp_ID | C1: Traktion_ID | D1: Ladungsart_ID | E1: Verbrauch-ID | F1: Verbrauch [g Diesel/tkm bzw. Wh/tkm]
A2: 1 | B2: 1 | C2: 1 | D2: 1 | E2: =CONCATENATE(A2,B2,C2,D2) -> 1111 | F2: 40.2
A3: 1 | B3: 1 | C3: 1 | D3: 2 | E3: =CONCATENATE(A3,B3,C3,D3) -> 1112 | F3: 48.3
A4: 1 | B4: 1 | C4: 1 | D4: 3 | E4: 1113 | F4: 60.4
A5: 1 | B5: 2 | C5: 1 | D5: 1 | E5: 1211 | F5: 50.3
A6: 1 | B6: 2 | C6: 1 | D6: 2 | E6: 1212 | F6: 60.4
A7: 1 | B7: 2 | C7: 1 | D7: 3 | E7: 1213 | F7: 75.5
A8: 1 | B8: 3 | C8: 1 | D8: 1 | E8: 1311 | F8: 60.4
A9: 1 | B9: 3 | C9: 1 | D9: 2 | E9: 1312 | F9: 72.4
A10: 1 | B10: 3 | C10: 1 | D10: 3 | E10: 1313 | F10: 90.6
A11: 2 | B11: 1 | C11: 1 | D11: 1 | E11: 2111 | F11: 28.5
A12: 2 | B12: 1 | C12: 1 | D12: 2 | E12: 2112 | F12: 34.2
A13: 2 | B13: 1 | C13: 1 | D13: 3 | E13: 2113 | F13: 42.7
A14: 2 | B14: 2 | C14: 1 | D14: 1 | E14: 2211 | F14: 35.6
A15: 2 | B15: 2 | C15: 1 | D15: 2 | E15: 2212 | F15: 42.7
A16: 2 | B16: 2 | C16: 1 | D16: 3 | E16: 2213 | F16: 53.4
A17: 2 | B17: 3 | C17: 1 | D17: 1 | E17: 2311 | F17: 42.7
A18: 2 | B18: 3 | C18: 1 | D18: 2 | E18: 2312 | F18: 51.2
A19: 2 | B19: 3 | C19: 1 | D19: 3 | E19: 2313 | F19: 64
A20: 3 | B20: 1 | C20: 1 | D20: 1 | E20: 3111 | F20: 23.2
A21: 3 | B21: 1 | C21: 1 | D21: 2 | E21: 3112 | F21: 27.9
A22: 3 | B22: 1 | C22: 1 | D22: 3 | E22: 3113 | F22: 34.9
A23: 3 | B23: 2 | C23: 1 | D23: 1 | E23: 3211 | F23: 29
A24: 3 | B24: 2 | C24: 1 | D24: 2 | E24: 3212 | F24: 34.9
A25: 3 | B25: 2 | C25: 1 | D25: 3 | E25: 3213 | F25: 43.6
A26: 3 | B26: 3 | C26: 1 | D26: 1 | E26: 3311 | F26: 34.9
A27: 3 | B27: 3 | C27: 1 | D27: 2 | E27: 3312 | F27: 41.8
A28: 3 | B28: 3 | C28: 1 | D28: 3 | E28: 3313 | F28: 52.3
A29: 1 | B29: 1 | C29: 2 | D29: 1 | E29: 1121 | F29: 9.1
A30: 1 | B30: 1 | C30: 2 | D30: 2 | E30: 1122 | F30: 11
A31: 1 | B31: 1 | C31: 2 | D31: 3 | E31: 1123 | F31: 13.7
A32: 1 | B32: 2 | C32: 2 | D32: 1 | E32: 1221 | F32: 11.4
A33: 1 | B33: 2 | C33: 2 | D33: 2 | E33: 1222 | F33: 13.7
A34: 1 | B34: 2 | C34: 2 | D34: 3 | E34: 1223 | F34: 17.1
A35: 1 | B35: 3 | C35: 2 | D35: 1 | E35: 1321 | F35: 13.7
A36: 1 | B36: 3 | C36: 2 | D36: 2 | E36: 1322 | F36: 16.4
A37: 1 | B37: 3 | C37: 2 | D37: 3 | E37: 1323 | F37: 20.5
A38: 2 | B38: 1 | C38: 2 | D38: 1 | E38: 2121 | F38: 6.5
A39: 2 | B39: 1 | C39: 2 | D39: 2 | E39: 2122 | F39: 7.7
A40: 2 | B40: 1 | C40: 2 | D40: 3 | E40: 2123 | F40: 9.7
A41: 2 | B41: 2 | C41: 2 | D41: 1 | E41: 2221 | F41: 8.1
A42: 2 | B42: 2 | C42: 2 | D42: 2 | E42: 2222 | F42: 9.7
A43: 2 | B43: 2 | C43: 2 | D43: 3 | E43: 2223 | F43: 12.1
A44: 2 | B44: 3 | C44: 2 | D44: 1 | E44: 2321 | F44: 9.7
A45: 2 | B45: 3 | C45: 2 | D45: 2 | E45: 2322 | F45: 11.6
A46: 2 | B46: 3 | C46: 2 | D46: 3 | E46: 2323 | F46: 14.5
A47: 3 | B47: 1 | C47: 2 | D47: 1 | E47: 3121 | F47: 5.3
A48: 3 | B48: 1 | C48: 2 | D48: 2 | E48: 3122 | F48: 6.3
A49: 3 | B49: 1 | C49: 2 | D49: 3 | E49: 3123 | F49: 7.9
A50: 3 | B50: 2 | C50: 2 | D50: 1 | E50: 3221 | F50: 6.6
A51: 3 | B51: 2 | C51: 2 | D51: 2 | E51: 3222 | F51: 7.9
A52: 3 | B52: 2 | C52: 2 | D52: 3 | E52: 3223 | F52: 9.9
A53: 3 | B53: 3 | C53: 2 | D53: 1 | E53: 3321 | F53: 7.9
A54: 3 | B54: 3 | C54: 2 | D54: 2 | E54: 3322 | F54: 9.5
A55: 3 | B55: 3 | C55: 2 | D55: 3 | E55: 3323 | F55: 11.9
A58: Quelle:
A59: Kranke, A.: Besonderheiten des Bahntransports. In: VerkehrsRundschau Nr. 01/2011, S. 36-38.

Sheet CO2_Faktoren
B1: Energieverbrauch | D1: CO2-Emissionen | F1: CO2e-Emissionen
B2: TTW | C2: WTW | D2: TTW | E2: WTW | F2: TTW | G2: WTW
A3: Diesel* | B3: 43.1 | C3: 51.3 | D3: 3.16 | E3: 3.84 | F3: 3.21 | G3: 3.9
A4: Einheit | B4: MJ/kg | C4: MJ/kg | D4: kg CO2/kg | E4: kg CO2/kg | F4: kg CO2e/kg | G4: kg CO2e/kg
A5: Elektrotraktion Bahnstrom D | B5: 3.6 | C5: 10.8 | D5: 0 | E5: 0.527 | F5: 0 | G5: 0.574
A6: Einheit | B6: MJ/kWh | C6: MJ/kWh | D6: kg/kWh | E6: kg/kWh | F6: kg CO2e/kWh | G6: kg CO2e/kWh
A8: Dichte Diesel: | B8: 0.832 | C8: kg/l
B10: Energieverbrauch | D10: CO2-Emissionen | F10: CO2e-Emissionen
B11: TTW | C11: WTW | D11: TTW | E11: WTW | F11: TTW | G11: WTW
A12: Diesel* | B12: 35.9 | C12: 42.7 | D12: 2.63 | E12: 3.19 | F12: 2.67 | G12: 3.24
A13: Einheit | B13: MJ/l | C13: MJ/l | D13: kg CO2/l | E13: kg CO2/l | F13: kg CO2e/l | G13: kg CO2e/l
A14: Elektrotraktion Bahnstrom D | B14: 3.6 | C14: 10.8 | D14: 0 | E14: 0.527 | F14: 0 | G14: 0.574
A15: Einheit | B15: MJ/kWh | C15: MJ/kWh | D15: kg/kWh | E15: kg/kWh | F15: kg CO2e/kWh | G15: kg CO2e/kWh
A17: *Gültigkeit erhalten die Werte ab Dez 2012.
A44: Quellen:
A45: Dieselwerte | B45: Öko-Insitut e.V. (2012). Umrechnungsfaktoren für Energie, CO2- und Treibhausgasemissionen. Berlin
A46: Elektrotraktion Bahnstrom D | B46: Kranke, A.; et. al.: CO2-Berechnung in der Logistik. Verlag Heinrich Vogel in der Springer Fachmedien München GmbH, München, 2011

Sheet Güterbahnhöfe
A1: ID | B1: Bezeichnung
A2: 1 | B2: Berlin
A3: 2 | B3: Bremen
A4: 3 | B4: Bremerhaven
A5: 4 | B5: Dortmund
A6: 5 | B6: Dresden
A7: 6 | B7: Eschweiler
A8: 7 | B8: Frankfurt am Main
A9: 8 | B9: Hamburg
A10: 9 | B10: Menden
A11: 10 | B11: München
A12: 11 | B12: Rheine
A13: 12 | B13: Stuttgart
A14: 13 | B14: Wuppertal
A15: 14 | B15: Göteburg
A16: 15 | B16: Oslo
A17: 16 | B17: Stockholm
A18: 17 | B18: Riga
A19: 18 | B19: Tallin
A20: 19 | B20: Vilnius
A21: 20 | B21: Bratislava
A22: 21 | B22: Budapest
A23: 22 | B23: Poznan
A24: 23 | B24: Prag
A25: 24 | B25: Warschau
A26: 25 | B26: Athen
A27: 26 | B27: Belgrad
A28: 27 | B28: Bukarest
A29: 28 | B29: Ljubljana
A30: 29 | B30: Sarajevo
A31: 30 | B31: Sofia
A32: 31 | B32: Zagreb
A33: 32 | B33: Wien
A34: 33 | B34: Zürich
A35: 34 | B35: Amsterdam
A36: 35 | B36: Antwerpen
A37: 36 | B37: Luxembourg
A38: 37 | B38: Rotterdam
A39: 38 | B39: London
A40: 39 | B40: Marseille
A41: 40 | B41: Paris
A42: 41 | B42: Barcelona
A43: 42 | B43: Lisabon
A44: 43 | B44: Mailand
A45: 44 | B45: Rom
A46: 45 | B46: Flandersbach
A47: 46
A48: 47
A49: 48
A50: 49
A51: 50
A52: 51
A53: 52
A54: 53
A55: 54
A56: 55
A57: 56
A58: 57
A59: 58
A60: 59
A61: 60
A62: 61
A63: 62
A64: 63
A65: 64
A66: 65
A67: 66
A68: 67
A69: 68
A70: 69
A71: 70
A72: 71
A73: 72
A74: 73
A75: 74
A76: 75
A77: 76
A78: 77
A79: 78
A80: 79
A81: 80
A82: 81
A83: 82
A84: 83
A85: 84
A86: 85
A87: 86
A88: 87
A89: 88
A90: 89
A91: 90
A92: 91
A93: 92
A94: 93
A95: 94
A96: 95
A97: 96
A98: 97
A99: 98
A100: 99
A101: 100
A102: 101
A103: 102
A104: 103
A105: 104
A106: 105
A107: 106
A108: 107
A109: 108
A110: 109
A111: 110
A112: 111
A113: 112
A114: 113
A115: 114
A116: 115
A117: 116
A118: 117
A119: 118
A120: 119
A121: 120
A122: 121
A123: 122
A124: 123
A125: 124
A126: 125
A127: 126
A128: 127
A129: 128
A130: 129
A131: 130
A132: 131
A133: 132
A134: 133
A135: 134
A136: 135
A137: 136
A138: 137
A139: 138
A140: 139
A141: 140
A142: 141
A143: 142
A144: 143
A145: 144
A146: 145
A147: 146
A148: 147
A149: 148
A150: 149
A151: 150
A152: 151
A153: 152
A154: 153
A155: 154
A156: 155
A157: 156
A158: 157
A159: 158
A160: 159
A161: 160
A162: 161
A163: 162
A164: 163
A165: 164
A166: 165
A167: 166
A168: 167
A169: 168
A170: 169
A171: 170
A172: 171
A173: 172
A174: 173
A175: 174
A176: 175
A177: 176
A178: 177
A179: 178
A180: 179
A181: 180
A182: 181
A183: 182
A184: 183
A185: 184
A186: 185
A187: 186
A188: 187
A189: 188
A190: 189
A191: 190
A192: 191
A193: 192
A194: 193
A195: 194
A196: 195
A197: 196
A198: 197
A199: 198
A200: 199
... 401 more rows

Sheet Entfernung_Güterbahnhöfe
A1: Startbahnhof | B1: Zielbahnhof | C1: Entfernung [km]
A2: Berlin | B2: Bremen | C2: 353
A3: Berlin | B3: Bremerhaven | C3: 402
A4: Berlin | B4: Dortmund | C4: 470
A5: Berlin | B5: Dresden | C5: 194
A6: Berlin | B6: Eschweiler | C6: 627
A7: Berlin | B7: Flandersbach | C7: 549
A8: Berlin | B8: Frankfurt am Main | C8: 551
A9: Berlin | B9: Hamburg | C9: 296
A10: Berlin | B10: Menden | C10: 476
A11: Berlin | B11: München | C11: 650
A12: Berlin | B12: Rheine | C12: 446
A13: Berlin | B13: Stuttgart | C13: 671
A14: Berlin | B14: Wuppertal | C14: 518
A15: Berlin | B15: Göteburg | C15: 1006
A16: Berlin | B16: Oslo | C16: 1468
A17: Berlin | B17: Stockholm | C17: 1432
A18: Berlin | B18: Riga | C18: 1150
A19: Berlin | B19: Tallin | C19: 1501
A20: Berlin | B20: Vilnius | C20: 1074
A21: Berlin | B21: Bratislava | C21: 710
A22: Berlin | B22: Budapest | C22: 909
A23: Berlin | B23: Poznan | C23: 287
A24: Berlin | B24: Prag | C24: 399
A25: Berlin | B25: Warschau | C25: 585
A26: Berlin | B26: Athen | C26: 2380
A27: Berlin | B27: Belgrad | C27: 1279
A28: Berlin | B28: Bukarest | C28: 1695
A29: Berlin | B29: Ljubljana | C29: 996
A30: Berlin | B30: Sarajevo | C30: 1564
A31: Berlin | B31: Sofia | C31: 1961
A32: Berlin | B32: Zagreb | C32: 1142
A33: Berlin | B33: Wien | C33: 700
A34: Berlin | B34: Zürich | C34: 919
A35: Berlin | B35: Amsterdam | C35: 654
A36: Berlin | B36: Antwerpen | C36: 739
A37: Berlin | B37: Luxembourg | C37: 812
A38: Berlin | B38: Rotterdam | C38: 728
A39: Berlin | B39: London | C39: 1121
A40: Berlin | B40: Marseille | C40: 1506
A41: Berlin | B41: Paris | C41: 1056
A42: Berlin | B42: Barcelona | C42: 1666
A43: Berlin | B43: Lisabon | C43: 2859
A44: Berlin | B44: Mailand | C44: 1200
A45: Berlin | B45: Rom | C45: 1592
A46: Bremen | B46: Berlin | C46: 353
A47: Bremen | B47: Bremerhaven | C47: 62
A48: Bremen | B48: Dortmund | C48: 230
A49: Bremen | B49: Dresden | C49: 480
A50: Bremen | B50: Eschweiler | C50: 382
A51: Bremen | B51: Flandersbach | C51: 291
A52: Bremen | B52: Frankfurt am Main | C52: 460
A53: Bremen | B53: Hamburg | C53: 115
A54: Bremen | B54: Menden | C54: 243
A55: Bremen | B55: München | C55: 716
A56: Bremen | B56: Rheine | C56: 165
A57: Bremen | B57: Stuttgart | C57: 630
A58: Bremen | B58: Wuppertal | C58: 280
A59: Bremen | B59: Göteburg | C59: 839
A60: Bremen | B60: Oslo | C60: 1287
A61: Bremen | B61: Stockholm | C61: 1172
A62: Bremen | B62: Riga | C62: 1522
A63: Bremen | B63: Tallin | C63: 1874
A64: Bremen | B64: Vilnius | C64: 1370
A65: Bremen | B65: Bratislava | C65: 1027
A66: Bremen | B66: Budapest | C66: 1225
A67: Bremen | B67: Poznan | C67: 626
A68: Bremen | B68: Prag | C68: 685
A69: Bremen | B69: Warschau | C69: 924
A70: Bremen | B70: Athen | C70: 1027
A71: Bremen | B71: Belgrad | C71: 1595
A72: Bremen | B72: Bukarest | C72: 2034
A73: Bremen | B73: Ljubljana | C73: 1131
A74: Bremen | B74: Sarajevo | C74: 891
A75: Bremen | B75: Sofia | C75: 2096
A76: Bremen | B76: Zagreb | C76: 1277
A77: Bremen | B77: Wien | C77: 986
A78: Bremen | B78: Zürich | C78: 882
A79: Bremen | B79: Amsterdam | C79: 373
A80: Bremen | B80: Antwerpen | C80: 458
A81: Bremen | B81: Luxembourg | C81: 580
A82: Bremen | B82: Rotterdam | C82: 447
A83: Bremen | B83: London | C83: 850
A84: Bremen | B84: Marseille | C84: 1279
A85: Bremen | B85: Paris | C85: 795
A86: Bremen | B86: Barcelona | C86: 1439
A87: Bremen | B87: Lisabon | C87: 2598
A88: Bremen | B88: Mailand | C88: 1154
A89: Bremen | B89: Rom | C89: 1631
A90: Bremerhaven | B90: Berlin | C90: 402
A91: Bremerhaven | B91: Bremen | C91: 62
A92: Bremerhaven | B92: Dortmund | C92: 292
A93: Bremerhaven | B93: Dresden | C93: 542
A94: Bremerhaven | B94: Eschweiler | C94: 444
A95: Bremerhaven | B95: Flandersbach | C95: 353
A96: Bremerhaven | B96: Frankfurt am Main | C96: 522
A97: Bremerhaven | B97: Hamburg | C97: 113
A98: Bremerhaven | B98: Menden | C98: 305
A99: Bremerhaven | B99: München | C99: 778
A100: Bremerhaven | B100: Rheine | C100: 230
A101: Bremerhaven | B101: Stuttgart | C101: 692
A102: Bremerhaven | B102: Wuppertal | C102: 334
A103: Bremerhaven | B103: Göteburg | C103: 837
A104: Bremerhaven | B104: Oslo | C104: 1344
A105: Bremerhaven | B105: Stockholm | C105: 1170
A106: Bremerhaven | B106: Riga | C106: 1579
A107: Bremerhaven | B107: Tallin | C107: 1931
A108: Bremerhaven | B108: Vilnius | C108: 1427
A109: Bremerhaven | B109: Bratislava | C109: 1089
A110: Bremerhaven | B110: Budapest | C110: 1287
A111: Bremerhaven | B111: Poznan | C111: 675
A112: Bremerhaven | B112: Prag | C112: 747
A113: Bremerhaven | B113: Warschau | C113: 973
A114: Bremerhaven | B114: Athen | C114: 2759
A115: Bremerhaven | B115: Belgrad | C115: 1657
A116: Bremerhaven | B116: Bukarest | C116: 2083
A117: Bremerhaven | B117: Ljubljana | C117: 1193
A118: Bremerhaven | B118: Sarajevo | C118: 1804
A119: Bremerhaven | B119: Sofia | C119: 2158
A120: Bremerhaven | B120: Zagreb | C120: 1339
A121: Bremerhaven | B121: Wien | C121: 1048
A122: Bremerhaven | B122: Zürich | C122: 944
A123: Bremerhaven | B123: Amsterdam | C123: 435
A124: Bremerhaven | B124: Antwerpen | C124: 520
A125: Bremerhaven | B125: Luxembourg | C125: 642
A126: Bremerhaven | B126: Rotterdam | C126: 498
A127: Bremerhaven | B127: London | C127: 912
A128: Bremerhaven | B128: Marseille | C128: 1341
A129: Bremerhaven | B129: Paris | C129: 857
A130: Bremerhaven | B130: Barcelona | C130: 1501
A131: Bremerhaven | B131: Lisabon | C131: 2660
A132: Bremerhaven | B132: Mailand | C132: 1216
A133: Bremerhaven | B133: Rom | C133: 1693
A134: Dortmund | B134: Berlin | C134: 470
A135: Dortmund | B135: Bremen | C135: 230
A136: Dortmund | B136: Bremerhaven | C136: 292
A137: Dortmund | B137: Dresden | C137: 536
A138: Dortmund | B138: Eschweiler | C138: 163
A139: Dortmund | B139: Flandersbach | C139: 89
A140: Dortmund | B140: Frankfurt am Main | C140: 266
A141: Dortmund | B141: Hamburg | C141: 324
A142: Dortmund | B142: Menden | C142: 36
A143: Dortmund | B143: München | C143: 638
A144: Dortmund | B144: Rheine | C144: 99
A145: Dortmund | B145: Stuttgart | C145: 444
A146: Dortmund | B146: Wuppertal | C146: 46
A147: Dortmund | B147: Göteburg | C147: 1163
A148: Dortmund | B148: Oslo | C148: 1495
A149: Dortmund | B149: Stockholm | C149: 1474
A150: Dortmund | B150: Riga | C150: 1604
A151: Dortmund | B151: Tallin | C151: 1956
A152: Dortmund | B152: Vilnius | C152: 1451
A153: Dortmund | B153: Bratislava | C153: 1068
A154: Dortmund | B154: Budapest | C154: 1264
A155: Dortmund | B155: Poznan | C155: 743
A156: Dortmund | B156: Prag | C156: 741
A157: Dortmund | B157: Warschau | C157: 1041
A158: Dortmund | B158: Athen | C158: 2704
A159: Dortmund | B159: Belgrad | C159: 1628
A160: Dortmund | B160: Bukarest | C160: 2093
A161: Dortmund | B161: Ljubljana | C161: 1054
A162: Dortmund | B162: Sarajevo | C162: 1655
A163: Dortmund | B163: Sofia | C163: 2019
A164: Dortmund | B164: Zagreb | C164: 1200
A165: Dortmund | B165: Wien | C165: 994
A166: Dortmund | B166: Zürich | C166: 669
A167: Dortmund | B167: Amsterdam | C167: 246
A168: Dortmund | B168: Antwerpen | C168: 290
A169: Dortmund | B169: Luxembourg | C169: 355
A170: Dortmund | B170: Rotterdam | C170: 284
A171: Dortmund | B171: London | C171: 682
A172: Dortmund | B172: Marseille | C172: 1054
A173: Dortmund | B173: Paris | C173: 586
A174: Dortmund | B174: Barcelona | C174: 1214
A175: Dortmund | B175: Lisabon | C175: 2389
A176: Dortmund | B176: Mailand | C176: 933
A177: Dortmund | B177: Rom | C177: 1550
A178: Dresden | B178: Berlin | C178: 194
A179: Dresden | B179: Bremen | C179: 480
A180: Dresden | B180: Bremerhaven | C180: 542
A181: Dresden | B181: Dortmund | C181: 536
A182: Dresden | B182: Eschweiler | C182: 1478
A183: Dresden | B183: Flandersbach | C183: 614
A184: Dresden | B184: Frankfurt am Main | C184: 497
A185: Dresden | B185: Hamburg | C185: 463
A186: Dresden | B186: Menden | C186: 528
A187: Dresden | B187: München | C187: 543
A188: Dresden | B188: Rheine | C188: 539
A189: Dresden | B189: Stuttgart | C189: 588
A190: Dresden | B190: Wuppertal | C190: 562
A191: Dresden | B191: Göteburg | C191: 1329
A192: Dresden | B192: Oslo | C192: 1633
A193: Dresden | B193: Stockholm | C193: 1601
A194: Dresden | B194: Riga | C194: 1260
A195: Dresden | B195: Tallin | C195: 1612
A196: Dresden | B196: Vilnius | C196: 1107
A197: Dresden | B197: Bratislava | C197: 547
A198: Dresden | B198: Budapest | C198: 745
A199: Dresden | B199: Poznan | C199: 340
A200: Dresden | B200: Prag | C200: 205
... 1781 more rows

Sheet Zugtypen
A1: ID | B1: Bezeichnung | C1: Länge [m] | D1: Gewicht [t]
A2: 1 | B2: Kurzzug | C2: 300 | D2: 500
A3: 2 | B3: Mittlerer Zug | C3: 500 | D3: 1000
A4: 3 | B4: Langzug | C4: 700 | D4: 1500

Sheet FahrttypenTopologie
A1: ID | B1: Bezeichnung
A2: 1 | B2: Flachland
A3: 2 | B3: Hügelig
A4: 3 | B4: Bergig

Sheet Traktion
A1: ID | B1: Bezeichnung
A2: 1 | B2: Elektrotraktion
A3: 2 | B3: Diesel

Sheet Ladungsart
A1: ID | B1: Bezeichnung
A2: 1 | B2: Bulk
A3: 2 | B3: Normal
A4: 3 | B4: Volumen
